Workbook

Sheet Data Input Instructions (hidden)
A3: Worksheet ID | B3: Worksheet | C3: Input Data Notes
A4: 1 | B4: Data Current Rates | C4: R2 Service Charge should already be net of RRRP credit
A5: 1 | B5: Data Current Rates | C5: Demand billed RTSR should already be loss adjusted
A6: 2 | B6: Data Proposed Rates | C6: Mapped from Draft Rates file prepared for Claude
A7: 2 | B7: Data Proposed Rates | C7: Row 5 with header name TEXT is precedent to templates; changes to TEXT need to reflected in templates
A8: 2 | B8: Data Proposed Rates | C8: Templates are set up with 2-dimension vlookups so it will accommodate inserted/deleted rows and/or columns
A9: 3 | B9: Data Billing Quantities | C9: Row 4 with header name TEXT is precedent to templates; changes to TEXT need to reflected in templates
A10: 3 | B10: Data Billing Quantities | C10: Templates are set up with 2-dimension vlookups so it will accommodate inserted/deleted rows and/or columns
A11: 4 | B11: Data Pass Through | C11: Changes to Pass Through rates can be manually input on this sheet, which is precedent to the templates
A12: 4 | B12: Data Pass Through | C12: Links to templates from Column A TEXT; any changes in the TEXT of the charge names must be reflected in the templates
A13: 5 | B13: Data BI List | C13: Instruction Sheet for macro to create individual bill impact worksheets
A14: 5 | B14: Data BI List | C14: Need to MANUALLY update Test Year to appear as header on all bill impact worksheets
A15: 6 | B15: Data BI Summary | C15: This replaces the need for cell references in summary sheet, and displays value for totals so rows can be added to templates and worksheets without having to update the summary sheet
B16: Bill Impact Summary | C16: This file has 2 hidden columns needed to link to worksheets; see Col E and F

Sheet Data Current Rates (hidden)
A1: Approved 2022 rates for HONI Legacy and Acquired customers | B1: 2 | C1: 3 | D1: 4 | E1: 5 | F1: 6 | G1: 7 | H1: 8 | I1: 9 | J1: 10 | K1: 11 | L1: 12 | M1: 13 | N1: 14 | O1: 15 | P1: 16 | Q1: 17
H2: Charges inherited from Acquisition | M2: New rate riders for 2022
A3: 1 | B3: 2 | C3: 3 | D3: 4 | E3: 5 | F3: 6 | G3: 7 | H3: NPDI & HCHI | I3: NPDI | J3: WHSI | K3: WHSI | L3: HCHI | M3: NPDI/HCHI/WHSI | N3: NPDI/HCHI/WHSI | O3: NPDI/HCHI/WHSI | P3: WHSI | Q3: WHSI
A4: Rate Class | B4: Fixed Charge ($/month) | C4: Current Variable Charge ($/kWh or $/kW) | D4: Fixed Base Rate Adjustment for Past Tax Amounts ($/month) | E4: Volumetric Base Rate Adjustment for Past Tax Amounts ($/kWh or $/kW) | F4: Current RTSR-NW ($/kWh or $/kW) | G4: Current RTSR-CONN ($/kWh or $/kW) | H4: Current Low Voltage Volumetric ($/kWh or $/kW) | I4: Current Rate Rider for Application of Tax Changes | J4: Current Rate Rider for Recovery of Smart Meter | K4: Rate Rider for Recovery of Incremental Capital | L4: Funding Adder for Renewable Energy Generation | M4: Rate Rider for Group 2 DVA - Fixed ($/month) | N4: Rate Rider for Group 2 DVA - Volumetric ($/kWh or $/kW) | O4: Rate Rider for LRAMVA - Volumetric ($/kWh or $/kW) | P4: Rate Rider for Account 1576 - Fixed ($/month) | Q4: Rate Rider for Account 1576 - Volumetric ($/kWh or $/kW)
A5: Rate as shown on Bill Impact Sheet | B5: Service Charge | C5: Distribution Volumetric Charge | D5: Fixed Base Rate Adjustment to Recover Past Tax Amounts | E5: Volumetric Base Rate Adjustment to Recover Past Tax Amounts | F5: Retail Transmission Rate – Network Service Rate | G5: Retail Transmission Rate – Line and Transformation Connection Service Rate | H5: Low Voltage Service Rate | I5: Rate Rider for Application of Tax Change | J5: Rate Rider for Recovery of Smart Meter Incremental Revenue Requirement | K5: Rate Rider for Recovery of Incremental Capital | L5: Funding Adder for Renewable Energy Generation | M5: Group 2 Fixed DVA Rider | N5: Group 2 Volumetric DVA Rider | O5: LRAMVA Volumetric Rate Rider | P5: Account 1576 Fixed Rate Rider | Q5: Account 1576 Volumetric Rate Rider
A6: UR | B6: 38.03 | C6: 0 | D6: 0.83 | F6: 0.0112 | G6: 0.0081
A7: R1 | B7: 56.06 | C7: 0.01 | D7: 1.56 | F7: 0.0103 | G7: 0.0076
A8: R2 | B8: 68.03 | C8: 0.016 | D8: 4.42 | F8: 0.0096 | G8: 0.0072
A9: Seasonal | B9: 58.43 | C9: 0.0311 | D9: 1.79 | F9: 0.0081 | G9: 0.0064
A10: GSe | B10: 34.13 | C10: 0.068 | D10: 1.11 | E10: 0.0022 | F10: 0.0081 | G10: 0.0059
A11: UGe | B11: 26.95 | C11: 0.0324 | D11: 0.81 | E11: 0.001 | F11: 0.0087 | G11: 0.006
A12: St Lgt | B12: 3.71 | C12: 0.1134 | D12: 0.11 | E12: 0.0034 | F12: 0.0067 | G12: 0.0038
A13: Sen Lgt | B13: 3.2 | C13: 0.1737 | D13: 0.14 | E13: 0.0078 | F13: 0.0068 | G13: 0.0039
A14: USL | B14: 39.8 | C14: 0.0265 | D14: 0.89 | E14: 0.0006 | F14: 0.0068 | G14: 0.0049
A15: GSd | B15: 113.67 | C15: 19.3834 | D15: 4.34 | E15: 0.7338 | F15: 2.5526 | G15: 1.7916
A16: UGd | B16: 104.78 | C16: 11.1722 | D16: 3.92 | E16: 0.4134 | F16: 3.2715 | G16: 2.2766
A17: Dgen | B17: 199.36 | C17: 11.0093 | D17: 1.74 | E17: 0.0883 | F17: 1.2408 | G17: 0.8728
A18: ST | B18: 1383.03 | C18: 1.6208 | D18: 36.18 | E18: 0.054 | F18: 4.4951 | G18: 3.1077
A19: WHSI_RES | B19: 31.42 | C19: 0 | F19: 0.0077 | G19: 0.0064 | J19: 0.64 | M19: 0.62 | O19: 0.0003 | P19: -8.64
A20: WHSI_GS<50 | B20: 26.36 | C20: 0.0152 | F20: 0.007 | G20: 0.006 | J20: 4.24 | N20: 0.0005 | O20: 0.0037 | Q20: -0.0068
A21: WHSI_GS 50-999 | B21: 146.47 | C21: 2.6975 | F21: 2.9915 | G21: 2.5605 | N21: 0.0724 | O21: 0.6839 | Q21: -1.0156
A22: WHSI_GS >1,000kW | B22: 542.98 | C22: 2.8671 | F22: 2.9915 | G22: 2.5605 | N22: 0.0621 | O22: 0.5521 | Q22: -0.8709
A23: WHSI_St Lgt | B23: 3.23 | C23: 13.0344 | F23: 2.2078 | G23: 1.8899 | N23: 0.7382 | Q23: -10.3543
A24: WHSI_USL | B24: 11.02 | C24: 0.0128 | F24: 0.007 | G24: 0.006 | N24: 0.0004 | Q24: -0.0058
A25: NPDI_RES | B25: 39.1 | C25: 0 | F25: 0.0072 | G25: 0.0041 | H25: 0.0009 | I25: 0.0002 | M25: -0.14 | O25: 0.0004
A26: NPDI_GS<50 | B26: 53.11 | C26: 0.0166 | F26: 0.0067 | G26: 0.0034 | H26: 0.0008 | I26: 0.0001 | N26: -0.0001 | O26: 0.0081
A27: NPDI_GS >50 | B27: 260.95 | C27: 4.2086 | F27: 2.7046 | G27: 1.3772 | H27: 0.305 | I27: 0.0211 | N27: -0.0203 | O27: 0.2853
A28: NPDI_St Lgt | B28: 2.1 | C28: 7.8927 | F28: 2.0398 | G28: 1.0647 | H28: 0.2358 | I28: 0.0655 | N28: -0.0946
A29: NPDI_Sen Lgt | B29: 6.94 | C29: 20.6518 | F29: 2.0502 | G29: 1.0868 | H29: 0.2407 | I29: 0.2079 | N29: -0.1921
A30: NPDI_USL | B30: 16.47 | C30: 0.0093 | F30: 0.0067 | G30: 0.0034 | H30: 0.0008 | I30: 0.0002 | N30: -0.0001
A31: HCHI_RES | B31: 37.31 | C31: 0 | F31: 0.0069 | G31: 0.0061 | H31: 0.0004 | L31: 0.0002 | M31: -0.83 | O31: 0.0003
A32: HCHI_GS<50 | B32: 28.19 | C32: 0.0199 | F32: 0.0063 | G32: 0.0057 | H32: 0.0004 | L32: 0.0002 | N32: -0.0007 | O32: -0.0002
A33: HCHI_GS >50 | B33: 87.49 | C33: 4.1168 | F33: 2.6512 | G33: 2.4073 | H33: 0.155 | L33: 0.0195 | N33: -0.1031 | O33: -0.0575
A34: HCHI_St Lgt | B34: 5.97 | C34: 15.2665 | F34: 1.915 | G34: 1.7294 | H34: 0.113 | L34: 0.2152 | N34: -1.4539
A35: HCHI_Sen Lgt | B35: 14.89 | C35: 38.4338 | F35: 1.9246 | G35: 1.7655 | H35: 0.1099 | L35: 0.6224 | N35: -1.0258
A36: HCHI_USL | B36: 20.42 | C36: 0.0026 | F36: 0.0063 | G36: 0.0057 | H36: 0.0004 | L36: 0.0002 | N36: -0.001

Sheet Data Proposed Rates (hidden)
A1: Proposed 2023 Rates
A3: 1 | B3: 2 | C3: 3 | D3: 4 | E3: 5 | F3: 6 | G3: 7 | H3: 8 | I3: 9 | J3: 10 | K3: 11 | L3: 12 | M3: 13 | N3: 14 | O3: 15
A4: Rate Class | B4: Proposed Fixed Charge ($/month) | C4: Proposed Volumetric Charge ($/kWh or $/kW) | D4: Proposed Group 1 DVA Rider - Volumetric ($/kWh or $/kW) | E4: Porposed Group 1 DVA Rider - Volumetric Applicable to Non-WMP Only ($/kWh or $/kW) | F4: Proposed Rate Rider for Disposition of Global Adjustment (Non WMP, Non-RPP, Non-LDC, and Class B) ($/kWh) | G4: Fixed 1592 VA Rider for Acq ($/month) | H4: Vol 1592 VA Rider for Acq ($/kWh or $/kW) | I4: Proposed Group 2 Rate Rider - Fixed ($/month) | J4: Proposed Group 2 Rate Rider - Volumetric ($/kWh or $/kW) | K4: Proposed Base Rate Adjustment for Past Tax Amounts - Fixed ($/month) | L4: Proposed Base Rate Adjustment for Past Tax Amounts - Volumetric ($/kWh or $/kW) | M4: Rate Rider for LRAMVA - Volumetric ($/kWh or $/kW) | N4: Proposed RTSR-NW ($/kWh or $/kW) | O4: Proposed RTSR-CONN ($/kWh or $/kW)
A5: Rate as shown on Bill Impact Sheet | B5: Service Charge | C5: Distribution Volumetric Charge | D5: Group 1 Volumetric DVA Rider (General) | E5: Group 1 Volumetric Deferral/Variance Account Rider (Sub-Account RSVA Wholesale Market Service Charge & RSVA Power) | F5: Group 1 Volumetric Deferral/Variance Account Rider (Sub-Account Global Adjustment) | G5: Fixed Rider for Account 1592 | H5: Volumetric Rider for Account 1592 | I5: Group 2 Fixed DVA Rider | J5: Group 2 Volumetric DVA Rider | K5: Fixed Base Rate Adjustment to Recover Past Tax Amounts | L5: Volumetric Base Rate Adjustment to Recover Past Tax Amounts | M5: LRAMVA Volumetric Rate Rider | N5: Retail Transmission Rate – Network Service Rate | O5: Retail Transmission Rate – Line and Transformation Connection Service Rate
A6: Rounding Factor | B6: 2 | C6: 4 | D6: 4 | E6: 4 | F6: 4 | G6: 2 | H6: 4 | I6: 2 | J6: 4 | K6: 2 | L6: 4 | M6: 4 | N6: 4 | O6: 4
A7: UR | B7: 38.1 | C7: 0 | D7: -0.0007 | E7: 0 | F7: -0.0009 | I7: -0.11 | K7: 0.83 | L7: 0 | N7: 0.012 | O7: 0.0083
A8: Seas-UR | B8: =B7 -> 38.1 | C8: =C7 -> 0 | D8: -0.0007 | E8: 0 | F8: -0.0009 | I8: =I7 -> -0.11 | K8: =K12 -> 1.79 | L8: =L7 -> 0 | N8: =N7 -> 0.012 | O8: =O7 -> 0.0083
A9: R1 | B9: 60.72 | C9: 0.0056 | D9: -0.0007 | E9: 0 | F9: -0.0009 | I9: -0.21 | K9: 1.56 | L9: 0 | N9: 0.0111 | O9: 0.0077
A10: Seas-R1 | B10: =B9 -> 60.72 | C10: =C9 -> 0.0056 | D10: -0.0007 | E10: 0 | F10: -0.0009 | I10: =I9 -> -0.21 | K10: =K12 -> 1.79 | L10: =L9 -> 0 | N10: =N9 -> 0.0111 | O10: =O9 -> 0.0077
A11: R2 | B11: 63.24 | C11: 0.0198 | D11: -0.0007 | E11: 0 | F11: -0.0009 | I11: -0.44 | K11: 4.42 | L11: 0 | N11: 0.0103 | O11: 0.0073
A12: Seas-R2 | B12: 65.79 | C12: 0.0198 | D12: -0.0007 | E12: 0 | F12: -0.0009 | I12: -0.44 | K12: 1.79 | L12: 0 | N12: 0.0103 | O12: 0.0073
A13: GSe | B13: 32.78 | C13: 0.0688 | D13: -0.0007 | E13: 0 | F13: -0.0009 | J13: -0.0003 | K13: 1.11 | L13: 0.0022 | N13: 0.0088 | O13: 0.0065
A14: UGe | B14: 25.51 | C14: 0.033 | D14: -0.0007 | E14: 0 | F14: -0.0009 | J14: -0.0001 | K14: 0.81 | L14: 0.001 | N14: 0.0094 | O14: 0.0069
A15: St Lgt | B15: 3.15 | C15: 0.113 | D15: -0.0007 | E15: 0 | F15: -0.0009 | J15: -0.0004 | K15: 0.11 | L15: 0.0034 | N15: 0.0064 | O15: 0.0048
A16: Sen Lgt | B16: 3.15 | C16: 0.1727 | D16: -0.0007 | E16: 0 | F16: -0.0009 | J16: -0.0005 | K16: 0.14 | L16: 0.0078 | N16: 0.0065 | O16: 0.0048
A17: USL | B17: 38.29 | C17: 0.024 | D17: -0.0007 | E17: 0 | F17: -0.0009 | J17: -0.0003 | K17: 0.89 | L17: 0.0006 | N17: 0.0075 | O17: 0.0052
A18: GSd | B18: 105.55 | C18: 19.5196 | D18: -0.0855 | E18: -0.1195 | F18: -0.0009 | J18: -0.071 | K18: 4.34 | L18: 0.7338 | N18: 2.8581 | O18: 2.093 | P18: =N18/1.061 -> 2.693779453 | Q18: =O18/1.061 -> 1.972667295
A19: UGd | B19: 96.47 | C19: 11.3288 | D19: -0.1053 | E19: -0.1473 | F19: -0.0009 | J19: -0.0421 | K19: 3.92 | L19: 0.4134 | N19: 3.6533 | O19: 2.6295 | P19: =N19/1.05 -> 3.479333333 | Q19: =O19/1.05 -> 2.504285714
A20: Dgen | B20: 199.26 | C20: 11.478 | D20: -0.0394 | E20: -0.0565 | F20: -0.0009 | J20: -0.093 | K20: 1.74 | L20: 0.0883 | N20: 1.5686 | O20: 0.8981 | P20: =N20/1.061 -> 1.478416588 | Q20: =O20/1.061 -> 0.8464655985
A21: ST | B21: 1241.87 | C21: 1.5442 | D21: -0.134 | E21: -0.188 | F21: -0.0009 | J21: -0.0072 | K21: 36.18 | L21: 0.054 | N21: 4.8128 | O21: 3.6169 | P21: =N21/1.034 -> 4.654545455 | Q21: =O21/1.034 -> 3.497969052
A22: AUR | B22: 31.46 | C22: 0 | D22: -0.0007 | E22: 0 | F22: -0.0009 | N22: 0.0124 | O22: 0.0085
A23: AUGe | B23: 26.36 | C23: 0.0152 | D23: -0.0007 | E23: 0 | F23: -0.0009 | N23: 0.0095 | O23: 0.0069
A24: AUGd | B24: 146.47 | C24: 2.8482 | D24: -0.0972 | E24: -0.1351 | F24: -0.0009 | N24: 3.3115 | O24: 2.3759 | P24: =N24/1.033 -> 3.20571152 | Q24: =O24/1.033 -> 2.3
A25: AR | B25: 38.2 | C25: 0 | D25: -0.0007 | E25: 0 | F25: -0.0009 | N25: 0.0118 | O25: 0.0082
A26: AGSe | B26: 39.96 | C26: 0.0183 | D26: -0.0007 | E26: 0 | F26: -0.0009 | N26: 0.0093 | O26: 0.0068
A27: AGSd | B27: 170.26 | C27: 4.6406 | D27: -0.098 | E27: -0.1364 | F27: -0.0009 | N27: 2.9071 | O27: 2.1382 | P27: =N27/1.053 -> 2.760778727 | Q27: =O27/1.053 -> 2.030579297
A28: AUR-WHSI | B28: 31.46 | C28: 0 | D28: -0.0009 | E28: 0 | F28: -0.0009 | G28: -0.4 | M28: ='Data Current Rates'!O19 -> 0.0003 | N28: 0.0124 | O28: 0.0085
A29: AUGe-WHSI | B29: 26.36 | C29: 0.0152 | D29: -0.0009 | E29: 0 | F29: -0.0009 | H29: -0.0003 | M29: ='Data Current Rates'!O20 -> 0.0037 | N29: 0.0095 | O29: 0.0069
A30: AUGd-WHSI | B30: 146.47 | C30: 2.8482 | D30: -0.0645 | E30: -0.1351 | F30: -0.0009 | H30: -0.0392 | M30: ='Data Current Rates'!O21 -> 0.6839 | N30: =N24 -> 3.3115 | O30: =O24 -> 2.3759
A31: ST-WHSI | B31: 1241.87 | C31: 1.5442 | D31: -0.1063 | E31: -0.188 | F31: -0.0009 | H31: -0.0438 | M31: ='Data Current Rates'!O22 -> 0.5521 | N31: =N21 -> 4.8128 | O31: =O21 -> 3.6169
A32: St Lgt-WHSI | B32: 3.15 | C32: 0.113 | D32: -0.0006 | E32: 0 | F32: -0.0009 | H32: -0.0013 | N32: 0.0064 | O32: 0.0048
A33: USL-WHSI | B33: 38.29 | C33: 0.024 | D33: -0.0009 | E33: 0 | F33: -0.0009 | H33: -0.0003 | N33: 0.0075 | O33: 0.0052
A34: AR-NPDI | B34: 38.2 | C34: 0 | D34: -0.0008 | E34: 0 | F34: -0.0009 | G34: -0.43 | M34: ='Data Current Rates'!O25 -> 0.0004 | N34: 0.0118 | O34: 0.0082
A35: AGSe-NPDI | B35: 39.96 | C35: 0.0183 | D35: -0.0008 | E35: 0 | F35: -0.0009 | H35: -0.0004 | M35: ='Data Current Rates'!O26 -> 0.0081 | N35: 0.0093 | O35: 0.0068
A36: AGSd-NPDI | B36: 170.26 | C36: 4.6406 | D36: -0.0653 | E36: -0.1364 | F36: -0.0009 | H36: -0.0618 | M36: ='Data Current Rates'!O27 -> 0.2853 | N36: =N27 -> 2.9071 | O36: =O27 -> 2.1382
A37: St Lgt-NPDI | B37: 3.15 | C37: 0.113 | D37: -0.0011 | E37: 0 | F37: -0.0009 | H37: -0.0011 | N37: 0.0064 | O37: 0.0048
A38: Sen Lgt-NPDI | B38: 3.15 | C38: 0.1727 | D38: -0.0012 | E38: 0 | F38: -0.0009 | H38: -0.0018 | N38: 0.0065 | O38: 0.0048
A39: USL-NPDI | B39: 38.29 | C39: 0.024 | D39: -0.0014 | E39: 0 | F39: -0.0009 | H39: -0.0008 | N39: 0.0075 | O39: 0.0052
A40: AR-HCHI | B40: 38.2 | C40: 0 | D40: -0.0007 | E40: 0 | F40: -0.0009 | G40: -0.46 | M40: ='Data Current Rates'!O31 -> 0.0003 | N40: 0.0118 | O40: 0.0082
A41: AGSe-HCHI | B41: 39.96 | C41: 0.0183 | D41: -0.0007 | E41: 0 | F41: -0.0009 | H41: -0.0004 | M41: ='Data Current Rates'!O32 -> -0.0002 | N41: 0.0093 | O41: 0.0068
A42: AGSd-HCHI | B42: 170.26 | C42: 4.6406 | D42: -0.098 | E42: -0.1364 | F42: -0.0009 | H42: -0.0603 | M42: ='Data Current Rates'!O33 -> -0.0575 | N42: =N27 -> 2.9071 | O42: =O27 -> 2.1382
A43: St Lgt-HCHI | B43: 3.15 | C43: 0.113 | D43: -0.0007 | E43: 0 | F43: -0.0009 | H43: -0.0028 | N43: 0.0064 | O43: 0.0048
A44: Sen Lgt-HCHI | B44: 3.15 | C44: 0.1727 | D44: -0.0007 | E44: 0 | F44: -0.0009 | H44: -0.0055 | N44: 0.0065 | O44: 0.0048
A45: USL-HCHI | B45: 38.29 | C45: 0.024 | D45: -0.0007 | E45: 0 | F45: -0.0009 | H45: -0.0007 | N45: 0.0075 | O45: 0.0052

Sheet Data Billing Quantities (hidden)
A1: Rate Class-Specific Billing Quantities (Applied to Current and Proposed Bill)
E3: Consumption (kWh) | I3: Peak (kW) | M3: TOU Split
A4: Rate Class | B4: Loss Factor | C4: Charge Determinant | D4: Commodity Threshold | E4: Low kWh | F4: Typical kWh | G4: Average kWh | H4: High kWh | I4: Low kW | J4: Typical kW | K4: Average kW | L4: High kW | M4: TOU-Off Peak | N4: TOU-Mid Peak | O4: TOU-On Peak | P4: Acquired Street Light Service Charge
A5: UR | B5: 1.057 | C5: kWh | D5: 600 | E5: 340 | F5: 750 | G5: 690 | H5: 1260 | M5: 0.64 | N5: 0.18 | O5: 0.18
A6: R1 | B6: 1.076 | C6: kWh | D6: 600 | E6: 370 | F6: 750 | G6: 784 | H6: 1650 | M6: =M$5 -> 0.64 | N6: =N$5 -> 0.18 | O6: =O$5 -> 0.18
A7: R2 | B7: 1.105 | C7: kWh | D7: 600 | E7: 440 | F7: 750 | G7: 978 | H7: 2110 | M7: =M$5 -> 0.64 | N7: 0.18 | O7: 0.18
A8: Seasonal | B8: 1.104 | C8: kWh | D8: 600 | E8: 40 | G8: 369 | H8: 1040 | M8: 0.64 | N8: 0.18 | O8: 0.18
A9: Seas-UR | B9: =B5 -> 1.057 | C9: =C5 -> kWh | D9: 600 | E9: =E8 -> 40 | G9: =G8 -> 369 | H9: =H8 -> 1040 | M9: 0.64 | N9: 0.18 | O9: 0.18
A10: Seas-R1 | B10: =B6 -> 1.076 | C10: =C6 -> kWh | D10: 600 | E10: =E8 -> 40 | G10: =G8 -> 369 | H10: =H8 -> 1040 | M10: 0.64 | N10: 0.18 | O10: 0.18
A11: Seas-R2 | B11: =B7 -> 1.105 | C11: =C7 -> kWh | D11: 600 | E11: =E8 -> 40 | G11: =G8 -> 369 | H11: =H8 -> 1040 | M11: 0.64 | N11: 0.18 | O11: 0.18
A12: GSe | B12: 1.096 | C12: kWh | D12: 750 | E12: 60 | F12: 2000 | G12: 1887 | H12: 5570 | M12: 0.64 | N12: 0.18 | O12: 0.18
A13: UGe | B13: 1.067 | C13: kWh | D13: 750 | E13: 180 | F13: 2000 | G13: 2494 | H13: 6930 | M13: 0.64 | N13: 0.18 | O13: 0.18
A14: St Lgt | B14: 1.092 | C14: kWh | D14: 750 | E14: 30 | G14: 1274 | H14: 2310
A15: Sen Lgt | B15: 1.092 | C15: kWh | D15: 750 | E15: 20 | G15: 49 | H15: 80
A16: USL | B16: 1.092 | C16: kWh | D16: 750 | E16: 100 | G16: 477 | H16: 550
A17: GSd | B17: 1.061 | C17: kW | D17: 0 | E17: 9310 | G17: 34334 | H17: 75790 | I17: 55 | K17: 110 | L17: 250
A18: UGd | B18: 1.05 | C18: kW | D18: 0 | E18: 13900 | G18: 42592 | H18: 97610 | I18: 55 | K18: 111 | L18: 280
A19: Dgen | B19: 1.061 | C19: kW | D19: 0 | E19: 10 | G19: 1709 | H19: 8490 | I19: 0.02941666667 | K19: 12 | L19: 45
A20: ST | B20: 1.034 | C20: kW | D20: 0 | E20: 88780 | G20: 1373443 | H20: 2641420 | I20: 500 | K20: 2808 | L20: 13730
A21: WHSI_RES | B21: 1.0431 | C21: kWh | D21: 600 | E21: 310 | F21: 750 | G21: 636 | H21: 1160 | M21: =M$5 -> 0.64 | N21: 0.18 | O21: 0.18
A22: WHSI_GS<50 | B22: 1.0431 | C22: kWh | D22: 750 | E22: 190 | F22: 2000 | G22: 2471 | H22: 7240 | M22: 0.64 | N22: 0.18 | O22: 0.18
A23: WHSI_GS 50-999 | B23: 1.0431 | C23: kW | E23: 9370 | G23: 47636 | H23: 137890 | I23: 50 | K23: 134 | L23: 340
A24: WHSI_GS >1,000kW | B24: 1.0326 | C24: kW | G24: 895853 | K24: 3301
A25: WHSI_St Lgt | B25: 1.0431 | C25: kW | D25: 750 | G25: 37079 | K25: 104 | P25: 786
A26: WHSI_USL | B26: 1.0431 | C26: kWh | D26: 750 | G26: 1349 | M26: =M$5 -> 0.64 | N26: 0.18 | O26: 0.18
A27: NPDI_RES | B27: 1.0564 | C27: kWh | D27: 600 | E27: 290 | F27: 750 | G27: 692 | H27: 1230 | M27: 0.64 | N27: 0.18 | O27: 0.18
A28: NPDI_GS<50 | B28: 1.0564 | C28: kWh | D28: 750 | E28: 110 | F28: 2000 | G28: 2377 | H28: 6410 | M28: 0.64 | N28: 0.18 | O28: 0.18
A29: NPDI_GS >50 | B29: 1.0464 | C29: kW | E29: 13020 | G29: 70294 | H29: 129420 | I29: 55 | K29: 181 | L29: 300
A30: NPDI_St Lgt | B30: 1.0564 | C30: kW | D30: 750 | G30: 11389 | K30: 39 | P30: 328
A31: NPDI_Sen Lgt | B31: 1.0564 | C31: kW | D31: 750 | G31: 108 | K31: 0.3368027211
A32: NPDI_USL | B32: 1.0564 | C32: kWh | D32: 750 | G32: 904 | M32: =M$5 -> 0.64 | N32: 0.18 | O32: 0.18
A33: HCHI_RES | B33: 1.0655 | C33: kWh | D33: 600 | E33: 250 | F33: 750 | G33: 742 | H33: 1410 | M33: 0.64 | N33: 0.18 | O33: 0.18
A34: HCHI_GS<50 | B34: 1.0655 | C34: kWh | D34: 750 | E34: 90 | F34: 2000 | G34: 2261 | H34: 5430 | M34: 0.64 | N34: 0.18 | O34: 0.18
A35: HCHI_GS >50 | B35: 1.0548 | C35: kW | E35: 10880 | G35: 57529 | H35: 135160 | I35: 55 | K35: 175 | L35: 375
A36: HCHI_St Lgt | B36: 1.0655 | C36: kW | D36: 750 | G36: 31001 | K36: 85 | P36: 701
A37: HCHI_Sen Lgt | B37: 1.0655 | C37: kW | D37: 750 | G37: 61 | K37: 0.1956473214
A38: HCHI_USL | B38: 1.0655 | C38: kWh | D38: 750 | G38: 471 | M38: =M$5 -> 0.64 | N38: 0.18 | O38: 0.18
A39: AUR | B39: 1.043 | C39: kWh | D39: 750 | E39: 310 | F39: 750 | G39: 636 | H39: 1160 | M39: 0.64 | N39: 0.18 | O39: 0.18
A40: AUGe | B40: =B39 -> 1.043 | C40: kWh | D40: 750 | E40: 190 | F40: 2000 | G40: 2471 | H40: 7240 | M40: 0.64 | N40: 0.18 | O40: 0.18
A41: AUGd | B41: 1.033 | C41: kW | E41: 9370 | G41: 47636 | H41: 137890 | I41: 50 | K41: 134 | L41: 340
A42: AR | B42: 1.064 | C42: kWh | D42: 750 | F42: 750 | M42: =M$5 -> 0.64 | N42: 0.18 | O42: 0.18
A43: AGSe | B43: =B42 -> 1.064 | C43: kWh | D43: 750 | F43: 2000 | M43: 0.64 | N43: 0.18 | O43: 0.18
A44: AGSd | B44: 1.053 | C44: kW
A45: AUR-WHSI | B45: =B39 -> 1.043 | C45: kWh | D45: =D39 -> 750 | E45: 310 | F45: 750 | G45: 636 | H45: 1160 | M45: =M$5 -> 0.64 | N45: 0.18 | O45: 0.18
A46: AUGe-WHSI | B46: =B40 -> 1.043 | C46: kWh | D46: =D40 -> 750 | E46: 190 | F46: 2000 | G46: 2471 | H46: 7240 | M46: 0.64 | N46: 0.18 | O46: 0.18
A47: AUGd-WHSI | B47: =B41 -> 1.033 | C47: kW | E47: 9370 | G47: 47636 | H47: 137890 | I47: 50 | K47: 134 | L47: 340
A48: ST-WHSI | B48: =B20 -> 1.034 | C48: kW | G48: 895853 | K48: 3301
A49: St Lgt-WHSI | B49: =B14 -> 1.092 | C49: kWh | D49: =D14 -> 750 | G49: =G25 -> 37079 | K49: =K25 -> 104 | P49: =P25 -> 786
A50: USL-WHSI | B50: =B16 -> 1.092 | C50: kWh | D50: =D16 -> 750 | G50: =G26 -> 1349 | M50: =M$5 -> 0.64 | N50: 0.18 | O50: 0.18
A51: AR-NPDI | B51: =B42 -> 1.064 | C51: kWh | D51: =D42 -> 750 | E51: 290 | F51: 750 | G51: 692 | H51: 1230 | M51: 0.64 | N51: 0.18 | O51: 0.18
A52: AGSe-NPDI | B52: =B43 -> 1.064 | C52: kWh | D52: =D43 -> 750 | E52: 110 | F52: 2000 | G52: 2377 | H52: 6410 | M52: 0.64 | N52: 0.18 | O52: 0.18
A53: AGSd-NPDI | B53: =B44 -> 1.053 | C53: kW | D53: =D44 -> 0 | E53: 13020 | G53: 70294 | H53: 129420 | I53: 55 | K53: 181 | L53: 300
A54: St Lgt-NPDI | B54: =B14 -> 1.092 | C54: kWh | D54: =D14 -> 750 | G54: =G30 -> 11389 | K54: =K30 -> 39 | P54: =P30 -> 328
A55: Sen Lgt-NPDI | B55: =B15 -> 1.092 | C55: kWh | D55: =D15 -> 750 | G55: =G31 -> 108 | K55: =K31 -> 0.3368027211
A56: USL-NPDI | B56: =B16 -> 1.092 | C56: kWh | D56: =D16 -> 750 | G56: =G32 -> 904 | M56: =M$5 -> 0.64 | N56: 0.18 | O56: 0.18
A57: AR-HCHI | B57: =B51 -> 1.064 | C57: kWh | D57: 750 | E57: 250 | F57: 750 | G57: 742 | H57: 1410 | M57: 0.64 | N57: 0.18 | O57: 0.18
A58: AGSe-HCHI | B58: 1.064 | C58: kWh | D58: 750 | E58: 90 | F58: 2000 | G58: 2261 | H58: 5430 | M58: 0.64 | N58: 0.18 | O58: 0.18
A59: AGSd-HCHI | B59: 1.053 | C59: kW | D59: 0 | E59: 10880 | G59: 57529 | H59: 135160 | I59: 55 | K59: 175 | L59: 375
A60: St Lgt-HCHI | B60: 1.092 | C60: kWh | D60: 750 | G60: =G36 -> 31001 | K60: =K36 -> 85 | P60: =P36 -> 701
A61: Sen Lgt-HCHI | B61: 1.092 | C61: kWh | D61: 750 | G61: =G37 -> 61 | K61: =K37 -> 0.1956473214
A62: USL-HCHI | B62: 1.092 | C62: kWh | D62: 750 | G62: =G38 -> 471 | M62: =M$5 -> 0.64 | N62: 0.18 | O62: 0.18

Sheet Data Pass Through (hidden)
A1: 3. Pass Through Charges
B2: Current Bill | C2: Proposed Bill
A3: Effective Date | B3: 2022-01-01 | C3: 2023-01-01 | D3: TOU % | E3: Notes
A4: R2 Credit | B4: 60.5 | C4: =B4 -> 60.5
A5: Energy First Tier | B5: 0.098 | C5: =B5 -> 0.098 | E5: Effective May 1 2018
A6: Energy Second Tier | B6: 0.115 | C6: 0.115 | E6: Effective May 1 2018
A7: Weighted Average Hourly Spot Price | B7: 0.119 | C7: =B7 -> 0.119 | E7: Avg for May 2020 to Apr 2021 (source: Commodity prices_SPOTv2.xls file at RAinternal/Niki/Misc
A8: TOU-Off Peak | B8: 0.082 | C8: 0.082 | D8: 0.64 | E8: Effective May 1 2018
A9: TOU-Mid Peak | B9: 0.113 | C9: 0.113 | D9: 0.18 | E9: Effective May 1 2018
A10: TOU-On Peak | B10: 0.17 | C10: 0.17 | D10: 0.18 | E10: Effective May 1 2018
A11: Wholesale Market Service Rate (WMS) - not including CBR | B11: 0.003 | C11: 0.003 | E11: Effective May 1 2017, 0.0036 WMSC broken up between WMSC and CBR
A12: Capacity Based Recovery (CBR) - Applicable for Class B Customers | B12: 0.0004 | C12: 0.0004 | E12: Effective May 1 2017, 0.0036 WMSC broken up between WMSC and CBR
A13: Rural Rate Protection Charge | B13: 0.0005 | C13: 0.0005 | E13: RRRP charge reduced from $0.0021/kWh to $0.0003/kWh effective July 1, 2017.
A14: Ontario Electricity Support Program Charge | B14: 0 | C14: 0 | E14: OESP charge removed for all rate classes effective May 1, 2017. ROW HIDDEN IN BILL IMPACT FILE
A15: Standard Supply Service – Administration Charge (if applicable) | B15: 0.25 | C15: 0.25
A16: Fair Hydro Plan - Distribution Rate Protection Savings* | B16: =IF('Bill Impact Summary'!L6="TOU",0,IF('Bill Impact Summary'!L6="TOU (DRP applied)",B17,"error")) -> 36.86 | C16: =IF('Bill Impact Summary'!L6="TOU",0,IF('Bill Impact Summary'!L6="TOU (DRP applied)",C17,"error")) -> 36.86 | E16: Highlighted cells are FORMULAS; do not overwrite with hard-entered values. Input DRP limit values in row 17 below
A17: DRP limit (applied when selected from Bill Impact Summary) | B17: 36.86 | C17: 36.86 | E17: Make change to FHP DRP limit here, but to apply DRP, must do in Bill Impact Summary sheet cell L6
A18: Smart Metering Entity Charge | B18: 0.57 | C18: 0.57 | E18: Change from 0.79 to 0.57 effective March 1 2018; only for metered energy-billed (UR, R1, R2, SEA, GSE, UGE)
A19: Debt Retirement Charge (DRC) | B19: 0 | C19: 0 | E19: DRC removed from all rate classes Apr 1 2018 ROW HIDDEN IN BILL IMPACT FILE
A20: Ontario Electricity Rebate (OER) | B20: -0.189 | C20: =B20 -> -0.189
A22: Customer Attributes - Assumptions
A23: ST customers are assumed to be Non-WMP, Class A

Sheet Data BI Summary (hidden)
A2: Summary Column | B2: Current Total Bill | C2: Change in DX Bill ($) | D2: Change in DX Bill (%) | E2: Change in Total Bill ($) | F2: Change in Total Bill (%)
A3: BI Template_Energy | B3: Total Amount on TOU | C3: Sub-Total: Distribution (excluding pass through) | D3: Sub-Total: Distribution (excluding pass through) | E3: Total Amount on TOU | F3: Total Amount on TOU
A4: BI Template_EnergyUNM | B4: Total Amount on Two-Tier RPP | C4: Sub-Total: Distribution (excluding pass through) | D4: Sub-Total: Distribution (excluding pass through) | E4: Total Amount on Two-Tier RPP | F4: Total Amount on Two-Tier RPP
A5: BI Template_Demand | B5: Total Amount on WAHSP | C5: Sub-Total: Distribution | D5: Sub-Total: Distribution | E5: Total Amount on WAHSP | F5: Total Amount on WAHSP
A6: BI Template_EnergyNPDI | B6: Total Amount on TOU | C6: Sub-Total: Distribution (excluding pass through) | D6: Sub-Total: Distribution (excluding pass through) | E6: Total Amount on TOU | F6: Total Amount on TOU
A7: BI Template_UNMNPDI | B7: Total Amount on Two-Tier RPP | C7: Sub-Total: Distribution (excluding pass through) | D7: Sub-Total: Distribution (excluding pass through) | E7: Total Amount on Two-Tier RPP | F7: Total Amount on Two-Tier RPP
A8: BI Template_DemandNPDI | B8: Total Amount on WAHSP | C8: Sub-Total: Distribution | D8: Sub-Total: Distribution | E8: Total Amount on WAHSP | F8: Total Amount on WAHSP
A9: BI Template_EnergyHCHI | B9: Total Amount on TOU | C9: Sub-Total: Distribution (excluding pass through) | D9: Sub-Total: Distribution (excluding pass through) | E9: Total Amount on TOU | F9: Total Amount on TOU
A10: BI Template_UNMHCHI | B10: Total Amount on Two-Tier RPP | C10: Sub-Total: Distribution (excluding pass through) | D10: Sub-Total: Distribution (excluding pass through) | E10: Total Amount on Two-Tier RPP | F10: Total Amount on Two-Tier RPP
A11: BI Template_DemandHCHI | B11: Total Amount on WAHSP | C11: Sub-Total: Distribution | D11: Sub-Total: Distribution | E11: Total Amount on WAHSP | F11: Total Amount on WAHSP
A12: BI Template_EnergyWHSI | B12: Total Amount on TOU | C12: Sub-Total: Distribution (excluding pass through) | D12: Sub-Total: Distribution (excluding pass through) | E12: Total Amount on TOU | F12: Total Amount on TOU
A13: BI Template_UNMWHSI | B13: Total Amount on Two-Tier RPP | C13: Sub-Total: Distribution (excluding pass through) | D13: Sub-Total: Distribution (excluding pass through) | E13: Total Amount on Two-Tier RPP | F13: Total Amount on Two-Tier RPP
A14: BI Template_DemandWHSI | B14: Total Amount on WAHSP | C14: Sub-Total: Distribution | D14: Sub-Total: Distribution | E14: Total Amount on WAHSP | F14: Total Amount on WAHSP
A15: BI Template_Seasonal | B15: Total Amount on TOU | C15: Sub-Total: Distribution (excluding pass through) | D15: Sub-Total: Distribution (excluding pass through) | E15: Total Amount on TOU | F15: Total Amount on TOU

Sheet Data BI List (hidden)
A1: Template Name | B1: Bill Impact Worksheet Name | C1: Bill Impact Header
A2: BI Template_Energy | B2: BI_UR_Low | C2: 2023 Bill Impacts (Low Consumption Level) - UR
A3: BI Template_Energy | B3: BI_UR_Typical | C3: 2023 Bill Impacts (Typical Consumption Level) - UR
A4: BI Template_Energy | B4: BI_UR_Avg | C4: 2023 Bill Impacts (Average Consumption Level) - UR
A5: BI Template_Energy | B5: BI_UR_High | C5: 2023 Bill Impacts (High Consumption Level) - UR
A6: BI Template_Energy | B6: BI_R1_Low (with DRP) | C6: 2023 Bill Impacts (Low Consumption Level) - R1
A7: BI Template_Energy | B7: BI_R1_Typical (with DRP) | C7: 2023 Bill Impacts (Typical Consumption Level) - R1
A8: BI Template_Energy | B8: BI_R1_Avg (with DRP) | C8: 2023 Bill Impacts (Average Consumption Level) - R1
A9: BI Template_Energy | B9: BI_R1_High (with DRP) | C9: 2023 Bill Impacts (High Consumption Level) - R1
A10: BI Template_Energy | B10: BI_R1_Low (without DRP) | C10: 2023 Bill Impacts (Low Consumption Level) - R1
A11: BI Template_Energy | B11: BI_R1_Typical (without DRP) | C11: 2023 Bill Impacts (Typical Consumption Level) - R1
A12: BI Template_Energy | B12: BI_R1_Avg (without DRP) | C12: 2023 Bill Impacts (Average Consumption Level) - R1
A13: BI Template_Energy | B13: BI_R1_High (without DRP) | C13: 2023 Bill Impacts (High Consumption Level) - R1
A14: BI Template_Energy | B14: BI_R2_Low (with DRP) | C14: 2023 Bill Impacts (Low Consumption Level) - R2
A15: BI Template_Energy | B15: BI_R2_Typical (with DRP) | C15: 2023 Bill Impacts (Typical Consumption Level) - R2
A16: BI Template_Energy | B16: BI_R2_Avg (with DRP) | C16: 2023 Bill Impacts (Average Consumption Level) - R2
A17: BI Template_Energy | B17: BI_R2_High (with DRP) | C17: 2023 Bill Impacts (High Consumption Level) - R2
A18: BI Template_Energy | B18: BI_R2_Low (without DRP) | C18: 2023 Bill Impacts (Low Consumption Level) - R2
A19: BI Template_Energy | B19: BI_R2_Typical (without DRP) | C19: 2023 Bill Impacts (Typical Consumption Level) - R2
A20: BI Template_Energy | B20: BI_R2_Avg (without DRP) | C20: 2023 Bill Impacts (Average Consumption Level) - R2
A21: BI Template_Energy | B21: BI_R2_High (without DRP) | C21: 2023 Bill Impacts (High Consumption Level) - R2
A22: BI Template_Energy | B22: BI_GSe_Low | C22: 2023 Bill Impacts (Low Consumption Level) - GSe
A23: BI Template_Energy | B23: BI_GSe_Typical | C23: 2023 Bill Impacts (Typical Consumption Level) - GSe
A24: BI Template_Energy | B24: BI_GSe_Avg | C24: 2023 Bill Impacts (Average Consumption Level) - GSe
A25: BI Template_Energy | B25: BI_GSe_High | C25: 2023 Bill Impacts (High Consumption Level) - GSe
A26: BI Template_Energy | B26: BI_UGe_Low | C26: 2023 Bill Impacts (Low Consumption Level) - UGe
A27: BI Template_Energy | B27: BI_UGe_Typical | C27: 2023 Bill Impacts (Typical Consumption Level) - UGe
A28: BI Template_Energy | B28: BI_UGe_Avg | C28: 2023 Bill Impacts (Average Consumption Level) - UGe
A29: BI Template_Energy | B29: BI_UGe_High | C29: 2023 Bill Impacts (High Consumption Level) - UGe
A30: BI Template_Demand | B30: BI_GSd_Low | C30: 2023 Bill Impacts (Low Consumption Level) - GSd
A31: BI Template_Demand | B31: BI_GSd_Avg | C31: 2023 Bill Impacts (Average Consumption Level) - GSd
A32: BI Template_Demand | B32: BI_GSd_High | C32: 2023 Bill Impacts (High Consumption Level) - GSd
A33: BI Template_Demand | B33: BI_UGd_Low | C33: 2023 Bill Impacts (Low Consumption Level) - UGd
A34: BI Template_Demand | B34: BI_UGd_Avg | C34: 2023 Bill Impacts (Average Consumption Level) - UGd
A35: BI Template_Demand | B35: BI_UGd_High | C35: 2023 Bill Impacts (High Consumption Level) - UGd
A36: BI Template_EnergyUNM | B36: BI_StLgt_Low | C36: 2023 Bill Impacts (Low Consumption Level) - St Lgt
A37: BI Template_EnergyUNM | B37: BI_StLgt_Avg | C37: 2023 Bill Impacts (Average Consumption Level) - St Lgt
A38: BI Template_EnergyUNM | B38: BI_StLgt_High | C38: 2023 Bill Impacts (High Consumption Level) - St Lgt
A39: BI Template_EnergyUNM | B39: BI_SenLgt_Low | C39: 2023 Bill Impacts (Low Consumption Level) - Sen Lgt
A40: BI Template_EnergyUNM | B40: BI_SenLgt_Avg | C40: 2023 Bill Impacts (Average Consumption Level) - Sen Lgt
A41: BI Template_EnergyUNM | B41: BI_SenLgt_High | C41: 2023 Bill Impacts (High Consumption Level) - Sen Lgt
A42: BI Template_EnergyUNM | B42: BI_USL_Low | C42: 2023 Bill Impacts (Low Consumption Level) - USL
A43: BI Template_EnergyUNM | B43: BI_USL_Avg | C43: 2023 Bill Impacts (Average Consumption Level) - USL
A44: BI Template_EnergyUNM | B44: BI_USL_High | C44: 2023 Bill Impacts (High Consumption Level) - USL
A45: BI Template_Demand | B45: BI_Dgen_Low | C45: 2023 Bill Impacts (Low Consumption Level) - Dgen
A46: BI Template_Demand | B46: BI_Dgen_Avg | C46: 2023 Bill Impacts (Average Consumption Level) - Dgen
A47: BI Template_Demand | B47: BI_Dgen_High | C47: 2023 Bill Impacts (High Consumption Level) - Dgen
A48: BI Template_Demand | B48: BI_ST_Low | C48: 2023 Bill Impacts (Low Consumption Level) - ST
A49: BI Template_Demand | B49: BI_ST_Avg | C49: 2023 Bill Impacts (Average Consumption Level) - ST
A50: BI Template_Demand | B50: BI_ST_High | C50: 2023 Bill Impacts (High Consumption Level) - ST
A51: BI Template_EnergyWHSI | B51: BI_WHSI_AUR_Low | C51: 2023 Bill Impacts (Low Consumption Level) - AUR_WHSI
A52: BI Template_EnergyWHSI | B52: BI_WHSI_AUR_Typical | C52: 2023 Bill Impacts (Typical Consumption Level) - AUR_WHSI
A53: BI Template_EnergyWHSI | B53: BI_WHSI_AUR_Avg | C53: 2023 Bill Impacts (Average Consumption Level) - AUR_WHSI
A54: BI Template_EnergyWHSI | B54: BI_WHSI_AUR_High | C54: 2023 Bill Impacts (High Consumption Level) - AUR_WHSI
A55: BI Template_EnergyWHSI | B55: BI_WHSI_AUGe_Low | C55: 2023 Bill Impacts (Low Consumption Level) - AUGe_WHSI
A56: BI Template_EnergyWHSI | B56: BI_WHSI_AUGe_Typical | C56: 2023 Bill Impacts (Typical Consumption Level) - AUGe_WHSI
A57: BI Template_EnergyWHSI | B57: BI_WHSI_AUGe_Avg | C57: 2023 Bill Impacts (Average Consumption Level) - AUGe_WHSI
A58: BI Template_EnergyWHSI | B58: BI_WHSI_AUGe_High | C58: 2023 Bill Impacts (High Consumption Level) - AUGe_WHSI
A59: BI Template_DemandWHSI | B59: BI_WHSI_AUGd_Low | C59: 2023 Bill Impacts (Low Consumption Level) - AUGd_WHSI
A60: BI Template_DemandWHSI | B60: BI_WHSI_AUGd_Avg | C60: 2023 Bill Impacts (Average Consumption Level) - AUGd_WHSI
A61: BI Template_DemandWHSI | B61: BI_WHSI_AUGd_High | C61: 2023 Bill Impacts (High Consumption Level) - AUGd_WHSI
A62: BI Template_DemandWHSI | B62: BI_WHSI_ST_Avg | C62: 2023 Bill Impacts (Average Consumption Level) - ST_WHSI
A63: BI Template_EnergyNPDI | B63: BI_NPDI_AR_Low | C63: 2023 Bill Impacts (Low Consumption Level) - AR_NPDI
A64: BI Template_EnergyNPDI | B64: BI_NPDI_AR_Typical | C64: 2023 Bill Impacts (Typical Consumption Level) - AR_NPDI
A65: BI Template_EnergyNPDI | B65: BI_NPDI_AR_Avg | C65: 2023 Bill Impacts (Average Consumption Level) - AR_NPDI
A66: BI Template_EnergyNPDI | B66: BI_NPDI_AR_High | C66: 2023 Bill Impacts (High Consumption Level) - AR_NPDI
A67: BI Template_EnergyHCHI | B67: BI_HCHI_AR_Low | C67: 2023 Bill Impacts (Low Consumption Level) - AR_HCHI
A68: BI Template_EnergyHCHI | B68: BI_HCHI_AR_Typical | C68: 2023 Bill Impacts (Typical Consumption Level) - AR_HCHI
A69: BI Template_EnergyHCHI | B69: BI_HCHI_AR_Avg | C69: 2023 Bill Impacts (Average Consumption Level) - AR_HCHI
A70: BI Template_EnergyHCHI | B70: BI_HCHI_AR_High | C70: 2023 Bill Impacts (High Consumption Level) - AR_HCHI
A71: BI Template_EnergyNPDI | B71: BI_NPDI_AGSe_Low | C71: 2023 Bill Impacts (Low Consumption Level) - AGSe_NPDI
A72: BI Template_EnergyNPDI | B72: BI_NPDI_AGSe_Typical | C72: 2023 Bill Impacts (Typical Consumption Level) - AGSe_NPDI
A73: BI Template_EnergyNPDI | B73: BI_NPDI_AGSe_Avg | C73: 2023 Bill Impacts (Average Consumption Level) - AGSe_NPDI
A74: BI Template_EnergyNPDI | B74: BI_NPDI_AGSe_High | C74: 2023 Bill Impacts (High Consumption Level) - AGSe_NPDI
A75: BI Template_EnergyHCHI | B75: BI_HCHI_AGSe_Low | C75: 2023 Bill Impacts (Low Consumption Level) - AGSe_HCHI
A76: BI Template_EnergyHCHI | B76: BI_HCHI_AGSe_Typical | C76: 2023 Bill Impacts (Typical Consumption Level) - AGSe_HCHI
A77: BI Template_EnergyHCHI | B77: BI_HCHI_AGSe_Avg | C77: 2023 Bill Impacts (Average Consumption Level) - AGSe_HCHI
A78: BI Template_EnergyHCHI | B78: BI_HCHI_AGSe_High | C78: 2023 Bill Impacts (High Consumption Level) - AGSe_HCHI
A79: BI Template_DemandNPDI | B79: BI_NPDI_AGSd_Low | C79: 2023 Bill Impacts (Low Consumption Level) - AGSd_NPDI
A80: BI Template_DemandNPDI | B80: BI_NPDI_AGSd_Avg | C80: 2023 Bill Impacts (Average Consumption Level) - AGSd_NPDI
A81: BI Template_DemandNPDI | B81: BI_NPDI_AGSd_High | C81: 2023 Bill Impacts (High Consumption Level) - AGSd_NPDI
A82: BI Template_DemandHCHI | B82: BI_HCHI_AGSd_Low | C82: 2023 Bill Impacts (Low Consumption Level) - AGSd_HCHI
A83: BI Template_DemandHCHI | B83: BI_HCHI_AGSd_Avg | C83: 2023 Bill Impacts (Average Consumption Level) - AGSd_HCHI
A84: BI Template_DemandHCHI | B84: BI_HCHI_AGSd_High | C84: 2023 Bill Impacts (High Consumption Level) - AGSd_HCHI
A85: BI Template_unmWHSI | B85: BI_WHSI_USL_Avg | C85: 2023 Bill Impacts (Average Consumption Level) - USL_WHSI
A86: BI Template_unmNPDI | B86: BI_NPDI_USL_Avg | C86: 2023 Bill Impacts (Average Consumption Level) - USL_NPDI
A87: BI Template_unmHCHI | B87: BI_HCHI_USL_Avg | C87: 2023 Bill Impacts (Average Consumption Level) - USL_HCHI
A88: BI Template_unmWHSI | B88: BI_WHSI_StLgt_Avg | C88: 2023 Bill Impacts (Average Consumption Level) - St Lgt_WHSI
A89: BI Template_unmNPDI | B89: BI_NPDI_StLgt_Avg | C89: 2023 Bill Impacts (Average Consumption Level) - St Lgt_NPDI
A90: BI Template_unmHCHI | B90: BI_HCHI_StLgt_Avg | C90: 2023 Bill Impacts (Average Consumption Level) - St Lgt_HCHI
A91: BI Template_unmNPDI | B91: BI_NPDI_SenLgt_Avg | C91: 2023 Bill Impacts (Average Consumption Level) - Sen Lgt_NPDI
A92: BI Template_unmHCHI | B92: BI_HCHI_SenLgt_Avg | C92: 2023 Bill Impacts (Average Consumption Level) - Sen Lgt_HCHI
A93: BI Template_Seasonal | B93: BI_Seas_UR_Low | C93: 2023 Bill Impacts (Low Consumption Level) - Seas-UR
A94: BI Template_Seasonal | B94: BI_Seas_UR_Avg | C94: 2023 Bill Impacts (Average Consumption Level) - Seas-UR
A95: BI Template_Seasonal | B95: BI_Seas_UR_High | C95: 2023 Bill Impacts (High Consumption Level) - Seas-UR
A96: BI Template_Seasonal | B96: BI_Seas_R1_Low | C96: 2023 Bill Impacts (Low Consumption Level) - Seas-R1
A97: BI Template_Seasonal | B97: BI_Seas_R1_Avg | C97: 2023 Bill Impacts (Average Consumption Level) - Seas-R1
A98: BI Template_Seasonal | B98: BI_Seas_R1_High | C98: 2023 Bill Impacts (High Consumption Level) - Seas-R1
A99: BI Template_Seasonal | B99: BI_Seas_R2_Low | C99: 2023 Bill Impacts (Low Consumption Level) - Seas-R2
A100: BI Template_Seasonal | B100: BI_Seas_R2_Avg | C100: 2023 Bill Impacts (Average Consumption Level) - Seas-R2
A101: BI Template_Seasonal | B101: BI_Seas_R2_High | C101: 2023 Bill Impacts (High Consumption Level) - Seas-R2

Sheet Data BI List Acq_Seas (hidden)
A1: Template Name | B1: Bill Impact Worksheet Name | C1: Bill Impact Header | D1: Current Rate Class (Acq) | E1: Proposed Rate Class
A2: BI Template_EnergyWHSI | B2: BI_AUR_Low | C2: 2023 Bill Impacts (Low Consumption Level) - AUR_WHSI | D2: WHSI_RES | E2: AUR-WHSI
A3: BI Template_EnergyWHSI | B3: BI_AUR_Typical | C3: 2023 Bill Impacts (Typical Consumption Level) - AUR_WHSI | D3: WHSI_RES | E3: AUR-WHSI
A4: BI Template_EnergyWHSI | B4: BI_AUR_Avg | C4: 2023 Bill Impacts (Average Consumption Level) - AUR_WHSI | D4: WHSI_RES | E4: AUR-WHSI
A5: BI Template_EnergyWHSI | B5: BI_AUR_High | C5: 2023 Bill Impacts (High Consumption Level) - AUR_WHSI | D5: WHSI_RES | E5: AUR-WHSI
A6: BI Template_EnergyWHSI | B6: BI_AUGe_Low | C6: 2023 Bill Impacts (Low Consumption Level) - AUGe_WHSI | D6: WHSI_GS<50 | E6: AUGe-WHSI
A7: BI Template_EnergyWHSI | B7: BI_AUGe_Typical | C7: 2023 Bill Impacts (Typical Consumption Level) - AUGe_WHSI | D7: WHSI_GS<50 | E7: AUGe-WHSI
A8: BI Template_EnergyWHSI | B8: BI_AUGe_Avg | C8: 2023 Bill Impacts (Average Consumption Level) - AUGe_WHSI | D8: WHSI_GS<50 | E8: AUGe-WHSI
A9: BI Template_EnergyWHSI | B9: BI_AUGe_High | C9: 2023 Bill Impacts (High Consumption Level) - AUGe_WHSI | D9: WHSI_GS<50 | E9: AUGe-WHSI
A10: BI Template_DemandWHSI | B10: BI_AUGd_Low | C10: 2023 Bill Impacts (Low Consumption Level) - AUGd_WHSI | D10: WHSI_GS 50-999 | E10: AUGd-WHSI
A11: BI Template_DemandWHSI | B11: BI_AUGd_Avg | C11: 2023 Bill Impacts (Average Consumption Level) - AUGd_WHSI | D11: WHSI_GS 50-999 | E11: AUGd-WHSI
A12: BI Template_DemandWHSI | B12: BI_AUGd_High | C12: 2023 Bill Impacts (High Consumption Level) - AUGd_WHSI | D12: WHSI_GS 50-999 | E12: AUGd-WHSI
A13: BI Template_DemandWHSI | B13: BI_WHSI_ST_Avg | C13: 2023 Bill Impacts (Average Consumption Level) - ST_WHSI | D13: WHSI_GS >1,000kW | E13: ST-WHSI
A14: BI Template_EnergyNPDI | B14: BI_NPDI_AR_Low | C14: 2023 Bill Impacts (Low Consumption Level) - AR_NPDI | D14: NPDI_RES | E14: AR-NPDI
A15: BI Template_EnergyNPDI | B15: BI_NPDI_AR_Typical | C15: 2023 Bill Impacts (Typical Consumption Level) - AR_NPDI | D15: NPDI_RES | E15: AR-NPDI
A16: BI Template_EnergyNPDI | B16: BI_NPDI_AR_Avg | C16: 2023 Bill Impacts (Average Consumption Level) - AR_NPDI | D16: NPDI_RES | E16: AR-NPDI
A17: BI Template_EnergyNPDI | B17: BI_NPDI_AR_High | C17: 2023 Bill Impacts (High Consumption Level) - AR_NPDI | D17: NPDI_RES | E17: AR-NPDI
A18: BI Template_EnergyHCHI | B18: BI_HCHI_AR_Low | C18: 2023 Bill Impacts (Low Consumption Level) - AR_HCHI | D18: HCHI_RES | E18: AR-HCHI
A19: BI Template_EnergyHCHI | B19: BI_HCHI_AR_Typical | C19: 2023 Bill Impacts (Typical Consumption Level) - AR_HCHI | D19: HCHI_RES | E19: AR-HCHI
A20: BI Template_EnergyHCHI | B20: BI_HCHI_AR_Avg | C20: 2023 Bill Impacts (Average Consumption Level) - AR_HCHI | D20: HCHI_RES | E20: AR-HCHI
A21: BI Template_EnergyHCHI | B21: BI_HCHI_AR_High | C21: 2023 Bill Impacts (High Consumption Level) - AR_HCHI | D21: HCHI_RES | E21: AR-HCHI
A22: BI Template_EnergyNPDI | B22: BI_NPDI_AGSe_Low | C22: 2023 Bill Impacts (Low Consumption Level) - AGSe_NPDI | D22: NPDI_GS<50 | E22: AGSe-NPDI
A23: BI Template_EnergyNPDI | B23: BI_NPDI_AGSe_Typical | C23: 2023 Bill Impacts (Typical Consumption Level) - AGSe_NPDI | D23: NPDI_GS<50 | E23: AGSe-NPDI
A24: BI Template_EnergyNPDI | B24: BI_NPDI_AGSe_Avg | C24: 2023 Bill Impacts (Average Consumption Level) - AGSe_NPDI | D24: NPDI_GS<50 | E24: AGSe-NPDI
A25: BI Template_EnergyNPDI | B25: BI_NPDI_AGSe_High | C25: 2023 Bill Impacts (High Consumption Level) - AGSe_NPDI | D25: NPDI_GS<50 | E25: AGSe-NPDI
A26: BI Template_EnergyHCHI | B26: BI_HCHI_AGSe_Low | C26: 2023 Bill Impacts (Low Consumption Level) - AGSe_HCHI | D26: HCHI_GS<50 | E26: AGSe-HCHI
A27: BI Template_EnergyHCHI | B27: BI_HCHI_AGSe_Typical | C27: 2023 Bill Impacts (Typical Consumption Level) - AGSe_HCHI | D27: HCHI_GS<50 | E27: AGSe-HCHI
A28: BI Template_EnergyHCHI | B28: BI_HCHI_AGSe_Avg | C28: 2023 Bill Impacts (Average Consumption Level) - AGSe_HCHI | D28: HCHI_GS<50 | E28: AGSe-HCHI
A29: BI Template_EnergyHCHI | B29: BI_HCHI_AGSe_High | C29: 2023 Bill Impacts (High Consumption Level) - AGSe_HCHI | D29: HCHI_GS<50 | E29: AGSe-HCHI
A30: BI Template_DemandNPDI | B30: BI_NPDI_AGSd_Low | C30: 2023 Bill Impacts (Low Consumption Level) - AGSd_NPDI | D30: NPDI_GS >50 | E30: AGSd-NPDI
A31: BI Template_DemandNPDI | B31: BI_NPDI_AGSd_Avg | C31: 2023 Bill Impacts (Average Consumption Level) - AGSd_NPDI | D31: NPDI_GS >50 | E31: AGSd-NPDI
A32: BI Template_DemandNPDI | B32: BI_NPDI_AGSd_High | C32: 2023 Bill Impacts (High Consumption Level) - AGSd_NPDI | D32: NPDI_GS >50 | E32: AGSd-NPDI
A33: BI Template_DemandHCHI | B33: BI_HCHI_AGSd_Low | C33: 2023 Bill Impacts (Low Consumption Level) - AGSd_HCHI | D33: HCHI_GS >50 | E33: AGSd-HCHI
A34: BI Template_DemandHCHI | B34: BI_HCHI_AGSd_Avg | C34: 2023 Bill Impacts (Average Consumption Level) - AGSd_HCHI | D34: HCHI_GS >50 | E34: AGSd-HCHI
A35: BI Template_DemandHCHI | B35: BI_HCHI_AGSd_High | C35: 2023 Bill Impacts (High Consumption Level) - AGSd_HCHI | D35: HCHI_GS >50 | E35: AGSd-HCHI
A36: BI Template_EnergyUNM | B36: BI_WHSI_USL_Avg | C36: 2023 Bill Impacts (Average Consumption Level) - USL_WHSI | D36: WHSI_USL | E36: USL-WHSI
A37: BI Template_unmNPDI | B37: BI_NPDI_USL_Avg | C37: 2023 Bill Impacts (Average Consumption Level) - USL_NPDI | D37: NPDI_USL | E37: USL-NPDI
A38: BI Template_unmHCHI | B38: BI_HCHI_USL_Avg | C38: 2023 Bill Impacts (Average Consumption Level) - USL_HCHI | D38: HCHI_USL | E38: USL-HCHI
A39: BI Template_unmWHSI | B39: BI_WHSI_StLgt_Avg | C39: 2023 Bill Impacts (Average Consumption Level) - St Lgt_WHSI | D39: WHSI_St Lgt | E39: St Lgt-WHSI
A40: BI Template_unmNPDI | B40: BI_NPDI_StLgt_Avg | C40: 2023 Bill Impacts (Average Consumption Level) - St Lgt_NPDI | D40: NPDI_St Lgt | E40: St Lgt-NPDI
A41: BI Template_unmHCHI | B41: BI_HCHI_StLgt_Avg | C41: 2023 Bill Impacts (Average Consumption Level) - St Lgt_HCHI | D41: HCHI_St Lgt | E41: St Lgt-HCHI
A42: BI Template_unmNPDI | B42: BI_NPDI_SenLgt_Avg | C42: 2023 Bill Impacts (Average Consumption Level) - Sen Lgt_NPDI | D42: NPDI_Sen Lgt | E42: Sen Lgt-NPDI
A43: BI Template_unmHCHI | B43: BI_HCHI_SenLgt_Avg | C43: 2023 Bill Impacts (Average Consumption Level) - Sen Lgt_HCHI | D43: HCHI_Sen Lgt | E43: Sen Lgt-HCHI
A44: BI Template_Seasonal | B44: BI_Seas_UR_Low | C44: 2023 Bill Impacts (Low Consumption Level) - Seas-UR | D44: Seasonal | E44: Seas-UR
A45: BI Template_Seasonal | B45: BI_Seas_UR_Avg | C45: 2023 Bill Impacts (Average Consumption Level) - Seas-UR | D45: Seasonal | E45: Seas-UR
A46: BI Template_Seasonal | B46: BI_Seas_UR_High | C46: 2023 Bill Impacts (High Consumption Level) - Seas-UR | D46: Seasonal | E46: Seas-UR
A47: BI Template_Seasonal | B47: BI_Seas_R1_Low | C47: 2023 Bill Impacts (Low Consumption Level) - Seas-R1 | D47: Seasonal | E47: Seas-R1
A48: BI Template_Seasonal | B48: BI_Seas_R1_Avg | C48: 2023 Bill Impacts (Average Consumption Level) - Seas-R1 | D48: Seasonal | E48: Seas-R1
A49: BI Template_Seasonal | B49: BI_Seas_R1_High | C49: 2023 Bill Impacts (High Consumption Level) - Seas-R1 | D49: Seasonal | E49: Seas-R1
A50: BI Template_Seasonal | B50: BI_Seas_R2_Low | C50: 2023 Bill Impacts (Low Consumption Level) - Seas-R2 | D50: Seasonal | E50: Seas-R2
A51: BI Template_Seasonal | B51: BI_Seas_R2_Avg | C51: 2023 Bill Impacts (Average Consumption Level) - Seas-R2 | D51: Seasonal | E51: Seas-R2
A52: BI Template_Seasonal | B52: BI_Seas_R2_High | C52: 2023 Bill Impacts (High Consumption Level) - Seas-R2 | D52: Seasonal | E52: Seas-R2

Sheet Bill Impact Summary (hidden)
A1: Rate Class | B1: Consumption Level | C1: Monthly Consumption (kWh) | D1: Monthly Peak (kW) | E1: BI Worksheet | F1: Template | G1: Current Total Bill | H1: Change in DX Bill ($) | I1: Change in DX Bill (%) | J1: Change in Total Bill ($) | K1: Change in Total Bill (%) | L1: Commodity Price Used | O1: List for Data Validation of cell L6; do not remove
A2: UR | B2: Low | C2: =VLOOKUP(A$2,'Data Billing Quantities'!A:P,MATCH(B2&" kWh",'Data Billing Quantities'!$4:$4,0),FALSE) -> 340 | E2: BI_UR_Low | F2: BI Template_Energy | G2: =VLOOKUP(VLOOKUP($F2,'Data BI Summary'!$A:$F,MATCH(G$1,'Data BI Summary'!$2:$2,0),FALSE),INDIRECT("'"&$E2&"'!"&"$A:$K"),4,FALSE) -> 80.15879856 | H2: =VLOOKUP(VLOOKUP($F2,'Data BI Summary'!$A:$F,MATCH(H$1,'Data BI Summary'!$2:$2,0),FALSE),INDIRECT("'"&$E2&"'!"&"$A:$K"),8,FALSE) -> -0.278 | I2: =VLOOKUP(VLOOKUP($F2,'Data BI Summary'!$A:$F,MATCH(I$1,'Data BI Summary'!$2:$2,0),FALSE),INDIRECT("'"&$E2&"'!"&"$A:$K"),9,FALSE) -> -0.007153885744 | J2: =VLOOKUP(VLOOKUP($F2,'Data BI Summary'!$A:$F,MATCH(J$1,'Data BI Summary'!$2:$2,0),FALSE),INDIRECT("'"&$E2&"'!"&"$A:$K"),8,FALSE) -> 0.07657858 | K2: =VLOOKUP(VLOOKUP($F2,'Data BI Summary'!$A:$F,MATCH(K$1,'Data BI Summary'!$2:$2,0),FALSE),INDIRECT("'"&$E2&"'!"&"$A:$K"),9,FALSE) -> 0.0009553359254 | L2: TOU
B3: Typical | C3: =VLOOKUP(A$2,'Data Billing Quantities'!A:P,MATCH(B3&" kWh",'Data Billing Quantities'!$4:$4,0),FALSE) -> 750 | E3: BI_UR_Typical | F3: BI Template_Energy | G3: =VLOOKUP(VLOOKUP($F3,'Data BI Summary'!$A:$F,MATCH(G$1,'Data BI Summary'!$2:$2,0),FALSE),INDIRECT("'"&$E3&"'!"&"$A:$K"),4,FALSE) -> 131.7945827 | H3: =VLOOKUP(VLOOKUP($F3,'Data BI Summary'!$A:$F,MATCH(H$1,'Data BI Summary'!$2:$2,0),FALSE),INDIRECT("'"&$E3&"'!"&"$A:$K"),8,FALSE) -> -0.565 | I3: =VLOOKUP(VLOOKUP($F3,'Data BI Summary'!$A:$F,MATCH(I$1,'Data BI Summary'!$2:$2,0),FALSE),INDIRECT("'"&$E3&"'!"&"$A:$K"),9,FALSE) -> -0.0145393721 | J3: =VLOOKUP(VLOOKUP($F3,'Data BI Summary'!$A:$F,MATCH(J$1,'Data BI Summary'!$2:$2,0),FALSE),INDIRECT("'"&$E3&"'!"&"$A:$K"),8,FALSE) -> 0.21431275 | K3: =VLOOKUP(VLOOKUP($F3,'Data BI Summary'!$A:$F,MATCH(K$1,'Data BI Summary'!$2:$2,0),FALSE),INDIRECT("'"&$E3&"'!"&"$A:$K"),9,FALSE) -> 0.001626111981
B4: Average | C4: =VLOOKUP(A$2,'Data Billing Quantities'!A:P,MATCH(B4&" kWh",'Data Billing Quantities'!$4:$4,0),FALSE) -> 690 | E4: BI_UR_Avg | F4: BI Template_Energy | G4: =VLOOKUP(VLOOKUP($F4,'Data BI Summary'!$A:$F,MATCH(G$1,'Data BI Summary'!$2:$2,0),FALSE),INDIRECT("'"&$E4&"'!"&"$A:$K"),4,FALSE) -> 124.2381265 | H4: =VLOOKUP(VLOOKUP($F4,'Data BI Summary'!$A:$F,MATCH(H$1,'Data BI Summary'!$2:$2,0),FALSE),INDIRECT("'"&$E4&"'!"&"$A:$K"),8,FALSE) -> -0.523 | I4: =VLOOKUP(VLOOKUP($F4,'Data BI Summary'!$A:$F,MATCH(I$1,'Data BI Summary'!$2:$2,0),FALSE),INDIRECT("'"&$E4&"'!"&"$A:$K"),9,FALSE) -> -0.01345856922 | J4: =VLOOKUP(VLOOKUP($F4,'Data BI Summary'!$A:$F,MATCH(J$1,'Data BI Summary'!$2:$2,0),FALSE),INDIRECT("'"&$E4&"'!"&"$A:$K"),8,FALSE) -> 0.19415653 | K4: =VLOOKUP(VLOOKUP($F4,'Data BI Summary'!$A:$F,MATCH(K$1,'Data BI Summary'!$2:$2,0),FALSE),INDIRECT("'"&$E4&"'!"&"$A:$K"),9,FALSE) -> 0.001562777349
B5: High | C5: =VLOOKUP(A$2,'Data Billing Quantities'!A:P,MATCH(B5&" kWh",'Data Billing Quantities'!$4:$4,0),FALSE) -> 1260 | E5: BI_UR_High | F5: BI Template_Energy | G5: =VLOOKUP(VLOOKUP($F5,'Data BI Summary'!$A:$F,MATCH(G$1,'Data BI Summary'!$2:$2,0),FALSE),INDIRECT("'"&$E5&"'!"&"$A:$K"),4,FALSE) -> 196.0244605 | H5: =VLOOKUP(VLOOKUP($F5,'Data BI Summary'!$A:$F,MATCH(H$1,'Data BI Summary'!$2:$2,0),FALSE),INDIRECT("'"&$E5&"'!"&"$A:$K"),8,FALSE) -> -0.922 | I5: =VLOOKUP(VLOOKUP($F5,'Data BI Summary'!$A:$F,MATCH(I$1,'Data BI Summary'!$2:$2,0),FALSE),INDIRECT("'"&$E5&"'!"&"$A:$K"),9,FALSE) -> -0.0237261966 | J5: =VLOOKUP(VLOOKUP($F5,'Data BI Summary'!$A:$F,MATCH(J$1,'Data BI Summary'!$2:$2,0),FALSE),INDIRECT("'"&$E5&"'!"&"$A:$K"),8,FALSE) -> 0.38564062 | K5: =VLOOKUP(VLOOKUP($F5,'Data BI Summary'!$A:$F,MATCH(K$1,'Data BI Summary'!$2:$2,0),FALSE),INDIRECT("'"&$E5&"'!"&"$A:$K"),9,FALSE) -> 0.001967308666
A6: R1 (with DRP) | B6: Low | C6: =VLOOKUP("R1",'Data Billing Quantities'!A:P,MATCH(B6&" kWh",'Data Billing Quantities'!$4:$4,0),FALSE) -> 370 | E6: BI_R1_Low (with DRP) | F6: BI Template_Energy | G6: =VLOOKUP(VLOOKUP($F6,'Data BI Summary'!$A:$F,MATCH(G$1,'Data BI Summary'!$2:$2,0),FALSE),INDIRECT("'"&$E6&"'!"&"$A:$K"),4,FALSE) -> 82.3681638 | H6: =VLOOKUP(VLOOKUP($F6,'Data BI Summary'!$A:$F,MATCH(H$1,'Data BI Summary'!$2:$2,0),FALSE),INDIRECT("'"&$E6&"'!"&"$A:$K"),8,FALSE) -> -0.469 | I6: =VLOOKUP(VLOOKUP($F6,'Data BI Summary'!$A:$F,MATCH(I$1,'Data BI Summary'!$2:$2,0),FALSE),INDIRECT("'"&$E6&"'!"&"$A:$K"),9,FALSE) -> -0.01272381986 | J6: =VLOOKUP(VLOOKUP($F6,'Data BI Summary'!$A:$F,MATCH(J$1,'Data BI Summary'!$2:$2,0),FALSE),INDIRECT("'"&$E6&"'!"&"$A:$K"),8,FALSE) -> -0.104161172 | K6: =VLOOKUP(VLOOKUP($F6,'Data BI Summary'!$A:$F,MATCH(K$1,'Data BI Summary'!$2:$2,0),FALSE),INDIRECT("'"&$E6&"'!"&"$A:$K"),9,FALSE) -> -0.001264580479 | L6: TOU (DRP applied) | O6: TOU
B7: Typical | C7: =VLOOKUP("R1",'Data Billing Quantities'!A:P,MATCH(B7&" kWh",'Data Billing Quantities'!$4:$4,0),FALSE) -> 750 | E7: BI_R1_Typical (with DRP) | F7: BI Template_Energy | G7: =VLOOKUP(VLOOKUP($F7,'Data BI Summary'!$A:$F,MATCH(G$1,'Data BI Summary'!$2:$2,0),FALSE),INDIRECT("'"&$E7&"'!"&"$A:$K"),4,FALSE) -> 130.5473201 | H7: =VLOOKUP(VLOOKUP($F7,'Data BI Summary'!$A:$F,MATCH(H$1,'Data BI Summary'!$2:$2,0),FALSE),INDIRECT("'"&$E7&"'!"&"$A:$K"),8,FALSE) -> -0.735 | I7: =VLOOKUP(VLOOKUP($F7,'Data BI Summary'!$A:$F,MATCH(I$1,'Data BI Summary'!$2:$2,0),FALSE),INDIRECT("'"&$E7&"'!"&"$A:$K"),9,FALSE) -> -0.0199403147 | J7: =VLOOKUP(VLOOKUP($F7,'Data BI Summary'!$A:$F,MATCH(J$1,'Data BI Summary'!$2:$2,0),FALSE),INDIRECT("'"&$E7&"'!"&"$A:$K"),8,FALSE) -> -0.0081867 | K7: =VLOOKUP(VLOOKUP($F7,'Data BI Summary'!$A:$F,MATCH(K$1,'Data BI Summary'!$2:$2,0),FALSE),INDIRECT("'"&$E7&"'!"&"$A:$K"),9,FALSE) -> -6.271059407e-05 | O7: TOU (DRP applied)
B8: Average | C8: =VLOOKUP("R1",'Data Billing Quantities'!A:P,MATCH(B8&" kWh",'Data Billing Quantities'!$4:$4,0),FALSE) -> 784 | E8: BI_R1_Avg (with DRP) | F8: BI Template_Energy | G8: =VLOOKUP(VLOOKUP($F8,'Data BI Summary'!$A:$F,MATCH(G$1,'Data BI Summary'!$2:$2,0),FALSE),INDIRECT("'"&$E8&"'!"&"$A:$K"),4,FALSE) -> 134.8580868 | H8: =VLOOKUP(VLOOKUP($F8,'Data BI Summary'!$A:$F,MATCH(H$1,'Data BI Summary'!$2:$2,0),FALSE),INDIRECT("'"&$E8&"'!"&"$A:$K"),8,FALSE) -> -0.7588 | I8: =VLOOKUP(VLOOKUP($F8,'Data BI Summary'!$A:$F,MATCH(I$1,'Data BI Summary'!$2:$2,0),FALSE),INDIRECT("'"&$E8&"'!"&"$A:$K"),9,FALSE) -> -0.02058600109 | J8: =VLOOKUP(VLOOKUP($F8,'Data BI Summary'!$A:$F,MATCH(J$1,'Data BI Summary'!$2:$2,0),FALSE),INDIRECT("'"&$E8&"'!"&"$A:$K"),8,FALSE) -> 0.0004004896 | K8: =VLOOKUP(VLOOKUP($F8,'Data BI Summary'!$A:$F,MATCH(K$1,'Data BI Summary'!$2:$2,0),FALSE),INDIRECT("'"&$E8&"'!"&"$A:$K"),9,FALSE) -> 2.969711418e-06
B9: High | C9: =VLOOKUP("R1",'Data Billing Quantities'!A:P,MATCH(B9&" kWh",'Data Billing Quantities'!$4:$4,0),FALSE) -> 1650 | E9: BI_R1_High (with DRP) | F9: BI Template_Energy | G9: =VLOOKUP(VLOOKUP($F9,'Data BI Summary'!$A:$F,MATCH(G$1,'Data BI Summary'!$2:$2,0),FALSE),INDIRECT("'"&$E9&"'!"&"$A:$K"),4,FALSE) -> 244.6558483 | H9: =VLOOKUP(VLOOKUP($F9,'Data BI Summary'!$A:$F,MATCH(H$1,'Data BI Summary'!$2:$2,0),FALSE),INDIRECT("'"&$E9&"'!"&"$A:$K"),8,FALSE) -> -1.365 | I9: =VLOOKUP(VLOOKUP($F9,'Data BI Summary'!$A:$F,MATCH(I$1,'Data BI Summary'!$2:$2,0),FALSE),INDIRECT("'"&$E9&"'!"&"$A:$K"),9,FALSE) -> -0.03703201302 | J9: =VLOOKUP(VLOOKUP($F9,'Data BI Summary'!$A:$F,MATCH(J$1,'Data BI Summary'!$2:$2,0),FALSE),INDIRECT("'"&$E9&"'!"&"$A:$K"),8,FALSE) -> 0.21912126 | K9: =VLOOKUP(VLOOKUP($F9,'Data BI Summary'!$A:$F,MATCH(K$1,'Data BI Summary'!$2:$2,0),FALSE),INDIRECT("'"&$E9&"'!"&"$A:$K"),9,FALSE) -> 0.0008956305828
A10: R1 (without DRP) | B10: Low | C10: =VLOOKUP("R1",'Data Billing Quantities'!A:P,MATCH(B10&" kWh",'Data Billing Quantities'!$4:$4,0),FALSE) -> 370 | E10: BI_R1_Low (without DRP) | F10: BI Template_Energy | G10: =VLOOKUP(VLOOKUP($F10,'Data BI Summary'!$A:$F,MATCH(G$1,'Data BI Summary'!$2:$2,0),FALSE),INDIRECT("'"&$E10&"'!"&"$A:$K"),4,FALSE) -> 105.3850238 | H10: =VLOOKUP(VLOOKUP($F10,'Data BI Summary'!$A:$F,MATCH(H$1,'Data BI Summary'!$2:$2,0),FALSE),INDIRECT("'"&$E10&"'!"&"$A:$K"),8,FALSE) -> 2.563 | I10: =VLOOKUP(VLOOKUP($F10,'Data BI Summary'!$A:$F,MATCH(I$1,'Data BI Summary'!$2:$2,0),FALSE),INDIRECT("'"&$E10&"'!"&"$A:$K"),9,FALSE) -> 0.04179712981 | J10: =VLOOKUP(VLOOKUP($F10,'Data BI Summary'!$A:$F,MATCH(J$1,'Data BI Summary'!$2:$2,0),FALSE),INDIRECT("'"&$E10&"'!"&"$A:$K"),8,FALSE) -> 2.748950828 | K10: =VLOOKUP(VLOOKUP($F10,'Data BI Summary'!$A:$F,MATCH(K$1,'Data BI Summary'!$2:$2,0),FALSE),INDIRECT("'"&$E10&"'!"&"$A:$K"),9,FALSE) -> 0.02608483377 | L10: TOU
B11: Typical | C11: =VLOOKUP("R1",'Data Billing Quantities'!A:P,MATCH(B11&" kWh",'Data Billing Quantities'!$4:$4,0),FALSE) -> 750 | E11: BI_R1_Typical (without DRP) | F11: BI Template_Energy | G11: =VLOOKUP(VLOOKUP($F11,'Data BI Summary'!$A:$F,MATCH(G$1,'Data BI Summary'!$2:$2,0),FALSE),INDIRECT("'"&$E11&"'!"&"$A:$K"),4,FALSE) -> 157.1399801 | H11: =VLOOKUP(VLOOKUP($F11,'Data BI Summary'!$A:$F,MATCH(H$1,'Data BI Summary'!$2:$2,0),FALSE),INDIRECT("'"&$E11&"'!"&"$A:$K"),8,FALSE) -> 0.625 | I11: =VLOOKUP(VLOOKUP($F11,'Data BI Summary'!$A:$F,MATCH(I$1,'Data BI Summary'!$2:$2,0),FALSE),INDIRECT("'"&$E11&"'!"&"$A:$K"),9,FALSE) -> 0.009597665848 | J11: =VLOOKUP(VLOOKUP($F11,'Data BI Summary'!$A:$F,MATCH(J$1,'Data BI Summary'!$2:$2,0),FALSE),INDIRECT("'"&$E11&"'!"&"$A:$K"),8,FALSE) -> 1.2715733 | K11: =VLOOKUP(VLOOKUP($F11,'Data BI Summary'!$A:$F,MATCH(K$1,'Data BI Summary'!$2:$2,0),FALSE),INDIRECT("'"&$E11&"'!"&"$A:$K"),9,FALSE) -> 0.00809197824
B12: Average | C12: =VLOOKUP("R1",'Data Billing Quantities'!A:P,MATCH(B12&" kWh",'Data Billing Quantities'!$4:$4,0),FALSE) -> 784 | E12: BI_R1_Avg (without DRP) | F12: BI Template_Energy | G12: =VLOOKUP(VLOOKUP($F12,'Data BI Summary'!$A:$F,MATCH(G$1,'Data BI Summary'!$2:$2,0),FALSE),INDIRECT("'"&$E12&"'!"&"$A:$K"),4,FALSE) -> 161.7706868 | H12: =VLOOKUP(VLOOKUP($F12,'Data BI Summary'!$A:$F,MATCH(H$1,'Data BI Summary'!$2:$2,0),FALSE),INDIRECT("'"&$E12&"'!"&"$A:$K"),8,FALSE) -> 0.4516 | I12: =VLOOKUP(VLOOKUP($F12,'Data BI Summary'!$A:$F,MATCH(I$1,'Data BI Summary'!$2:$2,0),FALSE),INDIRECT("'"&$E12&"'!"&"$A:$K"),9,FALSE) -> 0.006898869539 | J12: =VLOOKUP(VLOOKUP($F12,'Data BI Summary'!$A:$F,MATCH(J$1,'Data BI Summary'!$2:$2,0),FALSE),INDIRECT("'"&$E12&"'!"&"$A:$K"),8,FALSE) -> 1.13938689 | K12: =VLOOKUP(VLOOKUP($F12,'Data BI Summary'!$A:$F,MATCH(K$1,'Data BI Summary'!$2:$2,0),FALSE),INDIRECT("'"&$E12&"'!"&"$A:$K"),9,FALSE) -> 0.007043222183
B13: High | C13: =VLOOKUP("R1",'Data Billing Quantities'!A:P,MATCH(B13&" kWh",'Data Billing Quantities'!$4:$4,0),FALSE) -> 1650 | E13: BI_R1_High (without DRP) | F13: BI Template_Energy | G13: =VLOOKUP(VLOOKUP($F13,'Data BI Summary'!$A:$F,MATCH(G$1,'Data BI Summary'!$2:$2,0),FALSE),INDIRECT("'"&$E13&"'!"&"$A:$K"),4,FALSE) -> 279.7175083 | H13: =VLOOKUP(VLOOKUP($F13,'Data BI Summary'!$A:$F,MATCH(H$1,'Data BI Summary'!$2:$2,0),FALSE),INDIRECT("'"&$E13&"'!"&"$A:$K"),8,FALSE) -> -3.965 | I13: =VLOOKUP(VLOOKUP($F13,'Data BI Summary'!$A:$F,MATCH(I$1,'Data BI Summary'!$2:$2,0),FALSE),INDIRECT("'"&$E13&"'!"&"$A:$K"),9,FALSE) -> -0.05349433351 | J13: =VLOOKUP(VLOOKUP($F13,'Data BI Summary'!$A:$F,MATCH(J$1,'Data BI Summary'!$2:$2,0),FALSE),INDIRECT("'"&$E13&"'!"&"$A:$K"),8,FALSE) -> -2.22747874 | K13: =VLOOKUP(VLOOKUP($F13,'Data BI Summary'!$A:$F,MATCH(K$1,'Data BI Summary'!$2:$2,0),FALSE),INDIRECT("'"&$E13&"'!"&"$A:$K"),9,FALSE) -> -0.007963315394
A14: R2 (with DRP) | B14: Low | C14: =VLOOKUP("R2",'Data Billing Quantities'!A:P,MATCH(B14&" kWh",'Data Billing Quantities'!$4:$4,0),FALSE) -> 440 | E14: BI_R2_Low (with DRP) | F14: BI Template_Energy | G14: =VLOOKUP(VLOOKUP($F14,'Data BI Summary'!$A:$F,MATCH(G$1,'Data BI Summary'!$2:$2,0),FALSE),INDIRECT("'"&$E14&"'!"&"$A:$K"),4,FALSE) -> 92.2435425 | H14: =VLOOKUP(VLOOKUP($F14,'Data BI Summary'!$A:$F,MATCH(H$1,'Data BI Summary'!$2:$2,0),FALSE),INDIRECT("'"&$E14&"'!"&"$A:$K"),8,FALSE) -> -0.748 | I14: =VLOOKUP(VLOOKUP($F14,'Data BI Summary'!$A:$F,MATCH(I$1,'Data BI Summary'!$2:$2,0),FALSE),INDIRECT("'"&$E14&"'!"&"$A:$K"),9,FALSE) -> -0.02029300054 | J14: =VLOOKUP(VLOOKUP($F14,'Data BI Summary'!$A:$F,MATCH(J$1,'Data BI Summary'!$2:$2,0),FALSE),INDIRECT("'"&$E14&"'!"&"$A:$K"),8,FALSE) -> -0.33785664 | K14: =VLOOKUP(VLOOKUP($F14,'Data BI Summary'!$A:$F,MATCH(K$1,'Data BI Summary'!$2:$2,0),FALSE),INDIRECT("'"&$E14&"'!"&"$A:$K"),9,FALSE) -> -0.003662658988 | L14: =L6 -> TOU (DRP applied)
B15: Typical | C15: =VLOOKUP("R2",'Data Billing Quantities'!A:P,MATCH(B15&" kWh",'Data Billing Quantities'!$4:$4,0),FALSE) -> 750 | E15: BI_R2_Typical (with DRP) | F15: BI Template_Energy | G15: =VLOOKUP(VLOOKUP($F15,'Data BI Summary'!$A:$F,MATCH(G$1,'Data BI Summary'!$2:$2,0),FALSE),INDIRECT("'"&$E15&"'!"&"$A:$K"),4,FALSE) -> 132.2523274 | H15: =VLOOKUP(VLOOKUP($F15,'Data BI Summary'!$A:$F,MATCH(H$1,'Data BI Summary'!$2:$2,0),FALSE),INDIRECT("'"&$E15&"'!"&"$A:$K"),8,FALSE) -> -0.965 | I15: =VLOOKUP(VLOOKUP($F15,'Data BI Summary'!$A:$F,MATCH(I$1,'Data BI Summary'!$2:$2,0),FALSE),INDIRECT("'"&$E15&"'!"&"$A:$K"),9,FALSE) -> -0.02618014107 | J15: =VLOOKUP(VLOOKUP($F15,'Data BI Summary'!$A:$F,MATCH(J$1,'Data BI Summary'!$2:$2,0),FALSE),INDIRECT("'"&$E15&"'!"&"$A:$K"),8,FALSE) -> -0.284182 | K15: =VLOOKUP(VLOOKUP($F15,'Data BI Summary'!$A:$F,MATCH(K$1,'Data BI Summary'!$2:$2,0),FALSE),INDIRECT("'"&$E15&"'!"&"$A:$K"),9,FALSE) -> -0.00214878638
B16: Average | C16: =VLOOKUP("R2",'Data Billing Quantities'!A:P,MATCH(B16&" kWh",'Data Billing Quantities'!$4:$4,0),FALSE) -> 978 | E16: BI_R2_Avg (with DRP) | F16: BI Template_Energy | G16: =VLOOKUP(VLOOKUP($F16,'Data BI Summary'!$A:$F,MATCH(G$1,'Data BI Summary'!$2:$2,0),FALSE),INDIRECT("'"&$E16&"'!"&"$A:$K"),4,FALSE) -> 161.6781435 | H16: =VLOOKUP(VLOOKUP($F16,'Data BI Summary'!$A:$F,MATCH(H$1,'Data BI Summary'!$2:$2,0),FALSE),INDIRECT("'"&$E16&"'!"&"$A:$K"),8,FALSE) -> -1.1246 | I16: =VLOOKUP(VLOOKUP($F16,'Data BI Summary'!$A:$F,MATCH(I$1,'Data BI Summary'!$2:$2,0),FALSE),INDIRECT("'"&$E16&"'!"&"$A:$K"),9,FALSE) -> -0.03051003798 | J16: =VLOOKUP(VLOOKUP($F16,'Data BI Summary'!$A:$F,MATCH(J$1,'Data BI Summary'!$2:$2,0),FALSE),INDIRECT("'"&$E16&"'!"&"$A:$K"),8,FALSE) -> -0.244705168 | K16: =VLOOKUP(VLOOKUP($F16,'Data BI Summary'!$A:$F,MATCH(K$1,'Data BI Summary'!$2:$2,0),FALSE),INDIRECT("'"&$E16&"'!"&"$A:$K"),9,FALSE) -> -0.001513532768
B17: High | C17: =VLOOKUP("R2",'Data Billing Quantities'!A:P,MATCH(B17&" kWh",'Data Billing Quantities'!$4:$4,0),FALSE) -> 2110 | E17: BI_R2_High (with DRP) | F17: BI Template_Energy | G17: =VLOOKUP(VLOOKUP($F17,'Data BI Summary'!$A:$F,MATCH(G$1,'Data BI Summary'!$2:$2,0),FALSE),INDIRECT("'"&$E17&"'!"&"$A:$K"),4,FALSE) -> 307.7747388 | H17: =VLOOKUP(VLOOKUP($F17,'Data BI Summary'!$A:$F,MATCH(H$1,'Data BI Summary'!$2:$2,0),FALSE),INDIRECT("'"&$E17&"'!"&"$A:$K"),8,FALSE) -> -1.917 | I17: =VLOOKUP(VLOOKUP($F17,'Data BI Summary'!$A:$F,MATCH(I$1,'Data BI Summary'!$2:$2,0),FALSE),INDIRECT("'"&$E17&"'!"&"$A:$K"),9,FALSE) -> -0.05200759631 | J17: =VLOOKUP(VLOOKUP($F17,'Data BI Summary'!$A:$F,MATCH(J$1,'Data BI Summary'!$2:$2,0),FALSE),INDIRECT("'"&$E17&"'!"&"$A:$K"),8,FALSE) -> -0.04870616 | K17: =VLOOKUP(VLOOKUP($F17,'Data BI Summary'!$A:$F,MATCH(K$1,'Data BI Summary'!$2:$2,0),FALSE),INDIRECT("'"&$E17&"'!"&"$A:$K"),9,FALSE) -> -0.0001582526239
A18: R2 (without DRP) | B18: Low | C18: =VLOOKUP("R2",'Data Billing Quantities'!A:P,MATCH(B18&" kWh",'Data Billing Quantities'!$4:$4,0),FALSE) -> 440 | E18: BI_R2_Low (without DRP) | F18: BI Template_Energy | G18: =VLOOKUP(VLOOKUP($F18,'Data BI Summary'!$A:$F,MATCH(G$1,'Data BI Summary'!$2:$2,0),FALSE),INDIRECT("'"&$E18&"'!"&"$A:$K"),4,FALSE) -> 132.3583725 | H18: =VLOOKUP(VLOOKUP($F18,'Data BI Summary'!$A:$F,MATCH(H$1,'Data BI Summary'!$2:$2,0),FALSE),INDIRECT("'"&$E18&"'!"&"$A:$K"),8,FALSE) -> -3.866 | I18: =VLOOKUP(VLOOKUP($F18,'Data BI Summary'!$A:$F,MATCH(I$1,'Data BI Summary'!$2:$2,0),FALSE),INDIRECT("'"&$E18&"'!"&"$A:$K"),9,FALSE) -> -0.04863504843 | J18: =VLOOKUP(VLOOKUP($F18,'Data BI Summary'!$A:$F,MATCH(J$1,'Data BI Summary'!$2:$2,0),FALSE),INDIRECT("'"&$E18&"'!"&"$A:$K"),8,FALSE) -> -3.27189464 | K18: =VLOOKUP(VLOOKUP($F18,'Data BI Summary'!$A:$F,MATCH(K$1,'Data BI Summary'!$2:$2,0),FALSE),INDIRECT("'"&$E18&"'!"&"$A:$K"),9,FALSE) -> -0.0247199673 | L18: =L10 -> TOU
B19: Typical | C19: =VLOOKUP("R2",'Data Billing Quantities'!A:P,MATCH(B19&" kWh",'Data Billing Quantities'!$4:$4,0),FALSE) -> 750 | E19: BI_R2_Typical (without DRP) | F19: BI Template_Energy | G19: =VLOOKUP(VLOOKUP($F19,'Data BI Summary'!$A:$F,MATCH(G$1,'Data BI Summary'!$2:$2,0),FALSE),INDIRECT("'"&$E19&"'!"&"$A:$K"),4,FALSE) -> 177.0345175 | H19: =VLOOKUP(VLOOKUP($F19,'Data BI Summary'!$A:$F,MATCH(H$1,'Data BI Summary'!$2:$2,0),FALSE),INDIRECT("'"&$E19&"'!"&"$A:$K"),8,FALSE) -> -2.905 | I19: =VLOOKUP(VLOOKUP($F19,'Data BI Summary'!$A:$F,MATCH(I$1,'Data BI Summary'!$2:$2,0),FALSE),INDIRECT("'"&$E19&"'!"&"$A:$K"),9,FALSE) -> -0.03439905269 | J19: =VLOOKUP(VLOOKUP($F19,'Data BI Summary'!$A:$F,MATCH(J$1,'Data BI Summary'!$2:$2,0),FALSE),INDIRECT("'"&$E19&"'!"&"$A:$K"),8,FALSE) -> -2.109722 | K19: =VLOOKUP(VLOOKUP($F19,'Data BI Summary'!$A:$F,MATCH(K$1,'Data BI Summary'!$2:$2,0),FALSE),INDIRECT("'"&$E19&"'!"&"$A:$K"),9,FALSE) -> -0.01191700935
B20: Average | C20: =VLOOKUP("R2",'Data Billing Quantities'!A:P,MATCH(B20&" kWh",'Data Billing Quantities'!$4:$4,0),FALSE) -> 978 | E20: BI_R2_Avg (without DRP) | F20: BI Template_Energy | G20: =VLOOKUP(VLOOKUP($F20,'Data BI Summary'!$A:$F,MATCH(G$1,'Data BI Summary'!$2:$2,0),FALSE),INDIRECT("'"&$E20&"'!"&"$A:$K"),4,FALSE) -> 209.8931015 | H20: =VLOOKUP(VLOOKUP($F20,'Data BI Summary'!$A:$F,MATCH(H$1,'Data BI Summary'!$2:$2,0),FALSE),INDIRECT("'"&$E20&"'!"&"$A:$K"),8,FALSE) -> -2.1982 | I20: =VLOOKUP(VLOOKUP($F20,'Data BI Summary'!$A:$F,MATCH(I$1,'Data BI Summary'!$2:$2,0),FALSE),INDIRECT("'"&$E20&"'!"&"$A:$K"),9,FALSE) -> -0.02495175827 | J20: =VLOOKUP(VLOOKUP($F20,'Data BI Summary'!$A:$F,MATCH(J$1,'Data BI Summary'!$2:$2,0),FALSE),INDIRECT("'"&$E20&"'!"&"$A:$K"),8,FALSE) -> -1.254962768 | K20: =VLOOKUP(VLOOKUP($F20,'Data BI Summary'!$A:$F,MATCH(K$1,'Data BI Summary'!$2:$2,0),FALSE),INDIRECT("'"&$E20&"'!"&"$A:$K"),9,FALSE) -> -0.005979056764
B21: High | C21: =VLOOKUP("R2",'Data Billing Quantities'!A:P,MATCH(B21&" kWh",'Data Billing Quantities'!$4:$4,0),FALSE) -> 2110 | E21: BI_R2_High (without DRP) | F21: BI Template_Energy | G21: =VLOOKUP(VLOOKUP($F21,'Data BI Summary'!$A:$F,MATCH(G$1,'Data BI Summary'!$2:$2,0),FALSE),INDIRECT("'"&$E21&"'!"&"$A:$K"),4,FALSE) -> 373.0330888 | H21: =VLOOKUP(VLOOKUP($F21,'Data BI Summary'!$A:$F,MATCH(H$1,'Data BI Summary'!$2:$2,0),FALSE),INDIRECT("'"&$E21&"'!"&"$A:$K"),8,FALSE) -> 1.311 | I21: =VLOOKUP(VLOOKUP($F21,'Data BI Summary'!$A:$F,MATCH(I$1,'Data BI Summary'!$2:$2,0),FALSE),INDIRECT("'"&$E21&"'!"&"$A:$K"),9,FALSE) -> 0.01234347048 | J21: =VLOOKUP(VLOOKUP($F21,'Data BI Summary'!$A:$F,MATCH(J$1,'Data BI Summary'!$2:$2,0),FALSE),INDIRECT("'"&$E21&"'!"&"$A:$K"),8,FALSE) -> 2.98884184 | K21: =VLOOKUP(VLOOKUP($F21,'Data BI Summary'!$A:$F,MATCH(K$1,'Data BI Summary'!$2:$2,0),FALSE),INDIRECT("'"&$E21&"'!"&"$A:$K"),9,FALSE) -> 0.008012270036
A22: Seasonal-UR | B22: Low | C22: =VLOOKUP("Seasonal",'Data Billing Quantities'!A:P,MATCH(B22&" kWh",'Data Billing Quantities'!$4:$4,0),FALSE) -> 40 | E22: BI_Seas_UR_Low | F22: BI Template_Seasonal | G22: =VLOOKUP(VLOOKUP($F22,'Data BI Summary'!$A:$F,MATCH(G$1,'Data BI Summary'!$2:$2,0),FALSE),INDIRECT("'"&$E22&"'!"&"$A:$K"),4,FALSE) -> 63.6714205 | H22: =VLOOKUP(VLOOKUP($F22,'Data BI Summary'!$A:$F,MATCH(H$1,'Data BI Summary'!$2:$2,0),FALSE),INDIRECT("'"&$E22&"'!"&"$A:$K"),8,FALSE) -> -21.712 | I22: =VLOOKUP(VLOOKUP($F22,'Data BI Summary'!$A:$F,MATCH(I$1,'Data BI Summary'!$2:$2,0),FALSE),INDIRECT("'"&$E22&"'!"&"$A:$K"),9,FALSE) -> -0.3532474294 | J22: =VLOOKUP(VLOOKUP($F22,'Data BI Summary'!$A:$F,MATCH(J$1,'Data BI Summary'!$2:$2,0),FALSE),INDIRECT("'"&$E22&"'!"&"$A:$K"),8,FALSE) -> -20.41574554 | K22: =VLOOKUP(VLOOKUP($F22,'Data BI Summary'!$A:$F,MATCH(K$1,'Data BI Summary'!$2:$2,0),FALSE),INDIRECT("'"&$E22&"'!"&"$A:$K"),9,FALSE) -> -0.3206422188 | L22: TOU
B23: Average | C23: =VLOOKUP("Seasonal",'Data Billing Quantities'!A:P,MATCH(B23&" kWh",'Data Billing Quantities'!$4:$4,0),FALSE) -> 369 | E23: BI_Seas_UR_Avg | F23: BI Template_Seasonal | G23: =VLOOKUP(VLOOKUP($F23,'Data BI Summary'!$A:$F,MATCH(G$1,'Data BI Summary'!$2:$2,0),FALSE),INDIRECT("'"&$E23&"'!"&"$A:$K"),4,FALSE) -> 114.9360401 | H23: =VLOOKUP(VLOOKUP($F23,'Data BI Summary'!$A:$F,MATCH(H$1,'Data BI Summary'!$2:$2,0),FALSE),INDIRECT("'"&$E23&"'!"&"$A:$K"),8,FALSE) -> -32.1742 | I23: =VLOOKUP(VLOOKUP($F23,'Data BI Summary'!$A:$F,MATCH(I$1,'Data BI Summary'!$2:$2,0),FALSE),INDIRECT("'"&$E23&"'!"&"$A:$K"),9,FALSE) -> -0.4487592735 | J23: =VLOOKUP(VLOOKUP($F23,'Data BI Summary'!$A:$F,MATCH(J$1,'Data BI Summary'!$2:$2,0),FALSE),INDIRECT("'"&$E23&"'!"&"$A:$K"),8,FALSE) -> -30.13527362 | K23: =VLOOKUP(VLOOKUP($F23,'Data BI Summary'!$A:$F,MATCH(K$1,'Data BI Summary'!$2:$2,0),FALSE),INDIRECT("'"&$E23&"'!"&"$A:$K"),9,FALSE) -> -0.2621916815
B24: High | C24: =VLOOKUP("Seasonal",'Data Billing Quantities'!A:P,MATCH(B24&" kWh",'Data Billing Quantities'!$4:$4,0),FALSE) -> 1040 | E24: BI_Seas_UR_High | F24: BI Template_Seasonal | G24: =VLOOKUP(VLOOKUP($F24,'Data BI Summary'!$A:$F,MATCH(G$1,'Data BI Summary'!$2:$2,0),FALSE),INDIRECT("'"&$E24&"'!"&"$A:$K"),4,FALSE) -> 219.490933 | H24: =VLOOKUP(VLOOKUP($F24,'Data BI Summary'!$A:$F,MATCH(H$1,'Data BI Summary'!$2:$2,0),FALSE),INDIRECT("'"&$E24&"'!"&"$A:$K"),8,FALSE) -> -53.512 | I24: =VLOOKUP(VLOOKUP($F24,'Data BI Summary'!$A:$F,MATCH(I$1,'Data BI Summary'!$2:$2,0),FALSE),INDIRECT("'"&$E24&"'!"&"$A:$K"),9,FALSE) -> -0.5781081198 | J24: =VLOOKUP(VLOOKUP($F24,'Data BI Summary'!$A:$F,MATCH(J$1,'Data BI Summary'!$2:$2,0),FALSE),INDIRECT("'"&$E24&"'!"&"$A:$K"),8,FALSE) -> -49.95838408 | K24: =VLOOKUP(VLOOKUP($F24,'Data BI Summary'!$A:$F,MATCH(K$1,'Data BI Summary'!$2:$2,0),FALSE),INDIRECT("'"&$E24&"'!"&"$A:$K"),9,FALSE) -> -0.2276102407
A25: Seasonal-R1 | B25: Low | C25: =VLOOKUP("Seasonal",'Data Billing Quantities'!A:P,MATCH(B25&" kWh",'Data Billing Quantities'!$4:$4,0),FALSE) -> 40 | E25: BI_Seas_R1_Low | F25: BI Template_Seasonal | G25: =VLOOKUP(VLOOKUP($F25,'Data BI Summary'!$A:$F,MATCH(G$1,'Data BI Summary'!$2:$2,0),FALSE),INDIRECT("'"&$E25&"'!"&"$A:$K"),4,FALSE) -> 63.6714205 | H25: =VLOOKUP(VLOOKUP($F25,'Data BI Summary'!$A:$F,MATCH(H$1,'Data BI Summary'!$2:$2,0),FALSE),INDIRECT("'"&$E25&"'!"&"$A:$K"),8,FALSE) -> 1.032 | I25: =VLOOKUP(VLOOKUP($F25,'Data BI Summary'!$A:$F,MATCH(I$1,'Data BI Summary'!$2:$2,0),FALSE),INDIRECT("'"&$E25&"'!"&"$A:$K"),9,FALSE) -> 0.01679031628 | J25: =VLOOKUP(VLOOKUP($F25,'Data BI Summary'!$A:$F,MATCH(J$1,'Data BI Summary'!$2:$2,0),FALSE),INDIRECT("'"&$E25&"'!"&"$A:$K"),8,FALSE) -> 1.016876218 | K25: =VLOOKUP(VLOOKUP($F25,'Data BI Summary'!$A:$F,MATCH(K$1,'Data BI Summary'!$2:$2,0),FALSE),INDIRECT("'"&$E25&"'!"&"$A:$K"),9,FALSE) -> 0.01597068527 | L25: TOU
B26: Average | C26: =VLOOKUP("Seasonal",'Data Billing Quantities'!A:P,MATCH(B26&" kWh",'Data Billing Quantities'!$4:$4,0),FALSE) -> 369 | E26: BI_Seas_R1_Avg | F26: BI Template_Seasonal | G26: =VLOOKUP(VLOOKUP($F26,'Data BI Summary'!$A:$F,MATCH(G$1,'Data BI Summary'!$2:$2,0),FALSE),INDIRECT("'"&$E26&"'!"&"$A:$K"),4,FALSE) -> 114.9360401 | H26: =VLOOKUP(VLOOKUP($F26,'Data BI Summary'!$A:$F,MATCH(H$1,'Data BI Summary'!$2:$2,0),FALSE),INDIRECT("'"&$E26&"'!"&"$A:$K"),8,FALSE) -> -7.5878 | I26: =VLOOKUP(VLOOKUP($F26,'Data BI Summary'!$A:$F,MATCH(I$1,'Data BI Summary'!$2:$2,0),FALSE),INDIRECT("'"&$E26&"'!"&"$A:$K"),9,FALSE) -> -0.105833109 | J26: =VLOOKUP(VLOOKUP($F26,'Data BI Summary'!$A:$F,MATCH(J$1,'Data BI Summary'!$2:$2,0),FALSE),INDIRECT("'"&$E26&"'!"&"$A:$K"),8,FALSE) -> -6.717944893 | K26: =VLOOKUP(VLOOKUP($F26,'Data BI Summary'!$A:$F,MATCH(K$1,'Data BI Summary'!$2:$2,0),FALSE),INDIRECT("'"&$E26&"'!"&"$A:$K"),9,FALSE) -> -0.0584494201
B27: High | C27: =VLOOKUP("Seasonal",'Data Billing Quantities'!A:P,MATCH(B27&" kWh",'Data Billing Quantities'!$4:$4,0),FALSE) -> 1040 | E27: BI_Seas_R1_High | F27: BI Template_Seasonal | G27: =VLOOKUP(VLOOKUP($F27,'Data BI Summary'!$A:$F,MATCH(G$1,'Data BI Summary'!$2:$2,0),FALSE),INDIRECT("'"&$E27&"'!"&"$A:$K"),4,FALSE) -> 219.490933 | H27: =VLOOKUP(VLOOKUP($F27,'Data BI Summary'!$A:$F,MATCH(H$1,'Data BI Summary'!$2:$2,0),FALSE),INDIRECT("'"&$E27&"'!"&"$A:$K"),8,FALSE) -> -25.168 | I27: =VLOOKUP(VLOOKUP($F27,'Data BI Summary'!$A:$F,MATCH(I$1,'Data BI Summary'!$2:$2,0),FALSE),INDIRECT("'"&$E27&"'!"&"$A:$K"),9,FALSE) -> -0.2718983622 | J27: =VLOOKUP(VLOOKUP($F27,'Data BI Summary'!$A:$F,MATCH(J$1,'Data BI Summary'!$2:$2,0),FALSE),INDIRECT("'"&$E27&"'!"&"$A:$K"),8,FALSE) -> -22.49321834 | K27: =VLOOKUP(VLOOKUP($F27,'Data BI Summary'!$A:$F,MATCH(K$1,'Data BI Summary'!$2:$2,0),FALSE),INDIRECT("'"&$E27&"'!"&"$A:$K"),9,FALSE) -> -0.102479032
A28: Seasonal-R2 | B28: Low | C28: =VLOOKUP("Seasonal",'Data Billing Quantities'!A:P,MATCH(B28&" kWh",'Data Billing Quantities'!$4:$4,0),FALSE) -> 40 | E28: BI_Seas_R2_Low | F28: BI Template_Seasonal | G28: =VLOOKUP(VLOOKUP($F28,'Data BI Summary'!$A:$F,MATCH(G$1,'Data BI Summary'!$2:$2,0),FALSE),INDIRECT("'"&$E28&"'!"&"$A:$K"),4,FALSE) -> 63.6714205 | H28: =VLOOKUP(VLOOKUP($F28,'Data BI Summary'!$A:$F,MATCH(H$1,'Data BI Summary'!$2:$2,0),FALSE),INDIRECT("'"&$E28&"'!"&"$A:$K"),8,FALSE) -> 6.44 | I28: =VLOOKUP(VLOOKUP($F28,'Data BI Summary'!$A:$F,MATCH(I$1,'Data BI Summary'!$2:$2,0),FALSE),INDIRECT("'"&$E28&"'!"&"$A:$K"),9,FALSE) -> 0.1047767799 | J28: =VLOOKUP(VLOOKUP($F28,'Data BI Summary'!$A:$F,MATCH(J$1,'Data BI Summary'!$2:$2,0),FALSE),INDIRECT("'"&$E28&"'!"&"$A:$K"),8,FALSE) -> 6.193561125 | K28: =VLOOKUP(VLOOKUP($F28,'Data BI Summary'!$A:$F,MATCH(K$1,'Data BI Summary'!$2:$2,0),FALSE),INDIRECT("'"&$E28&"'!"&"$A:$K"),9,FALSE) -> 0.09727380159 | L28: TOU
B29: Average | C29: =VLOOKUP("Seasonal",'Data Billing Quantities'!A:P,MATCH(B29&" kWh",'Data Billing Quantities'!$4:$4,0),FALSE) -> 369 | E29: BI_Seas_R2_Avg | F29: BI Template_Seasonal | G29: =VLOOKUP(VLOOKUP($F29,'Data BI Summary'!$A:$F,MATCH(G$1,'Data BI Summary'!$2:$2,0),FALSE),INDIRECT("'"&$E29&"'!"&"$A:$K"),4,FALSE) -> 114.9360401 | H29: =VLOOKUP(VLOOKUP($F29,'Data BI Summary'!$A:$F,MATCH(H$1,'Data BI Summary'!$2:$2,0),FALSE),INDIRECT("'"&$E29&"'!"&"$A:$K"),8,FALSE) -> 2.492 | I29: =VLOOKUP(VLOOKUP($F29,'Data BI Summary'!$A:$F,MATCH(I$1,'Data BI Summary'!$2:$2,0),FALSE),INDIRECT("'"&$E29&"'!"&"$A:$K"),9,FALSE) -> 0.03475791503 | J29: =VLOOKUP(VLOOKUP($F29,'Data BI Summary'!$A:$F,MATCH(J$1,'Data BI Summary'!$2:$2,0),FALSE),INDIRECT("'"&$E29&"'!"&"$A:$K"),8,FALSE) -> 3.576704376 | K29: =VLOOKUP(VLOOKUP($F29,'Data BI Summary'!$A:$F,MATCH(K$1,'Data BI Summary'!$2:$2,0),FALSE),INDIRECT("'"&$E29&"'!"&"$A:$K"),9,FALSE) -> 0.03111908478
B30: High | C30: =VLOOKUP("Seasonal",'Data Billing Quantities'!A:P,MATCH(B30&" kWh",'Data Billing Quantities'!$4:$4,0),FALSE) -> 1040 | E30: BI_Seas_R2_High | F30: BI Template_Seasonal | G30: =VLOOKUP(VLOOKUP($F30,'Data BI Summary'!$A:$F,MATCH(G$1,'Data BI Summary'!$2:$2,0),FALSE),INDIRECT("'"&$E30&"'!"&"$A:$K"),4,FALSE) -> 219.490933 | H30: =VLOOKUP(VLOOKUP($F30,'Data BI Summary'!$A:$F,MATCH(H$1,'Data BI Summary'!$2:$2,0),FALSE),INDIRECT("'"&$E30&"'!"&"$A:$K"),8,FALSE) -> -5.56 | I30: =VLOOKUP(VLOOKUP($F30,'Data BI Summary'!$A:$F,MATCH(I$1,'Data BI Summary'!$2:$2,0),FALSE),INDIRECT("'"&$E30&"'!"&"$A:$K"),9,FALSE) -> -0.06006654855 | J30: =VLOOKUP(VLOOKUP($F30,'Data BI Summary'!$A:$F,MATCH(J$1,'Data BI Summary'!$2:$2,0),FALSE),INDIRECT("'"&$E30&"'!"&"$A:$K"),8,FALSE) -> -1.760410755 | K30: =VLOOKUP(VLOOKUP($F30,'Data BI Summary'!$A:$F,MATCH(K$1,'Data BI Summary'!$2:$2,0),FALSE),INDIRECT("'"&$E30&"'!"&"$A:$K"),9,FALSE) -> -0.008020425861
A31: GSe | B31: Low | C31: =VLOOKUP(A$31,'Data Billing Quantities'!A:P,MATCH(B31&" kWh",'Data Billing Quantities'!$4:$4,0),FALSE) -> 60 | E31: BI_GSe_Low | F31: BI Template_Energy | G31: =VLOOKUP(VLOOKUP($F31,'Data BI Summary'!$A:$F,MATCH(G$1,'Data BI Summary'!$2:$2,0),FALSE),INDIRECT("'"&$E31&"'!"&"$A:$K"),4,FALSE) -> 45.40325301 | H31: =VLOOKUP(VLOOKUP($F31,'Data BI Summary'!$A:$F,MATCH(H$1,'Data BI Summary'!$2:$2,0),FALSE),INDIRECT("'"&$E31&"'!"&"$A:$K"),8,FALSE) -> -1.362 | I31: =VLOOKUP(VLOOKUP($F31,'Data BI Summary'!$A:$F,MATCH(I$1,'Data BI Summary'!$2:$2,0),FALSE),INDIRECT("'"&$E31&"'!"&"$A:$K"),9,FALSE) -> -0.03452296462 | J31: =VLOOKUP(VLOOKUP($F31,'Data BI Summary'!$A:$F,MATCH(J$1,'Data BI Summary'!$2:$2,0),FALSE),INDIRECT("'"&$E31&"'!"&"$A:$K"),8,FALSE) -> -1.201197792 | K31: =VLOOKUP(VLOOKUP($F31,'Data BI Summary'!$A:$F,MATCH(K$1,'Data BI Summary'!$2:$2,0),FALSE),INDIRECT("'"&$E31&"'!"&"$A:$K"),9,FALSE) -> -0.0264562055 | L31: TOU
B32: Typical | C32: =VLOOKUP(A$31,'Data Billing Quantities'!A:P,MATCH(B32&" kWh",'Data Billing Quantities'!$4:$4,0),FALSE) -> 2000 | E32: BI_GSe_Typical | F32: BI Template_Energy | G32: =VLOOKUP(VLOOKUP($F32,'Data BI Summary'!$A:$F,MATCH(G$1,'Data BI Summary'!$2:$2,0),FALSE),INDIRECT("'"&$E32&"'!"&"$A:$K"),4,FALSE) -> 416.292227 | H32: =VLOOKUP(VLOOKUP($F32,'Data BI Summary'!$A:$F,MATCH(H$1,'Data BI Summary'!$2:$2,0),FALSE),INDIRECT("'"&$E32&"'!"&"$A:$K"),8,FALSE) -> -1.75 | I32: =VLOOKUP(VLOOKUP($F32,'Data BI Summary'!$A:$F,MATCH(I$1,'Data BI Summary'!$2:$2,0),FALSE),INDIRECT("'"&$E32&"'!"&"$A:$K"),9,FALSE) -> -0.009963561831 | J32: =VLOOKUP(VLOOKUP($F32,'Data BI Summary'!$A:$F,MATCH(J$1,'Data BI Summary'!$2:$2,0),FALSE),INDIRECT("'"&$E32&"'!"&"$A:$K"),8,FALSE) -> 1.0347236 | K32: =VLOOKUP(VLOOKUP($F32,'Data BI Summary'!$A:$F,MATCH(K$1,'Data BI Summary'!$2:$2,0),FALSE),INDIRECT("'"&$E32&"'!"&"$A:$K"),9,FALSE) -> 0.00248557031
B33: Average | C33: =VLOOKUP(A$31,'Data Billing Quantities'!A:P,MATCH(B33&" kWh",'Data Billing Quantities'!$4:$4,0),FALSE) -> 1887 | E33: BI_GSe_Avg | F33: BI Template_Energy | G33: =VLOOKUP(VLOOKUP($F33,'Data BI Summary'!$A:$F,MATCH(G$1,'Data BI Summary'!$2:$2,0),FALSE),INDIRECT("'"&$E33&"'!"&"$A:$K"),4,FALSE) -> 394.6889002 | H33: =VLOOKUP(VLOOKUP($F33,'Data BI Summary'!$A:$F,MATCH(H$1,'Data BI Summary'!$2:$2,0),FALSE),INDIRECT("'"&$E33&"'!"&"$A:$K"),8,FALSE) -> -1.7274 | I33: =VLOOKUP(VLOOKUP($F33,'Data BI Summary'!$A:$F,MATCH(I$1,'Data BI Summary'!$2:$2,0),FALSE),INDIRECT("'"&$E33&"'!"&"$A:$K"),9,FALSE) -> -0.01030008217 | J33: =VLOOKUP(VLOOKUP($F33,'Data BI Summary'!$A:$F,MATCH(J$1,'Data BI Summary'!$2:$2,0),FALSE),INDIRECT("'"&$E33&"'!"&"$A:$K"),8,FALSE) -> 0.9044869416 | K33: =VLOOKUP(VLOOKUP($F33,'Data BI Summary'!$A:$F,MATCH(K$1,'Data BI Summary'!$2:$2,0),FALSE),INDIRECT("'"&$E33&"'!"&"$A:$K"),9,FALSE) -> 0.002291645245
B34: High | C34: =VLOOKUP(A$31,'Data Billing Quantities'!A:P,MATCH(B34&" kWh",'Data Billing Quantities'!$4:$4,0),FALSE) -> 5570 | E34: BI_GSe_High | F34: BI Template_Energy | G34: =VLOOKUP(VLOOKUP($F34,'Data BI Summary'!$A:$F,MATCH(G$1,'Data BI Summary'!$2:$2,0),FALSE),INDIRECT("'"&$E34&"'!"&"$A:$K"),4,FALSE) -> 1098.804411 | H34: =VLOOKUP(VLOOKUP($F34,'Data BI Summary'!$A:$F,MATCH(H$1,'Data BI Summary'!$2:$2,0),FALSE),INDIRECT("'"&$E34&"'!"&"$A:$K"),8,FALSE) -> -2.464 | I34: =VLOOKUP(VLOOKUP($F34,'Data BI Summary'!$A:$F,MATCH(I$1,'Data BI Summary'!$2:$2,0),FALSE),INDIRECT("'"&$E34&"'!"&"$A:$K"),9,FALSE) -> -0.005780590915 | J34: =VLOOKUP(VLOOKUP($F34,'Data BI Summary'!$A:$F,MATCH(J$1,'Data BI Summary'!$2:$2,0),FALSE),INDIRECT("'"&$E34&"'!"&"$A:$K"),8,FALSE) -> 5.149279976 | K34: =VLOOKUP(VLOOKUP($F34,'Data BI Summary'!$A:$F,MATCH(K$1,'Data BI Summary'!$2:$2,0),FALSE),INDIRECT("'"&$E34&"'!"&"$A:$K"),9,FALSE) -> 0.004686257102
A35: UGe | B35: Low | C35: =VLOOKUP(A$35,'Data Billing Quantities'!A:P,MATCH(B35&" kWh",'Data Billing Quantities'!$4:$4,0),FALSE) -> 180 | E35: BI_UGe_Low | F35: BI Template_Energy | G35: =VLOOKUP(VLOOKUP($F35,'Data BI Summary'!$A:$F,MATCH(G$1,'Data BI Summary'!$2:$2,0),FALSE),INDIRECT("'"&$E35&"'!"&"$A:$K"),4,FALSE) -> 54.60355869 | H35: =VLOOKUP(VLOOKUP($F35,'Data BI Summary'!$A:$F,MATCH(H$1,'Data BI Summary'!$2:$2,0),FALSE),INDIRECT("'"&$E35&"'!"&"$A:$K"),8,FALSE) -> -1.476 | I35: =VLOOKUP(VLOOKUP($F35,'Data BI Summary'!$A:$F,MATCH(I$1,'Data BI Summary'!$2:$2,0),FALSE),INDIRECT("'"&$E35&"'!"&"$A:$K"),9,FALSE) -> -0.04370484425 | J35: =VLOOKUP(VLOOKUP($F35,'Data BI Summary'!$A:$F,MATCH(J$1,'Data BI Summary'!$2:$2,0),FALSE),INDIRECT("'"&$E35&"'!"&"$A:$K"),8,FALSE) -> -1.099750464 | K35: =VLOOKUP(VLOOKUP($F35,'Data BI Summary'!$A:$F,MATCH(K$1,'Data BI Summary'!$2:$2,0),FALSE),INDIRECT("'"&$E35&"'!"&"$A:$K"),9,FALSE) -> -0.02014063717 | L35: TOU
B36: Typical | C36: =VLOOKUP(A$35,'Data Billing Quantities'!A:P,MATCH(B36&" kWh",'Data Billing Quantities'!$4:$4,0),FALSE) -> 2000 | E36: BI_UGe_Typical | F36: BI Template_Energy | G36: =VLOOKUP(VLOOKUP($F36,'Data BI Summary'!$A:$F,MATCH(G$1,'Data BI Summary'!$2:$2,0),FALSE),INDIRECT("'"&$E36&"'!"&"$A:$K"),4,FALSE) -> 334.7802099 | H36: =VLOOKUP(VLOOKUP($F36,'Data BI Summary'!$A:$F,MATCH(H$1,'Data BI Summary'!$2:$2,0),FALSE),INDIRECT("'"&$E36&"'!"&"$A:$K"),8,FALSE) -> -1.84 | I36: =VLOOKUP(VLOOKUP($F36,'Data BI Summary'!$A:$F,MATCH(I$1,'Data BI Summary'!$2:$2,0),FALSE),INDIRECT("'"&$E36&"'!"&"$A:$K"),9,FALSE) -> -0.01945854484 | J36: =VLOOKUP(VLOOKUP($F36,'Data BI Summary'!$A:$F,MATCH(J$1,'Data BI Summary'!$2:$2,0),FALSE),INDIRECT("'"&$E36&"'!"&"$A:$K"),8,FALSE) -> 1.4815104 | K36: =VLOOKUP(VLOOKUP($F36,'Data BI Summary'!$A:$F,MATCH(K$1,'Data BI Summary'!$2:$2,0),FALSE),INDIRECT("'"&$E36&"'!"&"$A:$K"),9,FALSE) -> 0.004425322514
B37: Average | C37: =VLOOKUP(A$35,'Data Billing Quantities'!A:P,MATCH(B37&" kWh",'Data Billing Quantities'!$4:$4,0),FALSE) -> 2494 | E37: BI_UGe_Avg | F37: BI Template_Energy | G37: =VLOOKUP(VLOOKUP($F37,'Data BI Summary'!$A:$F,MATCH(G$1,'Data BI Summary'!$2:$2,0),FALSE),INDIRECT("'"&$E37&"'!"&"$A:$K"),4,FALSE) -> 410.8281581 | H37: =VLOOKUP(VLOOKUP($F37,'Data BI Summary'!$A:$F,MATCH(H$1,'Data BI Summary'!$2:$2,0),FALSE),INDIRECT("'"&$E37&"'!"&"$A:$K"),8,FALSE) -> -1.9388 | I37: =VLOOKUP(VLOOKUP($F37,'Data BI Summary'!$A:$F,MATCH(I$1,'Data BI Summary'!$2:$2,0),FALSE),INDIRECT("'"&$E37&"'!"&"$A:$K"),9,FALSE) -> -0.0174572932 | J37: =VLOOKUP(VLOOKUP($F37,'Data BI Summary'!$A:$F,MATCH(J$1,'Data BI Summary'!$2:$2,0),FALSE),INDIRECT("'"&$E37&"'!"&"$A:$K"),8,FALSE) -> 2.182138349 | K37: =VLOOKUP(VLOOKUP($F37,'Data BI Summary'!$A:$F,MATCH(K$1,'Data BI Summary'!$2:$2,0),FALSE),INDIRECT("'"&$E37&"'!"&"$A:$K"),9,FALSE) -> 0.005311559848
B38: High | C38: =VLOOKUP(A$35,'Data Billing Quantities'!A:P,MATCH(B38&" kWh",'Data Billing Quantities'!$4:$4,0),FALSE) -> 6930 | E38: BI_UGe_High | F38: BI Template_Energy | G38: =VLOOKUP(VLOOKUP($F38,'Data BI Summary'!$A:$F,MATCH(G$1,'Data BI Summary'!$2:$2,0),FALSE),INDIRECT("'"&$E38&"'!"&"$A:$K"),4,FALSE) -> 1093.72026 | H38: =VLOOKUP(VLOOKUP($F38,'Data BI Summary'!$A:$F,MATCH(H$1,'Data BI Summary'!$2:$2,0),FALSE),INDIRECT("'"&$E38&"'!"&"$A:$K"),8,FALSE) -> -2.826 | I38: =VLOOKUP(VLOOKUP($F38,'Data BI Summary'!$A:$F,MATCH(I$1,'Data BI Summary'!$2:$2,0),FALSE),INDIRECT("'"&$E38&"'!"&"$A:$K"),9,FALSE) -> -0.01090185247 | J38: =VLOOKUP(VLOOKUP($F38,'Data BI Summary'!$A:$F,MATCH(J$1,'Data BI Summary'!$2:$2,0),FALSE),INDIRECT("'"&$E38&"'!"&"$A:$K"),8,FALSE) -> 8.473607136 | K38: =VLOOKUP(VLOOKUP($F38,'Data BI Summary'!$A:$F,MATCH(K$1,'Data BI Summary'!$2:$2,0),FALSE),INDIRECT("'"&$E38&"'!"&"$A:$K"),9,FALSE) -> 0.007747508618
A39: GSd | B39: Low | C39: =VLOOKUP(A$39,'Data Billing Quantities'!A:P,MATCH(B39&" kWh",'Data Billing Quantities'!$4:$4,0),FALSE) -> 9310 | D39: =VLOOKUP(A$39,'Data Billing Quantities'!A:P,MATCH(B39&" kW",'Data Billing Quantities'!$4:$4,0),FALSE) -> 55 | E39: BI_GSd_Low | F39: BI Template_Demand | G39: =VLOOKUP(VLOOKUP($F39,'Data BI Summary'!$A:$F,MATCH(G$1,'Data BI Summary'!$2:$2,0),FALSE),INDIRECT("'"&$E39&"'!"&"$A:$K"),4,FALSE) -> 3025.724317 | H39: =VLOOKUP(VLOOKUP($F39,'Data BI Summary'!$A:$F,MATCH(H$1,'Data BI Summary'!$2:$2,0),FALSE),INDIRECT("'"&$E39&"'!"&"$A:$K"),8,FALSE) -> -24.699119 | I39: =VLOOKUP(VLOOKUP($F39,'Data BI Summary'!$A:$F,MATCH(I$1,'Data BI Summary'!$2:$2,0),FALSE),INDIRECT("'"&$E39&"'!"&"$A:$K"),9,FALSE) -> -0.02017150392 | J39: =VLOOKUP(VLOOKUP($F39,'Data BI Summary'!$A:$F,MATCH(J$1,'Data BI Summary'!$2:$2,0),FALSE),INDIRECT("'"&$E39&"'!"&"$A:$K"),8,FALSE) -> 9.80883053 | K39: =VLOOKUP(VLOOKUP($F39,'Data BI Summary'!$A:$F,MATCH(K$1,'Data BI Summary'!$2:$2,0),FALSE),INDIRECT("'"&$E39&"'!"&"$A:$K"),9,FALSE) -> 0.003241812374 | L39: WAHSP
B40: Average | C40: =VLOOKUP(A$39,'Data Billing Quantities'!A:P,MATCH(B40&" kWh",'Data Billing Quantities'!$4:$4,0),FALSE) -> 34334 | D40: =VLOOKUP(A$39,'Data Billing Quantities'!A:P,MATCH(B40&" kW",'Data Billing Quantities'!$4:$4,0),FALSE) -> 110 | E40: BI_GSd_Avg | F40: BI Template_Demand | G40: =VLOOKUP(VLOOKUP($F40,'Data BI Summary'!$A:$F,MATCH(G$1,'Data BI Summary'!$2:$2,0),FALSE),INDIRECT("'"&$E40&"'!"&"$A:$K"),4,FALSE) -> 8233.249116 | H40: =VLOOKUP(VLOOKUP($F40,'Data BI Summary'!$A:$F,MATCH(H$1,'Data BI Summary'!$2:$2,0),FALSE),INDIRECT("'"&$E40&"'!"&"$A:$K"),8,FALSE) -> -56.2835366 | I40: =VLOOKUP(VLOOKUP($F40,'Data BI Summary'!$A:$F,MATCH(I$1,'Data BI Summary'!$2:$2,0),FALSE),INDIRECT("'"&$E40&"'!"&"$A:$K"),9,FALSE) -> -0.02414667652 | J40: =VLOOKUP(VLOOKUP($F40,'Data BI Summary'!$A:$F,MATCH(J$1,'Data BI Summary'!$2:$2,0),FALSE),INDIRECT("'"&$E40&"'!"&"$A:$K"),8,FALSE) -> 11.83727364 | K40: =VLOOKUP(VLOOKUP($F40,'Data BI Summary'!$A:$F,MATCH(K$1,'Data BI Summary'!$2:$2,0),FALSE),INDIRECT("'"&$E40&"'!"&"$A:$K"),9,FALSE) -> 0.00143774025
B41: High | C41: =VLOOKUP(A$39,'Data Billing Quantities'!A:P,MATCH(B41&" kWh",'Data Billing Quantities'!$4:$4,0),FALSE) -> 75790 | D41: =VLOOKUP(A$39,'Data Billing Quantities'!A:P,MATCH(B41&" kW",'Data Billing Quantities'!$4:$4,0),FALSE) -> 250 | E41: BI_GSd_High | F41: BI Template_Demand | G41: =VLOOKUP(VLOOKUP($F41,'Data BI Summary'!$A:$F,MATCH(G$1,'Data BI Summary'!$2:$2,0),FALSE),INDIRECT("'"&$E41&"'!"&"$A:$K"),4,FALSE) -> 18211.52189 | H41: =VLOOKUP(VLOOKUP($F41,'Data BI Summary'!$A:$F,MATCH(H$1,'Data BI Summary'!$2:$2,0),FALSE),INDIRECT("'"&$E41&"'!"&"$A:$K"),8,FALSE) -> -115.441871 | I41: =VLOOKUP(VLOOKUP($F41,'Data BI Summary'!$A:$F,MATCH(I$1,'Data BI Summary'!$2:$2,0),FALSE),INDIRECT("'"&$E41&"'!"&"$A:$K"),9,FALSE) -> -0.0224276119 | J41: =VLOOKUP(VLOOKUP($F41,'Data BI Summary'!$A:$F,MATCH(J$1,'Data BI Summary'!$2:$2,0),FALSE),INDIRECT("'"&$E41&"'!"&"$A:$K"),8,FALSE) -> 40.99993577 | K41: =VLOOKUP(VLOOKUP($F41,'Data BI Summary'!$A:$F,MATCH(K$1,'Data BI Summary'!$2:$2,0),FALSE),INDIRECT("'"&$E41&"'!"&"$A:$K"),9,FALSE) -> 0.00225131848
A42: UGd | B42: Low | C42: =VLOOKUP(A$42,'Data Billing Quantities'!A:P,MATCH(B42&" kWh",'Data Billing Quantities'!$4:$4,0),FALSE) -> 13900 | D42: =VLOOKUP(A$42,'Data Billing Quantities'!A:P,MATCH(B42&" kW",'Data Billing Quantities'!$4:$4,0),FALSE) -> 55 | E42: BI_UGd_Low | F42: BI Template_Demand | G42: =VLOOKUP(VLOOKUP($F42,'Data BI Summary'!$A:$F,MATCH(G$1,'Data BI Summary'!$2:$2,0),FALSE),INDIRECT("'"&$E42&"'!"&"$A:$K"),4,FALSE) -> 3214.88277 | H42: =VLOOKUP(VLOOKUP($F42,'Data BI Summary'!$A:$F,MATCH(H$1,'Data BI Summary'!$2:$2,0),FALSE),INDIRECT("'"&$E42&"'!"&"$A:$K"),8,FALSE) -> -29.041 | I42: =VLOOKUP(VLOOKUP($F42,'Data BI Summary'!$A:$F,MATCH(I$1,'Data BI Summary'!$2:$2,0),FALSE),INDIRECT("'"&$E42&"'!"&"$A:$K"),9,FALSE) -> -0.03893375591 | J42: =VLOOKUP(VLOOKUP($F42,'Data BI Summary'!$A:$F,MATCH(J$1,'Data BI Summary'!$2:$2,0),FALSE),INDIRECT("'"&$E42&"'!"&"$A:$K"),8,FALSE) -> 12.845275 | K42: =VLOOKUP(VLOOKUP($F42,'Data BI Summary'!$A:$F,MATCH(K$1,'Data BI Summary'!$2:$2,0),FALSE),INDIRECT("'"&$E42&"'!"&"$A:$K"),9,FALSE) -> 0.003995565599 | L42: WAHSP
B43: Average | C43: =VLOOKUP(A$42,'Data Billing Quantities'!A:P,MATCH(B43&" kWh",'Data Billing Quantities'!$4:$4,0),FALSE) -> 42592 | D43: =VLOOKUP(A$42,'Data Billing Quantities'!A:P,MATCH(B43&" kW",'Data Billing Quantities'!$4:$4,0),FALSE) -> 111 | E43: BI_UGd_Avg | F43: BI Template_Demand | G43: =VLOOKUP(VLOOKUP($F43,'Data BI Summary'!$A:$F,MATCH(G$1,'Data BI Summary'!$2:$2,0),FALSE),INDIRECT("'"&$E43&"'!"&"$A:$K"),4,FALSE) -> 8482.995134 | H43: =VLOOKUP(VLOOKUP($F43,'Data BI Summary'!$A:$F,MATCH(H$1,'Data BI Summary'!$2:$2,0),FALSE),INDIRECT("'"&$E43&"'!"&"$A:$K"),8,FALSE) -> -63.88854 | I43: =VLOOKUP(VLOOKUP($F43,'Data BI Summary'!$A:$F,MATCH(I$1,'Data BI Summary'!$2:$2,0),FALSE),INDIRECT("'"&$E43&"'!"&"$A:$K"),9,FALSE) -> -0.04580803521 | J43: =VLOOKUP(VLOOKUP($F43,'Data BI Summary'!$A:$F,MATCH(J$1,'Data BI Summary'!$2:$2,0),FALSE),INDIRECT("'"&$E43&"'!"&"$A:$K"),8,FALSE) -> 19.9593708 | K43: =VLOOKUP(VLOOKUP($F43,'Data BI Summary'!$A:$F,MATCH(K$1,'Data BI Summary'!$2:$2,0),FALSE),INDIRECT("'"&$E43&"'!"&"$A:$K"),9,FALSE) -> 0.002352868354
B44: High | C44: =VLOOKUP(A$42,'Data Billing Quantities'!A:P,MATCH(B44&" kWh",'Data Billing Quantities'!$4:$4,0),FALSE) -> 97610 | D44: =VLOOKUP(A$42,'Data Billing Quantities'!A:P,MATCH(B44&" kW",'Data Billing Quantities'!$4:$4,0),FALSE) -> 280 | E44: BI_UGd_High | F44: BI Template_Demand | G44: =VLOOKUP(VLOOKUP($F44,'Data BI Summary'!$A:$F,MATCH(G$1,'Data BI Summary'!$2:$2,0),FALSE),INDIRECT("'"&$E44&"'!"&"$A:$K"),4,FALSE) -> 19777.78935 | H44: =VLOOKUP(VLOOKUP($F44,'Data BI Summary'!$A:$F,MATCH(H$1,'Data BI Summary'!$2:$2,0),FALSE),INDIRECT("'"&$E44&"'!"&"$A:$K"),8,FALSE) -> -139.21945 | I44: =VLOOKUP(VLOOKUP($F44,'Data BI Summary'!$A:$F,MATCH(I$1,'Data BI Summary'!$2:$2,0),FALSE),INDIRECT("'"&$E44&"'!"&"$A:$K"),9,FALSE) -> -0.04152497354 | J44: =VLOOKUP(VLOOKUP($F44,'Data BI Summary'!$A:$F,MATCH(J$1,'Data BI Summary'!$2:$2,0),FALSE),INDIRECT("'"&$E44&"'!"&"$A:$K"),8,FALSE) -> 75.1411015 | K44: =VLOOKUP(VLOOKUP($F44,'Data BI Summary'!$A:$F,MATCH(K$1,'Data BI Summary'!$2:$2,0),FALSE),INDIRECT("'"&$E44&"'!"&"$A:$K"),9,FALSE) -> 0.003799266954
A45: St Lgt | B45: Low | C45: =VLOOKUP(A$45,'Data Billing Quantities'!A:P,MATCH(B45&" kWh",'Data Billing Quantities'!$4:$4,0),FALSE) -> 30 | E45: BI_StLgt_Low | F45: BI Template_EnergyUNM | G45: =VLOOKUP(VLOOKUP($F45,'Data BI Summary'!$A:$F,MATCH(G$1,'Data BI Summary'!$2:$2,0),FALSE),INDIRECT("'"&$E45&"'!"&"$A:$K"),4,FALSE) -> 10.59210678 | H45: =VLOOKUP(VLOOKUP($F45,'Data BI Summary'!$A:$F,MATCH(H$1,'Data BI Summary'!$2:$2,0),FALSE),INDIRECT("'"&$E45&"'!"&"$A:$K"),8,FALSE) -> -0.605 | I45: =VLOOKUP(VLOOKUP($F45,'Data BI Summary'!$A:$F,MATCH(I$1,'Data BI Summary'!$2:$2,0),FALSE),INDIRECT("'"&$E45&"'!"&"$A:$K"),9,FALSE) -> -0.08260513381 | J45: =VLOOKUP(VLOOKUP($F45,'Data BI Summary'!$A:$F,MATCH(J$1,'Data BI Summary'!$2:$2,0),FALSE),INDIRECT("'"&$E45&"'!"&"$A:$K"),8,FALSE) -> -0.547725988 | K45: =VLOOKUP(VLOOKUP($F45,'Data BI Summary'!$A:$F,MATCH(K$1,'Data BI Summary'!$2:$2,0),FALSE),INDIRECT("'"&$E45&"'!"&"$A:$K"),9,FALSE) -> -0.05171076908 | L45: Two-tier RPP
B46: Average | C46: =VLOOKUP(A$45,'Data Billing Quantities'!A:P,MATCH(B46&" kWh",'Data Billing Quantities'!$4:$4,0),FALSE) -> 1274 | E46: BI_StLgt_Avg | F46: BI Template_EnergyUNM | G46: =VLOOKUP(VLOOKUP($F46,'Data BI Summary'!$A:$F,MATCH(G$1,'Data BI Summary'!$2:$2,0),FALSE),INDIRECT("'"&$E46&"'!"&"$A:$K"),4,FALSE) -> 301.2569298 | H46: =VLOOKUP(VLOOKUP($F46,'Data BI Summary'!$A:$F,MATCH(H$1,'Data BI Summary'!$2:$2,0),FALSE),INDIRECT("'"&$E46&"'!"&"$A:$K"),8,FALSE) -> -2.471 | I46: =VLOOKUP(VLOOKUP($F46,'Data BI Summary'!$A:$F,MATCH(I$1,'Data BI Summary'!$2:$2,0),FALSE),INDIRECT("'"&$E46&"'!"&"$A:$K"),9,FALSE) -> -0.01619019913 | J46: =VLOOKUP(VLOOKUP($F46,'Data BI Summary'!$A:$F,MATCH(J$1,'Data BI Summary'!$2:$2,0),FALSE),INDIRECT("'"&$E46&"'!"&"$A:$K"),8,FALSE) -> -1.40882229 | K46: =VLOOKUP(VLOOKUP($F46,'Data BI Summary'!$A:$F,MATCH(K$1,'Data BI Summary'!$2:$2,0),FALSE),INDIRECT("'"&$E46&"'!"&"$A:$K"),9,FALSE) -> -0.00467648094
B47: High | C47: =VLOOKUP(A$45,'Data Billing Quantities'!A:P,MATCH(B47&" kWh",'Data Billing Quantities'!$4:$4,0),FALSE) -> 2310 | E47: BI_StLgt_High | F47: BI Template_EnergyUNM | G47: =VLOOKUP(VLOOKUP($F47,'Data BI Summary'!$A:$F,MATCH(G$1,'Data BI Summary'!$2:$2,0),FALSE),INDIRECT("'"&$E47&"'!"&"$A:$K"),4,FALSE) -> 552.8771048 | H47: =VLOOKUP(VLOOKUP($F47,'Data BI Summary'!$A:$F,MATCH(H$1,'Data BI Summary'!$2:$2,0),FALSE),INDIRECT("'"&$E47&"'!"&"$A:$K"),8,FALSE) -> -4.025 | I47: =VLOOKUP(VLOOKUP($F47,'Data BI Summary'!$A:$F,MATCH(I$1,'Data BI Summary'!$2:$2,0),FALSE),INDIRECT("'"&$E47&"'!"&"$A:$K"),9,FALSE) -> -0.01470975193 | J47: =VLOOKUP(VLOOKUP($F47,'Data BI Summary'!$A:$F,MATCH(J$1,'Data BI Summary'!$2:$2,0),FALSE),INDIRECT("'"&$E47&"'!"&"$A:$K"),8,FALSE) -> -2.125941076 | K47: =VLOOKUP(VLOOKUP($F47,'Data BI Summary'!$A:$F,MATCH(K$1,'Data BI Summary'!$2:$2,0),FALSE),INDIRECT("'"&$E47&"'!"&"$A:$K"),9,FALSE) -> -0.003845232616
A48: Sen Lgt | B48: Low | C48: =VLOOKUP(A$48,'Data Billing Quantities'!A:P,MATCH(B48&" kWh",'Data Billing Quantities'!$4:$4,0),FALSE) -> 20 | E48: BI_SenLgt_Low | F48: BI Template_EnergyUNM | G48: =VLOOKUP(VLOOKUP($F48,'Data BI Summary'!$A:$F,MATCH(G$1,'Data BI Summary'!$2:$2,0),FALSE),INDIRECT("'"&$E48&"'!"&"$A:$K"),4,FALSE) -> 9.108112144 | H48: =VLOOKUP(VLOOKUP($F48,'Data BI Summary'!$A:$F,MATCH(H$1,'Data BI Summary'!$2:$2,0),FALSE),INDIRECT("'"&$E48&"'!"&"$A:$K"),8,FALSE) -> -0.094 | I48: =VLOOKUP(VLOOKUP($F48,'Data BI Summary'!$A:$F,MATCH(I$1,'Data BI Summary'!$2:$2,0),FALSE),INDIRECT("'"&$E48&"'!"&"$A:$K"),9,FALSE) -> -0.01348637016 | J48: =VLOOKUP(VLOOKUP($F48,'Data BI Summary'!$A:$F,MATCH(J$1,'Data BI Summary'!$2:$2,0),FALSE),INDIRECT("'"&$E48&"'!"&"$A:$K"),8,FALSE) -> -0.076123136 | K48: =VLOOKUP(VLOOKUP($F48,'Data BI Summary'!$A:$F,MATCH(K$1,'Data BI Summary'!$2:$2,0),FALSE),INDIRECT("'"&$E48&"'!"&"$A:$K"),9,FALSE) -> -0.008357729329 | L48: Two-tier RPP
B49: Average | C49: =VLOOKUP(A$48,'Data Billing Quantities'!A:P,MATCH(B49&" kWh",'Data Billing Quantities'!$4:$4,0),FALSE) -> 49 | E49: BI_SenLgt_Avg | F49: BI Template_EnergyUNM | G49: =VLOOKUP(VLOOKUP($F49,'Data BI Summary'!$A:$F,MATCH(G$1,'Data BI Summary'!$2:$2,0),FALSE),INDIRECT("'"&$E49&"'!"&"$A:$K"),4,FALSE) -> 17.41649925 | H49: =VLOOKUP(VLOOKUP($F49,'Data BI Summary'!$A:$F,MATCH(H$1,'Data BI Summary'!$2:$2,0),FALSE),INDIRECT("'"&$E49&"'!"&"$A:$K"),8,FALSE) -> -0.1578 | I49: =VLOOKUP(VLOOKUP($F49,'Data BI Summary'!$A:$F,MATCH(I$1,'Data BI Summary'!$2:$2,0),FALSE),INDIRECT("'"&$E49&"'!"&"$A:$K"),9,FALSE) -> -0.01289900683 | J49: =VLOOKUP(VLOOKUP($F49,'Data BI Summary'!$A:$F,MATCH(J$1,'Data BI Summary'!$2:$2,0),FALSE),INDIRECT("'"&$E49&"'!"&"$A:$K"),8,FALSE) -> -0.1182791832 | K49: =VLOOKUP(VLOOKUP($F49,'Data BI Summary'!$A:$F,MATCH(K$1,'Data BI Summary'!$2:$2,0),FALSE),INDIRECT("'"&$E49&"'!"&"$A:$K"),9,FALSE) -> -0.006791214554
B50: High | C50: =VLOOKUP(A$48,'Data Billing Quantities'!A:P,MATCH(B50&" kWh",'Data Billing Quantities'!$4:$4,0),FALSE) -> 80 | E50: BI_SenLgt_High | F50: BI Template_EnergyUNM | G50: =VLOOKUP(VLOOKUP($F50,'Data BI Summary'!$A:$F,MATCH(G$1,'Data BI Summary'!$2:$2,0),FALSE),INDIRECT("'"&$E50&"'!"&"$A:$K"),4,FALSE) -> 26.29787858 | H50: =VLOOKUP(VLOOKUP($F50,'Data BI Summary'!$A:$F,MATCH(H$1,'Data BI Summary'!$2:$2,0),FALSE),INDIRECT("'"&$E50&"'!"&"$A:$K"),8,FALSE) -> -0.226 | I50: =VLOOKUP(VLOOKUP($F50,'Data BI Summary'!$A:$F,MATCH(I$1,'Data BI Summary'!$2:$2,0),FALSE),INDIRECT("'"&$E50&"'!"&"$A:$K"),9,FALSE) -> -0.01265397536 | J50: =VLOOKUP(VLOOKUP($F50,'Data BI Summary'!$A:$F,MATCH(J$1,'Data BI Summary'!$2:$2,0),FALSE),INDIRECT("'"&$E50&"'!"&"$A:$K"),8,FALSE) -> -0.163342544 | K50: =VLOOKUP(VLOOKUP($F50,'Data BI Summary'!$A:$F,MATCH(K$1,'Data BI Summary'!$2:$2,0),FALSE),INDIRECT("'"&$E50&"'!"&"$A:$K"),9,FALSE) -> -0.006211244132
A51: USL | B51: Low | C51: =VLOOKUP(A$51,'Data Billing Quantities'!A:P,MATCH(B51&" kWh",'Data Billing Quantities'!$4:$4,0),FALSE) -> 100 | E51: BI_USL_Low | F51: BI Template_EnergyUNM | G51: =VLOOKUP(VLOOKUP($F51,'Data BI Summary'!$A:$F,MATCH(G$1,'Data BI Summary'!$2:$2,0),FALSE),INDIRECT("'"&$E51&"'!"&"$A:$K"),4,FALSE) -> 52.74786792 | H51: =VLOOKUP(VLOOKUP($F51,'Data BI Summary'!$A:$F,MATCH(H$1,'Data BI Summary'!$2:$2,0),FALSE),INDIRECT("'"&$E51&"'!"&"$A:$K"),8,FALSE) -> -1.86 | I51: =VLOOKUP(VLOOKUP($F51,'Data BI Summary'!$A:$F,MATCH(I$1,'Data BI Summary'!$2:$2,0),FALSE),INDIRECT("'"&$E51&"'!"&"$A:$K"),9,FALSE) -> -0.04285714286 | J51: =VLOOKUP(VLOOKUP($F51,'Data BI Summary'!$A:$F,MATCH(J$1,'Data BI Summary'!$2:$2,0),FALSE),INDIRECT("'"&$E51&"'!"&"$A:$K"),8,FALSE) -> -1.6475028 | K51: =VLOOKUP(VLOOKUP($F51,'Data BI Summary'!$A:$F,MATCH(K$1,'Data BI Summary'!$2:$2,0),FALSE),INDIRECT("'"&$E51&"'!"&"$A:$K"),9,FALSE) -> -0.03123354298 | L51: Two-tier RPP
B52: Average | C52: =VLOOKUP(A$51,'Data Billing Quantities'!A:P,MATCH(B52&" kWh",'Data Billing Quantities'!$4:$4,0),FALSE) -> 477 | E52: BI_USL_Avg | F52: BI Template_EnergyUNM | G52: =VLOOKUP(VLOOKUP($F52,'Data BI Summary'!$A:$F,MATCH(G$1,'Data BI Summary'!$2:$2,0),FALSE),INDIRECT("'"&$E52&"'!"&"$A:$K"),4,FALSE) -> 106.3698142 | H52: =VLOOKUP(VLOOKUP($F52,'Data BI Summary'!$A:$F,MATCH(H$1,'Data BI Summary'!$2:$2,0),FALSE),INDIRECT("'"&$E52&"'!"&"$A:$K"),8,FALSE) -> -3.1795 | I52: =VLOOKUP(VLOOKUP($F52,'Data BI Summary'!$A:$F,MATCH(I$1,'Data BI Summary'!$2:$2,0),FALSE),INDIRECT("'"&$E52&"'!"&"$A:$K"),9,FALSE) -> -0.05930055375 | J52: =VLOOKUP(VLOOKUP($F52,'Data BI Summary'!$A:$F,MATCH(J$1,'Data BI Summary'!$2:$2,0),FALSE),INDIRECT("'"&$E52&"'!"&"$A:$K"),8,FALSE) -> -2.501757656 | K52: =VLOOKUP(VLOOKUP($F52,'Data BI Summary'!$A:$F,MATCH(K$1,'Data BI Summary'!$2:$2,0),FALSE),INDIRECT("'"&$E52&"'!"&"$A:$K"),9,FALSE) -> -0.02351943242
B53: High | C53: =VLOOKUP(A$51,'Data Billing Quantities'!A:P,MATCH(B53&" kWh",'Data Billing Quantities'!$4:$4,0),FALSE) -> 550 | E53: BI_USL_High | F53: BI Template_EnergyUNM | G53: =VLOOKUP(VLOOKUP($F53,'Data BI Summary'!$A:$F,MATCH(G$1,'Data BI Summary'!$2:$2,0),FALSE),INDIRECT("'"&$E53&"'!"&"$A:$K"),4,FALSE) -> 116.7528436 | H53: =VLOOKUP(VLOOKUP($F53,'Data BI Summary'!$A:$F,MATCH(H$1,'Data BI Summary'!$2:$2,0),FALSE),INDIRECT("'"&$E53&"'!"&"$A:$K"),8,FALSE) -> -3.435 | I53: =VLOOKUP(VLOOKUP($F53,'Data BI Summary'!$A:$F,MATCH(I$1,'Data BI Summary'!$2:$2,0),FALSE),INDIRECT("'"&$E53&"'!"&"$A:$K"),9,FALSE) -> -0.06178613185 | J53: =VLOOKUP(VLOOKUP($F53,'Data BI Summary'!$A:$F,MATCH(J$1,'Data BI Summary'!$2:$2,0),FALSE),INDIRECT("'"&$E53&"'!"&"$A:$K"),8,FALSE) -> -2.6671704 | K53: =VLOOKUP(VLOOKUP($F53,'Data BI Summary'!$A:$F,MATCH(K$1,'Data BI Summary'!$2:$2,0),FALSE),INDIRECT("'"&$E53&"'!"&"$A:$K"),9,FALSE) -> -0.02284458621
A54: DGen | B54: Low | C54: =VLOOKUP(A$54,'Data Billing Quantities'!A:P,MATCH($B54&" kWh",'Data Billing Quantities'!$4:$4,0),FALSE) -> 10 | D54: =VLOOKUP(A$54,'Data Billing Quantities'!A:P,MATCH($B54&" kW",'Data Billing Quantities'!$4:$4,0),FALSE) -> 0.02941666667 | E54: BI_Dgen_Low | F54: BI Template_Demand | G54: =VLOOKUP(VLOOKUP($F54,'Data BI Summary'!$A:$F,MATCH(G$1,'Data BI Summary'!$2:$2,0),FALSE),INDIRECT("'"&$E54&"'!"&"$A:$K"),4,FALSE) -> 229.4381363 | H54: =VLOOKUP(VLOOKUP($F54,'Data BI Summary'!$A:$F,MATCH(H$1,'Data BI Summary'!$2:$2,0),FALSE),INDIRECT("'"&$E54&"'!"&"$A:$K"),8,FALSE) -> -0.1013182167 | I54: =VLOOKUP(VLOOKUP($F54,'Data BI Summary'!$A:$F,MATCH(I$1,'Data BI Summary'!$2:$2,0),FALSE),INDIRECT("'"&$E54&"'!"&"$A:$K"),9,FALSE) -> -0.0005030035254 | J54: =VLOOKUP(VLOOKUP($F54,'Data BI Summary'!$A:$F,MATCH(J$1,'Data BI Summary'!$2:$2,0),FALSE),INDIRECT("'"&$E54&"'!"&"$A:$K"),8,FALSE) -> -0.1027522466 | K54: =VLOOKUP(VLOOKUP($F54,'Data BI Summary'!$A:$F,MATCH(K$1,'Data BI Summary'!$2:$2,0),FALSE),INDIRECT("'"&$E54&"'!"&"$A:$K"),9,FALSE) -> -0.0004478429273 | L54: WAHSP
B55: Average | C55: =VLOOKUP(A$54,'Data Billing Quantities'!A:P,MATCH($B55&" kWh",'Data Billing Quantities'!$4:$4,0),FALSE) -> 1709 | D55: =VLOOKUP(A$54,'Data Billing Quantities'!A:P,MATCH($B55&" kW",'Data Billing Quantities'!$4:$4,0),FALSE) -> 12 | E55: BI_Dgen_Avg | F55: BI Template_Demand | G55: =VLOOKUP(VLOOKUP($F55,'Data BI Summary'!$A:$F,MATCH(G$1,'Data BI Summary'!$2:$2,0),FALSE),INDIRECT("'"&$E55&"'!"&"$A:$K"),4,FALSE) -> 658.4879534 | H55: =VLOOKUP(VLOOKUP($F55,'Data BI Summary'!$A:$F,MATCH(H$1,'Data BI Summary'!$2:$2,0),FALSE),INDIRECT("'"&$E55&"'!"&"$A:$K"),8,FALSE) -> 1.6256759 | I55: =VLOOKUP(VLOOKUP($F55,'Data BI Summary'!$A:$F,MATCH(I$1,'Data BI Summary'!$2:$2,0),FALSE),INDIRECT("'"&$E55&"'!"&"$A:$K"),9,FALSE) -> 0.004863344195 | J55: =VLOOKUP(VLOOKUP($F55,'Data BI Summary'!$A:$F,MATCH(J$1,'Data BI Summary'!$2:$2,0),FALSE),INDIRECT("'"&$E55&"'!"&"$A:$K"),8,FALSE) -> 6.625049767 | K55: =VLOOKUP(VLOOKUP($F55,'Data BI Summary'!$A:$F,MATCH(K$1,'Data BI Summary'!$2:$2,0),FALSE),INDIRECT("'"&$E55&"'!"&"$A:$K"),9,FALSE) -> 0.01006100375
B56: High | C56: =VLOOKUP(A$54,'Data Billing Quantities'!A:P,MATCH($B56&" kWh",'Data Billing Quantities'!$4:$4,0),FALSE) -> 8490 | D56: =VLOOKUP(A$54,'Data Billing Quantities'!A:P,MATCH($B56&" kW",'Data Billing Quantities'!$4:$4,0),FALSE) -> 45 | E56: BI_Dgen_High | F56: BI Template_Demand | G56: =VLOOKUP(VLOOKUP($F56,'Data BI Summary'!$A:$F,MATCH(G$1,'Data BI Summary'!$2:$2,0),FALSE),INDIRECT("'"&$E56&"'!"&"$A:$K"),4,FALSE) -> 2150.30376 | H56: =VLOOKUP(VLOOKUP($F56,'Data BI Summary'!$A:$F,MATCH(H$1,'Data BI Summary'!$2:$2,0),FALSE),INDIRECT("'"&$E56&"'!"&"$A:$K"),8,FALSE) -> 4.383899 | I56: =VLOOKUP(VLOOKUP($F56,'Data BI Summary'!$A:$F,MATCH(I$1,'Data BI Summary'!$2:$2,0),FALSE),INDIRECT("'"&$E56&"'!"&"$A:$K"),9,FALSE) -> 0.006258314156 | J56: =VLOOKUP(VLOOKUP($F56,'Data BI Summary'!$A:$F,MATCH(J$1,'Data BI Summary'!$2:$2,0),FALSE),INDIRECT("'"&$E56&"'!"&"$A:$K"),8,FALSE) -> 22.90894087 | K56: =VLOOKUP(VLOOKUP($F56,'Data BI Summary'!$A:$F,MATCH(K$1,'Data BI Summary'!$2:$2,0),FALSE),INDIRECT("'"&$E56&"'!"&"$A:$K"),9,FALSE) -> 0.01065381613
A57: ST | B57: Low | C57: =VLOOKUP(A$57,'Data Billing Quantities'!A:P,MATCH($B57&" kWh",'Data Billing Quantities'!$4:$4,0),FALSE) -> 88780 | D57: =VLOOKUP(A$57,'Data Billing Quantities'!A:P,MATCH($B57&" kW",'Data Billing Quantities'!$4:$4,0),FALSE) -> 500 | E57: BI_ST_Low | F57: BI Template_Demand | G57: =VLOOKUP(VLOOKUP($F57,'Data BI Summary'!$A:$F,MATCH(G$1,'Data BI Summary'!$2:$2,0),FALSE),INDIRECT("'"&$E57&"'!"&"$A:$K"),4,FALSE) -> 19594.53686 | H57: =VLOOKUP(VLOOKUP($F57,'Data BI Summary'!$A:$F,MATCH(H$1,'Data BI Summary'!$2:$2,0),FALSE),INDIRECT("'"&$E57&"'!"&"$A:$K"),8,FALSE) -> -426.678668 | I57: =VLOOKUP(VLOOKUP($F57,'Data BI Summary'!$A:$F,MATCH(I$1,'Data BI Summary'!$2:$2,0),FALSE),INDIRECT("'"&$E57&"'!"&"$A:$K"),9,FALSE) -> -0.18907949 | J57: =VLOOKUP(VLOOKUP($F57,'Data BI Summary'!$A:$F,MATCH(J$1,'Data BI Summary'!$2:$2,0),FALSE),INDIRECT("'"&$E57&"'!"&"$A:$K"),8,FALSE) -> -14.94839484 | K57: =VLOOKUP(VLOOKUP($F57,'Data BI Summary'!$A:$F,MATCH(K$1,'Data BI Summary'!$2:$2,0),FALSE),INDIRECT("'"&$E57&"'!"&"$A:$K"),9,FALSE) -> -0.0007628858465 | L57: WAHSP
B58: Average | C58: =VLOOKUP(A$57,'Data Billing Quantities'!A:P,MATCH($B58&" kWh",'Data Billing Quantities'!$4:$4,0),FALSE) -> 1373443 | D58: =VLOOKUP(A$57,'Data Billing Quantities'!A:P,MATCH($B58&" kW",'Data Billing Quantities'!$4:$4,0),FALSE) -> 2808 | E58: BI_ST_Avg | F58: BI Template_Demand | G58: =VLOOKUP(VLOOKUP($F58,'Data BI Summary'!$A:$F,MATCH(G$1,'Data BI Summary'!$2:$2,0),FALSE),INDIRECT("'"&$E58&"'!"&"$A:$K"),4,FALSE) -> 228266.9771 | H58: =VLOOKUP(VLOOKUP($F58,'Data BI Summary'!$A:$F,MATCH(H$1,'Data BI Summary'!$2:$2,0),FALSE),INDIRECT("'"&$E58&"'!"&"$A:$K"),8,FALSE) -> -2558.772456 | I58: =VLOOKUP(VLOOKUP($F58,'Data BI Summary'!$A:$F,MATCH(I$1,'Data BI Summary'!$2:$2,0),FALSE),INDIRECT("'"&$E58&"'!"&"$A:$K"),9,FALSE) -> -0.4179601807 | J58: =VLOOKUP(VLOOKUP($F58,'Data BI Summary'!$A:$F,MATCH(J$1,'Data BI Summary'!$2:$2,0),FALSE),INDIRECT("'"&$E58&"'!"&"$A:$K"),8,FALSE) -> -267.6260991 | K58: =VLOOKUP(VLOOKUP($F58,'Data BI Summary'!$A:$F,MATCH(K$1,'Data BI Summary'!$2:$2,0),FALSE),INDIRECT("'"&$E58&"'!"&"$A:$K"),9,FALSE) -> -0.001172425825
B59: High | C59: =VLOOKUP(A$57,'Data Billing Quantities'!A:P,MATCH($B59&" kWh",'Data Billing Quantities'!$4:$4,0),FALSE) -> 2641420 | D59: =VLOOKUP(A$57,'Data Billing Quantities'!A:P,MATCH($B59&" kW",'Data Billing Quantities'!$4:$4,0),FALSE) -> 13730 | E59: BI_ST_High | F59: BI Template_Demand | G59: =VLOOKUP(VLOOKUP($F59,'Data BI Summary'!$A:$F,MATCH(G$1,'Data BI Summary'!$2:$2,0),FALSE),INDIRECT("'"&$E59&"'!"&"$A:$K"),4,FALSE) -> 524849.8159 | H59: =VLOOKUP(VLOOKUP($F59,'Data BI Summary'!$A:$F,MATCH(H$1,'Data BI Summary'!$2:$2,0),FALSE),INDIRECT("'"&$E59&"'!"&"$A:$K"),8,FALSE) -> -8170.899452 | I59: =VLOOKUP(VLOOKUP($F59,'Data BI Summary'!$A:$F,MATCH(I$1,'Data BI Summary'!$2:$2,0),FALSE),INDIRECT("'"&$E59&"'!"&"$A:$K"),9,FALSE) -> -0.3346779647 | J59: =VLOOKUP(VLOOKUP($F59,'Data BI Summary'!$A:$F,MATCH(J$1,'Data BI Summary'!$2:$2,0),FALSE),INDIRECT("'"&$E59&"'!"&"$A:$K"),8,FALSE) -> 3596.154429 | K59: =VLOOKUP(VLOOKUP($F59,'Data BI Summary'!$A:$F,MATCH(K$1,'Data BI Summary'!$2:$2,0),FALSE),INDIRECT("'"&$E59&"'!"&"$A:$K"),9,FALSE) -> 0.006851778014

Sheet Bill Impact Summary_Acq (hidden)
A1: Rate Class | B1: Consumption Level | C1: Monthly Consumption (kWh) | D1: Monthly Peak (kW) | E1: BI Worksheet | F1: Template | G1: Current Total Bill | H1: Change in DX Bill ($) | I1: Change in DX Bill (%) | J1: Change in Total Bill ($) | K1: Change in Total Bill (%) | L1: Commodity Price Used
A2: WHSI to HONI
A3: AUR-WHSI | B3: Low | C3: =VLOOKUP(A$3,'Data Billing Quantities'!A:P,MATCH($B3&" kWh",'Data Billing Quantities'!$4:$4,0),FALSE) -> 310 | E3: BI_WHSI_AUR_Low | F3: BI Template_EnergyWHSI | G3: =VLOOKUP(VLOOKUP($F3,'Data BI Summary'!$A:$F,MATCH(G$1,'Data BI Summary'!$2:$2,0),FALSE),INDIRECT("'"&$E3&"'!"&"$A:$K"),4,FALSE) -> 60.42677856 | H3: =VLOOKUP(VLOOKUP($F3,'Data BI Summary'!$A:$F,MATCH(H$1,'Data BI Summary'!$2:$2,0),FALSE),INDIRECT("'"&$E3&"'!"&"$A:$K"),8,FALSE) -> 6.741 | I3: =VLOOKUP(VLOOKUP($F3,'Data BI Summary'!$A:$F,MATCH(I$1,'Data BI Summary'!$2:$2,0),FALSE),INDIRECT("'"&$E3&"'!"&"$A:$K"),9,FALSE) -> 0.2793270625 | J3: =VLOOKUP(VLOOKUP($F3,'Data BI Summary'!$A:$F,MATCH(J$1,'Data BI Summary'!$2:$2,0),FALSE),INDIRECT("'"&$E3&"'!"&"$A:$K"),8,FALSE) -> 8.408663061 | K3: =VLOOKUP(VLOOKUP($F3,'Data BI Summary'!$A:$F,MATCH(K$1,'Data BI Summary'!$2:$2,0),FALSE),INDIRECT("'"&$E3&"'!"&"$A:$K"),9,FALSE) -> 0.1391545812 | L3: TOU
B4: Typical | C4: =VLOOKUP(A$3,'Data Billing Quantities'!A:P,MATCH($B4&" kWh",'Data Billing Quantities'!$4:$4,0),FALSE) -> 750 | E4: BI_WHSI_AUR_Typical | F4: BI Template_EnergyWHSI | G4: =VLOOKUP(VLOOKUP($F4,'Data BI Summary'!$A:$F,MATCH(G$1,'Data BI Summary'!$2:$2,0),FALSE),INDIRECT("'"&$E4&"'!"&"$A:$K"),4,FALSE) -> 112.9904823 | H4: =VLOOKUP(VLOOKUP($F4,'Data BI Summary'!$A:$F,MATCH(H$1,'Data BI Summary'!$2:$2,0),FALSE),INDIRECT("'"&$E4&"'!"&"$A:$K"),8,FALSE) -> 6.345 | I4: =VLOOKUP(VLOOKUP($F4,'Data BI Summary'!$A:$F,MATCH(I$1,'Data BI Summary'!$2:$2,0),FALSE),INDIRECT("'"&$E4&"'!"&"$A:$K"),9,FALSE) -> 0.2614877395 | J4: =VLOOKUP(VLOOKUP($F4,'Data BI Summary'!$A:$F,MATCH(J$1,'Data BI Summary'!$2:$2,0),FALSE),INDIRECT("'"&$E4&"'!"&"$A:$K"),8,FALSE) -> 10.96753708 | K4: =VLOOKUP(VLOOKUP($F4,'Data BI Summary'!$A:$F,MATCH(K$1,'Data BI Summary'!$2:$2,0),FALSE),INDIRECT("'"&$E4&"'!"&"$A:$K"),9,FALSE) -> 0.09706602591
B5: Average | C5: =VLOOKUP(A$3,'Data Billing Quantities'!A:P,MATCH($B5&" kWh",'Data Billing Quantities'!$4:$4,0),FALSE) -> 636 | E5: BI_WHSI_AUR_Avg | F5: BI Template_EnergyWHSI | G5: =VLOOKUP(VLOOKUP($F5,'Data BI Summary'!$A:$F,MATCH(G$1,'Data BI Summary'!$2:$2,0),FALSE),INDIRECT("'"&$E5&"'!"&"$A:$K"),4,FALSE) -> 99.37170452 | H5: =VLOOKUP(VLOOKUP($F5,'Data BI Summary'!$A:$F,MATCH(H$1,'Data BI Summary'!$2:$2,0),FALSE),INDIRECT("'"&$E5&"'!"&"$A:$K"),8,FALSE) -> 6.4476 | I5: =VLOOKUP(VLOOKUP($F5,'Data BI Summary'!$A:$F,MATCH(I$1,'Data BI Summary'!$2:$2,0),FALSE),INDIRECT("'"&$E5&"'!"&"$A:$K"),9,FALSE) -> 0.2660910907 | J5: =VLOOKUP(VLOOKUP($F5,'Data BI Summary'!$A:$F,MATCH(J$1,'Data BI Summary'!$2:$2,0),FALSE),INDIRECT("'"&$E5&"'!"&"$A:$K"),8,FALSE) -> 10.30455609 | K5: =VLOOKUP(VLOOKUP($F5,'Data BI Summary'!$A:$F,MATCH(K$1,'Data BI Summary'!$2:$2,0),FALSE),INDIRECT("'"&$E5&"'!"&"$A:$K"),9,FALSE) -> 0.103697085
B6: High | C6: =VLOOKUP(A$3,'Data Billing Quantities'!A:P,MATCH($B6&" kWh",'Data Billing Quantities'!$4:$4,0),FALSE) -> 1160 | E6: BI_WHSI_AUR_High | F6: BI Template_EnergyWHSI | G6: =VLOOKUP(VLOOKUP($F6,'Data BI Summary'!$A:$F,MATCH(G$1,'Data BI Summary'!$2:$2,0),FALSE),INDIRECT("'"&$E6&"'!"&"$A:$K"),4,FALSE) -> 161.9702972 | H6: =VLOOKUP(VLOOKUP($F6,'Data BI Summary'!$A:$F,MATCH(H$1,'Data BI Summary'!$2:$2,0),FALSE),INDIRECT("'"&$E6&"'!"&"$A:$K"),8,FALSE) -> 5.976 | I6: =VLOOKUP(VLOOKUP($F6,'Data BI Summary'!$A:$F,MATCH(I$1,'Data BI Summary'!$2:$2,0),FALSE),INDIRECT("'"&$E6&"'!"&"$A:$K"),9,FALSE) -> 0.2450385435 | J6: =VLOOKUP(VLOOKUP($F6,'Data BI Summary'!$A:$F,MATCH(J$1,'Data BI Summary'!$2:$2,0),FALSE),INDIRECT("'"&$E6&"'!"&"$A:$K"),8,FALSE) -> 13.35194242 | K6: =VLOOKUP(VLOOKUP($F6,'Data BI Summary'!$A:$F,MATCH(K$1,'Data BI Summary'!$2:$2,0),FALSE),INDIRECT("'"&$E6&"'!"&"$A:$K"),9,FALSE) -> 0.0824345121
A7: AUGe-WHSI | B7: Low | C7: =VLOOKUP(A$7,'Data Billing Quantities'!A:P,MATCH($B7&" kWh",'Data Billing Quantities'!$4:$4,0),FALSE) -> 190 | E7: BI_WHSI_AUGe_Low | F7: BI Template_EnergyWHSI | G7: =VLOOKUP(VLOOKUP($F7,'Data BI Summary'!$A:$F,MATCH(G$1,'Data BI Summary'!$2:$2,0),FALSE),INDIRECT("'"&$E7&"'!"&"$A:$K"),4,FALSE) -> 54.25815455 | H7: =VLOOKUP(VLOOKUP($F7,'Data BI Summary'!$A:$F,MATCH(H$1,'Data BI Summary'!$2:$2,0),FALSE),INDIRECT("'"&$E7&"'!"&"$A:$K"),8,FALSE) -> -3.271 | I7: =VLOOKUP(VLOOKUP($F7,'Data BI Summary'!$A:$F,MATCH(I$1,'Data BI Summary'!$2:$2,0),FALSE),INDIRECT("'"&$E7&"'!"&"$A:$K"),9,FALSE) -> -0.09913923744 | J7: =VLOOKUP(VLOOKUP($F7,'Data BI Summary'!$A:$F,MATCH(J$1,'Data BI Summary'!$2:$2,0),FALSE),INDIRECT("'"&$E7&"'!"&"$A:$K"),8,FALSE) -> -2.446137103 | K7: =VLOOKUP(VLOOKUP($F7,'Data BI Summary'!$A:$F,MATCH(K$1,'Data BI Summary'!$2:$2,0),FALSE),INDIRECT("'"&$E7&"'!"&"$A:$K"),9,FALSE) -> -0.04508330819 | L7: TOU
B8: Typical | C8: =VLOOKUP(A$7,'Data Billing Quantities'!A:P,MATCH($B8&" kWh",'Data Billing Quantities'!$4:$4,0),FALSE) -> 2000 | E8: BI_WHSI_AUGe_Typical | F8: BI Template_EnergyWHSI | G8: =VLOOKUP(VLOOKUP($F8,'Data BI Summary'!$A:$F,MATCH(G$1,'Data BI Summary'!$2:$2,0),FALSE),INDIRECT("'"&$E8&"'!"&"$A:$K"),4,FALSE) -> 289.4813205 | H8: =VLOOKUP(VLOOKUP($F8,'Data BI Summary'!$A:$F,MATCH(H$1,'Data BI Summary'!$2:$2,0),FALSE),INDIRECT("'"&$E8&"'!"&"$A:$K"),8,FALSE) -> 5.96 | I8: =VLOOKUP(VLOOKUP($F8,'Data BI Summary'!$A:$F,MATCH(I$1,'Data BI Summary'!$2:$2,0),FALSE),INDIRECT("'"&$E8&"'!"&"$A:$K"),9,FALSE) -> 0.1068100358 | J8: =VLOOKUP(VLOOKUP($F8,'Data BI Summary'!$A:$F,MATCH(J$1,'Data BI Summary'!$2:$2,0),FALSE),INDIRECT("'"&$E8&"'!"&"$A:$K"),8,FALSE) -> 12.25966418 | K8: =VLOOKUP(VLOOKUP($F8,'Data BI Summary'!$A:$F,MATCH(K$1,'Data BI Summary'!$2:$2,0),FALSE),INDIRECT("'"&$E8&"'!"&"$A:$K"),9,FALSE) -> 0.04235044995
B9: Average | C9: =VLOOKUP(A$7,'Data Billing Quantities'!A:P,MATCH($B9&" kWh",'Data Billing Quantities'!$4:$4,0),FALSE) -> 2471 | E9: BI_WHSI_AUGe_Avg | F9: BI Template_EnergyWHSI | G9: =VLOOKUP(VLOOKUP($F9,'Data BI Summary'!$A:$F,MATCH(G$1,'Data BI Summary'!$2:$2,0),FALSE),INDIRECT("'"&$E9&"'!"&"$A:$K"),4,FALSE) -> 350.6913267 | H9: =VLOOKUP(VLOOKUP($F9,'Data BI Summary'!$A:$F,MATCH(H$1,'Data BI Summary'!$2:$2,0),FALSE),INDIRECT("'"&$E9&"'!"&"$A:$K"),8,FALSE) -> 8.3621 | I9: =VLOOKUP(VLOOKUP($F9,'Data BI Summary'!$A:$F,MATCH(I$1,'Data BI Summary'!$2:$2,0),FALSE),INDIRECT("'"&$E9&"'!"&"$A:$K"),9,FALSE) -> 0.1354524043 | J9: =VLOOKUP(VLOOKUP($F9,'Data BI Summary'!$A:$F,MATCH(J$1,'Data BI Summary'!$2:$2,0),FALSE),INDIRECT("'"&$E9&"'!"&"$A:$K"),8,FALSE) -> 16.08642241 | K9: =VLOOKUP(VLOOKUP($F9,'Data BI Summary'!$A:$F,MATCH(K$1,'Data BI Summary'!$2:$2,0),FALSE),INDIRECT("'"&$E9&"'!"&"$A:$K"),9,FALSE) -> 0.04587060239
B10: High | C10: =VLOOKUP(A$7,'Data Billing Quantities'!A:P,MATCH($B10&" kWh",'Data Billing Quantities'!$4:$4,0),FALSE) -> 7240 | E10: BI_WHSI_AUGe_High | F10: BI Template_EnergyWHSI | G10: =VLOOKUP(VLOOKUP($F10,'Data BI Summary'!$A:$F,MATCH(G$1,'Data BI Summary'!$2:$2,0),FALSE),INDIRECT("'"&$E10&"'!"&"$A:$K"),4,FALSE) -> 970.458884 | H10: =VLOOKUP(VLOOKUP($F10,'Data BI Summary'!$A:$F,MATCH(H$1,'Data BI Summary'!$2:$2,0),FALSE),INDIRECT("'"&$E10&"'!"&"$A:$K"),8,FALSE) -> 32.684 | I10: =VLOOKUP(VLOOKUP($F10,'Data BI Summary'!$A:$F,MATCH(I$1,'Data BI Summary'!$2:$2,0),FALSE),INDIRECT("'"&$E10&"'!"&"$A:$K"),9,FALSE) -> 0.2682886787 | J10: =VLOOKUP(VLOOKUP($F10,'Data BI Summary'!$A:$F,MATCH(J$1,'Data BI Summary'!$2:$2,0),FALSE),INDIRECT("'"&$E10&"'!"&"$A:$K"),8,FALSE) -> 54.83336512 | K10: =VLOOKUP(VLOOKUP($F10,'Data BI Summary'!$A:$F,MATCH(K$1,'Data BI Summary'!$2:$2,0),FALSE),INDIRECT("'"&$E10&"'!"&"$A:$K"),9,FALSE) -> 0.05650251239
A11: AUGd-WHSI | B11: Low | C11: =VLOOKUP(A$11,'Data Billing Quantities'!A:P,MATCH($B11&" kWh",'Data Billing Quantities'!$4:$4,0),FALSE) -> 9370 | D11: =VLOOKUP(A$11,'Data Billing Quantities'!A:P,MATCH(B11&" kW",'Data Billing Quantities'!$4:$4,0),FALSE) -> 50 | E11: BI_WHSI_AUGd_Low | F11: BI Template_DemandWHSI | G11: =VLOOKUP(VLOOKUP($F11,'Data BI Summary'!$A:$F,MATCH(G$1,'Data BI Summary'!$2:$2,0),FALSE),INDIRECT("'"&$E11&"'!"&"$A:$K"),4,FALSE) -> 1974.60245 | H11: =VLOOKUP(VLOOKUP($F11,'Data BI Summary'!$A:$F,MATCH(H$1,'Data BI Summary'!$2:$2,0),FALSE),INDIRECT("'"&$E11&"'!"&"$A:$K"),8,FALSE) -> 34.043711 | I11: =VLOOKUP(VLOOKUP($F11,'Data BI Summary'!$A:$F,MATCH(I$1,'Data BI Summary'!$2:$2,0),FALSE),INDIRECT("'"&$E11&"'!"&"$A:$K"),9,FALSE) -> 0.126848912 | J11: =VLOOKUP(VLOOKUP($F11,'Data BI Summary'!$A:$F,MATCH(J$1,'Data BI Summary'!$2:$2,0),FALSE),INDIRECT("'"&$E11&"'!"&"$A:$K"),8,FALSE) -> 32.97659078 | K11: =VLOOKUP(VLOOKUP($F11,'Data BI Summary'!$A:$F,MATCH(K$1,'Data BI Summary'!$2:$2,0),FALSE),INDIRECT("'"&$E11&"'!"&"$A:$K"),9,FALSE) -> 0.01670036963 | L11: WAHSP
B12: Average | C12: =VLOOKUP(A$11,'Data Billing Quantities'!A:P,MATCH($B12&" kWh",'Data Billing Quantities'!$4:$4,0),FALSE) -> 47636 | D12: =VLOOKUP(A$11,'Data Billing Quantities'!A:P,MATCH(B12&" kW",'Data Billing Quantities'!$4:$4,0),FALSE) -> 134 | E12: BI_WHSI_AUGd_Avg | F12: BI Template_DemandWHSI | G12: =VLOOKUP(VLOOKUP($F12,'Data BI Summary'!$A:$F,MATCH(G$1,'Data BI Summary'!$2:$2,0),FALSE),INDIRECT("'"&$E12&"'!"&"$A:$K"),4,FALSE) -> 8276.344436 | H12: =VLOOKUP(VLOOKUP($F12,'Data BI Summary'!$A:$F,MATCH(H$1,'Data BI Summary'!$2:$2,0),FALSE),INDIRECT("'"&$E12&"'!"&"$A:$K"),8,FALSE) -> 70.2962108 | I12: =VLOOKUP(VLOOKUP($F12,'Data BI Summary'!$A:$F,MATCH(I$1,'Data BI Summary'!$2:$2,0),FALSE),INDIRECT("'"&$E12&"'!"&"$A:$K"),9,FALSE) -> 0.1485584841 | J12: =VLOOKUP(VLOOKUP($F12,'Data BI Summary'!$A:$F,MATCH(J$1,'Data BI Summary'!$2:$2,0),FALSE),INDIRECT("'"&$E12&"'!"&"$A:$K"),8,FALSE) -> 33.11998401 | K12: =VLOOKUP(VLOOKUP($F12,'Data BI Summary'!$A:$F,MATCH(K$1,'Data BI Summary'!$2:$2,0),FALSE),INDIRECT("'"&$E12&"'!"&"$A:$K"),9,FALSE) -> 0.004001764821
B13: High | C13: =VLOOKUP(A$11,'Data Billing Quantities'!A:P,MATCH($B13&" kWh",'Data Billing Quantities'!$4:$4,0),FALSE) -> 137890 | D13: =VLOOKUP(A$11,'Data Billing Quantities'!A:P,MATCH(B13&" kW",'Data Billing Quantities'!$4:$4,0),FALSE) -> 340 | E13: BI_WHSI_AUGd_High | F13: BI Template_DemandWHSI | G13: =VLOOKUP(VLOOKUP($F13,'Data BI Summary'!$A:$F,MATCH(G$1,'Data BI Summary'!$2:$2,0),FALSE),INDIRECT("'"&$E13&"'!"&"$A:$K"),4,FALSE) -> 23210.73217 | H13: =VLOOKUP(VLOOKUP($F13,'Data BI Summary'!$A:$F,MATCH(H$1,'Data BI Summary'!$2:$2,0),FALSE),INDIRECT("'"&$E13&"'!"&"$A:$K"),8,FALSE) -> 162.537667 | I13: =VLOOKUP(VLOOKUP($F13,'Data BI Summary'!$A:$F,MATCH(I$1,'Data BI Summary'!$2:$2,0),FALSE),INDIRECT("'"&$E13&"'!"&"$A:$K"),9,FALSE) -> 0.1666270275 | J13: =VLOOKUP(VLOOKUP($F13,'Data BI Summary'!$A:$F,MATCH(J$1,'Data BI Summary'!$2:$2,0),FALSE),INDIRECT("'"&$E13&"'!"&"$A:$K"),8,FALSE) -> 42.27577346 | K13: =VLOOKUP(VLOOKUP($F13,'Data BI Summary'!$A:$F,MATCH(K$1,'Data BI Summary'!$2:$2,0),FALSE),INDIRECT("'"&$E13&"'!"&"$A:$K"),9,FALSE) -> 0.001821389051
A14: St Lgt-WHSI | B14: Average | C14: =VLOOKUP(A14,'Data Billing Quantities'!A:P,MATCH($B14&" kWh",'Data Billing Quantities'!$4:$4,0),FALSE) -> 37079 | D14: =VLOOKUP(A$14,'Data Billing Quantities'!A:P,MATCH(B14&" kW",'Data Billing Quantities'!$4:$4,0),FALSE) -> 104 | E14: BI_WHSI_StLgt_Avg | F14: BI Template_unmWHSI | G14: =VLOOKUP(VLOOKUP($F14,'Data BI Summary'!$A:$F,MATCH(G$1,'Data BI Summary'!$2:$2,0),FALSE),INDIRECT("'"&$E14&"'!"&"$A:$K"),4,FALSE) -> 8934.516503 | H14: =VLOOKUP(VLOOKUP($F14,'Data BI Summary'!$A:$F,MATCH(H$1,'Data BI Summary'!$2:$2,0),FALSE),INDIRECT("'"&$E14&"'!"&"$A:$K"),8,FALSE) -> 1228.3437 | I14: =VLOOKUP(VLOOKUP($F14,'Data BI Summary'!$A:$F,MATCH(I$1,'Data BI Summary'!$2:$2,0),FALSE),INDIRECT("'"&$E14&"'!"&"$A:$K"),9,FALSE) -> 0.424403424 | J14: =VLOOKUP(VLOOKUP($F14,'Data BI Summary'!$A:$F,MATCH(J$1,'Data BI Summary'!$2:$2,0),FALSE),INDIRECT("'"&$E14&"'!"&"$A:$K"),8,FALSE) -> 1662.522663 | K14: =VLOOKUP(VLOOKUP($F14,'Data BI Summary'!$A:$F,MATCH(K$1,'Data BI Summary'!$2:$2,0),FALSE),INDIRECT("'"&$E14&"'!"&"$A:$K"),9,FALSE) -> 0.1860786382 | L14: Two-tier RPP
A15: USL-WHSI | B15: Average | C15: =VLOOKUP(A15,'Data Billing Quantities'!A:P,MATCH($B15&" kWh",'Data Billing Quantities'!$4:$4,0),FALSE) -> 1349 | E15: BI_WHSI_USL_Avg | F15: BI Template_unmWHSI | G15: =VLOOKUP(VLOOKUP($F15,'Data BI Summary'!$A:$F,MATCH(G$1,'Data BI Summary'!$2:$2,0),FALSE),INDIRECT("'"&$E15&"'!"&"$A:$K"),4,FALSE) -> 182.6524442 | H15: =VLOOKUP(VLOOKUP($F15,'Data BI Summary'!$A:$F,MATCH(H$1,'Data BI Summary'!$2:$2,0),FALSE),INDIRECT("'"&$E15&"'!"&"$A:$K"),8,FALSE) -> 48.0446 | I15: =VLOOKUP(VLOOKUP($F15,'Data BI Summary'!$A:$F,MATCH(I$1,'Data BI Summary'!$2:$2,0),FALSE),INDIRECT("'"&$E15&"'!"&"$A:$K"),9,FALSE) -> 2.287554874 | J15: =VLOOKUP(VLOOKUP($F15,'Data BI Summary'!$A:$F,MATCH(J$1,'Data BI Summary'!$2:$2,0),FALSE),INDIRECT("'"&$E15&"'!"&"$A:$K"),8,FALSE) -> 52.98168401 | K15: =VLOOKUP(VLOOKUP($F15,'Data BI Summary'!$A:$F,MATCH(K$1,'Data BI Summary'!$2:$2,0),FALSE),INDIRECT("'"&$E15&"'!"&"$A:$K"),9,FALSE) -> 0.2900683001 | L15: Two-tier RPP
A16: ST-WHSI | B16: Average | C16: =VLOOKUP(A16,'Data Billing Quantities'!A:P,MATCH($B16&" kWh",'Data Billing Quantities'!$4:$4,0),FALSE) -> 895853 | D16: =VLOOKUP(A$16,'Data Billing Quantities'!A:P,MATCH(B16&" kW",'Data Billing Quantities'!$4:$4,0),FALSE) -> 3301 | E16: BI_WHSI_ST_Avg | F16: BI Template_DemandWHSI | G16: =VLOOKUP(VLOOKUP($F16,'Data BI Summary'!$A:$F,MATCH(G$1,'Data BI Summary'!$2:$2,0),FALSE),INDIRECT("'"&$E16&"'!"&"$A:$K"),4,FALSE) -> 159529.9162 | H16: =VLOOKUP(VLOOKUP($F16,'Data BI Summary'!$A:$F,MATCH(H$1,'Data BI Summary'!$2:$2,0),FALSE),INDIRECT("'"&$E16&"'!"&"$A:$K"),8,FALSE) -> -2947.903002 | I16: =VLOOKUP(VLOOKUP($F16,'Data BI Summary'!$A:$F,MATCH(I$1,'Data BI Summary'!$2:$2,0),FALSE),INDIRECT("'"&$E16&"'!"&"$A:$K"),9,FALSE) -> -0.3218266198 | J16: =VLOOKUP(VLOOKUP($F16,'Data BI Summary'!$A:$F,MATCH(J$1,'Data BI Summary'!$2:$2,0),FALSE),INDIRECT("'"&$E16&"'!"&"$A:$K"),8,FALSE) -> 7577.243437 | K16: =VLOOKUP(VLOOKUP($F16,'Data BI Summary'!$A:$F,MATCH(K$1,'Data BI Summary'!$2:$2,0),FALSE),INDIRECT("'"&$E16&"'!"&"$A:$K"),9,FALSE) -> 0.04749731974 | L16: WAHSP
A17: NPDI to HONI
A18: AR-NPDI | B18: Low | C18: =VLOOKUP(A$18,'Data Billing Quantities'!A:P,MATCH($B18&" kWh",'Data Billing Quantities'!$4:$4,0),FALSE) -> 290 | E18: BI_NPDI_AR_Low | F18: BI Template_EnergyNPDI | G18: =VLOOKUP(VLOOKUP($F18,'Data BI Summary'!$A:$F,MATCH(G$1,'Data BI Summary'!$2:$2,0),FALSE),INDIRECT("'"&$E18&"'!"&"$A:$K"),4,FALSE) -> 72.03820675 | H18: =VLOOKUP(VLOOKUP($F18,'Data BI Summary'!$A:$F,MATCH(H$1,'Data BI Summary'!$2:$2,0),FALSE),INDIRECT("'"&$E18&"'!"&"$A:$K"),8,FALSE) -> -1.741 | I18: =VLOOKUP(VLOOKUP($F18,'Data BI Summary'!$A:$F,MATCH(I$1,'Data BI Summary'!$2:$2,0),FALSE),INDIRECT("'"&$E18&"'!"&"$A:$K"),9,FALSE) -> -0.04419342556 | J18: =VLOOKUP(VLOOKUP($F18,'Data BI Summary'!$A:$F,MATCH(J$1,'Data BI Summary'!$2:$2,0),FALSE),INDIRECT("'"&$E18&"'!"&"$A:$K"),8,FALSE) -> 1.133820762 | K18: =VLOOKUP(VLOOKUP($F18,'Data BI Summary'!$A:$F,MATCH(K$1,'Data BI Summary'!$2:$2,0),FALSE),INDIRECT("'"&$E18&"'!"&"$A:$K"),9,FALSE) -> 0.01573915861 | L18: TOU
B19: Typical | C19: =VLOOKUP(A$18,'Data Billing Quantities'!A:P,MATCH($B19&" kWh",'Data Billing Quantities'!$4:$4,0),FALSE) -> 750 | E19: BI_NPDI_AR_Typical | F19: BI Template_EnergyNPDI | G19: =VLOOKUP(VLOOKUP($F19,'Data BI Summary'!$A:$F,MATCH(G$1,'Data BI Summary'!$2:$2,0),FALSE),INDIRECT("'"&$E19&"'!"&"$A:$K"),4,FALSE) -> 126.9292561 | H19: =VLOOKUP(VLOOKUP($F19,'Data BI Summary'!$A:$F,MATCH(H$1,'Data BI Summary'!$2:$2,0),FALSE),INDIRECT("'"&$E19&"'!"&"$A:$K"),8,FALSE) -> -2.615 | I19: =VLOOKUP(VLOOKUP($F19,'Data BI Summary'!$A:$F,MATCH(I$1,'Data BI Summary'!$2:$2,0),FALSE),INDIRECT("'"&$E19&"'!"&"$A:$K"),9,FALSE) -> -0.06523637271 | J19: =VLOOKUP(VLOOKUP($F19,'Data BI Summary'!$A:$F,MATCH(J$1,'Data BI Summary'!$2:$2,0),FALSE),INDIRECT("'"&$E19&"'!"&"$A:$K"),8,FALSE) -> 4.708513694 | K19: =VLOOKUP(VLOOKUP($F19,'Data BI Summary'!$A:$F,MATCH(K$1,'Data BI Summary'!$2:$2,0),FALSE),INDIRECT("'"&$E19&"'!"&"$A:$K"),9,FALSE) -> 0.03709557465
B20: Average | C20: =VLOOKUP(A$18,'Data Billing Quantities'!A:P,MATCH($B20&" kWh",'Data Billing Quantities'!$4:$4,0),FALSE) -> 692 | E20: BI_NPDI_AR_Avg | F20: BI Template_EnergyNPDI | G20: =VLOOKUP(VLOOKUP($F20,'Data BI Summary'!$A:$F,MATCH(G$1,'Data BI Summary'!$2:$2,0),FALSE),INDIRECT("'"&$E20&"'!"&"$A:$K"),4,FALSE) -> 120.0082107 | H20: =VLOOKUP(VLOOKUP($F20,'Data BI Summary'!$A:$F,MATCH(H$1,'Data BI Summary'!$2:$2,0),FALSE),INDIRECT("'"&$E20&"'!"&"$A:$K"),8,FALSE) -> -2.5048 | I20: =VLOOKUP(VLOOKUP($F20,'Data BI Summary'!$A:$F,MATCH(I$1,'Data BI Summary'!$2:$2,0),FALSE),INDIRECT("'"&$E20&"'!"&"$A:$K"),9,FALSE) -> -0.06262313116 | J20: =VLOOKUP(VLOOKUP($F20,'Data BI Summary'!$A:$F,MATCH(J$1,'Data BI Summary'!$2:$2,0),FALSE),INDIRECT("'"&$E20&"'!"&"$A:$K"),8,FALSE) -> 4.257791542 | K20: =VLOOKUP(VLOOKUP($F20,'Data BI Summary'!$A:$F,MATCH(K$1,'Data BI Summary'!$2:$2,0),FALSE),INDIRECT("'"&$E20&"'!"&"$A:$K"),9,FALSE) -> 0.0354791686
B21: High | C21: =VLOOKUP(A$18,'Data Billing Quantities'!A:P,MATCH($B21&" kWh",'Data Billing Quantities'!$4:$4,0),FALSE) -> 1230 | E21: BI_NPDI_AR_High | F21: BI Template_EnergyNPDI | G21: =VLOOKUP(VLOOKUP($F21,'Data BI Summary'!$A:$F,MATCH(G$1,'Data BI Summary'!$2:$2,0),FALSE),INDIRECT("'"&$E21&"'!"&"$A:$K"),4,FALSE) -> 184.2068727 | H21: =VLOOKUP(VLOOKUP($F21,'Data BI Summary'!$A:$F,MATCH(H$1,'Data BI Summary'!$2:$2,0),FALSE),INDIRECT("'"&$E21&"'!"&"$A:$K"),8,FALSE) -> -3.527 | I21: =VLOOKUP(VLOOKUP($F21,'Data BI Summary'!$A:$F,MATCH(I$1,'Data BI Summary'!$2:$2,0),FALSE),INDIRECT("'"&$E21&"'!"&"$A:$K"),9,FALSE) -> -0.08643548585 | J21: =VLOOKUP(VLOOKUP($F21,'Data BI Summary'!$A:$F,MATCH(J$1,'Data BI Summary'!$2:$2,0),FALSE),INDIRECT("'"&$E21&"'!"&"$A:$K"),8,FALSE) -> 8.438628058 | K21: =VLOOKUP(VLOOKUP($F21,'Data BI Summary'!$A:$F,MATCH(K$1,'Data BI Summary'!$2:$2,0),FALSE),INDIRECT("'"&$E21&"'!"&"$A:$K"),9,FALSE) -> 0.04581060376
A22: AGSe-NPDI | B22: Low | C22: =VLOOKUP(A$22,'Data Billing Quantities'!A:P,MATCH($B22&" kWh",'Data Billing Quantities'!$4:$4,0),FALSE) -> 110 | E22: BI_NPDI_AGSe_Low | F22: BI Template_EnergyNPDI | G22: =VLOOKUP(VLOOKUP($F22,'Data BI Summary'!$A:$F,MATCH(G$1,'Data BI Summary'!$2:$2,0),FALSE),INDIRECT("'"&$E22&"'!"&"$A:$K"),4,FALSE) -> 66.22727293 | H22: =VLOOKUP(VLOOKUP($F22,'Data BI Summary'!$A:$F,MATCH(H$1,'Data BI Summary'!$2:$2,0),FALSE),INDIRECT("'"&$E22&"'!"&"$A:$K"),8,FALSE) -> -13.183 | I22: =VLOOKUP(VLOOKUP($F22,'Data BI Summary'!$A:$F,MATCH(I$1,'Data BI Summary'!$2:$2,0),FALSE),INDIRECT("'"&$E22&"'!"&"$A:$K"),9,FALSE) -> -0.2357685773 | J22: =VLOOKUP(VLOOKUP($F22,'Data BI Summary'!$A:$F,MATCH(J$1,'Data BI Summary'!$2:$2,0),FALSE),INDIRECT("'"&$E22&"'!"&"$A:$K"),8,FALSE) -> -11.65202366 | K22: =VLOOKUP(VLOOKUP($F22,'Data BI Summary'!$A:$F,MATCH(K$1,'Data BI Summary'!$2:$2,0),FALSE),INDIRECT("'"&$E22&"'!"&"$A:$K"),9,FALSE) -> -0.1759399587 | L22: TOU
B23: Typical | C23: =VLOOKUP(A$22,'Data Billing Quantities'!A:P,MATCH($B23&" kWh",'Data Billing Quantities'!$4:$4,0),FALSE) -> 2000 | E23: BI_NPDI_AGSe_Typical | F23: BI Template_EnergyNPDI | G23: =VLOOKUP(VLOOKUP($F23,'Data BI Summary'!$A:$F,MATCH(G$1,'Data BI Summary'!$2:$2,0),FALSE),INDIRECT("'"&$E23&"'!"&"$A:$K"),4,FALSE) -> 332.1870924 | H23: =VLOOKUP(VLOOKUP($F23,'Data BI Summary'!$A:$F,MATCH(H$1,'Data BI Summary'!$2:$2,0),FALSE),INDIRECT("'"&$E23&"'!"&"$A:$K"),8,FALSE) -> -13.75 | I23: =VLOOKUP(VLOOKUP($F23,'Data BI Summary'!$A:$F,MATCH(I$1,'Data BI Summary'!$2:$2,0),FALSE),INDIRECT("'"&$E23&"'!"&"$A:$K"),9,FALSE) -> -0.1320718471 | J23: =VLOOKUP(VLOOKUP($F23,'Data BI Summary'!$A:$F,MATCH(J$1,'Data BI Summary'!$2:$2,0),FALSE),INDIRECT("'"&$E23&"'!"&"$A:$K"),8,FALSE) -> 0.755419744 | K23: =VLOOKUP(VLOOKUP($F23,'Data BI Summary'!$A:$F,MATCH(K$1,'Data BI Summary'!$2:$2,0),FALSE),INDIRECT("'"&$E23&"'!"&"$A:$K"),9,FALSE) -> 0.00227407916
B24: Average | C24: =VLOOKUP(A$22,'Data Billing Quantities'!A:P,MATCH($B24&" kWh",'Data Billing Quantities'!$4:$4,0),FALSE) -> 2377 | E24: BI_NPDI_AGSe_Avg | F24: BI Template_EnergyNPDI | G24: =VLOOKUP(VLOOKUP($F24,'Data BI Summary'!$A:$F,MATCH(G$1,'Data BI Summary'!$2:$2,0),FALSE),INDIRECT("'"&$E24&"'!"&"$A:$K"),4,FALSE) -> 385.2383368 | H24: =VLOOKUP(VLOOKUP($F24,'Data BI Summary'!$A:$F,MATCH(H$1,'Data BI Summary'!$2:$2,0),FALSE),INDIRECT("'"&$E24&"'!"&"$A:$K"),8,FALSE) -> -13.8631 | I24: =VLOOKUP(VLOOKUP($F24,'Data BI Summary'!$A:$F,MATCH(I$1,'Data BI Summary'!$2:$2,0),FALSE),INDIRECT("'"&$E24&"'!"&"$A:$K"),9,FALSE) -> -0.1219018057 | J24: =VLOOKUP(VLOOKUP($F24,'Data BI Summary'!$A:$F,MATCH(J$1,'Data BI Summary'!$2:$2,0),FALSE),INDIRECT("'"&$E24&"'!"&"$A:$K"),8,FALSE) -> 3.230343641 | K24: =VLOOKUP(VLOOKUP($F24,'Data BI Summary'!$A:$F,MATCH(K$1,'Data BI Summary'!$2:$2,0),FALSE),INDIRECT("'"&$E24&"'!"&"$A:$K"),9,FALSE) -> 0.008385311979
B25: High | C25: =VLOOKUP(A$22,'Data Billing Quantities'!A:P,MATCH($B25&" kWh",'Data Billing Quantities'!$4:$4,0),FALSE) -> 6410 | E25: BI_NPDI_AGSe_High | F25: BI Template_EnergyNPDI | G25: =VLOOKUP(VLOOKUP($F25,'Data BI Summary'!$A:$F,MATCH(G$1,'Data BI Summary'!$2:$2,0),FALSE),INDIRECT("'"&$E25&"'!"&"$A:$K"),4,FALSE) -> 952.7600045 | H25: =VLOOKUP(VLOOKUP($F25,'Data BI Summary'!$A:$F,MATCH(H$1,'Data BI Summary'!$2:$2,0),FALSE),INDIRECT("'"&$E25&"'!"&"$A:$K"),8,FALSE) -> -15.073 | I25: =VLOOKUP(VLOOKUP($F25,'Data BI Summary'!$A:$F,MATCH(I$1,'Data BI Summary'!$2:$2,0),FALSE),INDIRECT("'"&$E25&"'!"&"$A:$K"),9,FALSE) -> -0.06960035093 | J25: =VLOOKUP(VLOOKUP($F25,'Data BI Summary'!$A:$F,MATCH(J$1,'Data BI Summary'!$2:$2,0),FALSE),INDIRECT("'"&$E25&"'!"&"$A:$K"),8,FALSE) -> 29.70612103 | K25: =VLOOKUP(VLOOKUP($F25,'Data BI Summary'!$A:$F,MATCH(K$1,'Data BI Summary'!$2:$2,0),FALSE),INDIRECT("'"&$E25&"'!"&"$A:$K"),9,FALSE) -> 0.03117901768
A26: AGSd-NPDI | B26: Low | C26: =VLOOKUP(A$26,'Data Billing Quantities'!A:P,MATCH($B26&" kWh",'Data Billing Quantities'!$4:$4,0),FALSE) -> 13020 | D26: =VLOOKUP(A$26,'Data Billing Quantities'!A:P,MATCH(B26&" kW",'Data Billing Quantities'!$4:$4,0),FALSE) -> 55 | E26: BI_NPDI_AGSd_Low | F26: BI Template_DemandNPDI | G26: =VLOOKUP(VLOOKUP($F26,'Data BI Summary'!$A:$F,MATCH(G$1,'Data BI Summary'!$2:$2,0),FALSE),INDIRECT("'"&$E26&"'!"&"$A:$K"),4,FALSE) -> 2739.219249 | H26: =VLOOKUP(VLOOKUP($F26,'Data BI Summary'!$A:$F,MATCH(H$1,'Data BI Summary'!$2:$2,0),FALSE),INDIRECT("'"&$E26&"'!"&"$A:$K"),8,FALSE) -> -110.580554 | I26: =VLOOKUP(VLOOKUP($F26,'Data BI Summary'!$A:$F,MATCH(I$1,'Data BI Summary'!$2:$2,0),FALSE),INDIRECT("'"&$E26&"'!"&"$A:$K"),9,FALSE) -> -0.2106563098 | J26: =VLOOKUP(VLOOKUP($F26,'Data BI Summary'!$A:$F,MATCH(J$1,'Data BI Summary'!$2:$2,0),FALSE),INDIRECT("'"&$E26&"'!"&"$A:$K"),8,FALSE) -> -53.14052266 | K26: =VLOOKUP(VLOOKUP($F26,'Data BI Summary'!$A:$F,MATCH(K$1,'Data BI Summary'!$2:$2,0),FALSE),INDIRECT("'"&$E26&"'!"&"$A:$K"),9,FALSE) -> -0.01939987924 | L26: WAHSP
B27: Average | C27: =VLOOKUP(A$26,'Data Billing Quantities'!A:P,MATCH($B27&" kWh",'Data Billing Quantities'!$4:$4,0),FALSE) -> 70294 | D27: =VLOOKUP(A$26,'Data Billing Quantities'!A:P,MATCH(B27&" kW",'Data Billing Quantities'!$4:$4,0),FALSE) -> 181 | E27: BI_NPDI_AGSd_Avg | F27: BI Template_DemandNPDI | G27: =VLOOKUP(VLOOKUP($F27,'Data BI Summary'!$A:$F,MATCH(G$1,'Data BI Summary'!$2:$2,0),FALSE),INDIRECT("'"&$E27&"'!"&"$A:$K"),4,FALSE) -> 12326.87603 | H27: =VLOOKUP(VLOOKUP($F27,'Data BI Summary'!$A:$F,MATCH(H$1,'Data BI Summary'!$2:$2,0),FALSE),INDIRECT("'"&$E27&"'!"&"$A:$K"),8,FALSE) -> -182.1589238 | I27: =VLOOKUP(VLOOKUP($F27,'Data BI Summary'!$A:$F,MATCH(I$1,'Data BI Summary'!$2:$2,0),FALSE),INDIRECT("'"&$E27&"'!"&"$A:$K"),9,FALSE) -> -0.1612460097 | J27: =VLOOKUP(VLOOKUP($F27,'Data BI Summary'!$A:$F,MATCH(J$1,'Data BI Summary'!$2:$2,0),FALSE),INDIRECT("'"&$E27&"'!"&"$A:$K"),8,FALSE) -> 55.65572204 | K27: =VLOOKUP(VLOOKUP($F27,'Data BI Summary'!$A:$F,MATCH(K$1,'Data BI Summary'!$2:$2,0),FALSE),INDIRECT("'"&$E27&"'!"&"$A:$K"),9,FALSE) -> 0.004514990001
B28: High | C28: =VLOOKUP(A$26,'Data Billing Quantities'!A:P,MATCH($B28&" kWh",'Data Billing Quantities'!$4:$4,0),FALSE) -> 129420 | D28: =VLOOKUP(A$26,'Data Billing Quantities'!A:P,MATCH(B28&" kW",'Data Billing Quantities'!$4:$4,0),FALSE) -> 300 | E28: BI_NPDI_AGSd_High | F28: BI Template_DemandNPDI | G28: =VLOOKUP(VLOOKUP($F28,'Data BI Summary'!$A:$F,MATCH(G$1,'Data BI Summary'!$2:$2,0),FALSE),INDIRECT("'"&$E28&"'!"&"$A:$K"),4,FALSE) -> 22113.41445 | H28: =VLOOKUP(VLOOKUP($F28,'Data BI Summary'!$A:$F,MATCH(H$1,'Data BI Summary'!$2:$2,0),FALSE),INDIRECT("'"&$E28&"'!"&"$A:$K"),8,FALSE) -> -254.531334 | I28: =VLOOKUP(VLOOKUP($F28,'Data BI Summary'!$A:$F,MATCH(I$1,'Data BI Summary'!$2:$2,0),FALSE),INDIRECT("'"&$E28&"'!"&"$A:$K"),9,FALSE) -> -0.1496486095 | J28: =VLOOKUP(VLOOKUP($F28,'Data BI Summary'!$A:$F,MATCH(J$1,'Data BI Summary'!$2:$2,0),FALSE),INDIRECT("'"&$E28&"'!"&"$A:$K"),8,FALSE) -> 157.6309374 | K28: =VLOOKUP(VLOOKUP($F28,'Data BI Summary'!$A:$F,MATCH(K$1,'Data BI Summary'!$2:$2,0),FALSE),INDIRECT("'"&$E28&"'!"&"$A:$K"),9,FALSE) -> 0.00712829481
A29: St Lgt-NPDI | B29: Average | C29: =VLOOKUP(A$29,'Data Billing Quantities'!A:P,MATCH($B29&" kWh",'Data Billing Quantities'!$4:$4,0),FALSE) -> 11389 | D29: =VLOOKUP(A$29,'Data Billing Quantities'!A:P,MATCH(B29&" kW",'Data Billing Quantities'!$4:$4,0),FALSE) -> 39 | E29: BI_NPDI_StLgt_Avg | F29: BI Template_unmNPDI | G29: =VLOOKUP(VLOOKUP($F29,'Data BI Summary'!$A:$F,MATCH(G$1,'Data BI Summary'!$2:$2,0),FALSE),INDIRECT("'"&$E29&"'!"&"$A:$K"),4,FALSE) -> 2393.695454 | H29: =VLOOKUP(VLOOKUP($F29,'Data BI Summary'!$A:$F,MATCH(H$1,'Data BI Summary'!$2:$2,0),FALSE),INDIRECT("'"&$E29&"'!"&"$A:$K"),8,FALSE) -> 260.3746 | I29: =VLOOKUP(VLOOKUP($F29,'Data BI Summary'!$A:$F,MATCH(I$1,'Data BI Summary'!$2:$2,0),FALSE),INDIRECT("'"&$E29&"'!"&"$A:$K"),9,FALSE) -> 0.2591626002 | J29: =VLOOKUP(VLOOKUP($F29,'Data BI Summary'!$A:$F,MATCH(J$1,'Data BI Summary'!$2:$2,0),FALSE),INDIRECT("'"&$E29&"'!"&"$A:$K"),8,FALSE) -> 307.5178029 | K29: =VLOOKUP(VLOOKUP($F29,'Data BI Summary'!$A:$F,MATCH(K$1,'Data BI Summary'!$2:$2,0),FALSE),INDIRECT("'"&$E29&"'!"&"$A:$K"),9,FALSE) -> 0.1284698947 | L29: Two-tier RPP
A30: Sen Lgt-NPDI | B30: Average | C30: =VLOOKUP(A$30,'Data Billing Quantities'!A:P,MATCH($B30&" kWh",'Data Billing Quantities'!$4:$4,0),FALSE) -> 108 | D30: =VLOOKUP(A$30,'Data Billing Quantities'!A:P,MATCH(B30&" kW",'Data Billing Quantities'!$4:$4,0),FALSE) -> 0.3368027211 | E30: BI_NPDI_SenLgt_Avg | F30: BI Template_unmNPDI | G30: =VLOOKUP(VLOOKUP($F30,'Data BI Summary'!$A:$F,MATCH(G$1,'Data BI Summary'!$2:$2,0),FALSE),INDIRECT("'"&$E30&"'!"&"$A:$K"),4,FALSE) -> 25.32646522 | H30: =VLOOKUP(VLOOKUP($F30,'Data BI Summary'!$A:$F,MATCH(H$1,'Data BI Summary'!$2:$2,0),FALSE),INDIRECT("'"&$E30&"'!"&"$A:$K"),8,FALSE) -> 7.495627667 | I30: =VLOOKUP(VLOOKUP($F30,'Data BI Summary'!$A:$F,MATCH(I$1,'Data BI Summary'!$2:$2,0),FALSE),INDIRECT("'"&$E30&"'!"&"$A:$K"),9,FALSE) -> 0.5360922971 | J30: =VLOOKUP(VLOOKUP($F30,'Data BI Summary'!$A:$F,MATCH(J$1,'Data BI Summary'!$2:$2,0),FALSE),INDIRECT("'"&$E30&"'!"&"$A:$K"),8,FALSE) -> 7.681890623 | K30: =VLOOKUP(VLOOKUP($F30,'Data BI Summary'!$A:$F,MATCH(K$1,'Data BI Summary'!$2:$2,0),FALSE),INDIRECT("'"&$E30&"'!"&"$A:$K"),9,FALSE) -> 0.3033147562 | L30: Two-tier RPP
A31: USL-NPDI | B31: Average | C31: =VLOOKUP(A$31,'Data Billing Quantities'!A:P,MATCH($B31&" kWh",'Data Billing Quantities'!$4:$4,0),FALSE) -> 904 | E31: BI_NPDI_USL_Avg | F31: BI Template_unmNPDI | G31: =VLOOKUP(VLOOKUP($F31,'Data BI Summary'!$A:$F,MATCH(G$1,'Data BI Summary'!$2:$2,0),FALSE),INDIRECT("'"&$E31&"'!"&"$A:$K"),4,FALSE) -> 128.3372898 | H31: =VLOOKUP(VLOOKUP($F31,'Data BI Summary'!$A:$F,MATCH(H$1,'Data BI Summary'!$2:$2,0),FALSE),INDIRECT("'"&$E31&"'!"&"$A:$K"),8,FALSE) -> 32.3064 | I31: =VLOOKUP(VLOOKUP($F31,'Data BI Summary'!$A:$F,MATCH(I$1,'Data BI Summary'!$2:$2,0),FALSE),INDIRECT("'"&$E31&"'!"&"$A:$K"),9,FALSE) -> 1.257508524 | J31: =VLOOKUP(VLOOKUP($F31,'Data BI Summary'!$A:$F,MATCH(J$1,'Data BI Summary'!$2:$2,0),FALSE),INDIRECT("'"&$E31&"'!"&"$A:$K"),8,FALSE) -> 36.72211698 | K31: =VLOOKUP(VLOOKUP($F31,'Data BI Summary'!$A:$F,MATCH(K$1,'Data BI Summary'!$2:$2,0),FALSE),INDIRECT("'"&$E31&"'!"&"$A:$K"),9,FALSE) -> 0.2861375446 | L31: Two-tier RPP
A32: HCHI to HONI
A33: AR-HCHI | B33: Low | C33: =VLOOKUP(A$33,'Data Billing Quantities'!A:P,MATCH($B33&" kWh",'Data Billing Quantities'!$4:$4,0),FALSE) -> 250 | E33: BI_HCHI_AR_Low | F33: BI Template_EnergyHCHI | G33: =VLOOKUP(VLOOKUP($F33,'Data BI Summary'!$A:$F,MATCH(G$1,'Data BI Summary'!$2:$2,0),FALSE),INDIRECT("'"&$E33&"'!"&"$A:$K"),4,FALSE) -> 65.47030084 | H33: =VLOOKUP(VLOOKUP($F33,'Data BI Summary'!$A:$F,MATCH(H$1,'Data BI Summary'!$2:$2,0),FALSE),INDIRECT("'"&$E33&"'!"&"$A:$K"),8,FALSE) -> 0.935 | I33: =VLOOKUP(VLOOKUP($F33,'Data BI Summary'!$A:$F,MATCH(I$1,'Data BI Summary'!$2:$2,0),FALSE),INDIRECT("'"&$E33&"'!"&"$A:$K"),9,FALSE) -> 0.02547336875 | J33: =VLOOKUP(VLOOKUP($F33,'Data BI Summary'!$A:$F,MATCH(J$1,'Data BI Summary'!$2:$2,0),FALSE),INDIRECT("'"&$E33&"'!"&"$A:$K"),8,FALSE) -> 2.58951908 | K33: =VLOOKUP(VLOOKUP($F33,'Data BI Summary'!$A:$F,MATCH(K$1,'Data BI Summary'!$2:$2,0),FALSE),INDIRECT("'"&$E33&"'!"&"$A:$K"),9,FALSE) -> 0.03955257646 | L33: TOU
B34: Typical | C34: =VLOOKUP(A$33,'Data Billing Quantities'!A:P,MATCH($B34&" kWh",'Data Billing Quantities'!$4:$4,0),FALSE) -> 750 | E34: BI_HCHI_AR_Typical | F34: BI Template_EnergyHCHI | G34: =VLOOKUP(VLOOKUP($F34,'Data BI Summary'!$A:$F,MATCH(G$1,'Data BI Summary'!$2:$2,0),FALSE),INDIRECT("'"&$E34&"'!"&"$A:$K"),4,FALSE) -> 126.2123025 | H34: =VLOOKUP(VLOOKUP($F34,'Data BI Summary'!$A:$F,MATCH(H$1,'Data BI Summary'!$2:$2,0),FALSE),INDIRECT("'"&$E34&"'!"&"$A:$K"),8,FALSE) -> 0.285 | I34: =VLOOKUP(VLOOKUP($F34,'Data BI Summary'!$A:$F,MATCH(I$1,'Data BI Summary'!$2:$2,0),FALSE),INDIRECT("'"&$E34&"'!"&"$A:$K"),9,FALSE) -> 0.007670569237 | J34: =VLOOKUP(VLOOKUP($F34,'Data BI Summary'!$A:$F,MATCH(J$1,'Data BI Summary'!$2:$2,0),FALSE),INDIRECT("'"&$E34&"'!"&"$A:$K"),8,FALSE) -> 5.39723724 | K34: =VLOOKUP(VLOOKUP($F34,'Data BI Summary'!$A:$F,MATCH(K$1,'Data BI Summary'!$2:$2,0),FALSE),INDIRECT("'"&$E34&"'!"&"$A:$K"),9,FALSE) -> 0.0427631628
B35: Average | C35: =VLOOKUP(A$33,'Data Billing Quantities'!A:P,MATCH($B35&" kWh",'Data Billing Quantities'!$4:$4,0),FALSE) -> 742 | E35: BI_HCHI_AR_Avg | F35: BI Template_EnergyHCHI | G35: =VLOOKUP(VLOOKUP($F35,'Data BI Summary'!$A:$F,MATCH(G$1,'Data BI Summary'!$2:$2,0),FALSE),INDIRECT("'"&$E35&"'!"&"$A:$K"),4,FALSE) -> 125.2404305 | H35: =VLOOKUP(VLOOKUP($F35,'Data BI Summary'!$A:$F,MATCH(H$1,'Data BI Summary'!$2:$2,0),FALSE),INDIRECT("'"&$E35&"'!"&"$A:$K"),8,FALSE) -> 0.2954 | I35: =VLOOKUP(VLOOKUP($F35,'Data BI Summary'!$A:$F,MATCH(I$1,'Data BI Summary'!$2:$2,0),FALSE),INDIRECT("'"&$E35&"'!"&"$A:$K"),9,FALSE) -> 0.007952018693 | J35: =VLOOKUP(VLOOKUP($F35,'Data BI Summary'!$A:$F,MATCH(J$1,'Data BI Summary'!$2:$2,0),FALSE),INDIRECT("'"&$E35&"'!"&"$A:$K"),8,FALSE) -> 5.352313749 | K35: =VLOOKUP(VLOOKUP($F35,'Data BI Summary'!$A:$F,MATCH(K$1,'Data BI Summary'!$2:$2,0),FALSE),INDIRECT("'"&$E35&"'!"&"$A:$K"),9,FALSE) -> 0.0427363091
B36: High | C36: =VLOOKUP(A$33,'Data Billing Quantities'!A:P,MATCH($B36&" kWh",'Data Billing Quantities'!$4:$4,0),FALSE) -> 1410 | E36: BI_HCHI_AR_High | F36: BI Template_EnergyHCHI | G36: =VLOOKUP(VLOOKUP($F36,'Data BI Summary'!$A:$F,MATCH(G$1,'Data BI Summary'!$2:$2,0),FALSE),INDIRECT("'"&$E36&"'!"&"$A:$K"),4,FALSE) -> 206.3917447 | H36: =VLOOKUP(VLOOKUP($F36,'Data BI Summary'!$A:$F,MATCH(H$1,'Data BI Summary'!$2:$2,0),FALSE),INDIRECT("'"&$E36&"'!"&"$A:$K"),8,FALSE) -> -0.573 | I36: =VLOOKUP(VLOOKUP($F36,'Data BI Summary'!$A:$F,MATCH(I$1,'Data BI Summary'!$2:$2,0),FALSE),INDIRECT("'"&$E36&"'!"&"$A:$K"),9,FALSE) -> -0.01517921005 | J36: =VLOOKUP(VLOOKUP($F36,'Data BI Summary'!$A:$F,MATCH(J$1,'Data BI Summary'!$2:$2,0),FALSE),INDIRECT("'"&$E36&"'!"&"$A:$K"),8,FALSE) -> 9.103425211 | K36: =VLOOKUP(VLOOKUP($F36,'Data BI Summary'!$A:$F,MATCH(K$1,'Data BI Summary'!$2:$2,0),FALSE),INDIRECT("'"&$E36&"'!"&"$A:$K"),9,FALSE) -> 0.04410750644
A37: AGSe-HCHI | B37: Low | C37: =VLOOKUP(A$37,'Data Billing Quantities'!A:P,MATCH($B37&" kWh",'Data Billing Quantities'!$4:$4,0),FALSE) -> 90 | E37: BI_HCHI_AGSe_Low | F37: BI Template_EnergyHCHI | G37: =VLOOKUP(VLOOKUP($F37,'Data BI Summary'!$A:$F,MATCH(G$1,'Data BI Summary'!$2:$2,0),FALSE),INDIRECT("'"&$E37&"'!"&"$A:$K"),4,FALSE) -> 39.72543611 | H37: =VLOOKUP(VLOOKUP($F37,'Data BI Summary'!$A:$F,MATCH(H$1,'Data BI Summary'!$2:$2,0),FALSE),INDIRECT("'"&$E37&"'!"&"$A:$K"),8,FALSE) -> 11.536 | I37: =VLOOKUP(VLOOKUP($F37,'Data BI Summary'!$A:$F,MATCH(I$1,'Data BI Summary'!$2:$2,0),FALSE),INDIRECT("'"&$E37&"'!"&"$A:$K"),9,FALSE) -> 0.3851238566 | J37: =VLOOKUP(VLOOKUP($F37,'Data BI Summary'!$A:$F,MATCH(J$1,'Data BI Summary'!$2:$2,0),FALSE),INDIRECT("'"&$E37&"'!"&"$A:$K"),8,FALSE) -> 11.20966984 | K37: =VLOOKUP(VLOOKUP($F37,'Data BI Summary'!$A:$F,MATCH(K$1,'Data BI Summary'!$2:$2,0),FALSE),INDIRECT("'"&$E37&"'!"&"$A:$K"),9,FALSE) -> 0.2821786477 | L37: TOU
B38: Typical | C38: =VLOOKUP(A$37,'Data Billing Quantities'!A:P,MATCH($B38&" kWh",'Data Billing Quantities'!$4:$4,0),FALSE) -> 2000 | E38: BI_HCHI_AGSe_Typical | F38: BI Template_EnergyHCHI | G38: =VLOOKUP(VLOOKUP($F38,'Data BI Summary'!$A:$F,MATCH(G$1,'Data BI Summary'!$2:$2,0),FALSE),INDIRECT("'"&$E38&"'!"&"$A:$K"),4,FALSE) -> 303.4545457 | H38: =VLOOKUP(VLOOKUP($F38,'Data BI Summary'!$A:$F,MATCH(H$1,'Data BI Summary'!$2:$2,0),FALSE),INDIRECT("'"&$E38&"'!"&"$A:$K"),8,FALSE) -> 6.57 | I38: =VLOOKUP(VLOOKUP($F38,'Data BI Summary'!$A:$F,MATCH(I$1,'Data BI Summary'!$2:$2,0),FALSE),INDIRECT("'"&$E38&"'!"&"$A:$K"),9,FALSE) -> 0.09749220953 | J38: =VLOOKUP(VLOOKUP($F38,'Data BI Summary'!$A:$F,MATCH(J$1,'Data BI Summary'!$2:$2,0),FALSE),INDIRECT("'"&$E38&"'!"&"$A:$K"),8,FALSE) -> 14.05556644 | K38: =VLOOKUP(VLOOKUP($F38,'Data BI Summary'!$A:$F,MATCH(K$1,'Data BI Summary'!$2:$2,0),FALSE),INDIRECT("'"&$E38&"'!"&"$A:$K"),9,FALSE) -> 0.04631852328
B39: Average | C39: =VLOOKUP(A$37,'Data Billing Quantities'!A:P,MATCH($B39&" kWh",'Data Billing Quantities'!$4:$4,0),FALSE) -> 2261 | E39: BI_HCHI_AGSe_Avg | F39: BI Template_EnergyHCHI | G39: =VLOOKUP(VLOOKUP($F39,'Data BI Summary'!$A:$F,MATCH(G$1,'Data BI Summary'!$2:$2,0),FALSE),INDIRECT("'"&$E39&"'!"&"$A:$K"),4,FALSE) -> 339.4929214 | H39: =VLOOKUP(VLOOKUP($F39,'Data BI Summary'!$A:$F,MATCH(H$1,'Data BI Summary'!$2:$2,0),FALSE),INDIRECT("'"&$E39&"'!"&"$A:$K"),8,FALSE) -> 5.8914 | I39: =VLOOKUP(VLOOKUP($F39,'Data BI Summary'!$A:$F,MATCH(I$1,'Data BI Summary'!$2:$2,0),FALSE),INDIRECT("'"&$E39&"'!"&"$A:$K"),9,FALSE) -> 0.08125441345 | J39: =VLOOKUP(VLOOKUP($F39,'Data BI Summary'!$A:$F,MATCH(J$1,'Data BI Summary'!$2:$2,0),FALSE),INDIRECT("'"&$E39&"'!"&"$A:$K"),8,FALSE) -> 14.44445598 | K39: =VLOOKUP(VLOOKUP($F39,'Data BI Summary'!$A:$F,MATCH(K$1,'Data BI Summary'!$2:$2,0),FALSE),INDIRECT("'"&$E39&"'!"&"$A:$K"),9,FALSE) -> 0.04254714919
B40: High | C40: =VLOOKUP(A$37,'Data Billing Quantities'!A:P,MATCH($B40&" kWh",'Data Billing Quantities'!$4:$4,0),FALSE) -> 5430 | E40: BI_HCHI_AGSe_High | F40: BI Template_EnergyHCHI | G40: =VLOOKUP(VLOOKUP($F40,'Data BI Summary'!$A:$F,MATCH(G$1,'Data BI Summary'!$2:$2,0),FALSE),INDIRECT("'"&$E40&"'!"&"$A:$K"),4,FALSE) -> 777.0623185 | H40: =VLOOKUP(VLOOKUP($F40,'Data BI Summary'!$A:$F,MATCH(H$1,'Data BI Summary'!$2:$2,0),FALSE),INDIRECT("'"&$E40&"'!"&"$A:$K"),8,FALSE) -> -2.348 | I40: =VLOOKUP(VLOOKUP($F40,'Data BI Summary'!$A:$F,MATCH(I$1,'Data BI Summary'!$2:$2,0),FALSE),INDIRECT("'"&$E40&"'!"&"$A:$K"),9,FALSE) -> -0.01744194684 | J40: =VLOOKUP(VLOOKUP($F40,'Data BI Summary'!$A:$F,MATCH(J$1,'Data BI Summary'!$2:$2,0),FALSE),INDIRECT("'"&$E40&"'!"&"$A:$K"),8,FALSE) -> 19.16626033 | K40: =VLOOKUP(VLOOKUP($F40,'Data BI Summary'!$A:$F,MATCH(K$1,'Data BI Summary'!$2:$2,0),FALSE),INDIRECT("'"&$E40&"'!"&"$A:$K"),9,FALSE) -> 0.02466502348
A41: AGSd-HCHI | B41: Low | C41: =VLOOKUP(A$41,'Data Billing Quantities'!A:P,MATCH($B41&" kWh",'Data Billing Quantities'!$4:$4,0),FALSE) -> 10880 | D41: =VLOOKUP(A$41,'Data Billing Quantities'!A:P,MATCH(B41&" kW",'Data Billing Quantities'!$4:$4,0),FALSE) -> 55 | E41: BI_HCHI_AGSd_Low | F41: BI Template_DemandHCHI | G41: =VLOOKUP(VLOOKUP($F41,'Data BI Summary'!$A:$F,MATCH(G$1,'Data BI Summary'!$2:$2,0),FALSE),INDIRECT("'"&$E41&"'!"&"$A:$K"),4,FALSE) -> 2264.03854 | H41: =VLOOKUP(VLOOKUP($F41,'Data BI Summary'!$A:$F,MATCH(H$1,'Data BI Summary'!$2:$2,0),FALSE),INDIRECT("'"&$E41&"'!"&"$A:$K"),8,FALSE) -> 81.132524 | I41: =VLOOKUP(VLOOKUP($F41,'Data BI Summary'!$A:$F,MATCH(I$1,'Data BI Summary'!$2:$2,0),FALSE),INDIRECT("'"&$E41&"'!"&"$A:$K"),9,FALSE) -> 0.2578267152 | J41: =VLOOKUP(VLOOKUP($F41,'Data BI Summary'!$A:$F,MATCH(J$1,'Data BI Summary'!$2:$2,0),FALSE),INDIRECT("'"&$E41&"'!"&"$A:$K"),8,FALSE) -> 88.13960495 | K41: =VLOOKUP(VLOOKUP($F41,'Data BI Summary'!$A:$F,MATCH(K$1,'Data BI Summary'!$2:$2,0),FALSE),INDIRECT("'"&$E41&"'!"&"$A:$K"),9,FALSE) -> 0.0389302582 | L41: WAHSP
B42: Average | C42: =VLOOKUP(A$41,'Data Billing Quantities'!A:P,MATCH($B42&" kWh",'Data Billing Quantities'!$4:$4,0),FALSE) -> 57529 | D42: =VLOOKUP(A$41,'Data Billing Quantities'!A:P,MATCH(B42&" kW",'Data Billing Quantities'!$4:$4,0),FALSE) -> 175 | E42: BI_HCHI_AGSd_Avg | F42: BI Template_DemandHCHI | G42: =VLOOKUP(VLOOKUP($F42,'Data BI Summary'!$A:$F,MATCH(G$1,'Data BI Summary'!$2:$2,0),FALSE),INDIRECT("'"&$E42&"'!"&"$A:$K"),4,FALSE) -> 10343.58756 | H42: =VLOOKUP(VLOOKUP($F42,'Data BI Summary'!$A:$F,MATCH(H$1,'Data BI Summary'!$2:$2,0),FALSE),INDIRECT("'"&$E42&"'!"&"$A:$K"),8,FALSE) -> 55.8472667 | I42: =VLOOKUP(VLOOKUP($F42,'Data BI Summary'!$A:$F,MATCH(I$1,'Data BI Summary'!$2:$2,0),FALSE),INDIRECT("'"&$E42&"'!"&"$A:$K"),9,FALSE) -> 0.06891640062 | J42: =VLOOKUP(VLOOKUP($F42,'Data BI Summary'!$A:$F,MATCH(J$1,'Data BI Summary'!$2:$2,0),FALSE),INDIRECT("'"&$E42&"'!"&"$A:$K"),8,FALSE) -> 46.11609249 | K42: =VLOOKUP(VLOOKUP($F42,'Data BI Summary'!$A:$F,MATCH(K$1,'Data BI Summary'!$2:$2,0),FALSE),INDIRECT("'"&$E42&"'!"&"$A:$K"),9,FALSE) -> 0.004458423367
B43: High | C43: =VLOOKUP(A$41,'Data Billing Quantities'!A:P,MATCH($B43&" kWh",'Data Billing Quantities'!$4:$4,0),FALSE) -> 135160 | D43: =VLOOKUP(A$41,'Data Billing Quantities'!A:P,MATCH(B43&" kW",'Data Billing Quantities'!$4:$4,0),FALSE) -> 375 | E43: BI_HCHI_AGSd_High | F43: BI Template_DemandHCHI | G43: =VLOOKUP(VLOOKUP($F43,'Data BI Summary'!$A:$F,MATCH(G$1,'Data BI Summary'!$2:$2,0),FALSE),INDIRECT("'"&$E43&"'!"&"$A:$K"),4,FALSE) -> 23792.31474 | H43: =VLOOKUP(VLOOKUP($F43,'Data BI Summary'!$A:$F,MATCH(H$1,'Data BI Summary'!$2:$2,0),FALSE),INDIRECT("'"&$E43&"'!"&"$A:$K"),8,FALSE) -> 13.816368 | I43: =VLOOKUP(VLOOKUP($F43,'Data BI Summary'!$A:$F,MATCH(I$1,'Data BI Summary'!$2:$2,0),FALSE),INDIRECT("'"&$E43&"'!"&"$A:$K"),9,FALSE) -> 0.00844261955 | J43: =VLOOKUP(VLOOKUP($F43,'Data BI Summary'!$A:$F,MATCH(J$1,'Data BI Summary'!$2:$2,0),FALSE),INDIRECT("'"&$E43&"'!"&"$A:$K"),8,FALSE) -> -23.76811174 | K43: =VLOOKUP(VLOOKUP($F43,'Data BI Summary'!$A:$F,MATCH(K$1,'Data BI Summary'!$2:$2,0),FALSE),INDIRECT("'"&$E43&"'!"&"$A:$K"),9,FALSE) -> -0.0009989827386
A44: St Lgt-HCHI | B44: Average | C44: =VLOOKUP(A$44,'Data Billing Quantities'!A:P,MATCH($B44&" kWh",'Data Billing Quantities'!$4:$4,0),FALSE) -> 31001 | D44: =VLOOKUP(A$44,'Data Billing Quantities'!A:P,MATCH(B44&" kW",'Data Billing Quantities'!$4:$4,0),FALSE) -> 85 | E44: BI_HCHI_StLgt_Avg | F44: BI Template_unmHCHI | G44: =VLOOKUP(VLOOKUP($F44,'Data BI Summary'!$A:$F,MATCH(G$1,'Data BI Summary'!$2:$2,0),FALSE),INDIRECT("'"&$E44&"'!"&"$A:$K"),4,FALSE) -> 10861.18161 | H44: =VLOOKUP(VLOOKUP($F44,'Data BI Summary'!$A:$F,MATCH(H$1,'Data BI Summary'!$2:$2,0),FALSE),INDIRECT("'"&$E44&"'!"&"$A:$K"),8,FALSE) -> -1989.1785 | I44: =VLOOKUP(VLOOKUP($F44,'Data BI Summary'!$A:$F,MATCH(I$1,'Data BI Summary'!$2:$2,0),FALSE),INDIRECT("'"&$E44&"'!"&"$A:$K"),9,FALSE) -> -0.3692595868 | J44: =VLOOKUP(VLOOKUP($F44,'Data BI Summary'!$A:$F,MATCH(J$1,'Data BI Summary'!$2:$2,0),FALSE),INDIRECT("'"&$E44&"'!"&"$A:$K"),8,FALSE) -> -2058.993757 | K44: =VLOOKUP(VLOOKUP($F44,'Data BI Summary'!$A:$F,MATCH(K$1,'Data BI Summary'!$2:$2,0),FALSE),INDIRECT("'"&$E44&"'!"&"$A:$K"),9,FALSE) -> -0.1895736423 | L44: Two-tier RPP
A45: Sen Lgt-HCHI | B45: Average | C45: =VLOOKUP(A$45,'Data Billing Quantities'!A:P,MATCH($B45&" kWh",'Data Billing Quantities'!$4:$4,0),FALSE) -> 61 | D45: =VLOOKUP(A$45,'Data Billing Quantities'!A:P,MATCH(B45&" kW",'Data Billing Quantities'!$4:$4,0),FALSE) -> 0.1956473214 | E45: BI_HCHI_SenLgt_Avg | F45: BI Template_unmHCHI | G45: =VLOOKUP(VLOOKUP($F45,'Data BI Summary'!$A:$F,MATCH(G$1,'Data BI Summary'!$2:$2,0),FALSE),INDIRECT("'"&$E45&"'!"&"$A:$K"),4,FALSE) -> 28.18017138 | H45: =VLOOKUP(VLOOKUP($F45,'Data BI Summary'!$A:$F,MATCH(H$1,'Data BI Summary'!$2:$2,0),FALSE),INDIRECT("'"&$E45&"'!"&"$A:$K"),8,FALSE) -> -9.045547533 | I45: =VLOOKUP(VLOOKUP($F45,'Data BI Summary'!$A:$F,MATCH(I$1,'Data BI Summary'!$2:$2,0),FALSE),INDIRECT("'"&$E45&"'!"&"$A:$K"),9,FALSE) -> -0.4046854106 | J45: =VLOOKUP(VLOOKUP($F45,'Data BI Summary'!$A:$F,MATCH(J$1,'Data BI Summary'!$2:$2,0),FALSE),INDIRECT("'"&$E45&"'!"&"$A:$K"),8,FALSE) -> -8.327914707 | K45: =VLOOKUP(VLOOKUP($F45,'Data BI Summary'!$A:$F,MATCH(K$1,'Data BI Summary'!$2:$2,0),FALSE),INDIRECT("'"&$E45&"'!"&"$A:$K"),9,FALSE) -> -0.2955239198 | L45: Two-tier RPP
A46: USL-HCHI | B46: Average | C46: =VLOOKUP(A$46,'Data Billing Quantities'!A:P,MATCH($B46&" kWh",'Data Billing Quantities'!$4:$4,0),FALSE) -> 471 | E46: BI_HCHI_USL_Avg | F46: BI Template_unmHCHI | G46: =VLOOKUP(VLOOKUP($F46,'Data BI Summary'!$A:$F,MATCH(G$1,'Data BI Summary'!$2:$2,0),FALSE),INDIRECT("'"&$E46&"'!"&"$A:$K"),4,FALSE) -> 74.2138206 | H46: =VLOOKUP(VLOOKUP($F46,'Data BI Summary'!$A:$F,MATCH(H$1,'Data BI Summary'!$2:$2,0),FALSE),INDIRECT("'"&$E46&"'!"&"$A:$K"),8,FALSE) -> 27.4784 | I46: =VLOOKUP(VLOOKUP($F46,'Data BI Summary'!$A:$F,MATCH(I$1,'Data BI Summary'!$2:$2,0),FALSE),INDIRECT("'"&$E46&"'!"&"$A:$K"),9,FALSE) -> 1.280674118 | J46: =VLOOKUP(VLOOKUP($F46,'Data BI Summary'!$A:$F,MATCH(J$1,'Data BI Summary'!$2:$2,0),FALSE),INDIRECT("'"&$E46&"'!"&"$A:$K"),8,FALSE) -> 27.53373081 | K46: =VLOOKUP(VLOOKUP($F46,'Data BI Summary'!$A:$F,MATCH(K$1,'Data BI Summary'!$2:$2,0),FALSE),INDIRECT("'"&$E46&"'!"&"$A:$K"),9,FALSE) -> 0.3710054352 | L46: Two-tier RPP

Sheet BI Template_Energy (hidden)
A1: 2023 Bill Impacts (Low Consumption Level) - R1
A3: Rate Class | B3: =RIGHT(A1,LEN(A1)-FIND("- ",A1,1)-1) -> R1
A4: Monthly Consumption (kWh) | B4: =IF(COUNTIF(A1,"*Low*")>0,VLOOKUP(B3,'Data Billing Quantities'!$A:$Z,MATCH("Low kWh",'Data Billing Quantities'!4:4,0),FALSE),IF(COUNTIF(A1,"*Typical*")>0,VLOOKUP(B3,'Data Billing Quantities'!$A:$Z,MATCH("Typical kWh",'Data Billing Quantities'!4:4,0),FALSE),IF(COUNTIF(A1,"*Average*")>0,VLOOKUP(B3,'Data Billing Quantities'!$A:$Z,MATCH("Average kWh",'Data Billing Quantities'!4:4,0),FALSE),IF(COUNTIF(A1,"*High*")>0,VLOOKUP(B3,'Data Billing Quantities'!$A:$Z,MATCH("High kWh",'Data Billing Quantities'!4:4,0),FALSE),"error")))) -> 370
A5: Peak (kW) | B5: =IF(COUNTIF(A1,"*Low*")>0,VLOOKUP(B3,'Data Billing Quantities'!$A:$Z,MATCH("Low kW",'Data Billing Quantities'!4:4,0),FALSE),IF(COUNTIF(A1,"*Typical*")>0,VLOOKUP(B3,'Data Billing Quantities'!$A:$Z,MATCH("Typical kW",'Data Billing Quantities'!4:4,0),FALSE),IF(COUNTIF(A1,"*Average*")>0,VLOOKUP(B3,'Data Billing Quantities'!$A:$Z,MATCH("Average kW",'Data Billing Quantities'!4:4,0),FALSE),IF(COUNTIF(A1,"*High*")>0,VLOOKUP(B3,'Data Billing Quantities'!$A:$Z,MATCH("High kW",'Data Billing Quantities'!4:4,0),FALSE),"error")))) -> 0
A6: Loss factor | B6: =VLOOKUP(B3,'Data Billing Quantities'!A:D,MATCH(A6,'Data Billing Quantities'!4:4,0),FALSE) -> 1.076
A7: Commodity Threshold | B7: =VLOOKUP(B3,'Data Billing Quantities'!A:D,MATCH(A7,'Data Billing Quantities'!4:4,0),FALSE) -> 600
A8: Monthly Consumption (kWh) - Uplifted | B8: =B4*B6 -> 398.12
A9: Charge determinant | B9: =VLOOKUP(B3,'Data Billing Quantities'!A:D,MATCH(A9,'Data Billing Quantities'!4:4,0),FALSE) -> kWh
B11: Volume | C11: Current Rate ($) | D11: Current Charge ($) | E11: Volume | F11: Proposed Rate ($) | G11: Proposed Charge ($) | H11: Change ($) | I11: Change (%) | J11: % of Total Bill on RPP | K11: % of Total Bill
A12: Energy First Tier | B12: =IF(B4>B7,B7,B4) -> 370 | C12: =VLOOKUP($A12,'Data Pass Through'!$A:$D,2,FALSE) -> 0.098 | D12: =B12*C12 -> 36.26 | E12: =B12 -> 370 | F12: =VLOOKUP($A12,'Data Pass Through'!$A:$D,3,FALSE) -> 0.098 | G12: =E12*F12 -> 36.26 | H12: =G12-D12 -> 0 | I12: =IF(ISERROR(H12/ABS(D12)),"N/A",(H12/ABS(D12))) -> 0 | J12: =G12/$G$47 -> 0.4519309095
A13: Energy Second Tier | B13: =IF(B4>B7,(B4)-B7,0) -> 0 | C13: =VLOOKUP($A13,'Data Pass Through'!$A:$D,2,FALSE) -> 0.115 | D13: =B13*C13 -> 0 | E13: =B13 -> 0 | F13: =VLOOKUP($A13,'Data Pass Through'!$A:$D,3,FALSE) -> 0.115 | G13: =E13*F13 -> 0 | H13: 0 | I13: N/A | J13: =G13/$G$47 -> 0
A14: Sub-Total: Energy (RPP Tiered) | D14: =SUM(D12:D13) -> 36.26 | G14: =SUM(G12:G13) -> 36.26 | H14: 0 | I14: 0 | J14: =G14/$G$47 -> 0.4519309095
A15: TOU-Off Peak | B15: =B$4*VLOOKUP($B$3,'Data Billing Quantities'!$A:$O,MATCH('BI Template_Energy'!$A15,'Data Billing Quantities'!$4:$4,0),FALSE) -> 236.8 | C15: =VLOOKUP($A15,'Data Pass Through'!$A:$D,2,FALSE) -> 0.082 | D15: =B15*C15 -> 19.4176 | E15: 236.8 | F15: =VLOOKUP($A15,'Data Pass Through'!$A:$D,3,FALSE) -> 0.082 | G15: =E15*F15 -> 19.4176 | H15: 0 | I15: 0 | K15: =G15/$G$52 -> 0.2360400586
A16: TOU-Mid Peak | B16: =B$4*VLOOKUP($B$3,'Data Billing Quantities'!$A:$O,MATCH('BI Template_Energy'!$A16,'Data Billing Quantities'!$4:$4,0),FALSE) -> 66.6 | C16: =VLOOKUP($A16,'Data Pass Through'!$A:$D,2,FALSE) -> 0.113 | D16: =B16*C16 -> 7.5258 | E16: 66.6 | F16: =VLOOKUP($A16,'Data Pass Through'!$A:$D,3,FALSE) -> 0.113 | G16: =E16*F16 -> 7.5258 | H16: 0 | I16: 0 | K16: 0.09148351356
A17: TOU-On Peak | B17: =B$4*VLOOKUP($B$3,'Data Billing Quantities'!$A:$O,MATCH('BI Template_Energy'!$A17,'Data Billing Quantities'!$4:$4,0),FALSE) -> 66.6 | C17: =VLOOKUP($A17,'Data Pass Through'!$A:$D,2,FALSE) -> 0.17 | D17: =B17*C17 -> 11.322 | E17: 66.6 | F17: =VLOOKUP($A17,'Data Pass Through'!$A:$D,3,FALSE) -> 0.17 | G17: =E17*F17 -> 11.322 | H17: 0 | I17: 0 | K17: 0.1376300646
A18: Sub-Total: Energy (RPP TOU) | D18: =SUM(D15:D17) -> 38.2654 | G18: =SUM(G15:G17) -> 38.2654 | H18: 0 | I18: 0 | J18: =G18/$G$47 -> 0.4769254557 | K18: 0.4651536368
A19: Service Charge | B19: 1 | C19: =VLOOKUP($B$3,'Data Current Rates'!$A:$AL,MATCH('BI Template_Energy'!$A19,CurrentHeader,0),FALSE) -> 56.06 | D19: =B19*C19 -> 56.06 | E19: 1 | F19: =VLOOKUP($B$3,'Data Proposed Rates'!$A:$BB,MATCH('BI Template_Energy'!$A19,ProposedHeader,0),FALSE) -> 60.72 | G19: =E19*F19 -> 60.72 | H19: 4.66 | I19: 0.08312522298 | J19: 0.7567910872 | K19: 0.7381114225
A20: Fixed Base Rate Adjustment to Recover Past Tax Amounts | B20: 1 | C20: =VLOOKUP($B$3,'Data Current Rates'!$A:$AL,MATCH('BI Template_Energy'!$A20,CurrentHeader,0),FALSE) -> 1.56 | D20: =B20*C20 -> 1.56 | E20: 1 | F20: =VLOOKUP($B$3,'Data Proposed Rates'!$A:$BB,MATCH('BI Template_Energy'!$A20,ProposedHeader,0),FALSE) -> 1.56 | G20: 1.56 | H20: 0 | I20: 0 | J20: 0.01944324928 | K20: 0.01896333694
A21: Group 2 Fixed DVA Rider | E21: 1 | F21: =VLOOKUP($B$3,'Data Proposed Rates'!$A:$BB,MATCH('BI Template_Energy'!$A21,ProposedHeader,0),FALSE) -> -0.21 | G21: -0.21 | H21: -0.21 | I21: N/A | J21: -0.00261736048 | K21: -0.002552756896
A22: Distribution Volumetric Charge | B22: =IF($B$9="kWh",$B$4,$B$5) -> 370 | C22: =VLOOKUP($B$3,'Data Current Rates'!$A:$AL,MATCH('BI Template_Energy'!$A22,CurrentHeader,0),FALSE) -> 0.01 | D22: 3.7 | E22: 370 | F22: =VLOOKUP($B$3,'Data Proposed Rates'!$A:$BB,MATCH('BI Template_Energy'!$A22,ProposedHeader,0),FALSE) -> 0.0056 | G22: 2.072 | H22: -1.628 | I22: -0.44 | J22: 0.0258246234 | K22: 0.02518720137
A23: Volumetric Base Rate Adjustment to Recover Past Tax Amounts | B23: =IF($B$9="kWh",$B$4,$B$5) -> 370 | C23: =VLOOKUP($B$3,'Data Current Rates'!$A:$AL,MATCH('BI Template_Energy'!$A23,CurrentHeader,0),FALSE) -> 0 | D23: 0 | E23: 370 | F23: =VLOOKUP($B$3,'Data Proposed Rates'!$A:$BB,MATCH('BI Template_Energy'!$A23,ProposedHeader,0),FALSE) -> 0 | G23: 0 | H23: 0 | I23: N/A | J23: 0 | K23: 0
A24: Group 1 Volumetric DVA Rider (General) | E24: =B4 -> 370 | F24: =VLOOKUP($B$3,'Data Proposed Rates'!$A:$BB,MATCH('BI Template_Energy'!$A24,ProposedHeader,0),FALSE) -> -0.0007 | G24: =E24*F24 -> -0.259 | H24: =G24-D24 -> -0.259 | I24: =IF(ISERROR(H24/ABS(D24)),"N/A",(H24/ABS(D24))) -> N/A | J24: -0.003228077925 | K24: -0.003148400172
A25: Group 2 Volumetric DVA Rider | E25: =B4 -> 370 | F25: =VLOOKUP($B$3,'Data Proposed Rates'!$A:$BB,MATCH('BI Template_Energy'!$A25,ProposedHeader,0),FALSE) -> 0 | G25: 0 | H25: 0 | I25: N/A | J25: 0 | K25: 0
A26: Fair Hydro Plan - Distribution Rate Protection Savings* | D26: =IF(AND(B3<>"R1",B3<>"R2"),0,IF(VLOOKUP($A26,'Data Pass Through'!$A:$D,2,FALSE)=0,0,IF(SUM(D19:D20,D22:D23)<VLOOKUP($A26,'Data Pass Through'!$A:$D,2,FALSE),0,VLOOKUP($A26,'Data Pass Through'!$A:$D,2,FALSE)-SUM(D19:D20,D22:D23)))) -> -24.46 | G26: =IF(AND(B3<>"R1",B3<>"R2"),0,IF(VLOOKUP($A26,'Data Pass Through'!$A:$D,2,FALSE)=0,0,IF(SUM(G19:G20,G22:G23)<VLOOKUP($A26,'Data Pass Through'!$A:$D,2,FALSE),0,VLOOKUP($A26,'Data Pass Through'!$A:$D,2,FALSE)-SUM(G19:G20,G22:G23)))) -> -27.492 | H26: -3.032 | I26: -0.1239574816 | J26: -0.3426498776 | K26: -0.3341923456
A27: Sub-Total: Distribution (excluding pass through) | D27: =SUM(INDIRECT("D19:D"&ROW()-1)) -> 36.86 | G27: =SUM(INDIRECT("g19:g"&ROW()-1)) -> 36.391 | H27: =G27-D27 -> -0.469 | I27: =IF(ISERROR(H27/ABS(D27)),"N/A",(H27/ABS(D27))) -> -0.01272381986 | J27: 0.4535636439 | K27: 0.4423684581
A28: Smart Metering Entity Charge | B28: 1 | C28: =VLOOKUP($A28,'Data Pass Through'!$A:$D,2,FALSE) -> 0.57 | D28: =B28*C28 -> 0.57 | E28: 1 | F28: =VLOOKUP($A28,'Data Pass Through'!$A:$D,3,FALSE) -> 0.57 | G28: =E28*F28 -> 0.57 | H28: 0 | I28: 0 | J28: 0.007104264159 | K28: 0.006928911575
A29: Line Losses on Cost of Power (based on two-tier RPP prices) | B29: =B8-B4 -> 28.12 | C29: =IF(B4>B7,C13,C12) -> 0.098 | D29: =B29*C29 -> 2.75576 | E29: 28.12 | F29: =IF(B4>B7,F13,F12) -> 0.098 | G29: =E29*F29 -> 2.75576 | H29: 0 | I29: 0 | J29: 0.03434674912 | K29: 0.03349897783
A30: Line Losses on Cost of Power (based on TOU prices) | B30: =B8-B4 -> 28.12 | C30: =VLOOKUP($B$3,'Data Billing Quantities'!$A:$O,MATCH('BI Template_Energy'!$A15,'Data Billing Quantities'!$4:$4,0),FALSE)*C15+VLOOKUP($B$3,'Data Billing Quantities'!$A:$O,MATCH('BI Template_Energy'!$A16,'Data Billing Quantities'!$4:$4,0),FALSE)*C16+VLOOKUP($B$3,'Data Billing Quantities'!$A:$O,MATCH('BI Template_Energy'!$A17,'Data Billing Quantities'!$4:$4,0),FALSE)*C17 -> 0.10342 | D30: =B30*C30 -> 2.9081704 | E30: 28.12 | F30: =VLOOKUP($B$3,'Data Billing Quantities'!$A:$O,MATCH('BI Template_Energy'!$A15,'Data Billing Quantities'!$4:$4,0),FALSE)*F15+VLOOKUP($B$3,'Data Billing Quantities'!$A:$O,MATCH('BI Template_Energy'!$A16,'Data Billing Quantities'!$4:$4,0),FALSE)*F16+VLOOKUP($B$3,'Data Billing Quantities'!$A:$O,MATCH('BI Template_Energy'!$A17,'Data Billing Quantities'!$4:$4,0),FALSE)*F17 -> 0.10342 | G30: =E30*F30 -> 2.9081704 | H30: 0 | I30: 0 | J30: 0.03624633463 | K30: 0.0353516764
A31: Sub-Total: Distribution (based on two-tier RPP prices) | D31: =SUM(D27,D28:D29) -> 40.18576 | G31: =SUM(G27,G28:G29) -> 39.71676 | H31: -0.469 | I31: -0.0116708008 | J31: 0.4950146571 | K31: 0.4827963475
A32: Sub-Total: Distribution (based on TOU prices) | D32: =SUM(D27,D28,D30) -> 40.3381704 | G32: =SUM(G27,G28,G30) -> 39.8691704 | H32: -0.469 | I32: -0.01162670481 | J32: 0.4969142426 | K32: 0.4846490461
A33: Retail Transmission Rate – Network Service Rate | B33: =B8 -> 398.12 | C33: =VLOOKUP($B$3,'Data Current Rates'!$A:$AL,MATCH('BI Template_Energy'!$A33,CurrentHeader,0),FALSE) -> 0.0103 | D33: =B33*C33 -> 4.100636 | E33: 398.12 | F33: =VLOOKUP($B$3,'Data Proposed Rates'!$A:$BB,MATCH('BI Template_Energy'!$A33,ProposedHeader,0),FALSE) -> 0.0111 | G33: =E33*F33 -> 4.419132 | H33: =G33-D33 -> 0.318496 | I33: 0.07766990291 | J33: 0.05507838786 | K33: 0.05371890327
A34: Retail Transmission Rate – Line and Transformation Connection Service Rate | B34: =B8 -> 398.12 | C34: =VLOOKUP($B$3,'Data Current Rates'!$A:$AL,MATCH('BI Template_Energy'!$A34,CurrentHeader,0),FALSE) -> 0.0076 | D34: =B34*C34 -> 3.025712 | E34: 398.12 | F34: =VLOOKUP($B$3,'Data Proposed Rates'!$A:$BB,MATCH('BI Template_Energy'!$A34,ProposedHeader,0),FALSE) -> 0.0077 | G34: =E34*F34 -> 3.065524 | H34: =G34-D34 -> 0.039812 | I34: 0.01315789474 | J34: 0.03820753032 | K34: 0.03726446443
A35: Sub-Total: Retail Transmission | D35: =SUM(D33:D34) -> 7.126348 | G35: =SUM(G33:G34) -> 7.484656 | H35: =G35-D35 -> 0.358308 | I35: 0.05027932961 | J35: 0.09328591818 | K35: 0.0909833677
A36: Sub-Total: Delivery (based on two-tier RPP prices) | D36: =D31+D35 -> 47.312108 | G36: =G31+G35 -> 47.201416 | H36: =G36-D36 -> -0.110692 | I36: -0.002339612515 | J36: 0.5883005753 | K36: 0.5737797152
A37: Sub-Total: Delivery (based on TOU prices) | D37: =D32+D35 -> 47.4645184 | G37: =G32+G35 -> 47.3538264 | H37: =G37-D37 -> -0.110692 | I37: -0.002332099929 | J37: 0.5902001608 | K37: 0.5756324138
A38: Wholesale Market Service Rate (WMS) - not including CBR | B38: =B8 -> 398.12 | C38: =VLOOKUP($A38,'Data Pass Through'!$A:$D,2,FALSE) -> 0.003 | D38: =B38*C38 -> 1.19436 | E38: =$B$8 -> 398.12 | F38: =VLOOKUP($A38,'Data Pass Through'!$A:$D,3,FALSE) -> 0.003 | G38: =E38*F38 -> 1.19436 | H38: 0 | I38: 0 | J38: 0.01488605077 | K38: 0.01451862251
A39: Capacity Based Recovery (CBR) - Applicable for Class B Customers | B39: =B8 -> 398.12 | C39: =VLOOKUP($A39,'Data Pass Through'!$A:$D,2,FALSE) -> 0.0004 | D39: =B39*C39 -> 0.159248 | E39: =$B$8 -> 398.12 | F39: =VLOOKUP($A39,'Data Pass Through'!$A:$D,3,FALSE) -> 0.0004 | G39: =E39*F39 -> 0.159248 | H39: =G39-D39 -> 0 | I39: =IF(ISERROR(H39/ABS(D39)),"N/A",(H39/ABS(D39))) -> 0 | J39: 0.00198480677 | K39: 0.001935816334
A40: Rural Rate Protection Charge | B40: =B8 -> 398.12 | C40: =VLOOKUP($A40,'Data Pass Through'!$A:$D,2,FALSE) -> 0.0005 | D40: 0.19906 | E40: 398.12 | F40: =VLOOKUP($A40,'Data Pass Through'!$A:$D,3,FALSE) -> 0.0005 | G40: 0.19906 | H40: 0 | I40: 0 | J40: 0.002481008462 | K40: 0.002419770418
A41: Standard Supply Service – Administration Charge (if applicable) | B41: 1 | C41: =VLOOKUP($A41,'Data Pass Through'!$A:$D,2,FALSE) -> 0.25 | D41: =B41*C41 -> 0.25 | E41: 1 | F41: =VLOOKUP($A41,'Data Pass Through'!$A:$D,3,FALSE) -> 0.25 | G41: 0.25 | H41: 0 | I41: 0 | J41: 0.003115905333 | K41: 0.003038996305
A42: Sub-Total: Regulatory | D42: =SUM(D38:D41) -> 1.802668 | G42: =SUM(G38:G41) -> 1.802668 | H42: 0 | I42: 0 | J42: 0.02246777134 | K42: 0.02191320556
A43: Total Electricty Charge on Two-Tier RPP | D43: =SUM(D14,D27,D28,D29,D35,D42) -> 85.374776 | G43: =SUM(G14,G27,G28,G29,G35,G42) -> 85.264084 | H43: -0.110692 | I43: -0.001296542201 | J43: 1.062699256
A44: HST | C44: 0.13 | D44: =D43*C44 -> 11.09872088 | F44: =C44 -> 0.13 | G44: =G43*F44 -> 11.08433092 | H44: -0.01438996 | I44: -0.001296542201 | J44: 0.1381509033
A45: Total Electricity Charge on Two-Tier RPP (including HST) | D45: =SUM(D43:D44) -> 96.47349688 | G45: =SUM(G43:G44) -> 96.34841492 | H45: -0.12508196 | I45: -0.001296542201 | J45: 1.200850159
A46: Ontario Electricity Rebate (OER) | C46: =IF(($B$4*12)<250000,VLOOKUP(A46,'Data Pass Through'!$A$4:$C$20,2,0),0) -> -0.189 | D46: =D43*C46 -> -16.13583266 | F46: =C46 -> -0.189 | G46: =G43*F46 -> -16.11491188 | H46: 0.020920788 | I46: 0.001296542201 | J46: -0.2008501594
A47: Total Amount on Two-Tier RPP | D47: =SUM(D45:D46) -> 80.33766422 | G47: =SUM(G45:G46) -> 80.23350304 | H47: -0.104161172 | I47: -0.001296542201 | J47: 1
A48: Total Electricty Charge on TOU (before HST) | D48: =SUM(D18,D27,D28,D30,D35,D42) -> 87.5325864 | G48: =SUM(G18,G27,G28,G30,G35,G42) -> 87.4218944 | H48: -0.110692 | I48: -0.001264580479 | K48: =G48/$G$52 -> 1.062699256
A49: HST | C49: 0.13 | D49: =D48*C49 -> 11.37923623 | F49: =C49 -> 0.13 | G49: =G48*F49 -> 11.36484627 | H49: -0.01438996 | I49: -0.001264580479 | K49: =G49/$G$52 -> 0.1381509033
A50: Total Electricity Charge on TOU (including HST) | D50: =SUM(D48:D49) -> 98.91182263 | G50: =SUM(G48:G49) -> 98.78674067 | H50: -0.12508196 | I50: -0.001264580479 | K50: =G50/$G$52 -> 1.200850159
A51: Ontario Electricity Rebate (OER) | C51: =IF(($B$4*12)<250000,VLOOKUP(A51,'Data Pass Through'!$A$4:$C$20,2,0),0) -> -0.189 | D51: =D48*C51 -> -16.54365883 | F51: =C51 -> -0.189 | G51: =G48*F51 -> -16.52273804 | H51: 0.020920788 | I51: 0.001264580479 | K51: =G51/$G$52 -> -0.2008501594
A52: Total Amount on TOU | D52: =SUM(D50:D51) -> 82.3681638 | G52: =SUM(G50:G51) -> 82.26400263 | H52: -0.104161172 | I52: -0.001264580479 | K52: =G52/$G$52 -> 1
A53: * Distribution rate protection applies to R1 and R2 customers

Sheet BI Template_EnergyUNM (hidden)
A1: 2023 Bill Impacts (Average Consumption Level) - USL
A3: Rate Class | B3: =RIGHT(A1,LEN(A1)-FIND("- ",A1,1)-1) -> USL
A4: Monthly Consumption (kWh) | B4: =IF(COUNTIF(A1,"*Low*")>0,VLOOKUP(B3,'Data Billing Quantities'!$A:$Z,MATCH("Low kWh",'Data Billing Quantities'!4:4,0),FALSE),IF(COUNTIF(A1,"*Typical*")>0,VLOOKUP(B3,'Data Billing Quantities'!$A:$Z,MATCH("Typical kWh",'Data Billing Quantities'!4:4,0),FALSE),IF(COUNTIF(A1,"*Average*")>0,VLOOKUP(B3,'Data Billing Quantities'!$A:$Z,MATCH("Average kWh",'Data Billing Quantities'!4:4,0),FALSE),IF(COUNTIF(A1,"*High*")>0,VLOOKUP(B3,'Data Billing Quantities'!$A:$Z,MATCH("High kWh",'Data Billing Quantities'!4:4,0),FALSE),"error")))) -> 477
A5: Peak (kW) | B5: =IF(COUNTIF(A1,"*Low*")>0,VLOOKUP(B3,'Data Billing Quantities'!$A:$Z,MATCH("Low kW",'Data Billing Quantities'!4:4,0),FALSE),IF(COUNTIF(A1,"*Typical*")>0,VLOOKUP(B3,'Data Billing Quantities'!$A:$Z,MATCH("Typical kW",'Data Billing Quantities'!4:4,0),FALSE),IF(COUNTIF(A1,"*Average*")>0,VLOOKUP(B3,'Data Billing Quantities'!$A:$Z,MATCH("Average kW",'Data Billing Quantities'!4:4,0),FALSE),IF(COUNTIF(A1,"*High*")>0,VLOOKUP(B3,'Data Billing Quantities'!$A:$Z,MATCH("High kW",'Data Billing Quantities'!4:4,0),FALSE),"error")))) -> 0
A6: Loss factor | B6: =VLOOKUP(B3,'Data Billing Quantities'!A:D,MATCH(A6,'Data Billing Quantities'!4:4,0),FALSE) -> 1.092
A7: Commodity Threshold | B7: =VLOOKUP(B3,'Data Billing Quantities'!A:D,MATCH(A7,'Data Billing Quantities'!4:4,0),FALSE) -> 750
A8: Monthly Consumption (kWh) - Uplifted | B8: =B4*B6 -> 520.884
A9: Charge determinant | B9: =VLOOKUP(B3,'Data Billing Quantities'!A:D,MATCH(A9,'Data Billing Quantities'!4:4,0),FALSE) -> kWh
B11: Volume | C11: Current Rate ($) | D11: Current Charge ($) | E11: Volume | F11: Proposed Rate ($) | G11: Proposed Charge ($) | H11: Change ($) | I11: Change (%) | J11: % of Total Bill
A12: Energy First Tier | B12: =IF(B4>B7,B7,B4) -> 477 | C12: =VLOOKUP($A12,'Data Pass Through'!$A:$D,2,FALSE) -> 0.098 | D12: =B12*C12 -> 46.746 | E12: =B12 -> 477 | F12: =VLOOKUP($A12,'Data Pass Through'!$A:$D,3,FALSE) -> 0.098 | G12: =E12*F12 -> 46.746 | H12: =G12-D12 -> 0 | I12: =IF(ISERROR(H12/ABS(D12)),"N/A",(H12/ABS(D12))) -> 0 | J12: =G12/$G$37 -> 0.4500517442
A13: Energy Second Tier | B13: =IF(B4>B7,(B4)-B7,0) -> 0 | C13: =VLOOKUP($A13,'Data Pass Through'!$A:$D,2,FALSE) -> 0.115 | D13: =B13*C13 -> 0 | E13: =B13 -> 0 | F13: =VLOOKUP($A13,'Data Pass Through'!$A:$D,3,FALSE) -> 0.115 | G13: =E13*F13 -> 0 | H13: 0 | I13: N/A | J13: =G13/$G$37 -> 0
A14: Sub-Total: Energy (RPP Tiered) | D14: =SUM(D12:D13) -> 46.746 | G14: =SUM(G12:G13) -> 46.746 | H14: 0 | I14: 0 | J14: =G14/$G$37 -> 0.4500517442
A15: Service Charge | B15: 1 | C15: =VLOOKUP($B$3,'Data Current Rates'!$A:$AL,MATCH('BI Template_EnergyUNM'!$A15,CurrentHeader,0),FALSE) -> 39.8 | D15: =B15*C15 -> 39.8 | E15: 1 | F15: =VLOOKUP($B$3,'Data Proposed Rates'!$A:$BB,MATCH('BI Template_EnergyUNM'!$A15,ProposedHeader,0),FALSE) -> 38.29 | G15: =E15*F15 -> 38.29 | H15: -1.51 | I15: -0.03793969849 | J15: =G15/$G$37 -> 0.3686407668
A16: Fixed Base Rate Adjustment to Recover Past Tax Amounts | B16: 1 | C16: =VLOOKUP($B$3,'Data Current Rates'!$A:$AL,MATCH('BI Template_EnergyUNM'!$A16,CurrentHeader,0),FALSE) -> 0.89 | D16: =B16*C16 -> 0.89 | E16: 1 | F16: =VLOOKUP($B$3,'Data Proposed Rates'!$A:$BB,MATCH('BI Template_EnergyUNM'!$A16,ProposedHeader,0),FALSE) -> 0.89 | G16: =E16*F16 -> 0.89 | H16: =G16-D16 -> 0 | I16: =IF(ISERROR(H16/ABS(D16)),"N/A",(H16/ABS(D16))) -> 0
A17: Distribution Volumetric Charge | B17: =IF($B$9="kWh",$B$4,$B$5) -> 477 | C17: =VLOOKUP($B$3,'Data Current Rates'!$A:$AL,MATCH('BI Template_EnergyUNM'!$A17,CurrentHeader,0),FALSE) -> 0.0265 | D17: 12.6405 | E17: 477 | F17: =VLOOKUP($B$3,'Data Proposed Rates'!$A:$BB,MATCH('BI Template_EnergyUNM'!$A17,ProposedHeader,0),FALSE) -> 0.024 | G17: 11.448 | H17: -1.1925 | I17: -0.09433962264 | J17: =G17/$G$37 -> 0.1102167537
A18: Volumetric Base Rate Adjustment to Recover Past Tax Amounts | B18: =IF($B$9="kWh",$B$4,$B$5) -> 477 | C18: =VLOOKUP($B$3,'Data Current Rates'!$A:$AL,MATCH('BI Template_EnergyUNM'!$A18,CurrentHeader,0),FALSE) -> 0.0006 | D18: =B18*C18 -> 0.2862 | E18: =B18 -> 477 | F18: =VLOOKUP($B$3,'Data Proposed Rates'!$A:$BB,MATCH('BI Template_EnergyUNM'!$A18,ProposedHeader,0),FALSE) -> 0.0006 | G18: =E18*F18 -> 0.2862 | H18: =G18-D18 -> 0 | I18: =IF(ISERROR(H18/ABS(D18)),"N/A",(H18/ABS(D18))) -> 0 | J18: 0.002755418842
A19: Group 1 Volumetric DVA Rider (General) | E19: =B4 -> 477 | F19: =VLOOKUP($B$3,'Data Proposed Rates'!$A:$BB,MATCH('BI Template_EnergyUNM'!$A19,ProposedHeader,0),FALSE) -> -0.0007 | G19: =E19*F19 -> -0.3339 | H19: =G19-D19 -> -0.3339 | I19: =IF(ISERROR(H19/ABS(D19)),"N/A",(H19/ABS(D19))) -> N/A | J19: -0.003214655315
A20: Group 2 Volumetric DVA Rider | E20: =B4 -> 477 | F20: =VLOOKUP($B$3,'Data Proposed Rates'!$A:$BB,MATCH('BI Template_EnergyUNM'!$A20,ProposedHeader,0),FALSE) -> -0.0003 | G20: -0.1431 | H20: -0.1431 | I20: N/A | J20: -0.001377709421
A21: Sub-Total: Distribution (excluding pass through) | D21: =SUM(INDIRECT("D15:D"&ROW()-1)) -> 53.6167 | G21: =SUM(INDIRECT("g15:g"&ROW()-1)) -> 50.4372 | H21: =G21-D21 -> -3.1795 | I21: -0.05930055375 | J21: 0.4855891377
A22: Line Losses on Cost of Power (based on two-tier RPP prices) | B22: =B8-B4 -> 43.884 | C22: =IF(B4>B7,C13,C12) -> 0.098 | D22: =B22*C22 -> 4.300632 | E22: 43.884 | F22: =IF(B4>B7,F13,F12) -> 0.098 | G22: =E22*F22 -> 4.300632 | H22: 0 | I22: 0 | J22: 0.04140476046
A23: Sub-Total: Distribution (based on two-tier RPP prices) | D23: =SUM(D21,D22:D22) -> 57.917332 | G23: =SUM(G21,G22:G22) -> 54.737832 | H23: -3.1795 | I23: -0.05489721108 | J23: 0.5269938981
A24: Retail Transmission Rate – Network Service Rate | B24: =B8 -> 520.884 | C24: =VLOOKUP($B$3,'Data Current Rates'!$A:$AL,MATCH('BI Template_EnergyUNM'!$A24,CurrentHeader,0),FALSE) -> 0.0068 | D24: =B24*C24 -> 3.5420112 | E24: 520.884 | F24: =VLOOKUP($B$3,'Data Proposed Rates'!$A:$BB,MATCH('BI Template_EnergyUNM'!$A24,ProposedHeader,0),FALSE) -> 0.0075 | G24: =E24*F24 -> 3.90663 | H24: =G24-D24 -> 0.3646188 | I24: 0.1029411765 | J24: 0.03761146719
A25: Retail Transmission Rate – Line and Transformation Connection Service Rate | B25: =B8 -> 520.884 | C25: =VLOOKUP($B$3,'Data Current Rates'!$A:$AL,MATCH('BI Template_EnergyUNM'!$A25,CurrentHeader,0),FALSE) -> 0.0049 | D25: =B25*C25 -> 2.5523316 | E25: 520.884 | F25: =VLOOKUP($B$3,'Data Proposed Rates'!$A:$BB,MATCH('BI Template_EnergyUNM'!$A25,ProposedHeader,0),FALSE) -> 0.0052 | G25: =E25*F25 -> 2.7085968 | H25: =G25-D25 -> 0.1562652 | I25: 0.0612244898 | J25: 0.02607728392
A26: Sub-Total: Retail Transmission | D26: =SUM(D24:D25) -> 6.0943428 | G26: =SUM(G24:G25) -> 6.6152268 | H26: =G26-D26 -> 0.520884 | I26: 0.08547008547 | J26: 0.06368875111
A27: Sub-Total: Delivery (based on two-tier RPP prices) | D27: =D23+D26 -> 64.0116748 | G27: =G23+G26 -> 61.3530588 | H27: =G27-D27 -> -2.658616 | I27: -0.04153329855 | J27: 0.5906826493
A28: Wholesale Market Service Rate (WMS) - not including CBR | B28: =B8 -> 520.884 | C28: =VLOOKUP($A28,'Data Pass Through'!$A:$D,2,FALSE) -> 0.003 | D28: =B28*C28 -> 1.562652 | E28: =$B$8 -> 520.884 | F28: =VLOOKUP($A28,'Data Pass Through'!$A:$D,3,FALSE) -> 0.003 | G28: =E28*F28 -> 1.562652 | H28: =G28-D28 -> 0 | I28: 0 | J28: 0.01504458688
A29: Capacity Based Recovery (CBR) - Applicable for Class B Customers | B29: =B8 -> 520.884 | C29: =VLOOKUP($A29,'Data Pass Through'!$A:$D,2,FALSE) -> 0.0004 | D29: =B29*C29 -> 0.2083536 | E29: =$B$8 -> 520.884 | F29: =VLOOKUP($A29,'Data Pass Through'!$A:$D,3,FALSE) -> 0.0004 | G29: =E29*F29 -> 0.2083536 | H29: 0 | I29: 0 | J29: 0.002005944917
A30: Rural Rate Protection Charge | B30: =B8 -> 520.884 | C30: =VLOOKUP($A30,'Data Pass Through'!$A:$D,2,FALSE) -> 0.0005 | D30: 0.260442 | E30: 520.884 | F30: =VLOOKUP($A30,'Data Pass Through'!$A:$D,3,FALSE) -> 0.0005 | G30: 0.260442 | H30: 0 | I30: 0 | J30: 0.002507431146
A31: Standard Supply Service – Administration Charge (if applicable) | B31: 1 | C31: =VLOOKUP($A31,'Data Pass Through'!$A:$D,2,FALSE) -> 0.25 | D31: =B31*C31 -> 0.25 | E31: 1 | F31: =VLOOKUP($A31,'Data Pass Through'!$A:$D,3,FALSE) -> 0.25 | G31: 0.25 | H31: 0 | I31: 0 | J31: 0.002406899757
A32: Sub-Total: Regulatory | D32: =SUM(D28:D31) -> 2.2814476 | G32: =SUM(G28:G31) -> 2.2814476 | H32: 0 | I32: 0 | J32: 0.0219648627
A33: Total Electricty Charge on Two-Tier RPP | D33: =SUM(D14,D21,D22,D26,D32) -> 113.0391224 | G33: =SUM(G14,G21,G22,G26,G32) -> 110.3805064 | H33: -2.658616 | I33: -0.02351943242 | J33: 1.062699256
A34: HST | C34: 0.13 | D34: =D33*C34 -> 14.69508591 | F34: =C34 -> 0.13 | G34: =G33*F34 -> 14.34946583 | H34: -0.34562008 | I34: -0.02351943242 | J34: 0.1381509033
A35: Total Electricity Charge on Two-Tier RPP (including HST) | D35: =SUM(D33:D34) -> 127.7342083 | G35: =SUM(G33:G34) -> 124.7299722 | H35: -3.00423608 | I35: -0.02351943242 | J35: 1.200850159
A36: Ontario Electricity Rebate (OER) | C36: =IF(($B$4*12)<250000,VLOOKUP(A36,'Data Pass Through'!$A$4:$C$20,2,0),0) -> -0.189 | D36: =D33*C36 -> -21.36439413 | F36: =C36 -> -0.189 | G36: =G33*F36 -> -20.86191571 | H36: 0.502478424 | I36: 0.02351943242 | J36: -0.2008501594
A37: Total Amount on Two-Tier RPP | D37: =SUM(D35:D36) -> 106.3698142 | G37: =SUM(G35:G36) -> 103.8680565 | H37: -2.501757656 | I37: -0.02351943242 | J37: 1

Sheet BI Template_Demand (hidden)
A1: 2023 Bill Impacts (Average Consumption Level) - GSd
A3: Rate Class | B3: =RIGHT(A1,LEN(A1)-FIND("- ",A1,1)-1) -> GSd
A4: Monthly Consumption (kWh) | B4: =IF(COUNTIF(A1,"*Low*")>0,VLOOKUP(B3,'Data Billing Quantities'!$A:$Z,MATCH("Low kWh",'Data Billing Quantities'!4:4,0),FALSE),IF(COUNTIF(A1,"*Typical*")>0,VLOOKUP(B3,'Data Billing Quantities'!$A:$Z,MATCH("Typical kWh",'Data Billing Quantities'!4:4,0),FALSE),IF(COUNTIF(A1,"*Average*")>0,VLOOKUP(B3,'Data Billing Quantities'!$A:$Z,MATCH("Average kWh",'Data Billing Quantities'!4:4,0),FALSE),IF(COUNTIF(A1,"*High*")>0,VLOOKUP(B3,'Data Billing Quantities'!$A:$Z,MATCH("High kWh",'Data Billing Quantities'!4:4,0),FALSE),"error")))) -> 34334
A5: Peak (kW) | B5: =IF(COUNTIF(A1,"*Low*")>0,VLOOKUP(B3,'Data Billing Quantities'!$A:$Z,MATCH("Low kW",'Data Billing Quantities'!4:4,0),FALSE),IF(COUNTIF(A1,"*Typical*")>0,VLOOKUP(B3,'Data Billing Quantities'!$A:$Z,MATCH("Typical kW",'Data Billing Quantities'!4:4,0),FALSE),IF(COUNTIF(A1,"*Average*")>0,VLOOKUP(B3,'Data Billing Quantities'!$A:$Z,MATCH("Average kW",'Data Billing Quantities'!4:4,0),FALSE),IF(COUNTIF(A1,"*High*")>0,VLOOKUP(B3,'Data Billing Quantities'!$A:$Z,MATCH("High kW",'Data Billing Quantities'!4:4,0),FALSE),"error")))) -> 110
A6: Loss factor | B6: =VLOOKUP(B3,'Data Billing Quantities'!A:D,MATCH(A6,'Data Billing Quantities'!4:4,0),FALSE) -> 1.061
A7: Load factor | B7: =B4/(B5*730) -> 0.4275716065
A8: Monthly Consumption (kWh) - Uplifted | B8: =B4*B6 -> 36428.374
A9: Charge determinant | B9: =VLOOKUP(B3,'Data Billing Quantities'!A:D,MATCH(A9,'Data Billing Quantities'!4:4,0),FALSE) -> kW
B11: Volume | C11: Current Rate ($) | D11: Current Charge ($) | E11: Volume | F11: Proposed Rate ($) | G11: Proposed Charge ($) | H11: Change ($) | I11: Change (%) | J11: % of Total Bill
A12: Weighted Average Hourly Spot Price | B12: =B8 -> 36428.374 | C12: =VLOOKUP($A12,'Data Pass Through'!$A:$D,2,FALSE) -> 0.119 | D12: =B12*C12 -> 4334.976506 | E12: =B8 -> 36428.374 | F12: =VLOOKUP($A12,'Data Pass Through'!$A:$D,3,FALSE) -> 0.119 | G12: =E12*F12 -> 4334.976506 | H12: =G12-D12 -> 0 | I12: =IF(ISERROR(H12/ABS(D12)),"N/A",(H12/ABS(D12))) -> 0 | J12: =G12/$G$34 -> 0.5257648375
A13: Sub-Total: Energy (WAHSP) | D13: =SUM(D12:D12) -> 4334.976506 | G13: =SUM(G12:G12) -> 4334.976506 | H13: =G13-D13 -> 0 | I13: 0 | J13: 0.5257648375
A14: Service Charge | B14: 1 | C14: =VLOOKUP($B$3,'Data Current Rates'!$A:$AM,MATCH($A14,CurrentHeader,0),FALSE) -> 113.67 | D14: =B14*C14 -> 113.67 | E14: =B14 -> 1 | F14: =VLOOKUP($B$3,'Data Proposed Rates'!$A:$BB,MATCH($A14,ProposedHeader,0),FALSE) -> 105.55 | G14: =E14*F14 -> 105.55 | H14: -8.12 | I14: -0.07143485528 | J14: 0.01280156387
A15: Fixed Base Rate Adjustment to Recover Past Tax Amounts | B15: 1 | C15: =VLOOKUP($B$3,'Data Current Rates'!$A:$AM,MATCH($A15,CurrentHeader,0),FALSE) -> 4.34 | D15: =B15*C15 -> 4.34 | E15: 1 | F15: =VLOOKUP($B$3,'Data Proposed Rates'!$A:$BB,MATCH($A15,ProposedHeader,0),FALSE) -> 4.34 | G15: =E15*F15 -> 4.34 | H15: 0 | I15: 0 | J15: 0.0005263741088
A16: Distribution Volumetric Charge | B16: =IF($B$9="kWh",$B$4,$B$5) -> 110 | C16: =VLOOKUP($B$3,'Data Current Rates'!$A:$AM,MATCH($A16,CurrentHeader,0),FALSE) -> 19.3834 | D16: =B16*C16 -> 2132.174 | E16: =$B$5 -> 110 | F16: =VLOOKUP($B$3,'Data Proposed Rates'!$A:$BB,MATCH($A16,ProposedHeader,0),FALSE) -> 19.5196 | G16: 2147.156 | H16: 14.982 | I16: =IF(ISERROR(H16/ABS(D16)),"N/A",(H16/ABS(D16))) -> 0.007026631035 | J16: 0.2604164345
A17: Volumetric Base Rate Adjustment to Recover Past Tax Amounts | B17: =IF($B$9="kWh",$B$4,$B$5) -> 110 | C17: =VLOOKUP($B$3,'Data Current Rates'!$A:$AM,MATCH($A17,CurrentHeader,0),FALSE) -> 0.7338 | D17: 80.718 | E17: =$B$5 -> 110 | F17: =VLOOKUP($B$3,'Data Proposed Rates'!$A:$BB,MATCH($A17,ProposedHeader,0),FALSE) -> 0.7338 | G17: 80.718 | H17: 0 | I17: =IF(ISERROR(H17/ABS(D17)),"N/A",(H17/ABS(D17))) -> 0 | J17: 0.009789830717
A18: Group 1 Volumetric DVA Rider (General) | E18: 110 | F18: =VLOOKUP($B$3,'Data Proposed Rates'!$A:$BB,MATCH($A18,ProposedHeader,0),FALSE) -> -0.0855 | G18: -9.405 | H18: -9.405 | I18: N/A | J18: -0.001140679376
A19: Group 1 Volumetric Deferral/Variance Account Rider (Sub-Account RSVA Wholesale Market Service Charge & RSVA Power) | E19: 110 | F19: =VLOOKUP($B$3,'Data Proposed Rates'!$A:$BB,MATCH($A19,ProposedHeader,0),FALSE) -> -0.1195 | G19: -13.145 | H19: -13.145 | I19: N/A | J19: -0.001594282871
A20: Group 1 Volumetric Deferral/Variance Account Rider (Sub-Account Global Adjustment) | E20: =B8 -> 36428.374 | F20: =VLOOKUP($B$3,'Data Proposed Rates'!$A:$BB,MATCH($A20,ProposedHeader,0),FALSE) -> -0.0009 | G20: -32.7855366 | H20: -32.7855366 | I20: N/A | J20: -0.003976372721
A21: Group 2 Volumetric DVA Rider | E21: =B5 -> 110 | F21: =VLOOKUP($B$3,'Data Proposed Rates'!$A:$BB,MATCH($A21,ProposedHeader,0),FALSE) -> -0.071 | G21: =E21*F21 -> -7.81 | H21: =G21-D21 -> -7.81 | I21: =IF(ISERROR(H21/ABS(D21)),"N/A",(H21/ABS(D21))) -> N/A | J21: -0.0009472308271
A22: Sub-Total: Distribution | D22: =SUM(INDIRECT("D14:D"&ROW()-1)) -> 2330.902 | G22: =SUM(INDIRECT("g14:g"&ROW()-1)) -> 2274.618463 | H22: -56.2835366 | I22: -0.02414667652 | J22: 0.2758756374
A23: Retail Transmission Rate – Network Service Rate | B23: =IF($B$9="kWh",$B$4,$B$5) -> 110 | C23: =VLOOKUP($B$3,'Data Current Rates'!$A:$AM,MATCH($A23,CurrentHeader,0),FALSE) -> 2.5526 | D23: =B23*C23 -> 280.786 | E23: 110 | F23: =VLOOKUP($B$3,'Data Proposed Rates'!$A:$BB,MATCH($A23,ProposedHeader,0),FALSE) -> 2.8581 | G23: =E23*F23 -> 314.391 | H23: 33.605 | I23: 0.119681893 | J23: 0.03813071024
A24: Retail Transmission Rate – Line and Transformation Connection Service Rate | B24: =IF($B$9="kWh",$B$4,$B$5) -> 110 | C24: =VLOOKUP($B$3,'Data Current Rates'!$A:$AM,MATCH($A24,CurrentHeader,0),FALSE) -> 1.7916 | D24: =B24*C24 -> 197.076 | E24: 110 | F24: =VLOOKUP($B$3,'Data Proposed Rates'!$A:$BB,MATCH($A24,ProposedHeader,0),FALSE) -> 2.093 | G24: =E24*F24 -> 230.23 | H24: 33.154 | I24: 0.1682295155 | J24: 0.02792329748
A25: Sub-Total: Retail Transmission | D25: =SUM(D23:D24) -> 477.862 | G25: =SUM(G23:G24) -> 544.621 | H25: 66.759 | I25: 0.1397035127 | J25: 0.06605400772
A26: Sub-Total: Delivery | D26: =D22+D25 -> 2808.764 | G26: =G22+G25 -> 2819.239463 | H26: 10.4754634 | I26: 0.003729563395 | J26: 0.3419296451
A27: Wholesale Market Service Rate (WMS) - not including CBR | B27: =$B$8 -> 36428.374 | C27: =VLOOKUP($A27,'Data Pass Through'!$A:$D,2,FALSE) -> 0.003 | D27: =B27*C27 -> 109.285122 | E27: =$B$8 -> 36428.374 | F27: =VLOOKUP($A27,'Data Pass Through'!$A:$D,3,FALSE) -> 0.003 | G27: =E27*F27 -> 109.285122 | H27: 0 | I27: 0 | J27: 0.01325457574
A28: Capacity Based Recovery (CBR) - Applicable for Class B Customers | B28: =$B$8 -> 36428.374 | C28: =VLOOKUP($A28,'Data Pass Through'!$A:$D,2,FALSE) -> 0.0004 | D28: =B28*C28 -> 14.5713496 | E28: =$B$8 -> 36428.374 | F28: =VLOOKUP($A28,'Data Pass Through'!$A:$D,3,FALSE) -> 0.0004 | G28: =E28*F28 -> 14.5713496 | H28: =G28-D28 -> 0 | I28: 0 | J28: 0.001767276765
A29: Rural Rate Protection Charge | B29: =$B$8 -> 36428.374 | C29: =VLOOKUP($A29,'Data Pass Through'!$A:$D,2,FALSE) -> 0.0005 | D29: =B29*C29 -> 18.214187 | E29: =$B$8 -> 36428.374 | F29: =VLOOKUP($A29,'Data Pass Through'!$A:$D,3,FALSE) -> 0.0005 | G29: =E29*F29 -> 18.214187 | H29: =G29-D29 -> 0 | I29: 0 | J29: 0.002209095956
A30: Standard Supply Service – Administration Charge (if applicable) | B30: 1 | C30: =VLOOKUP($A30,'Data Pass Through'!$A:$D,2,FALSE) -> 0.25 | D30: =B30*C30 -> 0.25 | E30: 1 | F30: =VLOOKUP($A30,'Data Pass Through'!$A:$D,3,FALSE) -> 0.25 | G30: =E30*F30 -> 0.25 | H30: 0 | I30: 0 | J30: 3.032108921e-05
A31: Sub-Total: Regulatory | D31: =SUM(D27:D30) -> 142.3206586 | G31: =SUM(G27:G30) -> 142.3206586 | H31: 0 | I31: 0 | J31: 0.01726126955
A32: Total Electricity Charge on Two-Tier RPP (before HST) | D32: =SUM(D13,D22,D25,D31) -> 7286.061165 | G32: =SUM(G13,G22,G25,G31) -> 7296.536628 | H32: 10.4754634 | I32: 0.00143774025 | J32: 0.8849557522
A33: HST | C33: 0.13 | D33: =D32*C33 -> 947.1879514 | F33: =C33 -> 0.13 | G33: =G32*F33 -> 948.5497616 | H33: 1.361810242 | I33: 0.00143774025 | J33: 0.1150442478
A34: Total Amount on WAHSP | D34: =SUM(D32:D33) -> 8233.249116 | G34: =SUM(G32:G33) -> 8245.08639 | H34: 11.83727364 | I34: 0.00143774025 | J34: 1

Sheet BI Template_Seasonal (hidden)
A1: 2023 Bill Impacts (Low Consumption Level) - Seas-UR
A3: Rate Class | B3: =VLOOKUP(A1,'Data BI List Acq_Seas'!C:E,2,FALSE) -> Seasonal | C3: =VLOOKUP(A1,'Data BI List Acq_Seas'!C:E,3,FALSE) -> Seas-UR
A4: Monthly Consumption (kWh) | B4: =IF(COUNTIF(A1,"*Low*")>0,VLOOKUP(B3,'Data Billing Quantities'!$A:$Z,MATCH("Low kWh",'Data Billing Quantities'!4:4,0),FALSE),IF(COUNTIF(A1,"*Typical*")>0,VLOOKUP(B3,'Data Billing Quantities'!$A:$Z,MATCH("Typical kWh",'Data Billing Quantities'!4:4,0),FALSE),IF(COUNTIF(A1,"*Average*")>0,VLOOKUP(B3,'Data Billing Quantities'!$A:$Z,MATCH("Average kWh",'Data Billing Quantities'!4:4,0),FALSE),IF(COUNTIF(A1,"*High*")>0,VLOOKUP(B3,'Data Billing Quantities'!$A:$Z,MATCH("High kWh",'Data Billing Quantities'!4:4,0),FALSE),"error")))) -> 40 | C4: =B4 -> 40
A5: Peak (kW) | B5: =IF(COUNTIF(A1,"*Low*")>0,VLOOKUP(B3,'Data Billing Quantities'!$A:$Z,MATCH("Low kW",'Data Billing Quantities'!4:4,0),FALSE),IF(COUNTIF(A1,"*Typical*")>0,VLOOKUP(B3,'Data Billing Quantities'!$A:$Z,MATCH("Typical kW",'Data Billing Quantities'!4:4,0),FALSE),IF(COUNTIF(A1,"*Average*")>0,VLOOKUP(B3,'Data Billing Quantities'!$A:$Z,MATCH("Average kW",'Data Billing Quantities'!4:4,0),FALSE),IF(COUNTIF(A1,"*High*")>0,VLOOKUP(B3,'Data Billing Quantities'!$A:$Z,MATCH("High kW",'Data Billing Quantities'!4:4,0),FALSE),"error")))) -> 0 | C5: =B5 -> 0
A6: Loss factor | B6: =VLOOKUP(B3,'Data Billing Quantities'!A:D,MATCH(A6,'Data Billing Quantities'!4:4,0),FALSE) -> 1.104 | C6: =VLOOKUP(C3,'Data Billing Quantities'!A:D,MATCH(A6,'Data Billing Quantities'!4:4,0),FALSE) -> 1.057
A7: Commodity Threshold | B7: =VLOOKUP(B3,'Data Billing Quantities'!A:D,MATCH(A7,'Data Billing Quantities'!4:4,0),FALSE) -> 600 | C7: =B7 -> 600
A8: Monthly Consumption (kWh) - Uplifted | B8: =B4*B6 -> 44.16 | C8: =C4*C6 -> 42.28
A9: Charge determinant | B9: =VLOOKUP(B3,'Data Billing Quantities'!A:D,MATCH(A9,'Data Billing Quantities'!4:4,0),FALSE) -> kWh | C9: =VLOOKUP(C3,'Data Billing Quantities'!A:D,MATCH(A9,'Data Billing Quantities'!4:4,0),FALSE) -> kWh
B11: Volume | C11: Current Rate ($) | D11: Current Charge ($) | E11: Volume | F11: Proposed Rate ($) | G11: Proposed Charge ($) | H11: Change ($) | I11: Change (%) | J11: % of Total Bill on RPP | K11: % of Total Bill
A12: Energy First Tier | B12: =IF(B4>B7,B7,B4) -> 40 | C12: =VLOOKUP($A12,'Data Pass Through'!$A:$D,2,FALSE) -> 0.098 | D12: =B12*C12 -> 3.92 | E12: =B12 -> 40 | F12: =VLOOKUP($A12,'Data Pass Through'!$A:$D,3,FALSE) -> 0.098 | G12: =E12*F12 -> 3.92 | H12: =G12-D12 -> 0 | I12: =IF(ISERROR(H12/ABS(D12)),"N/A",(H12/ABS(D12))) -> 0 | J12: =G12/$G$44 -> 0.09107798723
A13: Energy Second Tier | B13: =IF(B4>B7,(B4)-B7,0) -> 0 | C13: =VLOOKUP($A13,'Data Pass Through'!$A:$D,2,FALSE) -> 0.115 | D13: =B13*C13 -> 0 | E13: =B13 -> 0 | F13: =VLOOKUP($A13,'Data Pass Through'!$A:$D,3,FALSE) -> 0.115 | G13: =E13*F13 -> 0 | H13: 0 | I13: N/A | J13: =G13/$G$44 -> 0
A14: Sub-Total: Energy (RPP Tiered) | D14: =SUM(D12:D13) -> 3.92 | G14: =SUM(G12:G13) -> 3.92 | H14: 0 | I14: 0 | J14: =G14/$G$44 -> 0.09107798723
A15: TOU-Off Peak | B15: =B$4*VLOOKUP($B$3,'Data Billing Quantities'!$A:$O,MATCH('BI Template_Seasonal'!$A15,'Data Billing Quantities'!$4:$4,0),FALSE) -> 25.6 | C15: =VLOOKUP($A15,'Data Pass Through'!$A:$D,2,FALSE) -> 0.082 | D15: =B15*C15 -> 2.0992 | E15: 25.6 | F15: =VLOOKUP($A15,'Data Pass Through'!$A:$D,3,FALSE) -> 0.082 | G15: =E15*F15 -> 2.0992 | H15: 0 | I15: 0 | K15: =G15/$G$49 -> 0.04853004842
A16: TOU-Mid Peak | B16: =B$4*VLOOKUP($B$3,'Data Billing Quantities'!$A:$O,MATCH('BI Template_Seasonal'!$A16,'Data Billing Quantities'!$4:$4,0),FALSE) -> 7.2 | C16: =VLOOKUP($A16,'Data Pass Through'!$A:$D,2,FALSE) -> 0.113 | D16: =B16*C16 -> 0.8136 | E16: 7.2 | F16: =VLOOKUP($A16,'Data Pass Through'!$A:$D,3,FALSE) -> 0.113 | G16: =E16*F16 -> 0.8136 | H16: 0 | I16: 0 | K16: 0.0188090927
A17: TOU-On Peak | B17: =B$4*VLOOKUP($B$3,'Data Billing Quantities'!$A:$O,MATCH('BI Template_Seasonal'!$A17,'Data Billing Quantities'!$4:$4,0),FALSE) -> 7.2 | C17: =VLOOKUP($A17,'Data Pass Through'!$A:$D,2,FALSE) -> 0.17 | D17: =B17*C17 -> 1.224 | E17: 7.2 | F17: =VLOOKUP($A17,'Data Pass Through'!$A:$D,3,FALSE) -> 0.17 | G17: =E17*F17 -> 1.224 | H17: 0 | I17: 0 | K17: 0.02829686512
A18: Sub-Total: Energy (RPP TOU) | D18: =SUM(D15:D17) -> 4.1368 | G18: =SUM(G15:G17) -> 4.1368 | H18: 0 | I18: 0 | J18: =G18/$G$44 -> 0.09611515754 | K18: 0.09563600624
A19: Service Charge | B19: 1 | C19: =VLOOKUP($B$3,'Data Current Rates'!$A:$AL,MATCH('BI Template_Seasonal'!$A19,CurrentHeader,0),FALSE) -> 58.43 | D19: =B19*C19 -> 58.43 | E19: 1 | F19: =IF(C3="R2",(VLOOKUP($C$3,'Data Proposed Rates'!$A:$BB,MATCH('BI Template_Seasonal'!$A19,ProposedHeader,0),FALSE)+'Data Pass Through'!B4),VLOOKUP($C$3,'Data Proposed Rates'!$A:$BB,MATCH('BI Template_Seasonal'!$A19,ProposedHeader,0),FALSE)) -> 38.1 | G19: =E19*F19 -> 38.1 | H19: -20.33 | I19: -0.3479377032 | J19: 0.8852222738 | K19: 0.880809282
A20: Fixed Base Rate Adjustment to Recover Past Tax Amounts | B20: 1 | C20: =VLOOKUP($B$3,'Data Current Rates'!$A:$AL,MATCH('BI Template_Seasonal'!$A20,CurrentHeader,0),FALSE) -> 1.79 | D20: =B20*C20 -> 1.79 | E20: 1 | F20: =IF(C4="R2",(VLOOKUP($C$3,'Data Proposed Rates'!$A:$BB,MATCH('BI Template_Seasonal'!$A20,ProposedHeader,0),FALSE)+'Data Pass Through'!B5),VLOOKUP($C$3,'Data Proposed Rates'!$A:$BB,MATCH('BI Template_Seasonal'!$A20,ProposedHeader,0),FALSE)) -> 1.79 | G20: =E20*F20 -> 1.79 | H20: 0 | I20: 0 | J20: 0.04158918294 | K20: 0.0413818534
A21: Group 2 Fixed DVA Rider | E21: 1 | F21: =VLOOKUP($C$3,'Data Proposed Rates'!$A:$BB,MATCH('BI Template_Seasonal'!$A21,ProposedHeader,0),FALSE) -> -0.11 | G21: -0.11 | H21: -0.11 | I21: N/A | J21: -0.002555759846 | K21: -0.002543018924
A22: Distribution Volumetric Charge | B22: =IF($B$9="kWh",$B$4,$B$5) -> 40 | C22: =VLOOKUP($B$3,'Data Current Rates'!$A:$AL,MATCH('BI Template_Seasonal'!$A22,CurrentHeader,0),FALSE) -> 0.0311 | D22: 1.244 | E22: =IF($C$9="kWh",$C$4,$C$5) -> 40 | F22: =VLOOKUP($C$3,'Data Proposed Rates'!$A:$BB,MATCH('BI Template_Seasonal'!$A22,ProposedHeader,0),FALSE) -> 0 | G22: 0 | H22: -1.244 | I22: -1 | J22: 0 | K22: 0
A23: Group 1 Volumetric DVA Rider (General) | E23: =IF($C$9="kWh",$C$4,$C$5) -> 40 | F23: =VLOOKUP($C$3,'Data Proposed Rates'!$A:$BB,MATCH('BI Template_Seasonal'!$A23,ProposedHeader,0),FALSE) -> -0.0007 | G23: -0.028 | H23: -0.028 | I23: N/A | J23: -0.0006505570516 | K23: -0.000647313908
A24: Sub-Total: Distribution (excluding pass through) | D24: =SUM(INDIRECT("D19:D"&ROW()-1)) -> 61.464 | G24: =SUM(INDIRECT("g19:g"&ROW()-1)) -> 39.752 | H24: =G24-D24 -> -21.712 | I24: -0.3532474294 | J24: 0.9236051399 | K24: 0.9190008025
A25: Smart Metering Entity Charge | B25: =B19 -> 1 | C25: =VLOOKUP($A25,'Data Pass Through'!$A:$D,2,FALSE) -> 0.57 | D25: =B25*C25 -> 0.57 | E25: =E19 -> 1 | F25: =VLOOKUP($A25,'Data Pass Through'!$A:$D,3,FALSE) -> 0.57 | G25: =E25*F25 -> 0.57 | H25: 0 | I25: 0 | J25: 0.01324348284 | K25: 0.0131774617
A26: Line Losses on Cost of Power (based on two-tier RPP prices) | B26: =B8-B4 -> 4.16 | C26: =IF(B4>B7,C13,C12) -> 0.098 | D26: =B26*C26 -> 0.40768 | E26: =C8-C4 -> 2.28 | F26: =IF(C4>C7,F13,F12) -> 0.098 | G26: =E26*F26 -> 0.22344 | H26: -0.18424 | I26: -0.4519230769 | J26: 0.005191445272 | K26: 0.005165564986
A27: Line Losses on Cost of Power (based on TOU prices) | B27: =B8-B4 -> 4.16 | C27: =VLOOKUP($B$3,'Data Billing Quantities'!$A:$O,MATCH('BI Template_Seasonal'!$A15,'Data Billing Quantities'!$4:$4,0),FALSE)*C15+VLOOKUP($B$3,'Data Billing Quantities'!$A:$O,MATCH('BI Template_Seasonal'!$A16,'Data Billing Quantities'!$4:$4,0),FALSE)*C16+VLOOKUP($B$3,'Data Billing Quantities'!$A:$O,MATCH('BI Template_Seasonal'!$A17,'Data Billing Quantities'!$4:$4,0),FALSE)*C17 -> 0.10342 | D27: =B27*C27 -> 0.4302272 | E27: =C8-C4 -> 2.28 | F27: =VLOOKUP($C$3,'Data Billing Quantities'!$A:$O,MATCH('BI Template_Seasonal'!$A15,'Data Billing Quantities'!$4:$4,0),FALSE)*F15+VLOOKUP($C$3,'Data Billing Quantities'!$A:$O,MATCH('BI Template_Seasonal'!$A16,'Data Billing Quantities'!$4:$4,0),FALSE)*F16+VLOOKUP($C$3,'Data Billing Quantities'!$A:$O,MATCH('BI Template_Seasonal'!$A17,'Data Billing Quantities'!$4:$4,0),FALSE)*F17 -> 0.10342 | G27: =E27*F27 -> 0.2357976 | H27: -0.1944296 | I27: -0.4519230769 | J27: 0.00547856398 | K27: 0.005451252355
A28: Sub-Total: Distribution (based on two-tier RPP prices) | D28: =SUM(D24,D25:D26) -> 62.44168 | G28: =SUM(G24,G25:G26) -> 40.54544 | H28: -21.89624 | I28: -0.3506670544 | J28: 0.942040068 | K28: 0.9373438292
A29: Sub-Total: Distribution (based on TOU prices) | D29: =SUM(D24,D25,D27) -> 62.4642272 | G29: =SUM(G24,G25,G27) -> 40.5577976 | H29: -21.9064296 | I29: -0.350703604 | J29: 0.9423271867 | K29: 0.9376295166
A30: Retail Transmission Rate – Network Service Rate | B30: =IF($B$9="kWh",$B$8,$B$5) -> 44.16 | C30: =VLOOKUP($B$3,'Data Current Rates'!$A:$AL,MATCH('BI Template_Seasonal'!$A30,CurrentHeader,0),FALSE) -> 0.0081 | D30: =B30*C30 -> 0.357696 | E30: =IF($C$9="kWh",$C$8,$C$5) -> 42.28 | F30: =VLOOKUP($C$3,'Data Proposed Rates'!$A:$BB,MATCH('BI Template_Seasonal'!$A30,ProposedHeader,0),FALSE) -> 0.012 | G30: =E30*F30 -> 0.50736 | H30: =G30-D30 -> 0.149664 | I30: 0.4184111648 | J30: 0.01178809378 | K30: 0.01172932801
A31: Retail Transmission Rate – Line and Transformation Connection Service Rate | B31: =IF($B$9="kWh",$B$8,$B$5) -> 44.16 | C31: =VLOOKUP($B$3,'Data Current Rates'!$A:$AL,MATCH('BI Template_Seasonal'!$A31,CurrentHeader,0),FALSE) -> 0.0064 | D31: =B31*C31 -> 0.282624 | E31: =IF($C$9="kWh",$C$8,$C$5) -> 42.28 | F31: =VLOOKUP($C$3,'Data Proposed Rates'!$A:$BB,MATCH('BI Template_Seasonal'!$A31,ProposedHeader,0),FALSE) -> 0.0083 | G31: =E31*F31 -> 0.350924 | H31: =G31-D31 -> 0.0683 | I31: 0.2416638361 | J31: 0.008153431528 | K31: 0.008112785209
A32: Sub-Total: Retail Transmission | D32: =SUM(D30:D31) -> 0.64032 | G32: =SUM(G30:G31) -> 0.858284 | H32: =G32-D32 -> 0.217964 | I32: 0.3403985507 | J32: 0.0199415253 | K32: 0.01984211322
A33: Sub-Total: Delivery (based on two-tier RPP prices) | D33: =D28+D32 -> 63.082 | G33: =G28+G32 -> 41.403724 | H33: =G33-D33 -> -21.678276 | I33: -0.3436523255 | J33: 0.9619815933 | K33: 0.9571859424
A34: Sub-Total: Delivery (based on TOU prices) | D34: =D29+D32 -> 63.1045472 | G34: =G29+G32 -> 41.4160816 | H34: =G34-D34 -> -21.6884656 | I34: -0.3436910106 | J34: 0.962268712 | K34: 0.9574716298
A35: Wholesale Market Service Rate (WMS) - not including CBR | B35: =B8 -> 44.16 | C35: =VLOOKUP($A35,'Data Pass Through'!$A:$D,2,FALSE) -> 0.003 | D35: =B35*C35 -> 0.13248 | E35: =$C$8 -> 42.28 | F35: =VLOOKUP($A35,'Data Pass Through'!$A:$D,3,FALSE) -> 0.003 | G35: =E35*F35 -> 0.12684 | H35: -0.00564 | I35: -0.04257246377 | J35: 0.002947023444 | K35: 0.002932332003
A36: Capacity Based Recovery (CBR) - Applicable for Class B Customers | B36: =B8 -> 44.16 | C36: =VLOOKUP($A36,'Data Pass Through'!$A:$D,2,FALSE) -> 0.0004 | D36: =B36*C36 -> 0.017664 | E36: =$C$8 -> 42.28 | F36: =VLOOKUP($A36,'Data Pass Through'!$A:$D,3,FALSE) -> 0.0004 | G36: =E36*F36 -> 0.016912 | H36: -0.000752 | I36: -0.04257246377 | J36: 0.0003929364592 | K36: 0.0003909776004
A37: Rural Rate Protection Charge | B37: =B8 -> 44.16 | C37: =VLOOKUP($A37,'Data Pass Through'!$A:$D,2,FALSE) -> 0.0005 | D37: 0.02208 | E37: 42.28 | F37: =VLOOKUP($A37,'Data Pass Through'!$A:$D,3,FALSE) -> 0.0005 | G37: 0.02114 | H37: -0.00094 | I37: -0.04257246377 | J37: 0.000491170574 | K37: 0.0004887220005
A38: Standard Supply Service – Administration Charge (if applicable) | B38: 1 | C38: =VLOOKUP($A38,'Data Pass Through'!$A:$D,2,FALSE) -> 0.25 | D38: =B38*C38 -> 0.25 | E38: 1 | F38: =VLOOKUP($A38,'Data Pass Through'!$A:$D,3,FALSE) -> 0.25 | G38: 0.25 | H38: 0 | I38: 0 | J38: 0.005808545104 | K38: 0.005779588464
A39: Sub-Total: Regulatory | D39: =SUM(D35:D38) -> 0.422224 | G39: =SUM(G35:G38) -> 0.414892 | H39: -0.007332 | I39: -0.01736519004 | J39: 0.009639675581 | K39: 0.009591620069
A40: Total Electricty Charge on Two-Tier RPP | D40: =SUM(D14,D24,D25,D26,D32,D39) -> 67.424224 | G40: =SUM(G14,G24,G25,G26,G32,G39) -> 45.738616 | H40: -21.685608 | I40: -0.3216293301 | J40: 1.062699256
A41: HST | C41: 0.13 | D41: =D40*C41 -> 8.76514912 | F41: =C41 -> 0.13 | G41: =G40*F41 -> 5.94602008 | H41: -2.81912904 | I41: -0.3216293301 | J41: 0.1381509033
A42: Total Electricity Charge on Two-Tier RPP (including HST) | D42: =SUM(D40:D41) -> 76.18937312 | G42: =SUM(G40:G41) -> 51.68463608 | H42: -24.50473704 | I42: -0.3216293301 | J42: 1.200850159
A43: Ontario Electricity Rebate (OER) | C43: =IF(($B$4*12)<250000,VLOOKUP(A43,'Data Pass Through'!$A$4:$C$20,2,0),0) -> -0.189 | D43: =D40*C43 -> -12.74317834 | F43: =C43 -> -0.189 | G43: =G40*F43 -> -8.644598424 | H43: 4.098579912 | I43: 0.3216293301 | J43: -0.2008501594
A44: Total Amount on Two-Tier RPP | D44: =SUM(D42:D43) -> 63.44619478 | G44: =SUM(G42:G43) -> 43.04003766 | H44: -20.40615713 | I44: -0.3216293301 | J44: 1
A45: Total Electricty Charge on TOU (before HST) | D45: =SUM(D18,D24,D25,D27,D32,D39) -> 67.6635712 | G45: =SUM(G18,G24,G25,G27,G32,G39) -> 45.9677736 | H45: -21.6957976 | I45: -0.3206422188 | K45: =G45/$G$49 -> 1.062699256
A46: HST | C46: 0.13 | D46: =D45*C46 -> 8.796264256 | F46: =C46 -> 0.13 | G46: =G45*F46 -> 5.975810568 | H46: -2.820453688 | I46: -0.3206422188 | K46: =G46/$G$49 -> 0.1381509033
A47: Total Electricity Charge on TOU (including HST) | D47: =SUM(D45:D46) -> 76.45983546 | G47: =SUM(G45:G46) -> 51.94358417 | H47: -24.51625129 | I47: -0.3206422188 | K47: =G47/$G$49 -> 1.200850159
A48: Ontario Electricity Rebate (OER) | C48: =IF(($B$4*12)<250000,VLOOKUP(A48,'Data Pass Through'!$A$4:$C$20,2,0),0) -> -0.189 | D48: =D45*C48 -> -12.78841496 | F48: =C48 -> -0.189 | G48: =G45*F48 -> -8.68790921 | H48: 4.100505746 | I48: 0.3206422188 | K48: =G48/$G$49 -> -0.2008501594
A49: Total Amount on TOU | D49: =SUM(D47:D48) -> 63.6714205 | G49: =SUM(G47:G48) -> 43.25567496 | H49: -20.41574554 | I49: -0.3206422188 | K49: =G49/$G$49 -> 1
A50: * Distribution rate protection applies to R1 and R2 customers

Sheet BI Template_EnergyNPDI (hidden)
A1: 2023 Bill Impacts (Low Consumption Level) - AR_NPDI
A3: Rate Class | B3: =VLOOKUP(A1,'Data BI List Acq_Seas'!C:E,2,FALSE) -> NPDI_RES | C3: =VLOOKUP(A1,'Data BI List Acq_Seas'!C:E,3,FALSE) -> AR-NPDI
A4: Monthly Consumption (kWh) | B4: =IF(COUNTIF(A1,"*Low*")>0,VLOOKUP(B3,'Data Billing Quantities'!$A:$Z,MATCH("Low kWh",'Data Billing Quantities'!4:4,0),FALSE),IF(COUNTIF(A1,"*Typical*")>0,VLOOKUP(B3,'Data Billing Quantities'!$A:$Z,MATCH("Typical kWh",'Data Billing Quantities'!4:4,0),FALSE),IF(COUNTIF(A1,"*Average*")>0,VLOOKUP(B3,'Data Billing Quantities'!$A:$Z,MATCH("Average kWh",'Data Billing Quantities'!4:4,0),FALSE),IF(COUNTIF(A1,"*High*")>0,VLOOKUP(B3,'Data Billing Quantities'!$A:$Z,MATCH("High kWh",'Data Billing Quantities'!4:4,0),FALSE),"error")))) -> 290 | C4: =B4 -> 290
A5: Peak (kW) | B5: =IF(COUNTIF(A1,"*Low*")>0,VLOOKUP(B3,'Data Billing Quantities'!$A:$Z,MATCH("Low kW",'Data Billing Quantities'!4:4,0),FALSE),IF(COUNTIF(A1,"*Typical*")>0,VLOOKUP(B3,'Data Billing Quantities'!$A:$Z,MATCH("Typical kW",'Data Billing Quantities'!4:4,0),FALSE),IF(COUNTIF(A1,"*Average*")>0,VLOOKUP(B3,'Data Billing Quantities'!$A:$Z,MATCH("Average kW",'Data Billing Quantities'!4:4,0),FALSE),IF(COUNTIF(A1,"*High*")>0,VLOOKUP(B3,'Data Billing Quantities'!$A:$Z,MATCH("High kW",'Data Billing Quantities'!4:4,0),FALSE),"error")))) -> 0 | C5: =B5 -> 0
A6: Loss factor | B6: =VLOOKUP(B3,'Data Billing Quantities'!A:D,MATCH(A6,'Data Billing Quantities'!4:4,0),FALSE) -> 1.0564 | C6: =VLOOKUP(C3,'Data Billing Quantities'!A:D,MATCH(A6,'Data Billing Quantities'!4:4,0),FALSE) -> 1.064
A7: Commodity Threshold | B7: =VLOOKUP(B3,'Data Billing Quantities'!A:D,MATCH(A7,'Data Billing Quantities'!4:4,0),FALSE) -> 600 | C7: =B7 -> 600
A8: Monthly Consumption (kWh) - Uplifted | B8: =B4*B6 -> 306.356 | C8: =C4*C6 -> 308.56
A9: Charge determinant | B9: =VLOOKUP(B3,'Data Billing Quantities'!A:D,MATCH(A9,'Data Billing Quantities'!4:4,0),FALSE) -> kWh | C9: =VLOOKUP(C3,'Data Billing Quantities'!A:D,MATCH(A9,'Data Billing Quantities'!4:4,0),FALSE) -> kWh
B11: Volume | C11: Current Rate ($) | D11: Current Charge ($) | E11: Volume | F11: Proposed Rate ($) | G11: Proposed Charge ($) | H11: Change ($) | I11: Change (%) | J11: % of Total Bill on RPP | K11: % of Total Bill
A12: Energy First Tier | B12: =IF(B4>B7,B7,B4) -> 290 | C12: =VLOOKUP($A12,'Data Pass Through'!$A:$D,2,FALSE) -> 0.098 | D12: =B12*C12 -> 28.42 | E12: =B12 -> 290 | F12: =VLOOKUP($A12,'Data Pass Through'!$A:$D,3,FALSE) -> 0.098 | G12: =E12*F12 -> 28.42 | H12: =G12-D12 -> 0 | I12: =IF(ISERROR(H12/ABS(D12)),"N/A",(H12/ABS(D12))) -> 0 | J12: =G12/$G$49 -> 0.3969367787
A13: Energy Second Tier | B13: =IF(B4>B7,(B4)-B7,0) -> 0 | C13: =VLOOKUP($A13,'Data Pass Through'!$A:$D,2,FALSE) -> 0.115 | D13: =B13*C13 -> 0 | E13: =B13 -> 0 | F13: =VLOOKUP($A13,'Data Pass Through'!$A:$D,3,FALSE) -> 0.115 | G13: =E13*F13 -> 0 | H13: 0 | I13: N/A | J13: =G13/$G$49 -> 0
A14: Sub-Total: Energy (RPP Tiered) | D14: =SUM(D12:D13) -> 28.42 | G14: =SUM(G12:G13) -> 28.42 | H14: 0 | I14: 0 | J14: =G14/$G$49 -> 0.3969367787
A15: TOU-Off Peak | B15: =B$4*VLOOKUP($B$3,'Data Billing Quantities'!$A:$O,MATCH('BI Template_EnergyNPDI'!$A15,'Data Billing Quantities'!$4:$4,0),FALSE) -> 185.6 | C15: =VLOOKUP($A15,'Data Pass Through'!$A:$D,2,FALSE) -> 0.082 | D15: =B15*C15 -> 15.2192 | E15: 185.6 | F15: =VLOOKUP($A15,'Data Pass Through'!$A:$D,3,FALSE) -> 0.082 | G15: =E15*F15 -> 15.2192 | H15: 0 | I15: 0 | K15: =G15/$G$54 -> 0.2079920499
A16: TOU-Mid Peak | B16: =B$4*VLOOKUP($B$3,'Data Billing Quantities'!$A:$O,MATCH('BI Template_EnergyNPDI'!$A16,'Data Billing Quantities'!$4:$4,0),FALSE) -> 52.2 | C16: =VLOOKUP($A16,'Data Pass Through'!$A:$D,2,FALSE) -> 0.113 | D16: =B16*C16 -> 5.8986 | E16: 52.2 | F16: =VLOOKUP($A16,'Data Pass Through'!$A:$D,3,FALSE) -> 0.113 | G16: =E16*F16 -> 5.8986 | H16: 0 | I16: 0 | K16: 0.08061277241
A17: TOU-On Peak | B17: =B$4*VLOOKUP($B$3,'Data Billing Quantities'!$A:$O,MATCH('BI Template_EnergyNPDI'!$A17,'Data Billing Quantities'!$4:$4,0),FALSE) -> 52.2 | C17: =VLOOKUP($A17,'Data Pass Through'!$A:$D,2,FALSE) -> 0.17 | D17: =B17*C17 -> 8.874 | E17: 52.2 | F17: =VLOOKUP($A17,'Data Pass Through'!$A:$D,3,FALSE) -> 0.17 | G17: =E17*F17 -> 8.874 | H17: 0 | I17: 0 | K17: 0.1212758523
A18: Sub-Total: Energy (RPP TOU) | D18: =SUM(D15:D17) -> 29.9918 | G18: =SUM(G15:G17) -> 29.9918 | H18: 0 | I18: 0 | J18: =G18/$G$49 -> 0.4188898128 | K18: 0.4098806746
A19: Service Charge | B19: 1 | C19: =VLOOKUP($B$3,'Data Current Rates'!$A:$AL,MATCH('BI Template_EnergyNPDI'!$A19,CurrentHeader,0),FALSE) -> 39.1 | D19: =B19*C19 -> 39.1 | E19: 1 | F19: =VLOOKUP($C$3,'Data Proposed Rates'!$A:$BB,MATCH('BI Template_EnergyNPDI'!$A19,ProposedHeader,0),FALSE) -> 38.2 | G19: =E19*F19 -> 38.2 | H19: -0.9 | I19: -0.02301790281 | J19: 0.5335321937 | K19: 0.5220574214
A20: Distribution Volumetric Charge | B20: =IF($B$9="kWh",$B$4,$B$5) -> 290 | C20: =VLOOKUP($B$3,'Data Current Rates'!$A:$AL,MATCH('BI Template_EnergyNPDI'!$A20,CurrentHeader,0),FALSE) -> 0 | D20: =B20*C20 -> 0 | E20: =IF($C$9="kWh",$C$4,$C$5) -> 290 | F20: =VLOOKUP($C$3,'Data Proposed Rates'!$A:$BB,MATCH('BI Template_EnergyNPDI'!$A20,ProposedHeader,0),FALSE) -> 0 | G20: 0 | H20: 0 | I20: N/A | J20: 0 | K20: 0
A21: Low Voltage Service Rate | B21: =IF($B$9="kWh",$B$4,$B$5) -> 290 | C21: =VLOOKUP($B$3,'Data Current Rates'!$A:$AL,MATCH('BI Template_EnergyNPDI'!$A21,CurrentHeader,0),FALSE) -> 0.0009 | D21: 0.261 | H21: =G21-D21 -> -0.261 | I21: =IF(ISERROR(H21/ABS(D21)),"N/A",(H21/ABS(D21))) -> -1 | J21: 0 | K21: 0
A22: Rate Rider for Application of Tax Change | B22: 290 | C22: =VLOOKUP($B$3,'Data Current Rates'!$A:$AL,MATCH('BI Template_EnergyNPDI'!$A22,CurrentHeader,0),FALSE) -> 0.0002 | D22: 0.058 | H22: -0.058 | I22: -1 | J22: 0 | K22: 0
A23: Group 1 Volumetric DVA Rider (General) | E23: =IF($C$9="kWh",$C$4,$C$5) -> 290 | F23: =VLOOKUP($C$3,'Data Proposed Rates'!$A:$BB,MATCH('BI Template_EnergyNPDI'!$A23,ProposedHeader,0),FALSE) -> -0.0008 | G23: -0.232 | H23: -0.232 | I23: N/A | J23: -0.003240300234 | K23: -0.003170610517
A24: Group 2 Fixed DVA Rider | B24: 1 | C24: =VLOOKUP($B$3,'Data Current Rates'!$A:$AL,MATCH('BI Template_EnergyNPDI'!$A24,CurrentHeader,0),FALSE) -> -0.14 | D24: -0.14 | H24: =G24-D24 -> 0.14 | I24: =IF(ISERROR(H24/ABS(D24)),"N/A",(H24/ABS(D24))) -> 1 | J24: =G24/$G$49 -> 0 | K24: =G24/$G$54 -> 0
A25: Group 2 Volumetric DVA Rider | B25: =IF($B$9="kWh",$B$4,$B$5) -> 290 | C25: =VLOOKUP($B$3,'Data Current Rates'!$A:$AL,MATCH('BI Template_EnergyNPDI'!$A25,CurrentHeader,0),FALSE) -> 0 | D25: 0 | H25: 0 | I25: N/A | J25: 0 | K25: 0
A26: LRAMVA Volumetric Rate Rider | B26: 290 | C26: =VLOOKUP($B$3,'Data Current Rates'!$A:$AL,MATCH('BI Template_EnergyNPDI'!$A26,CurrentHeader,0),FALSE) -> 0.0004 | D26: 0.116 | E26: =IF($C$9="kWh",$C$4,$C$5) -> 290 | F26: =VLOOKUP($C$3,'Data Proposed Rates'!$A:$BB,MATCH('BI Template_EnergyNPDI'!$A26,ProposedHeader,0),FALSE) -> 0.0004 | G26: =E26*F26 -> 0.116 | H26: 0 | I26: 0 | J26: 0.001620150117 | K26: 0.001585305259
A27: Fixed Rider for Account 1592 | E27: 1 | F27: =VLOOKUP($C$3,'Data Proposed Rates'!$A:$BB,MATCH('BI Template_EnergyNPDI'!$A27,ProposedHeader,0),FALSE) -> -0.43 | G27: =E27*F27 -> -0.43 | H27: =G27-D27 -> -0.43 | I27: =IF(ISERROR(H27/ABS(D27)),"N/A",(H27/ABS(D27))) -> N/A | J27: =G27/$G$49 -> -0.006005728882 | K27: =G27/$G$54 -> -0.005876562597
A28: Volumetric Rider for Account 1592 | E28: 290 | F28: =VLOOKUP($C$3,'Data Proposed Rates'!$A:$BB,MATCH('BI Template_EnergyNPDI'!$A28,ProposedHeader,0),FALSE) -> 0 | G28: 0 | H28: 0 | I28: N/A | J28: 0 | K28: 0
A29: Sub-Total: Distribution (excluding pass through) | D29: =SUM(INDIRECT("D19:D"&ROW()-1)) -> 39.395 | G29: =SUM(INDIRECT("g19:g"&ROW()-1)) -> 37.654 | H29: =G29-D29 -> -1.741 | I29: -0.04419342556 | J29: =G29/$G$49 -> 0.5259063147 | K29: =G29/$G$54 -> 0.5145955536
A30: Smart Metering Entity Charge | B30: =B19 -> 1 | C30: =VLOOKUP($A30,'Data Pass Through'!$A:$D,2,FALSE) -> 0.57 | D30: =B30*C30 -> 0.57 | E30: =E19 -> 1 | F30: =VLOOKUP($A30,'Data Pass Through'!$A:$D,3,FALSE) -> 0.57 | G30: =E30*F30 -> 0.57 | H30: 0 | I30: 0 | J30: 0.007961082472 | K30: 0.007789862047
A31: Line Losses on Cost of Power (based on two-tier RPP prices) | B31: =B8-B4 -> 16.356 | C31: =IF(B4>B7,C13,C12) -> 0.098 | D31: =B31*C31 -> 1.602888 | E31: =C8-C4 -> 18.56 | F31: =IF(C4>C7,F13,F12) -> 0.098 | G31: =E31*F31 -> 1.81888 | H31: 0.215992 | I31: 0.134751773 | J31: 0.02540395384 | K31: 0.02485758646
A32: Line Losses on Cost of Power (based on TOU prices) | B32: =B8-B4 -> 16.356 | C32: =VLOOKUP($B$3,'Data Billing Quantities'!$A:$O,MATCH('BI Template_EnergyNPDI'!$A15,'Data Billing Quantities'!$4:$4,0),FALSE)*C15+VLOOKUP($B$3,'Data Billing Quantities'!$A:$O,MATCH('BI Template_EnergyNPDI'!$A16,'Data Billing Quantities'!$4:$4,0),FALSE)*C16+VLOOKUP($B$3,'Data Billing Quantities'!$A:$O,MATCH('BI Template_EnergyNPDI'!$A17,'Data Billing Quantities'!$4:$4,0),FALSE)*C17 -> 0.10342 | D32: =B32*C32 -> 1.69153752 | E32: =C8-C4 -> 18.56 | F32: =VLOOKUP($C$3,'Data Billing Quantities'!$A:$O,MATCH('BI Template_EnergyNPDI'!$A15,'Data Billing Quantities'!$4:$4,0),FALSE)*F15+VLOOKUP($C$3,'Data Billing Quantities'!$A:$O,MATCH('BI Template_EnergyNPDI'!$A16,'Data Billing Quantities'!$4:$4,0),FALSE)*F16+VLOOKUP($C$3,'Data Billing Quantities'!$A:$O,MATCH('BI Template_EnergyNPDI'!$A17,'Data Billing Quantities'!$4:$4,0),FALSE)*F17 -> 0.10342 | G32: =E32*F32 -> 1.9194752 | H32: 0.22793768 | I32: 0.134751773 | J32: 0.02680894802 | K32: 0.02623236318
A33: Sub-Total: Distribution (based on two-tier RPP prices) | D33: =SUM(D29,D30:D31) -> 41.567888 | G33: =SUM(G29,G30:G31) -> 40.04288 | H33: -1.525008 | I33: -0.03668716582 | J33: 0.559271351 | K33: 0.5472430021
A34: Sub-Total: Distribution (based on TOU prices) | D34: =SUM(D29,D30,D32) -> 41.65653752 | G34: =SUM(G29,G30,G32) -> 40.1434752 | H34: -1.51306232 | I34: -0.03632232562 | J34: 0.5606763452 | K34: 0.5486177788
A35: Retail Transmission Rate – Network Service Rate | B35: =IF($B$9="kWh",$B$8,$B$5) -> 306.356 | C35: =VLOOKUP($B$3,'Data Current Rates'!$A:$AL,MATCH('BI Template_EnergyNPDI'!$A35,CurrentHeader,0),FALSE) -> 0.0072 | D35: =B35*C35 -> 2.2057632 | E35: =IF($C$9="kWh",$C$8,$C$5) -> 308.56 | F35: =VLOOKUP($C$3,'Data Proposed Rates'!$A:$BB,MATCH('BI Template_EnergyNPDI'!$A35,ProposedHeader,0),FALSE) -> 0.0118 | G35: =E35*F35 -> 3.641008 | H35: =G35-D35 -> 1.4352448 | I35: 0.6506794564 | J35: 0.05085327188 | K35: 0.04975956146
A36: Retail Transmission Rate – Line and Transformation Connection Service Rate | B36: =IF($B$9="kWh",$B$8,$B$5) -> 306.356 | C36: =VLOOKUP($B$3,'Data Current Rates'!$A:$AL,MATCH('BI Template_EnergyNPDI'!$A36,CurrentHeader,0),FALSE) -> 0.0041 | D36: =B36*C36 -> 1.2560596 | E36: =IF($C$9="kWh",$C$8,$C$5) -> 308.56 | F36: =VLOOKUP($C$3,'Data Proposed Rates'!$A:$BB,MATCH('BI Template_EnergyNPDI'!$A36,ProposedHeader,0),FALSE) -> 0.0082 | G36: =E36*F36 -> 2.530192 | H36: =G36-D36 -> 1.2741324 | I36: 1.014388489 | J36: 0.03533871435 | K36: 0.0345786783
A37: Sub-Total: Retail Transmission | D37: =SUM(D35:D36) -> 3.4618228 | G37: =SUM(G35:G36) -> 6.1712 | H37: =G37-D37 -> 2.7093772 | I37: 0.7826446807 | J37: 0.08619198623 | K37: 0.08433823977
A38: Sub-Total: Delivery (based on two-tier RPP prices) | D38: =D33+D37 -> 45.0297108 | G38: =G33+G37 -> 46.21408 | H38: =G38-D38 -> 1.1843692 | I38: 0.02630194996 | J38: 0.6454633373 | K38: 0.6315812418
A39: Sub-Total: Delivery (based on TOU prices) | D39: =D34+D37 -> 45.11836032 | G39: =G34+G37 -> 46.3146752 | H39: =G39-D39 -> 1.19631488 | I39: 0.02651503449 | J39: 0.6468683315 | K39: 0.6329560185
A40: Wholesale Market Service Rate (WMS) - not including CBR | B40: =B8 -> 306.356 | C40: =VLOOKUP($A40,'Data Pass Through'!$A:$D,2,FALSE) -> 0.003 | D40: =B40*C40 -> 0.919068 | E40: =$C$8 -> 308.56 | F40: =VLOOKUP($A40,'Data Pass Through'!$A:$D,3,FALSE) -> 0.003 | G40: =E40*F40 -> 0.92568 | H40: 0.006612 | I40: 0.007194244604 | J40: 0.01292879793 | K40: 0.01265073596
A41: Capacity Based Recovery (CBR) - Applicable for Class B Customers | B41: =B8 -> 306.356 | C41: =VLOOKUP($A41,'Data Pass Through'!$A:$D,2,FALSE) -> 0.0004 | D41: =B41*C41 -> 0.1225424 | E41: =$C$8 -> 308.56 | F41: =VLOOKUP($A41,'Data Pass Through'!$A:$D,3,FALSE) -> 0.0004 | G41: =E41*F41 -> 0.123424 | H41: 0.0008816 | I41: 0.007194244604 | J41: 0.001723839725 | K41: 0.001686764795
A42: Rural Rate Protection Charge | B42: =B8 -> 306.356 | C42: =VLOOKUP($A42,'Data Pass Through'!$A:$D,2,FALSE) -> 0.0005 | D42: 0.153178 | E42: 308.56 | F42: =VLOOKUP($A42,'Data Pass Through'!$A:$D,3,FALSE) -> 0.0005 | G42: 0.15428 | H42: 0.001102 | I42: 0.007194244604 | J42: 0.002154799656 | K42: 0.002108455994
A43: Standard Supply Service – Administration Charge (if applicable) | B43: 1 | C43: =VLOOKUP($A43,'Data Pass Through'!$A:$D,2,FALSE) -> 0.25 | D43: =B43*C43 -> 0.25 | E43: 1 | F43: =VLOOKUP($A43,'Data Pass Through'!$A:$D,3,FALSE) -> 0.25 | G43: 0.25 | H43: 0 | I43: 0 | J43: 0.003491702839 | K43: 0.003416606161
A44: Sub-Total: Regulatory | D44: =SUM(D40:D43) -> 1.4447884 | G44: =SUM(G40:G43) -> 1.453384 | H44: 0.0085956 | I44: 0.005949383315 | J44: 0.02029914015 | K44: 0.01986256292
A45: Total Electricty Charge on Two-Tier RPP | D45: =SUM(D14,D29,D30,D31,D37,D44) -> 74.8944992 | G45: =SUM(G14,G29,G30,G31,G37,G44) -> 76.087464 | H45: 1.1929648 | I45: 0.01592860374 | J45: 1.062699256
A46: HST | C46: 0.13 | D46: =D45*C46 -> 9.736284896 | F46: =C46 -> 0.13 | G46: =G45*F46 -> 9.89137032 | H46: 0.155085424 | I46: 0.01592860374 | J46: 0.1381509033
A47: Total Electricity Charge on Two-Tier RPP (including HST) | D47: =SUM(D45:D46) -> 84.6307841 | G47: =SUM(G45:G46) -> 85.97883432 | H47: 1.348050224 | I47: 0.01592860374 | J47: 1.200850159
A48: Ontario Electricity Rebate (OER) | C48: =IF(($B$4*12)<250000,VLOOKUP(A48,'Data Pass Through'!$A$4:$C$20,2,0),0) -> -0.189 | D48: =D45*C48 -> -14.15506035 | F48: =C48 -> -0.189 | G48: =G45*F48 -> -14.3805307 | H48: -0.2254703472 | I48: -0.01592860374 | J48: -0.2008501594
A49: Total Amount on Two-Tier RPP | D49: =SUM(D47:D48) -> 70.47572375 | G49: =SUM(G47:G48) -> 71.59830362 | H49: 1.122579877 | I49: 0.01592860374 | J49: 1
A50: Total Electricty Charge on TOU (before HST) | D50: =SUM(D18,D29,D30,D32,D37,D44) -> 76.55494872 | G50: =SUM(G18,G29,G30,G32,G37,G44) -> 77.7598592 | H50: 1.20491048 | I50: 0.01573915861 | K50: =G50/$G$54 -> 1.062699256
A51: HST | C51: 0.13 | D51: =D50*C51 -> 9.952143334 | F51: =C51 -> 0.13 | G51: =G50*F51 -> 10.1087817 | H51: 0.1566383624 | I51: 0.01573915861 | K51: =G51/$G$54 -> 0.1381509033
A52: Total Electricity Charge on TOU (including HST) | D52: =SUM(D50:D51) -> 86.50709205 | G52: =SUM(G50:G51) -> 87.8686409 | H52: 1.361548842 | I52: 0.01573915861 | K52: =G52/$G$54 -> 1.200850159
A53: Ontario Electricity Rebate (OER) | C53: =IF(($B$4*12)<250000,VLOOKUP(A53,'Data Pass Through'!$A$4:$C$20,2,0),0) -> -0.189 | D53: =D50*C53 -> -14.46888531 | F53: =C53 -> -0.189 | G53: =G50*F53 -> -14.69661339 | H53: -0.2277280807 | I53: -0.01573915861 | K53: =G53/$G$54 -> -0.2008501594
A54: Total Amount on TOU | D54: =SUM(D52:D53) -> 72.03820675 | G54: =SUM(G52:G53) -> 73.17202751 | H54: 1.133820762 | I54: 0.01573915861 | K54: =G54/$G$54 -> 1

Sheet BI Template_DemandNPDI (hidden)
A1: 2023 Bill Impacts (Low Consumption Level) - AGSd_NPDI
A3: Rate Class | B3: =VLOOKUP(A1,'Data BI List Acq_Seas'!C:E,2,FALSE) -> NPDI_GS >50 | C3: =VLOOKUP(A1,'Data BI List Acq_Seas'!C:E,3,FALSE) -> AGSd-NPDI
A4: Monthly Consumption (kWh) | B4: =IF(COUNTIF(A1,"*Low*")>0,VLOOKUP(B3,'Data Billing Quantities'!$A:$Z,MATCH("Low kWh",'Data Billing Quantities'!4:4,0),FALSE),IF(COUNTIF(A1,"*Typical*")>0,VLOOKUP(B3,'Data Billing Quantities'!$A:$Z,MATCH("Typical kWh",'Data Billing Quantities'!4:4,0),FALSE),IF(COUNTIF(A1,"*Average*")>0,VLOOKUP(B3,'Data Billing Quantities'!$A:$Z,MATCH("Average kWh",'Data Billing Quantities'!4:4,0),FALSE),IF(COUNTIF(A1,"*High*")>0,VLOOKUP(B3,'Data Billing Quantities'!$A:$Z,MATCH("High kWh",'Data Billing Quantities'!4:4,0),FALSE),"error")))) -> 13020 | C4: =B4 -> 13020
A5: Peak (kW) | B5: =IF(COUNTIF(A1,"*Low*")>0,VLOOKUP(B3,'Data Billing Quantities'!$A:$Z,MATCH("Low kW",'Data Billing Quantities'!4:4,0),FALSE),IF(COUNTIF(A1,"*Typical*")>0,VLOOKUP(B3,'Data Billing Quantities'!$A:$Z,MATCH("Typical kW",'Data Billing Quantities'!4:4,0),FALSE),IF(COUNTIF(A1,"*Average*")>0,VLOOKUP(B3,'Data Billing Quantities'!$A:$Z,MATCH("Average kW",'Data Billing Quantities'!4:4,0),FALSE),IF(COUNTIF(A1,"*High*")>0,VLOOKUP(B3,'Data Billing Quantities'!$A:$Z,MATCH("High kW",'Data Billing Quantities'!4:4,0),FALSE),"error")))) -> 55 | C5: =B5 -> 55
A6: Loss factor | B6: =VLOOKUP(B3,'Data Billing Quantities'!A:D,MATCH(A6,'Data Billing Quantities'!4:4,0),FALSE) -> 1.0464 | C6: =VLOOKUP(C3,'Data Billing Quantities'!A:D,MATCH(A6,'Data Billing Quantities'!4:4,0),FALSE) -> 1.053
A7: Commodity Threshold | B7: =VLOOKUP(B3,'Data Billing Quantities'!A:D,MATCH(A7,'Data Billing Quantities'!4:4,0),FALSE) -> 0 | C7: =B7 -> 0
A8: Monthly Consumption (kWh) - Uplifted | B8: =B4*B6 -> 13624.128 | C8: =C4*C6 -> 13710.06
A9: Charge determinant | B9: =VLOOKUP(B3,'Data Billing Quantities'!A:D,MATCH(A9,'Data Billing Quantities'!4:4,0),FALSE) -> kW | C9: =VLOOKUP(C3,'Data Billing Quantities'!A:D,MATCH(A9,'Data Billing Quantities'!4:4,0),FALSE) -> kW
B11: Volume | C11: Current Rate ($) | D11: Current Charge ($) | E11: Volume | F11: Proposed Rate ($) | G11: Proposed Charge ($) | H11: Change ($) | I11: Change (%) | J11: % of Total Bill
A12: Weighted Average Hourly Spot Price | B12: =B8 -> 13624.128 | C12: =VLOOKUP($A12,'Data Pass Through'!$A:$D,2,FALSE) -> 0.119 | D12: =B12*C12 -> 1621.271232 | E12: =C8 -> 13710.06 | F12: =VLOOKUP($A12,'Data Pass Through'!$A:$D,3,FALSE) -> 0.119 | G12: =E12*F12 -> 1631.49714 | H12: =G12-D12 -> 10.225908 | I12: =IF(ISERROR(H12/ABS(D12)),"N/A",(H12/ABS(D12))) -> 0.00630733945 | J12: =G12/G$36 -> 0.6073899189
A13: Sub-Total: Energy (WASHP) | D13: =SUM(D12:D12) -> 1621.271232 | G13: =SUM(G12:G12) -> 1631.49714 | H13: 10.225908 | I13: 0.00630733945 | J13: 0.6073899189
A14: Service Charge | B14: 1 | C14: =VLOOKUP($B$3,'Data Current Rates'!$A:$AL,MATCH('BI Template_DemandNPDI'!$A14,CurrentHeader,0),FALSE) -> 260.95 | D14: =B14*C14 -> 260.95 | E14: 1 | F14: =VLOOKUP($C$3,'Data Proposed Rates'!$A:$BB,MATCH('BI Template_DemandNPDI'!$A14,ProposedHeader,0),FALSE) -> 170.26 | G14: =E14*F14 -> 170.26 | H14: -90.69 | I14: -0.3475378425 | J14: 0.06338607961
A15: Distribution Volumetric Charge | B15: =IF($B$9="kWh",$B$4,$B$5) -> 55 | C15: =VLOOKUP($B$3,'Data Current Rates'!$A:$AL,MATCH('BI Template_DemandNPDI'!$A15,CurrentHeader,0),FALSE) -> 4.2086 | D15: =B15*C15 -> 231.473 | E15: =IF($C$9="kWh",$C$4,$C$5) -> 55 | F15: =VLOOKUP($C$3,'Data Proposed Rates'!$A:$BB,MATCH('BI Template_DemandNPDI'!$A15,ProposedHeader,0),FALSE) -> 4.6406 | G15: 255.233 | H15: 23.76 | I15: 0.102646961 | J15: 0.0950206699
A16: Low Voltage Service Rate | B16: =IF($B$9="kWh",$B$4,$B$5) -> 55 | C16: =VLOOKUP($B$3,'Data Current Rates'!$A:$AL,MATCH('BI Template_DemandNPDI'!$A16,CurrentHeader,0),FALSE) -> 0.305 | D16: 16.775 | H16: -16.775 | I16: -1 | J16: 0
A17: Rate Rider for Application of Tax Change | B17: 55 | C17: =VLOOKUP($B$3,'Data Current Rates'!$A:$AL,MATCH('BI Template_DemandNPDI'!$A17,CurrentHeader,0),FALSE) -> 0.0211 | D17: 1.1605 | H17: -1.1605 | I17: -1 | J17: 0
A18: Group 1 Volumetric DVA Rider (General) | E18: =IF($C$9="kWh",$C$4,$C$5) -> 55 | F18: =VLOOKUP($C$3,'Data Proposed Rates'!$A:$BB,MATCH('BI Template_DemandNPDI'!$A18,ProposedHeader,0),FALSE) -> -0.0653 | G18: -3.5915 | H18: -3.5915 | I18: N/A | J18: -0.001337079202
A19: Group 1 Volumetric Deferral/Variance Account Rider (Sub-Account RSVA Wholesale Market Service Charge & RSVA Power) | E19: 55 | F19: =VLOOKUP($C$3,'Data Proposed Rates'!$A:$BB,MATCH('BI Template_DemandNPDI'!$A19,ProposedHeader,0),FALSE) -> -0.1364 | G19: -7.502 | H19: -7.502 | I19: N/A | J19: -0.002792918884
A20: Group 1 Volumetric Deferral/Variance Account Rider (Sub-Account Global Adjustment) | E20: =C8 -> 13710.06 | F20: =VLOOKUP($C$3,'Data Proposed Rates'!$A:$BB,MATCH('BI Template_DemandNPDI'!$A20,ProposedHeader,0),FALSE) -> -0.0009 | G20: -12.339054 | H20: -12.339054 | I20: N/A | J20: -0.004593705269
A21: Group 2 Volumetric DVA Rider | B21: =IF($B$9="kWh",$B$4,$B$5) -> 55 | C21: =VLOOKUP($B$3,'Data Current Rates'!$A:$AL,MATCH('BI Template_DemandNPDI'!$A21,CurrentHeader,0),FALSE) -> -0.0203 | D21: =B21*C21 -> -1.1165 | H21: =G21-D21 -> 1.1165 | I21: =IF(ISERROR(H21/ABS(D21)),"N/A",(H21/ABS(D21))) -> 1 | J21: 0
A22: LRAMVA Volumetric Rate Rider | B22: 55 | C22: =VLOOKUP($B$3,'Data Current Rates'!$A:$AL,MATCH('BI Template_DemandNPDI'!$A22,CurrentHeader,0),FALSE) -> 0.2853 | D22: 15.6915 | E22: =IF($C$9="kWh",$C$4,$C$5) -> 55 | F22: =VLOOKUP($C$3,'Data Proposed Rates'!$A:$BB,MATCH('BI Template_DemandNPDI'!$A22,ProposedHeader,0),FALSE) -> 0.2853 | G22: =E22*F22 -> 15.6915 | H22: 0 | I22: 0 | J22: 0.00584178708
A23: Volumetric Rider for Account 1592 | E23: 55 | F23: =VLOOKUP($C$3,'Data Proposed Rates'!$A:$BB,MATCH('BI Template_DemandNPDI'!$A23,ProposedHeader,0),FALSE) -> -0.0618 | G23: =E23*F23 -> -3.399 | H23: =G23-D23 -> -3.399 | I23: =IF(ISERROR(H23/ABS(D23)),"N/A",(H23/ABS(D23))) -> N/A | J23: -0.001265413395
A24: Sub-Total: Distribution | D24: =SUM(INDIRECT("D14:D"&ROW()-1)) -> 524.9335 | G24: =SUM(INDIRECT("g14:g"&ROW()-1)) -> 414.352946 | H24: =G24-D24 -> -110.580554 | I24: -0.2106563098 | J24: =G24/G$36 -> 0.1542594198
A25: Retail Transmission Rate – Network Service Rate | B25: =IF($B$9="kWh",$B$4,$B$5) -> 55 | C25: =VLOOKUP($B$3,'Data Current Rates'!$A:$AL,MATCH('BI Template_DemandNPDI'!$A25,CurrentHeader,0),FALSE) -> 2.7046 | D25: =B25*C25 -> 148.753 | E25: =IF($C$9="kWh",$C$4,$C$5) -> 55 | F25: =VLOOKUP($C$3,'Data Proposed Rates'!$A:$BB,MATCH('BI Template_DemandNPDI'!$A25,ProposedHeader,0),FALSE) -> 2.9071 | G25: =E25*F25 -> 159.8905 | H25: =G25-D25 -> 11.1375 | I25: 0.07487243955 | J25: 0.05952561942
A26: Retail Transmission Rate – Line and Transformation Connection Service Rate | B26: =IF($B$9="kWh",$B$4,$B$5) -> 55 | C26: =VLOOKUP($B$3,'Data Current Rates'!$A:$AL,MATCH('BI Template_DemandNPDI'!$A26,CurrentHeader,0),FALSE) -> 1.3772 | D26: =B26*C26 -> 75.746 | E26: =IF($C$9="kWh",$C$4,$C$5) -> 55 | F26: =VLOOKUP($C$3,'Data Proposed Rates'!$A:$BB,MATCH('BI Template_DemandNPDI'!$A26,ProposedHeader,0),FALSE) -> 2.1382 | G26: =E26*F26 -> 117.601 | H26: =G26-D26 -> 41.855 | I26: 0.5525704328 | J26: 0.04378166538
A27: Sub-Total: Retail Transmission | D27: =SUM(D25:D26) -> 224.499 | G27: =SUM(G25:G26) -> 277.4915 | H27: =G27-D27 -> 52.9925 | I27: 0.236047822 | J27: 0.1033072848
A28: Sub-Total: Delivery (based on two-tier RPP prices) | D28: =SUM(D24,D27) -> 749.4325 | G28: =SUM(G24,G27) -> 691.844446 | H28: =G28-D28 -> -57.588054 | I28: -0.07684221594 | J28: 0.2575667046
A29: Wholesale Market Service Rate (WMS) - not including CBR | B29: =B8 -> 13624.128 | C29: =VLOOKUP($A29,'Data Pass Through'!$A:$D,2,FALSE) -> 0.003 | D29: =B29*C29 -> 40.872384 | E29: =$C$8 -> 13710.06 | F29: =VLOOKUP($A29,'Data Pass Through'!$A:$D,3,FALSE) -> 0.003 | G29: =E29*F29 -> 41.13018 | H29: =G29-D29 -> 0.257796 | I29: 0.00630733945 | J29: 0.0153123509
A30: Capacity Based Recovery (CBR) - Applicable for Class B Customers | B30: =B8 -> 13624.128 | C30: =VLOOKUP($A30,'Data Pass Through'!$A:$D,2,FALSE) -> 0.0004 | D30: =B30*C30 -> 5.4496512 | E30: =$C$8 -> 13710.06 | F30: =VLOOKUP($A30,'Data Pass Through'!$A:$D,3,FALSE) -> 0.0004 | G30: =E30*F30 -> 5.484024 | H30: 0.0343728 | I30: 0.00630733945 | J30: 0.002041646786
A31: Rural Rate Protection Charge | B31: =B8 -> 13624.128 | C31: =VLOOKUP($A31,'Data Pass Through'!$A:$D,2,FALSE) -> 0.0005 | D31: 6.812064 | E31: 13710.06 | F31: =VLOOKUP($A31,'Data Pass Through'!$A:$D,3,FALSE) -> 0.0005 | G31: 6.85503 | H31: 0.042966 | I31: 0.00630733945 | J31: 0.002552058483
A32: Standard Supply Service – Administration Charge (if applicable) | B32: 1 | C32: =VLOOKUP($A32,'Data Pass Through'!$A:$D,2,FALSE) -> 0.25 | D32: =B32*C32 -> 0.25 | E32: =B32 -> 1 | F32: =VLOOKUP($A32,'Data Pass Through'!$A:$D,3,FALSE) -> 0.25 | G32: 0.25 | H32: 0 | I32: 0 | J32: 9.307247681e-05
A33: Sub-Total: Regulatory | D33: =SUM(D29:D32) -> 53.3840992 | G33: =SUM(G29:G32) -> 53.719234 | H33: 0.3351348 | I33: 0.006277801911 | J33: 0.01999912864
A34: Total Electricity Charge on WAHSP | D34: =SUM(D13,D28,D33) -> 2424.087831 | G34: =SUM(G13,G28,G33) -> 2377.06082 | H34: -47.0270112 | I34: -0.01939987924 | J34: 0.8849557522
A35: HST | C35: 0.13 | D35: =D34*C35 -> 315.1314181 | F35: =C35 -> 0.13 | G35: =G34*F35 -> 309.0179066 | H35: -6.113511456 | I35: -0.01939987924 | J35: 0.1150442478
A36: Total Amount on WAHSP | D36: =SUM(D34:D35) -> 2739.219249 | G36: =SUM(G34:G35) -> 2686.078727 | H36: -53.14052266 | I36: -0.01939987924 | J36: 1

Sheet BI Template_unmNPDI (hidden)
A1: 2023 Bill Impacts (Average Consumption Level) - St Lgt_NPDI
A3: Rate Class | B3: =VLOOKUP(A1,'Data BI List Acq_Seas'!C:E,2,FALSE) -> NPDI_St Lgt | C3: =VLOOKUP(A1,'Data BI List Acq_Seas'!C:E,3,FALSE) -> St Lgt-NPDI
A4: Monthly Consumption (kWh) | B4: =IF(COUNTIF(A1,"*Low*")>0,VLOOKUP(B3,'Data Billing Quantities'!$A:$Z,MATCH("Low kWh",'Data Billing Quantities'!4:4,0),FALSE),IF(COUNTIF(A1,"*Typical*")>0,VLOOKUP(B3,'Data Billing Quantities'!$A:$Z,MATCH("Typical kWh",'Data Billing Quantities'!4:4,0),FALSE),IF(COUNTIF(A1,"*Average*")>0,VLOOKUP(B3,'Data Billing Quantities'!$A:$Z,MATCH("Average kWh",'Data Billing Quantities'!4:4,0),FALSE),IF(COUNTIF(A1,"*High*")>0,VLOOKUP(B3,'Data Billing Quantities'!$A:$Z,MATCH("High kWh",'Data Billing Quantities'!4:4,0),FALSE),"error")))) -> 11389 | C4: =B4 -> 11389
A5: Peak (kW) | B5: =IF(COUNTIF(A1,"*Low*")>0,VLOOKUP(B3,'Data Billing Quantities'!$A:$Z,MATCH("Low kW",'Data Billing Quantities'!4:4,0),FALSE),IF(COUNTIF(A1,"*Typical*")>0,VLOOKUP(B3,'Data Billing Quantities'!$A:$Z,MATCH("Typical kW",'Data Billing Quantities'!4:4,0),FALSE),IF(COUNTIF(A1,"*Average*")>0,VLOOKUP(B3,'Data Billing Quantities'!$A:$Z,MATCH("Average kW",'Data Billing Quantities'!4:4,0),FALSE),IF(COUNTIF(A1,"*High*")>0,VLOOKUP(B3,'Data Billing Quantities'!$A:$Z,MATCH("High kW",'Data Billing Quantities'!4:4,0),FALSE),"error")))) -> 39 | C5: =B5 -> 39
A6: Loss factor | B6: =VLOOKUP(B3,'Data Billing Quantities'!A:D,MATCH(A6,'Data Billing Quantities'!4:4,0),FALSE) -> 1.0564 | C6: =VLOOKUP(C3,'Data Billing Quantities'!A:D,MATCH(A6,'Data Billing Quantities'!4:4,0),FALSE) -> 1.092
A7: Commodity Threshold | B7: =VLOOKUP(B3,'Data Billing Quantities'!A:D,MATCH(A7,'Data Billing Quantities'!4:4,0),FALSE) -> 750 | C7: =B7 -> 750
A8: Monthly Consumption (kWh) - Uplifted | B8: =B4*B6 -> 12031.3396 | C8: =C4*C6 -> 12436.788
A9: Charge determinant | B9: =VLOOKUP(B3,'Data Billing Quantities'!A:D,MATCH(A9,'Data Billing Quantities'!4:4,0),FALSE) -> kW | C9: =VLOOKUP(C3,'Data Billing Quantities'!A:D,MATCH(A9,'Data Billing Quantities'!4:4,0),FALSE) -> kWh
B11: Volume | C11: Current Rate ($) | D11: Current Charge ($) | E11: Volume | F11: Proposed Rate ($) | G11: Proposed Charge ($) | H11: Change ($) | I11: Change (%) | J11: % of Total Bill
A12: Energy First Tier | B12: =IF(B4>B7,B7,B4) -> 750 | C12: =VLOOKUP($A12,'Data Pass Through'!$A:$D,2,FALSE) -> 0.098 | D12: =B12*C12 -> 73.5 | E12: =B12 -> 750 | F12: =VLOOKUP($A12,'Data Pass Through'!$A:$D,3,FALSE) -> 0.098 | G12: =E12*F12 -> 73.5 | H12: =G12-D12 -> 0 | I12: =IF(ISERROR(H12/ABS(D12)),"N/A",(H12/ABS(D12))) -> 0 | J12: =G12/$G$38 -> 0.02720999529
A13: Energy Second Tier | B13: =IF(B4>B7,(B4)-B7,0) -> 10639 | C13: =VLOOKUP($A13,'Data Pass Through'!$A:$D,2,FALSE) -> 0.115 | D13: =B13*C13 -> 1223.485 | E13: =B13 -> 10639 | F13: =VLOOKUP($A13,'Data Pass Through'!$A:$D,3,FALSE) -> 0.115 | G13: =E13*F13 -> 1223.485 | H13: 0 | I13: 0 | J13: 0.4529390624
A14: Sub-Total: Energy (RPP Tiered) | D14: =SUM(D12:D13) -> 1296.985 | G14: =SUM(G12:G13) -> 1296.985 | H14: 0 | I14: 0 | J14: 0.4801490577
A15: Service Charge | B15: =IF(VLOOKUP(B$3,'Data Billing Quantities'!A:P,MATCH("Acquired Street Light Service Charge",'Data Billing Quantities'!$4:$4,0),FALSE)>0,VLOOKUP(B$3,'Data Billing Quantities'!A:P,MATCH("Acquired Street Light Service Charge",'Data Billing Quantities'!$4:$4,0),FALSE),1) -> 328 | C15: =VLOOKUP($B$3,'Data Current Rates'!$A:$AL,MATCH('BI Template_unmNPDI'!$A15,CurrentHeader,0),FALSE) -> 2.1 | D15: =B15*C15 -> 688.8 | E15: 1 | F15: =VLOOKUP($C$3,'Data Proposed Rates'!$A:$BB,MATCH('BI Template_unmNPDI'!$A15,ProposedHeader,0),FALSE) -> 3.15 | G15: =E15*F15 -> 3.15 | H15: -685.65 | I15: -0.9954268293 | J15: 0.001166142655
A16: Distribution Volumetric Charge | B16: =IF($B$9="kWh",$B$4,$B$5) -> 39 | C16: =VLOOKUP($B$3,'Data Current Rates'!$A:$AL,MATCH('BI Template_unmNPDI'!$A16,CurrentHeader,0),FALSE) -> 7.8927 | D16: =B16*C16 -> 307.8153 | E16: =IF($C$9="kWh",$C$4,$C$5) -> 11389 | F16: =VLOOKUP($C$3,'Data Proposed Rates'!$A:$BB,MATCH('BI Template_unmNPDI'!$A16,ProposedHeader,0),FALSE) -> 0.113 | G16: 1286.957 | H16: 979.1417 | I16: 3.180939024 | J16: 0.4764366518
A17: Low Voltage Service Rate | B17: =IF($B$9="kWh",$B$4,$B$5) -> 39 | C17: =VLOOKUP($B$3,'Data Current Rates'!$A:$AL,MATCH('BI Template_unmNPDI'!$A17,CurrentHeader,0),FALSE) -> 0.2358 | D17: 9.1962 | H17: -9.1962 | I17: -1 | J17: 0
A18: Rate Rider for Application of Tax Change | B18: 39 | C18: =VLOOKUP($B$3,'Data Current Rates'!$A:$AL,MATCH('BI Template_unmNPDI'!$A18,CurrentHeader,0),FALSE) -> 0.0655 | D18: 2.5545 | H18: -2.5545 | I18: -1 | J18: 0
A19: Group 1 Volumetric DVA Rider (General) | E19: =IF($C$9="kWh",$C$4,$C$5) -> 11389 | F19: =VLOOKUP($C$3,'Data Proposed Rates'!$A:$BB,MATCH('BI Template_unmNPDI'!$A19,ProposedHeader,0),FALSE) -> -0.0011 | G19: -12.5279 | H19: -12.5279 | I19: N/A | J19: -0.004637878911
A20: Group 2 Volumetric DVA Rider | B20: 39 | C20: =VLOOKUP($B$3,'Data Current Rates'!$A:$AL,MATCH('BI Template_unmNPDI'!$A20,CurrentHeader,0),FALSE) -> -0.0946 | D20: =B20*C20 -> -3.6894 | H20: =G20-D20 -> 3.6894 | I20: =IF(ISERROR(H20/ABS(D20)),"N/A",(H20/ABS(D20))) -> 1 | J20: 0
A21: Volumetric Rider for Account 1592 | E21: =IF($C$9="kWh",$C$4,$C$5) -> 11389 | F21: =VLOOKUP($C$3,'Data Proposed Rates'!$A:$BB,MATCH('BI Template_unmNPDI'!$A21,ProposedHeader,0),FALSE) -> -0.0011 | G21: =E21*F21 -> -12.5279 | H21: -12.5279 | I21: N/A | J21: -0.004637878911
A22: Sub-Total: Distribution (excluding pass through) | D22: =SUM(INDIRECT("D15:D"&ROW()-1)) -> 1004.6766 | G22: =SUM(INDIRECT("g15:g"&ROW()-1)) -> 1265.0512 | H22: =G22-D22 -> 260.3746 | I22: 0.2591626002 | J22: 0.4683270366
A23: Line Losses on Cost of Power (based on two-tier RPP prices) | B23: =B8-B4 -> 642.3396 | C23: =IF(B4>B7,C13,C12) -> 0.115 | D23: =B23*C23 -> 73.869054 | E23: =C8-C4 -> 1047.788 | F23: =IF(C4>C7,F13,F12) -> 0.115 | G23: =E23*F23 -> 120.49562 | H23: 46.626566 | I23: 0.6312056738 | J23: 0.04460796262
A24: Sub-Total: Distribution (based on two-tier RPP prices) | D24: =SUM(D22,D23:D23) -> 1078.545654 | G24: =SUM(G22,G23:G23) -> 1385.54682 | H24: 307.001166 | I24: 0.2846436448 | J24: 0.5129349993
A25: Retail Transmission Rate – Network Service Rate | B25: =IF($B$9="kWh",$B$8,$B$5) -> 39 | C25: =VLOOKUP($B$3,'Data Current Rates'!$A:$AL,MATCH('BI Template_unmNPDI'!$A25,CurrentHeader,0),FALSE) -> 2.0398 | D25: =B25*C25 -> 79.5522 | E25: =IF($C$9="kWh",$C$8,$C$5) -> 12436.788 | F25: =VLOOKUP($C$3,'Data Proposed Rates'!$A:$BB,MATCH('BI Template_unmNPDI'!$A25,ProposedHeader,0),FALSE) -> 0.0064 | G25: =E25*F25 -> 79.5954432 | H25: =G25-D25 -> 0.0432432 | I25: 0.0005435827042 | J25: 0.02946655285
A26: Retail Transmission Rate – Line and Transformation Connection Service Rate | B26: =IF($B$9="kWh",$B$8,$B$5) -> 39 | C26: =VLOOKUP($B$3,'Data Current Rates'!$A:$AL,MATCH('BI Template_unmNPDI'!$A26,CurrentHeader,0),FALSE) -> 1.0647 | D26: =B26*C26 -> 41.5233 | E26: =IF($C$9="kWh",$C$8,$C$5) -> 12436.788 | F26: =VLOOKUP($C$3,'Data Proposed Rates'!$A:$BB,MATCH('BI Template_unmNPDI'!$A26,ProposedHeader,0),FALSE) -> 0.0048 | G26: =E26*F26 -> 59.6965824 | H26: =G26-D26 -> 18.1732824 | I26: 0.4376646943 | J26: 0.02209991464
A27: Sub-Total: Retail Transmission | D27: =SUM(D25:D26) -> 121.0755 | G27: =SUM(G25:G26) -> 139.2920256 | H27: =G27-D27 -> 18.2165256 | I27: 0.1504559188 | J27: 0.05156646749
A28: Sub-Total: Delivery (based on two-tier RPP prices) | D28: =D24+D27 -> 1199.621154 | G28: =G24+G27 -> 1524.838846 | H28: =G28-D28 -> 325.2176916 | I28: 0.2711003307 | J28: 0.5645014668
A29: Wholesale Market Service Rate (WMS) - not including CBR | B29: =B8 -> 12031.3396 | C29: =VLOOKUP($A29,'Data Pass Through'!$A:$D,2,FALSE) -> 0.003 | D29: =B29*C29 -> 36.0940188 | E29: =$C$8 -> 12436.788 | F29: =VLOOKUP($A29,'Data Pass Through'!$A:$D,3,FALSE) -> 0.003 | G29: =E29*F29 -> 37.310364 | H29: =G29-D29 -> 1.2163452 | I29: 0.0336993563 | J29: 0.01381244665
A30: Capacity Based Recovery (CBR) - Applicable for Class B Customers | B30: =B8 -> 12031.3396 | C30: =VLOOKUP($A30,'Data Pass Through'!$A:$D,2,FALSE) -> 0.0004 | D30: =B30*C30 -> 4.81253584 | E30: =$C$8 -> 12436.788 | F30: =VLOOKUP($A30,'Data Pass Through'!$A:$D,3,FALSE) -> 0.0004 | G30: =E30*F30 -> 4.9747152 | H30: 0.16217936 | I30: 0.0336993563 | J30: 0.001841659553
A31: Rural Rate Protection Charge | B31: =B8 -> 12031.3396 | C31: =VLOOKUP($A31,'Data Pass Through'!$A:$D,2,FALSE) -> 0.0005 | D31: 6.0156698 | E31: 12436.788 | F31: =VLOOKUP($A31,'Data Pass Through'!$A:$D,3,FALSE) -> 0.0005 | G31: 6.218394 | H31: 0.2027242 | I31: 0.0336993563 | J31: 0.002302074442
A32: Standard Supply Service – Administration Charge (if applicable) | B32: 1 | C32: =VLOOKUP($A32,'Data Pass Through'!$A:$D,2,FALSE) -> 0.25 | D32: =B32*C32 -> 0.25 | E32: 1 | F32: =VLOOKUP($A32,'Data Pass Through'!$A:$D,3,FALSE) -> 0.25 | G32: 0.25 | H32: 0 | I32: 0 | J32: 9.255100439e-05
A33: Sub-Total: Regulatory | D33: =SUM(D29:D32) -> 47.17222444 | G33: =SUM(G29:G32) -> 48.7534732 | H33: 1.58124876 | I33: 0.03352075885 | J33: 0.01804873165
A34: Total Electricty Charge on Two-Tier RPP | D34: =SUM(D28,D33,D14) -> 2543.778378 | G34: =SUM(G28,G33,G14) -> 2870.577319 | H34: 326.7989404 | I34: 0.1284698947 | J34: 1.062699256
A35: HST | C35: 0.13 | D35: =D34*C35 -> 330.6911892 | F35: =C35 -> 0.13 | G35: =G34*F35 -> 373.1750514 | H35: 42.48386225 | I35: 0.1284698947 | J35: 0.1381509033
A36: Total Electricity Charge on Two-Tier RPP (including HST) | D36: =SUM(D34:D35) -> 2874.469568 | G36: =SUM(G34:G35) -> 3243.75237 | H36: 369.2828026 | I36: 0.1284698947 | J36: 1.200850159
A37: Ontario Electricity Rebate (OER) | C37: =IF(($B$4*12)<250000,VLOOKUP(A37,'Data Pass Through'!$A$4:$C$20,2,0),0) -> -0.189 | D37: =D34*C37 -> -480.7741135 | F37: =C37 -> -0.189 | G37: =G34*F37 -> -542.5391133 | H37: -61.76499973 | I37: -0.1284698947 | J37: -0.2008501594
A38: Total Amount on Two-Tier RPP | D38: =SUM(D36:D37) -> 2393.695454 | G38: =SUM(G36:G37) -> 2701.213257 | H38: 307.5178029 | I38: 0.1284698947 | J38: 1

Sheet BI Template_EnergyHCHI (hidden)
A1: 2023 Bill Impacts (Low Consumption Level) - AR_HCHI
A3: Rate Class | B3: =VLOOKUP(A1,'Data BI List Acq_Seas'!C:E,2,FALSE) -> HCHI_RES | C3: =VLOOKUP(A1,'Data BI List Acq_Seas'!C:E,3,FALSE) -> AR-HCHI
A4: Monthly Consumption (kWh) | B4: =IF(COUNTIF(A1,"*Low*")>0,VLOOKUP(B3,'Data Billing Quantities'!$A:$Z,MATCH("Low kWh",'Data Billing Quantities'!4:4,0),FALSE),IF(COUNTIF(A1,"*Typical*")>0,VLOOKUP(B3,'Data Billing Quantities'!$A:$Z,MATCH("Typical kWh",'Data Billing Quantities'!4:4,0),FALSE),IF(COUNTIF(A1,"*Average*")>0,VLOOKUP(B3,'Data Billing Quantities'!$A:$Z,MATCH("Average kWh",'Data Billing Quantities'!4:4,0),FALSE),IF(COUNTIF(A1,"*High*")>0,VLOOKUP(B3,'Data Billing Quantities'!$A:$Z,MATCH("High kWh",'Data Billing Quantities'!4:4,0),FALSE),"error")))) -> 250 | C4: =B4 -> 250
A5: Peak (kW) | B5: =IF(COUNTIF(A1,"*Low*")>0,VLOOKUP(B3,'Data Billing Quantities'!$A:$Z,MATCH("Low kW",'Data Billing Quantities'!4:4,0),FALSE),IF(COUNTIF(A1,"*Typical*")>0,VLOOKUP(B3,'Data Billing Quantities'!$A:$Z,MATCH("Typical kW",'Data Billing Quantities'!4:4,0),FALSE),IF(COUNTIF(A1,"*Average*")>0,VLOOKUP(B3,'Data Billing Quantities'!$A:$Z,MATCH("Average kW",'Data Billing Quantities'!4:4,0),FALSE),IF(COUNTIF(A1,"*High*")>0,VLOOKUP(B3,'Data Billing Quantities'!$A:$Z,MATCH("High kW",'Data Billing Quantities'!4:4,0),FALSE),"error")))) -> 0 | C5: =B5 -> 0
A6: Loss factor | B6: =VLOOKUP(B3,'Data Billing Quantities'!A:D,MATCH(A6,'Data Billing Quantities'!4:4,0),FALSE) -> 1.0655 | C6: =VLOOKUP(C3,'Data Billing Quantities'!A:D,MATCH(A6,'Data Billing Quantities'!4:4,0),FALSE) -> 1.064
A7: Commodity Threshold | B7: =VLOOKUP(B3,'Data Billing Quantities'!A:D,MATCH(A7,'Data Billing Quantities'!4:4,0),FALSE) -> 600 | C7: =B7 -> 600
A8: Monthly Consumption (kWh) - Uplifted | B8: =B4*B6 -> 266.375 | C8: =C4*C6 -> 266
A9: Charge determinant | B9: =VLOOKUP(B3,'Data Billing Quantities'!A:D,MATCH(A9,'Data Billing Quantities'!4:4,0),FALSE) -> kWh | C9: =VLOOKUP(C3,'Data Billing Quantities'!A:D,MATCH(A9,'Data Billing Quantities'!4:4,0),FALSE) -> kWh
B11: Volume | C11: Current Rate ($) | D11: Current Charge ($) | E11: Volume | F11: Proposed Rate ($) | G11: Proposed Charge ($) | H11: Change ($) | I11: Change (%) | J11: % of Total Bill on RPP | K11: % of Total Bill
A12: Energy First Tier | B12: =IF(B4>B7,B7,B4) -> 250 | C12: =VLOOKUP($A12,'Data Pass Through'!$A:$D,2,FALSE) -> 0.098 | D12: =B12*C12 -> 24.5 | E12: =B12 -> 250 | F12: =VLOOKUP($A12,'Data Pass Through'!$A:$D,3,FALSE) -> 0.098 | G12: =E12*F12 -> 24.5 | H12: =G12-D12 -> 0 | I12: =IF(ISERROR(H12/ABS(D12)),"N/A",(H12/ABS(D12))) -> 0 | J12: =G12/$G$49 -> 0.3672989329
A13: Energy Second Tier | B13: =IF(B4>B7,(B4)-B7,0) -> 0 | C13: =VLOOKUP($A13,'Data Pass Through'!$A:$D,2,FALSE) -> 0.115 | D13: =B13*C13 -> 0 | E13: =B13 -> 0 | F13: =VLOOKUP($A13,'Data Pass Through'!$A:$D,3,FALSE) -> 0.115 | G13: =E13*F13 -> 0 | H13: 0 | I13: N/A | J13: =G13/$G$49 -> 0
A14: Sub-Total: Energy (RPP Tiered) | D14: =SUM(D12:D13) -> 24.5 | G14: =SUM(G12:G13) -> 24.5 | H14: 0 | I14: 0 | J14: =G14/$G$49 -> 0.3672989329
A15: TOU-Off Peak | B15: =B$4*VLOOKUP($B$3,'Data Billing Quantities'!$A:$O,MATCH('BI Template_EnergyHCHI'!$A15,'Data Billing Quantities'!$4:$4,0),FALSE) -> 160 | C15: =VLOOKUP($A15,'Data Pass Through'!$A:$D,2,FALSE) -> 0.082 | D15: =B15*C15 -> 13.12 | E15: 160 | F15: =VLOOKUP($A15,'Data Pass Through'!$A:$D,3,FALSE) -> 0.082 | G15: =E15*F15 -> 13.12 | H15: 0 | I15: 0 | K15: =G15/$G$54 -> 0.1927715944
A16: TOU-Mid Peak | B16: =B$4*VLOOKUP($B$3,'Data Billing Quantities'!$A:$O,MATCH('BI Template_EnergyHCHI'!$A16,'Data Billing Quantities'!$4:$4,0),FALSE) -> 45 | C16: =VLOOKUP($A16,'Data Pass Through'!$A:$D,2,FALSE) -> 0.113 | D16: =B16*C16 -> 5.085 | E16: 45 | F16: =VLOOKUP($A16,'Data Pass Through'!$A:$D,3,FALSE) -> 0.113 | G16: =E16*F16 -> 5.085 | H16: 0 | I16: 0 | K16: 0.07471368578
A17: TOU-On Peak | B17: =B$4*VLOOKUP($B$3,'Data Billing Quantities'!$A:$O,MATCH('BI Template_EnergyHCHI'!$A17,'Data Billing Quantities'!$4:$4,0),FALSE) -> 45 | C17: =VLOOKUP($A17,'Data Pass Through'!$A:$D,2,FALSE) -> 0.17 | D17: =B17*C17 -> 7.65 | E17: 45 | F17: =VLOOKUP($A17,'Data Pass Through'!$A:$D,3,FALSE) -> 0.17 | G17: =E17*F17 -> 7.65 | H17: 0 | I17: 0 | K17: 0.1124011202
A18: Sub-Total: Energy (RPP TOU) | D18: =SUM(D15:D17) -> 25.855 | G18: =SUM(G15:G17) -> 25.855 | H18: 0 | I18: 0 | J18: =G18/$G$49 -> 0.3876128126 | K18: 0.3798864004
A19: Service Charge | B19: 1 | C19: =VLOOKUP($B$3,'Data Current Rates'!$A:$AL,MATCH('BI Template_EnergyHCHI'!$A19,CurrentHeader,0),FALSE) -> 37.31 | D19: =B19*C19 -> 37.31 | E19: 1 | F19: =VLOOKUP($C$3,'Data Proposed Rates'!$A:$BB,MATCH('BI Template_EnergyHCHI'!$A19,ProposedHeader,0),FALSE) -> 38.2 | G19: =E19*F19 -> 38.2 | H19: 0.89 | I19: 0.02385419459 | J19: 0.5726864994 | K19: 0.5612709532
A20: Distribution Volumetric Charge | B20: =IF($B$9="kWh",$B$4,$B$5) -> 250 | C20: =VLOOKUP($B$3,'Data Current Rates'!$A:$AL,MATCH('BI Template_EnergyHCHI'!$A20,CurrentHeader,0),FALSE) -> 0 | D20: =B20*C20 -> 0 | E20: =IF($C$9="kWh",$C$4,$C$5) -> 250 | F20: =VLOOKUP($C$3,'Data Proposed Rates'!$A:$BB,MATCH('BI Template_EnergyHCHI'!$A20,ProposedHeader,0),FALSE) -> 0 | G20: 0 | H20: 0 | I20: N/A | J20: 0 | K20: 0
A21: Low Voltage Service Rate | B21: =IF($B$9="kWh",$B$4,$B$5) -> 250 | C21: =VLOOKUP($B$3,'Data Current Rates'!$A:$AL,MATCH('BI Template_EnergyHCHI'!$A21,CurrentHeader,0),FALSE) -> 0.0004 | D21: 0.1 | H21: -0.1 | I21: -1 | J21: 0 | K21: 0
A22: Funding Adder for Renewable Energy Generation | B22: 250 | C22: =VLOOKUP($B$3,'Data Current Rates'!$A:$AL,MATCH('BI Template_EnergyHCHI'!$A22,CurrentHeader,0),FALSE) -> 0.0002 | D22: 0.05 | H22: -0.05 | I22: -1 | J22: 0 | K22: 0
A23: Group 1 Volumetric DVA Rider (General) | E23: =IF($C$9="kWh",$C$4,$C$5) -> 250 | F23: =VLOOKUP($C$3,'Data Proposed Rates'!$A:$BB,MATCH('BI Template_EnergyHCHI'!$A23,ProposedHeader,0),FALSE) -> -0.0007 | G23: -0.175 | H23: -0.175 | I23: N/A | J23: -0.002623563806 | K23: -0.002571267456
A24: Group 2 Fixed DVA Rider | B24: 1 | C24: =VLOOKUP($B$3,'Data Current Rates'!$A:$AL,MATCH('BI Template_EnergyHCHI'!$A24,CurrentHeader,0),FALSE) -> -0.83 | D24: =B24*C24 -> -0.83 | H24: =G24-D24 -> 0.83 | I24: =IF(ISERROR(H24/ABS(D24)),"N/A",(H24/ABS(D24))) -> 1 | J24: =G24/$G$49 -> 0 | K24: =G24/$G$54 -> 0
A25: Group 2 Volumetric DVA Rider | B25: 250 | C25: =VLOOKUP($B$3,'Data Current Rates'!$A:$AL,MATCH('BI Template_EnergyHCHI'!$A25,CurrentHeader,0),FALSE) -> 0 | D25: 0 | H25: 0 | I25: N/A | J25: 0 | K25: 0
A26: LRAMVA Volumetric Rate Rider | B26: 250 | C26: =VLOOKUP($B$3,'Data Current Rates'!$A:$AL,MATCH('BI Template_EnergyHCHI'!$A26,CurrentHeader,0),FALSE) -> 0.0003 | D26: 0.075 | E26: =IF($C$9="kWh",$C$4,$C$5) -> 250 | F26: =VLOOKUP($C$3,'Data Proposed Rates'!$A:$BB,MATCH('BI Template_EnergyHCHI'!$A26,ProposedHeader,0),FALSE) -> 0.0003 | G26: =E26*F26 -> 0.075 | H26: 0 | I26: 0 | J26: 0.001124384488 | K26: 0.001101971767
A27: Fixed Rider for Account 1592 | E27: 1 | F27: =VLOOKUP($C$3,'Data Proposed Rates'!$A:$BB,MATCH('BI Template_EnergyHCHI'!$A27,ProposedHeader,0),FALSE) -> -0.46 | G27: =E27*F27 -> -0.46 | H27: =G27-D27 -> -0.46 | I27: =IF(ISERROR(H27/ABS(D27)),"N/A",(H27/ABS(D27))) -> N/A | J27: =G27/$G$49 -> -0.006896224862 | K27: =G27/$G$54 -> -0.006758760169
A28: Volumetric Rider for Account 1592 | E28: 250 | F28: =VLOOKUP($C$3,'Data Proposed Rates'!$A:$BB,MATCH('BI Template_EnergyHCHI'!$A28,ProposedHeader,0),FALSE) -> 0 | G28: 0 | H28: 0 | I28: N/A | J28: 0 | K28: 0
A29: Sub-Total: Distribution (excluding pass through) | D29: =SUM(INDIRECT("D19:D"&ROW()-1)) -> 36.705 | G29: =SUM(INDIRECT("g19:g"&ROW()-1)) -> 37.64 | H29: =G29-D29 -> 0.935 | I29: 0.02547336875 | J29: 0.5642910952 | K29: 0.5530428973
A30: Smart Metering Entity Charge | B30: =B19 -> 1 | C30: =VLOOKUP($A30,'Data Pass Through'!$A:$D,2,FALSE) -> 0.57 | D30: =B30*C30 -> 0.57 | E30: =E19 -> 1 | F30: =VLOOKUP($A30,'Data Pass Through'!$A:$D,3,FALSE) -> 0.57 | G30: =E30*F30 -> 0.57 | H30: 0 | I30: 0 | J30: 0.008545322111 | K30: 0.008374985427
A31: Line Losses on Cost of Power (based on two-tier RPP prices) | B31: =B8-B4 -> 16.375 | C31: =IF(B4>B7,C13,C12) -> 0.098 | D31: =B31*C31 -> 1.60475 | E31: =C8-C4 -> 16 | F31: =IF(C4>C7,F13,F12) -> 0.098 | G31: =E31*F31 -> 1.568 | H31: -0.03675 | I31: -0.02290076336 | J31: 0.0235071317 | K31: 0.0230385564
A32: Line Losses on Cost of Power (based on TOU prices) | B32: =B8-B4 -> 16.375 | C32: =VLOOKUP($B$3,'Data Billing Quantities'!$A:$O,MATCH('BI Template_EnergyHCHI'!$A15,'Data Billing Quantities'!$4:$4,0),FALSE)*C15+VLOOKUP($B$3,'Data Billing Quantities'!$A:$O,MATCH('BI Template_EnergyHCHI'!$A16,'Data Billing Quantities'!$4:$4,0),FALSE)*C16+VLOOKUP($B$3,'Data Billing Quantities'!$A:$O,MATCH('BI Template_EnergyHCHI'!$A17,'Data Billing Quantities'!$4:$4,0),FALSE)*C17 -> 0.10342 | D32: =B32*C32 -> 1.6935025 | E32: =C8-C4 -> 16 | F32: =VLOOKUP($C$3,'Data Billing Quantities'!$A:$O,MATCH('BI Template_EnergyHCHI'!$A15,'Data Billing Quantities'!$4:$4,0),FALSE)*F15+VLOOKUP($C$3,'Data Billing Quantities'!$A:$O,MATCH('BI Template_EnergyHCHI'!$A16,'Data Billing Quantities'!$4:$4,0),FALSE)*F16+VLOOKUP($C$3,'Data Billing Quantities'!$A:$O,MATCH('BI Template_EnergyHCHI'!$A17,'Data Billing Quantities'!$4:$4,0),FALSE)*F17 -> 0.10342 | G32: =E32*F32 -> 1.65472 | H32: -0.0387825 | I32: -0.02290076336 | J32: 0.02480722001 | K32: 0.02431272962
A33: Sub-Total: Distribution (based on two-tier RPP prices) | D33: =SUM(D29,D30:D31) -> 38.87975 | G33: =SUM(G29,G30:G31) -> 39.778 | H33: 0.89825 | I33: 0.02310328642 | J33: 0.596343549 | K33: 0.5844564392
A34: Sub-Total: Distribution (based on TOU prices) | D34: =SUM(D29,D30,D32) -> 38.9685025 | G34: =SUM(G29,G30,G32) -> 39.86472 | H34: 0.8962175 | I34: 0.02299851014 | J34: 0.5976436373 | K34: 0.5857306124
A35: Retail Transmission Rate – Network Service Rate | B35: =IF($B$9="kWh",$B$8,$B$5) -> 266.375 | C35: =VLOOKUP($B$3,'Data Current Rates'!$A:$AL,MATCH('BI Template_EnergyHCHI'!$A35,CurrentHeader,0),FALSE) -> 0.0069 | D35: =B35*C35 -> 1.8379875 | E35: =IF($C$9="kWh",$C$8,$C$5) -> 266 | F35: =VLOOKUP($C$3,'Data Proposed Rates'!$A:$BB,MATCH('BI Template_EnergyHCHI'!$A35,ProposedHeader,0),FALSE) -> 0.0118 | G35: =E35*F35 -> 3.1388 | H35: =G35-D35 -> 1.3008125 | I35: 0.707737403 | J35: 0.04705624043 | K35: 0.04611825309
A36: Retail Transmission Rate – Line and Transformation Connection Service Rate | B36: =IF($B$9="kWh",$B$8,$B$5) -> 266.375 | C36: =VLOOKUP($B$3,'Data Current Rates'!$A:$AL,MATCH('BI Template_EnergyHCHI'!$A36,CurrentHeader,0),FALSE) -> 0.0061 | D36: =B36*C36 -> 1.6248875 | E36: =IF($C$9="kWh",$C$8,$C$5) -> 266 | F36: =VLOOKUP($C$3,'Data Proposed Rates'!$A:$BB,MATCH('BI Template_EnergyHCHI'!$A36,ProposedHeader,0),FALSE) -> 0.0082 | G36: =E36*F36 -> 2.1812 | H36: =G36-D36 -> 0.5563125 | I36: 0.3423698564 | J36: 0.03270009928 | K36: 0.03204827757
A37: Sub-Total: Retail Transmission | D37: =SUM(D35:D36) -> 3.462875 | G37: =SUM(G35:G36) -> 5.32 | H37: =G37-D37 -> 1.857125 | I37: 0.536295708 | J37: 0.0797563397 | K37: 0.07816653065
A38: Sub-Total: Delivery (based on two-tier RPP prices) | D38: =D33+D37 -> 42.342625 | G38: =G33+G37 -> 45.098 | H38: =G38-D38 -> 2.755375 | I38: 0.0650733156 | J38: 0.6760998887 | K38: 0.6626229698
A39: Sub-Total: Delivery (based on TOU prices) | D39: =D34+D37 -> 42.4313775 | G39: =G34+G37 -> 45.18472 | H39: =G39-D39 -> 2.7533425 | I39: 0.06488930273 | J39: 0.677399977 | K39: 0.663897143
A40: Wholesale Market Service Rate (WMS) - not including CBR | B40: =B8 -> 266.375 | C40: =VLOOKUP($A40,'Data Pass Through'!$A:$D,2,FALSE) -> 0.003 | D40: =B40*C40 -> 0.799125 | E40: =$C$8 -> 266 | F40: =VLOOKUP($A40,'Data Pass Through'!$A:$D,3,FALSE) -> 0.003 | G40: =E40*F40 -> 0.798 | H40: -0.001125 | I40: -0.00140778977 | J40: 0.01196345096 | K40: 0.0117249796
A41: Capacity Based Recovery (CBR) - Applicable for Class B Customers | B41: =B8 -> 266.375 | C41: =VLOOKUP($A41,'Data Pass Through'!$A:$D,2,FALSE) -> 0.0004 | D41: =B41*C41 -> 0.10655 | E41: =$C$8 -> 266 | F41: =VLOOKUP($A41,'Data Pass Through'!$A:$D,3,FALSE) -> 0.0004 | G41: =E41*F41 -> 0.1064 | H41: -0.00015 | I41: -0.00140778977 | J41: 0.001595126794 | K41: 0.001563330613
A42: Rural Rate Protection Charge | B42: =B8 -> 266.375 | C42: =VLOOKUP($A42,'Data Pass Through'!$A:$D,2,FALSE) -> 0.0005 | D42: 0.1331875 | E42: 266 | F42: =VLOOKUP($A42,'Data Pass Through'!$A:$D,3,FALSE) -> 0.0005 | G42: 0.133 | H42: -0.0001875 | I42: -0.00140778977 | J42: 0.001993908493 | K42: 0.001954163266
A43: Standard Supply Service – Administration Charge (if applicable) | B43: 1 | C43: =VLOOKUP($A43,'Data Pass Through'!$A:$D,2,FALSE) -> 0.25 | D43: =B43*C43 -> 0.25 | E43: 1 | F43: =VLOOKUP($A43,'Data Pass Through'!$A:$D,3,FALSE) -> 0.25 | G43: 0.25 | H43: 0 | I43: 0 | J43: 0.003747948294 | K43: 0.003673239222
A44: Sub-Total: Regulatory | D44: =SUM(D40:D43) -> 1.2888625 | G44: =SUM(G40:G43) -> 1.2874 | H44: -0.0014625 | I44: -0.001134721508 | J44: 0.01930043454 | K44: 0.0189157127
A45: Total Electricty Charge on Two-Tier RPP | D45: =SUM(D14,D29,D30,D31,D37,D44) -> 68.1314875 | G45: =SUM(G14,G29,G30,G31,G37,G44) -> 70.8854 | H45: 2.7539125 | I45: 0.04042055445 | J45: 1.062699256
A46: HST | C46: 0.13 | D46: =D45*C46 -> 8.857093375 | F46: =C46 -> 0.13 | G46: =G45*F46 -> 9.215102 | H46: 0.358008625 | I46: 0.04042055445 | J46: 0.1381509033
A47: Total Electricity Charge on Two-Tier RPP (including HST) | D47: =SUM(D45:D46) -> 76.98858088 | G47: =SUM(G45:G46) -> 80.100502 | H47: 3.111921125 | I47: 0.04042055445 | J47: 1.200850159
A48: Ontario Electricity Rebate (OER) | C48: =IF(($B$4*12)<250000,VLOOKUP(A48,'Data Pass Through'!$A$4:$C$20,2,0),0) -> -0.189 | D48: =D45*C48 -> -12.87685114 | F48: =C48 -> -0.189 | G48: =G45*F48 -> -13.3973406 | H48: -0.5204894625 | I48: -0.04042055445 | J48: -0.2008501594
A49: Total Amount on Two-Tier RPP | D49: =SUM(D47:D48) -> 64.11172974 | G49: =SUM(G47:G48) -> 66.7031614 | H49: 2.591431662 | I49: 0.04042055445 | J49: 1
A50: Total Electricty Charge on TOU (before HST) | D50: =SUM(D18,D29,D30,D32,D37,D44) -> 69.57524 | G50: =SUM(G18,G29,G30,G32,G37,G44) -> 72.32712 | H50: 2.75188 | I50: 0.03955257646 | K50: =G50/$G$54 -> 1.062699256
A51: HST | C51: 0.13 | D51: =D50*C51 -> 9.0447812 | F51: =C51 -> 0.13 | G51: =G50*F51 -> 9.4025256 | H51: 0.3577444 | I51: 0.03955257646 | K51: =G51/$G$54 -> 0.1381509033
A52: Total Electricity Charge on TOU (including HST) | D52: =SUM(D50:D51) -> 78.6200212 | G52: =SUM(G50:G51) -> 81.7296456 | H52: 3.1096244 | I52: 0.03955257646 | K52: =G52/$G$54 -> 1.200850159
A53: Ontario Electricity Rebate (OER) | C53: =IF(($B$4*12)<250000,VLOOKUP(A53,'Data Pass Through'!$A$4:$C$20,2,0),0) -> -0.189 | D53: =D50*C53 -> -13.14972036 | F53: =C53 -> -0.189 | G53: =G50*F53 -> -13.66982568 | H53: -0.52010532 | I53: -0.03955257646 | K53: =G53/$G$54 -> -0.2008501594
A54: Total Amount on TOU | D54: =SUM(D52:D53) -> 65.47030084 | G54: =SUM(G52:G53) -> 68.05981992 | H54: 2.58951908 | I54: 0.03955257646 | K54: =G54/$G$54 -> 1

Sheet BI Template_DemandHCHI (hidden)
A1: 2023 Bill Impacts (Low Consumption Level) - AGSd_HCHI
A3: Rate Class | B3: =VLOOKUP(A1,'Data BI List Acq_Seas'!C:E,2,FALSE) -> HCHI_GS >50 | C3: =VLOOKUP(A1,'Data BI List Acq_Seas'!C:E,3,FALSE) -> AGSd-HCHI
A4: Monthly Consumption (kWh) | B4: =IF(COUNTIF(A1,"*Low*")>0,VLOOKUP(B3,'Data Billing Quantities'!$A:$Z,MATCH("Low kWh",'Data Billing Quantities'!4:4,0),FALSE),IF(COUNTIF(A1,"*Typical*")>0,VLOOKUP(B3,'Data Billing Quantities'!$A:$Z,MATCH("Typical kWh",'Data Billing Quantities'!4:4,0),FALSE),IF(COUNTIF(A1,"*Average*")>0,VLOOKUP(B3,'Data Billing Quantities'!$A:$Z,MATCH("Average kWh",'Data Billing Quantities'!4:4,0),FALSE),IF(COUNTIF(A1,"*High*")>0,VLOOKUP(B3,'Data Billing Quantities'!$A:$Z,MATCH("High kWh",'Data Billing Quantities'!4:4,0),FALSE),"error")))) -> 10880 | C4: =B4 -> 10880
A5: Peak (kW) | B5: =IF(COUNTIF(A1,"*Low*")>0,VLOOKUP(B3,'Data Billing Quantities'!$A:$Z,MATCH("Low kW",'Data Billing Quantities'!4:4,0),FALSE),IF(COUNTIF(A1,"*Typical*")>0,VLOOKUP(B3,'Data Billing Quantities'!$A:$Z,MATCH("Typical kW",'Data Billing Quantities'!4:4,0),FALSE),IF(COUNTIF(A1,"*Average*")>0,VLOOKUP(B3,'Data Billing Quantities'!$A:$Z,MATCH("Average kW",'Data Billing Quantities'!4:4,0),FALSE),IF(COUNTIF(A1,"*High*")>0,VLOOKUP(B3,'Data Billing Quantities'!$A:$Z,MATCH("High kW",'Data Billing Quantities'!4:4,0),FALSE),"error")))) -> 55 | C5: =B5 -> 55
A6: Loss factor | B6: =VLOOKUP(B3,'Data Billing Quantities'!A:D,MATCH(A6,'Data Billing Quantities'!4:4,0),FALSE) -> 1.0548 | C6: =VLOOKUP(C3,'Data Billing Quantities'!A:D,MATCH(A6,'Data Billing Quantities'!4:4,0),FALSE) -> 1.053
A7: Commodity Threshold | B7: =VLOOKUP(B3,'Data Billing Quantities'!A:D,MATCH(A7,'Data Billing Quantities'!4:4,0),FALSE) -> 0 | C7: =B7 -> 0
A8: Monthly Consumption (kWh) - Uplifted | B8: =B4*B6 -> 11476.224 | C8: =C4*C6 -> 11456.64
A9: Charge determinant | B9: =VLOOKUP(B3,'Data Billing Quantities'!A:D,MATCH(A9,'Data Billing Quantities'!4:4,0),FALSE) -> kW | C9: =VLOOKUP(C3,'Data Billing Quantities'!A:D,MATCH(A9,'Data Billing Quantities'!4:4,0),FALSE) -> kW
B11: Volume | C11: Current Rate ($) | D11: Current Charge ($) | E11: Volume | F11: Proposed Rate ($) | G11: Proposed Charge ($) | H11: Change ($) | I11: Change (%) | J11: % of Total Bill
A12: Weighted Average Hourly Spot Price | B12: =B8 -> 11476.224 | C12: =VLOOKUP($A12,'Data Pass Through'!$A:$D,2,FALSE) -> 0.119 | D12: =B12*C12 -> 1365.670656 | E12: =C8 -> 11456.64 | F12: =VLOOKUP($A12,'Data Pass Through'!$A:$D,3,FALSE) -> 0.119 | G12: =E12*F12 -> 1363.34016 | H12: =G12-D12 -> -2.330496 | I12: =IF(ISERROR(H12/ABS(D12)),"N/A",(H12/ABS(D12))) -> -0.001706484642 | J12: =G12/G$37 -> 0.5796075279
A13: Sub-Total: Energy (WAHSP) | D13: =SUM(D12:D12) -> 1365.670656 | G13: =SUM(G12:G12) -> 1363.34016 | H13: -2.330496 | I13: -0.001706484642 | J13: 0.5796075279
A14: Service Charge | B14: 1 | C14: =VLOOKUP($B$3,'Data Current Rates'!$A:$AL,MATCH('BI Template_DemandHCHI'!$A14,CurrentHeader,0),FALSE) -> 87.49 | D14: =B14*C14 -> 87.49 | E14: 1 | F14: =VLOOKUP($C$3,'Data Proposed Rates'!$A:$BB,MATCH('BI Template_DemandHCHI'!$A14,ProposedHeader,0),FALSE) -> 170.26 | G14: =E14*F14 -> 170.26 | H14: 82.77 | I14: 0.9460509773 | J14: 0.07238397327
A15: Distribution Volumetric Charge | B15: =IF($B$9="kWh",$B$4,$B$5) -> 55 | C15: =VLOOKUP($B$3,'Data Current Rates'!$A:$AL,MATCH('BI Template_DemandHCHI'!$A15,CurrentHeader,0),FALSE) -> 4.1168 | D15: =B15*C15 -> 226.424 | E15: =IF($C$9="kWh",$C$4,$C$5) -> 55 | F15: =VLOOKUP($C$3,'Data Proposed Rates'!$A:$BB,MATCH('BI Template_DemandHCHI'!$A15,ProposedHeader,0),FALSE) -> 4.6406 | G15: 255.233 | H15: 28.809 | I15: 0.1272347454 | J15: 0.1085092133
A16: Low Voltage Service Rate | B16: =IF($B$9="kWh",$B$4,$B$5) -> 55 | C16: =VLOOKUP($B$3,'Data Current Rates'!$A:$AL,MATCH('BI Template_DemandHCHI'!$A16,CurrentHeader,0),FALSE) -> 0.155 | D16: 8.525 | H16: -8.525 | I16: -1 | J16: 0
A17: Funding Adder for Renewable Energy Generation | B17: 55 | C17: =VLOOKUP($B$3,'Data Current Rates'!$A:$AL,MATCH('BI Template_DemandHCHI'!$A17,CurrentHeader,0),FALSE) -> 0.0195 | D17: 1.0725 | H17: -1.0725 | I17: -1 | J17: 0
A18: Group 1 Volumetric DVA Rider (General) | E18: =IF($C$9="kWh",$C$4,$C$5) -> 55 | F18: =VLOOKUP($C$3,'Data Proposed Rates'!$A:$BB,MATCH('BI Template_DemandHCHI'!$A18,ProposedHeader,0),FALSE) -> -0.098 | G18: -5.39 | H18: -5.39 | I18: N/A | J18: -0.002291493104
A19: Group 1 Volumetric Deferral/Variance Account Rider (Sub-Account RSVA Wholesale Market Service Charge & RSVA Power) | E19: 55 | F19: =VLOOKUP($C$3,'Data Proposed Rates'!$A:$BB,MATCH('BI Template_DemandHCHI'!$A19,ProposedHeader,0),FALSE) -> -0.1364 | G19: -7.502 | H19: -7.502 | I19: N/A | J19: -0.00318938428
A20: Group 1 Volumetric Deferral/Variance Account Rider (Sub-Account Global Adjustment) | E20: =C8 -> 11456.64 | F20: =VLOOKUP($C$3,'Data Proposed Rates'!$A:$BB,MATCH('BI Template_DemandHCHI'!$A20,ProposedHeader,0),FALSE) -> -0.0009 | G20: -10.310976 | H20: -10.310976 | I20: N/A | J20: -0.004383586345
A21: Group 2 Volumetric DVA Rider | B21: =IF($B$9="kWh",$B$4,$B$5) -> 55 | C21: =VLOOKUP($B$3,'Data Current Rates'!$A:$AL,MATCH('BI Template_DemandHCHI'!$A21,CurrentHeader,0),FALSE) -> -0.1031 | D21: =B21*C21 -> -5.6705 | H21: =G21-D21 -> 5.6705 | I21: =IF(ISERROR(H21/ABS(D21)),"N/A",(H21/ABS(D21))) -> 1 | J21: =G21/G$37 -> 0
A22: LRAMVA Volumetric Rate Rider | B22: 55 | C22: =VLOOKUP($B$3,'Data Current Rates'!$A:$AL,MATCH('BI Template_DemandHCHI'!$A22,CurrentHeader,0),FALSE) -> -0.0575 | D22: -3.1625 | E22: =IF($C$9="kWh",$C$4,$C$5) -> 55 | F22: =VLOOKUP($C$3,'Data Proposed Rates'!$A:$BB,MATCH('BI Template_DemandHCHI'!$A22,ProposedHeader,0),FALSE) -> -0.0575 | G22: =E22*F22 -> -3.1625 | H22: 0 | I22: 0 | J22: -0.001344498505
A23: Fixed Rider for Account 1592 | E23: 1 | F23: =VLOOKUP($C$3,'Data Proposed Rates'!$A:$BB,MATCH('BI Template_DemandHCHI'!$A23,ProposedHeader,0),FALSE) -> 0 | G23: 0 | H23: 0 | I23: N/A | J23: 0
A24: Volumetric Rider for Account 1592 | E24: 55 | F24: =VLOOKUP($C$3,'Data Proposed Rates'!$A:$BB,MATCH('BI Template_DemandHCHI'!$A24,ProposedHeader,0),FALSE) -> -0.0603 | G24: =E24*F24 -> -3.3165 | H24: =G24-D24 -> -3.3165 | I24: =IF(ISERROR(H24/ABS(D24)),"N/A",(H24/ABS(D24))) -> N/A | J24: =G24/G$37 -> -0.001409969737
A25: Sub-Total: Distribution | D25: =SUM(INDIRECT("D14:D"&ROW()-1)) -> 314.6785 | G25: =SUM(INDIRECT("g14:g"&ROW()-1)) -> 395.811024 | H25: =G25-D25 -> 81.132524 | I25: 0.2578267152 | J25: 0.1682742546
A26: Retail Transmission Rate – Network Service Rate | B26: =IF($B$9="kWh",$B$4,$B$5) -> 55 | C26: =VLOOKUP($B$3,'Data Current Rates'!$A:$AL,MATCH('BI Template_DemandHCHI'!$A26,CurrentHeader,0),FALSE) -> 2.6512 | D26: =B26*C26 -> 145.816 | E26: =IF($C$9="kWh",$C$4,$C$5) -> 55 | F26: =VLOOKUP($C$3,'Data Proposed Rates'!$A:$BB,MATCH('BI Template_DemandHCHI'!$A26,ProposedHeader,0),FALSE) -> 2.9071 | G26: =E26*F26 -> 159.8905 | H26: =G26-D26 -> 14.0745 | I26: 0.09652232951 | J26: 0.06797550615
A27: Retail Transmission Rate – Line and Transformation Connection Service Rate | B27: =IF($B$9="kWh",$B$4,$B$5) -> 55 | C27: =VLOOKUP($B$3,'Data Current Rates'!$A:$AL,MATCH('BI Template_DemandHCHI'!$A27,CurrentHeader,0),FALSE) -> 2.4073 | D27: =B27*C27 -> 132.4015 | E27: =IF($C$9="kWh",$C$4,$C$5) -> 55 | F27: =VLOOKUP($C$3,'Data Proposed Rates'!$A:$BB,MATCH('BI Template_DemandHCHI'!$A27,ProposedHeader,0),FALSE) -> 2.1382 | G27: =E27*F27 -> 117.601 | H27: =G27-D27 -> -14.8005 | I27: -0.1117849873 | J27: 0.04999663832
A28: Sub-Total: Retail Transmission | D28: =SUM(D26:D27) -> 278.2175 | G28: =SUM(G26:G27) -> 277.4915 | H28: =G28-D28 -> -0.726 | I28: -0.00260946921 | J28: 0.1179721445
A29: Sub-Total: Delivery (based on two-tier RPP prices) | D29: =SUM(D25,D28) -> 592.896 | G29: =SUM(G25,G28) -> 673.302524 | H29: =G29-D29 -> 80.406524 | I29: 0.1356165736 | J29: 0.286246399
A30: Wholesale Market Service Rate (WMS) - not including CBR | B30: =B8 -> 11476.224 | C30: =VLOOKUP($A30,'Data Pass Through'!$A:$D,2,FALSE) -> 0.003 | D30: =B30*C30 -> 34.428672 | E30: =$C$8 -> 11456.64 | F30: =VLOOKUP($A30,'Data Pass Through'!$A:$D,3,FALSE) -> 0.003 | G30: =E30*F30 -> 34.36992 | H30: =G30-D30 -> -0.058752 | I30: -0.001706484642 | J30: 0.01461195448
A31: Capacity Based Recovery (CBR) - Applicable for Class B Customers | B31: =B8 -> 11476.224 | C31: =VLOOKUP($A31,'Data Pass Through'!$A:$D,2,FALSE) -> 0.0004 | D31: =B31*C31 -> 4.5904896 | E31: =$C$8 -> 11456.64 | F31: =VLOOKUP($A31,'Data Pass Through'!$A:$D,3,FALSE) -> 0.0004 | G31: =E31*F31 -> 4.582656 | H31: -0.0078336 | I31: -0.001706484642 | J31: 0.001948260598
A32: Rural Rate Protection Charge | B32: =B8 -> 11476.224 | C32: =VLOOKUP($A32,'Data Pass Through'!$A:$D,2,FALSE) -> 0.0005 | D32: 5.738112 | E32: 11456.64 | F32: =VLOOKUP($A32,'Data Pass Through'!$A:$D,3,FALSE) -> 0.0005 | G32: 5.72832 | H32: -0.009792 | I32: -0.001706484642 | J32: 0.002435325747
A33: Standard Supply Service – Administration Charge (if applicable) | B33: 1 | C33: =VLOOKUP($A33,'Data Pass Through'!$A:$D,2,FALSE) -> 0.25 | D33: =B33*C33 -> 0.25 | E33: =B33 -> 1 | F33: =VLOOKUP($A33,'Data Pass Through'!$A:$D,3,FALSE) -> 0.25 | G33: 0.25 | H33: 0 | I33: 0 | J33: 0.0001062844668
A34: Sub-Total: Regulatory | D34: =SUM(D30:D33) -> 45.0072736 | G34: =SUM(G30:G33) -> 44.930896 | H34: -0.0763776 | I34: -0.001697005704 | J34: 0.0191018253
A35: Total Electricty Charge on WAHSP | D35: =SUM(D13,D29,D34) -> 2003.57393 | G35: =SUM(G13,G29,G34) -> 2081.57358 | H35: 77.9996504 | I35: 0.0389302582 | J35: 0.8849557522
A36: HST | C36: 0.13 | D36: =D35*C36 -> 260.4646108 | F36: =C36 -> 0.13 | G36: =G35*F36 -> 270.6045654 | H36: 10.13995455 | I36: 0.0389302582 | J36: 0.1150442478
A37: Total Amount on WAHSP | D37: =SUM(D35:D36) -> 2264.03854 | G37: =SUM(G35:G36) -> 2352.178145 | H37: 88.13960495 | I37: 0.0389302582 | J37: 1

Sheet BI Template_unmHCHI (hidden)
A1: 2023 Bill Impacts (Average Consumption Level) - St Lgt_HCHI
A3: Rate Class | B3: =VLOOKUP(A1,'Data BI List Acq_Seas'!C:E,2,FALSE) -> HCHI_St Lgt | C3: =VLOOKUP(A1,'Data BI List Acq_Seas'!C:E,3,FALSE) -> St Lgt-HCHI
A4: Monthly Consumption (kWh) | B4: =IF(COUNTIF(A1,"*Low*")>0,VLOOKUP(B3,'Data Billing Quantities'!$A:$Z,MATCH("Low kWh",'Data Billing Quantities'!4:4,0),FALSE),IF(COUNTIF(A1,"*Typical*")>0,VLOOKUP(B3,'Data Billing Quantities'!$A:$Z,MATCH("Typical kWh",'Data Billing Quantities'!4:4,0),FALSE),IF(COUNTIF(A1,"*Average*")>0,VLOOKUP(B3,'Data Billing Quantities'!$A:$Z,MATCH("Average kWh",'Data Billing Quantities'!4:4,0),FALSE),IF(COUNTIF(A1,"*High*")>0,VLOOKUP(B3,'Data Billing Quantities'!$A:$Z,MATCH("High kWh",'Data Billing Quantities'!4:4,0),FALSE),"error")))) -> 31001 | C4: =B4 -> 31001
A5: Peak (kW) | B5: =IF(COUNTIF(A1,"*Low*")>0,VLOOKUP(B3,'Data Billing Quantities'!$A:$Z,MATCH("Low kW",'Data Billing Quantities'!4:4,0),FALSE),IF(COUNTIF(A1,"*Typical*")>0,VLOOKUP(B3,'Data Billing Quantities'!$A:$Z,MATCH("Typical kW",'Data Billing Quantities'!4:4,0),FALSE),IF(COUNTIF(A1,"*Average*")>0,VLOOKUP(B3,'Data Billing Quantities'!$A:$Z,MATCH("Average kW",'Data Billing Quantities'!4:4,0),FALSE),IF(COUNTIF(A1,"*High*")>0,VLOOKUP(B3,'Data Billing Quantities'!$A:$Z,MATCH("High kW",'Data Billing Quantities'!4:4,0),FALSE),"error")))) -> 85 | C5: =B5 -> 85
A6: Loss factor | B6: =VLOOKUP(B3,'Data Billing Quantities'!A:D,MATCH(A6,'Data Billing Quantities'!4:4,0),FALSE) -> 1.0655 | C6: =VLOOKUP(C3,'Data Billing Quantities'!A:D,MATCH(A6,'Data Billing Quantities'!4:4,0),FALSE) -> 1.092
A7: Commodity Threshold | B7: =VLOOKUP(B3,'Data Billing Quantities'!A:D,MATCH(A7,'Data Billing Quantities'!4:4,0),FALSE) -> 750 | C7: =B7 -> 750
A8: Monthly Consumption (kWh) - Uplifted | B8: =B4*B6 -> 33031.5655 | C8: =C4*C6 -> 33853.092
A9: Charge determinant | B9: =VLOOKUP(B3,'Data Billing Quantities'!A:D,MATCH(A9,'Data Billing Quantities'!4:4,0),FALSE) -> kW | C9: =VLOOKUP(C3,'Data Billing Quantities'!A:D,MATCH(A9,'Data Billing Quantities'!4:4,0),FALSE) -> kWh
B11: Volume | C11: Current Rate ($) | D11: Current Charge ($) | E11: Volume | F11: Proposed Rate ($) | G11: Proposed Charge ($) | H11: Change ($) | I11: Change (%) | J11: % of Total Bill
A12: Energy First Tier | B12: =IF(B4>B7,B7,B4) -> 750 | C12: =VLOOKUP($A12,'Data Pass Through'!$A:$D,2,FALSE) -> 0.098 | D12: =B12*C12 -> 73.5 | E12: =B12 -> 750 | F12: =VLOOKUP($A12,'Data Pass Through'!$A:$D,3,FALSE) -> 0.098 | G12: =E12*F12 -> 73.5 | H12: =G12-D12 -> 0 | I12: =IF(ISERROR(H12/ABS(D12)),"N/A",(H12/ABS(D12))) -> 0 | J12: =G12/$G$38 -> 0.008350196708
A13: Energy Second Tier | B13: =IF(B4>B7,(B4)-B7,0) -> 30251 | C13: =VLOOKUP($A13,'Data Pass Through'!$A:$D,2,FALSE) -> 0.115 | D13: =B13*C13 -> 3478.865 | E13: =B13 -> 30251 | F13: =VLOOKUP($A13,'Data Pass Through'!$A:$D,3,FALSE) -> 0.115 | G13: =E13*F13 -> 3478.865 | H13: 0 | I13: 0 | J13: 0.3952273071
A14: Sub-Total: Energy (RPP Tiered) | D14: =SUM(D12:D13) -> 3552.365 | G14: =SUM(G12:G13) -> 3552.365 | H14: 0 | I14: 0 | J14: 0.4035775038
A15: Service Charge | B15: =IF(VLOOKUP(B$3,'Data Billing Quantities'!A:P,MATCH("Acquired Street Light Service Charge",'Data Billing Quantities'!$4:$4,0),FALSE)>0,VLOOKUP(B$3,'Data Billing Quantities'!A:P,MATCH("Acquired Street Light Service Charge",'Data Billing Quantities'!$4:$4,0),FALSE),1) -> 701 | C15: =VLOOKUP($B$3,'Data Current Rates'!$A:$AL,MATCH('BI Template_unmHCHI'!$A15,CurrentHeader,0),FALSE) -> 5.97 | D15: =B15*C15 -> 4184.97 | E15: 1 | F15: =VLOOKUP($C$3,'Data Proposed Rates'!$A:$BB,MATCH('BI Template_unmHCHI'!$A15,ProposedHeader,0),FALSE) -> 3.15 | G15: =E15*F15 -> 3.15 | H15: -4181.82 | I15: -0.9992473064 | J15: 0.0003578655732
A16: Distribution Volumetric Charge | B16: =IF($B$9="kWh",$B$4,$B$5) -> 85 | C16: =VLOOKUP($B$3,'Data Current Rates'!$A:$AL,MATCH('BI Template_unmHCHI'!$A16,CurrentHeader,0),FALSE) -> 15.2665 | D16: =B16*C16 -> 1297.6525 | E16: =IF($C$9="kWh",$C$4,$C$5) -> 31001 | F16: =VLOOKUP($C$3,'Data Proposed Rates'!$A:$BB,MATCH('BI Template_unmHCHI'!$A16,ProposedHeader,0),FALSE) -> 0.113 | G16: 3503.113 | H16: 2205.4605 | I16: 1.699577121 | J16: 0.3979820767
A17: Low Voltage Service Rate | B17: =IF($B$9="kWh",$B$4,$B$5) -> 85 | C17: =VLOOKUP($B$3,'Data Current Rates'!$A:$AL,MATCH('BI Template_unmHCHI'!$A17,CurrentHeader,0),FALSE) -> 0.113 | D17: 9.605 | H17: -9.605 | I17: -1 | J17: 0
A18: Funding Adder for Renewable Energy Generation | B18: 85 | C18: =VLOOKUP($B$3,'Data Current Rates'!$A:$AL,MATCH('BI Template_unmHCHI'!$A18,CurrentHeader,0),FALSE) -> 0.2152 | D18: 18.292 | H18: -18.292 | I18: -1 | J18: 0
A19: Group 1 Volumetric DVA Rider (General) | E19: =IF($C$9="kWh",$C$4,$C$5) -> 31001 | F19: =VLOOKUP($C$3,'Data Proposed Rates'!$A:$BB,MATCH('BI Template_unmHCHI'!$A19,ProposedHeader,0),FALSE) -> -0.0007 | G19: -21.7007 | H19: -21.7007 | I19: N/A | J19: -0.002465375697
A20: Group 2 Volumetric DVA Rider | B20: 85 | C20: =VLOOKUP($B$3,'Data Current Rates'!$A:$AL,MATCH('BI Template_unmHCHI'!$A20,CurrentHeader,0),FALSE) -> -1.4539 | D20: =B20*C20 -> -123.5815 | H20: =G20-D20 -> 123.5815 | I20: =IF(ISERROR(H20/ABS(D20)),"N/A",(H20/ABS(D20))) -> 1 | J20: 0
A21: Volumetric Rider for Account 1592 | E21: =IF($C$9="kWh",$C$4,$C$5) -> 31001 | F21: =VLOOKUP($C$3,'Data Proposed Rates'!$A:$BB,MATCH('BI Template_unmHCHI'!$A21,ProposedHeader,0),FALSE) -> -0.0028 | G21: =E21*F21 -> -86.8028 | H21: -86.8028 | I21: N/A | J21: -0.009861502786
A22: Sub-Total: Distribution (excluding pass through) | D22: =SUM(INDIRECT("D15:D"&ROW()-1)) -> 5386.938 | G22: =SUM(INDIRECT("g15:g"&ROW()-1)) -> 3397.7595 | H22: =G22-D22 -> -1989.1785 | I22: -0.3692595868 | J22: 0.3860130638
A23: Line Losses on Cost of Power (based on two-tier RPP prices) | B23: =B8-B4 -> 2030.5655 | C23: =IF(B4>B7,C13,C12) -> 0.115 | D23: =B23*C23 -> 233.5150325 | E23: =C8-C4 -> 2852.092 | F23: =IF(C4>C7,F13,F12) -> 0.115 | G23: =E23*F23 -> 327.99058 | H23: 94.4755475 | I23: 0.4045801527 | J23: 0.03726239267
A24: Sub-Total: Distribution (based on two-tier RPP prices) | D24: =SUM(D22,D23:D23) -> 5620.453032 | G24: =SUM(G22,G23:G23) -> 3725.75008 | H24: -1894.702952 | I24: -0.3371085821 | J24: 0.4232754565
A25: Retail Transmission Rate – Network Service Rate | B25: =IF($B$9="kWh",$B$8,$B$5) -> 85 | C25: =VLOOKUP($B$3,'Data Current Rates'!$A:$AL,MATCH('BI Template_unmHCHI'!$A25,CurrentHeader,0),FALSE) -> 1.915 | D25: =B25*C25 -> 162.775 | E25: =IF($C$9="kWh",$C$8,$C$5) -> 33853.092 | F25: =VLOOKUP($C$3,'Data Proposed Rates'!$A:$BB,MATCH('BI Template_unmHCHI'!$A25,ProposedHeader,0),FALSE) -> 0.0064 | G25: =E25*F25 -> 216.6597888 | H25: =G25-D25 -> 53.8847888 | I25: 0.3310384813 | J25: 0.02461431095
A26: Retail Transmission Rate – Line and Transformation Connection Service Rate | B26: =IF($B$9="kWh",$B$8,$B$5) -> 85 | C26: =VLOOKUP($B$3,'Data Current Rates'!$A:$AL,MATCH('BI Template_unmHCHI'!$A26,CurrentHeader,0),FALSE) -> 1.7294 | D26: =B26*C26 -> 146.999 | E26: =IF($C$9="kWh",$C$8,$C$5) -> 33853.092 | F26: =VLOOKUP($C$3,'Data Proposed Rates'!$A:$BB,MATCH('BI Template_unmHCHI'!$A26,ProposedHeader,0),FALSE) -> 0.0048 | G26: =E26*F26 -> 162.4948416 | H26: =G26-D26 -> 15.4958416 | I26: 0.1054146055 | J26: 0.01846073322
A27: Sub-Total: Retail Transmission | D27: =SUM(D25:D26) -> 309.774 | G27: =SUM(G25:G26) -> 379.1546304 | H27: =G27-D27 -> 69.3806304 | I27: 0.2239717678 | J27: 0.04307504417
A28: Sub-Total: Delivery (based on two-tier RPP prices) | D28: =D24+D27 -> 5930.227032 | G28: =G24+G27 -> 4104.90471 | H28: =G28-D28 -> -1825.322322 | I28: -0.3077997372 | J28: 0.4663505007
A29: Wholesale Market Service Rate (WMS) - not including CBR | B29: =B8 -> 33031.5655 | C29: =VLOOKUP($A29,'Data Pass Through'!$A:$D,2,FALSE) -> 0.003 | D29: =B29*C29 -> 99.0946965 | E29: =$C$8 -> 33853.092 | F29: =VLOOKUP($A29,'Data Pass Through'!$A:$D,3,FALSE) -> 0.003 | G29: =E29*F29 -> 101.559276 | H29: =G29-D29 -> 2.4645795 | I29: 0.0248709526 | J29: 0.01153795826
A30: Capacity Based Recovery (CBR) - Applicable for Class B Customers | B30: =B8 -> 33031.5655 | C30: =VLOOKUP($A30,'Data Pass Through'!$A:$D,2,FALSE) -> 0.0004 | D30: =B30*C30 -> 13.2126262 | E30: =$C$8 -> 33853.092 | F30: =VLOOKUP($A30,'Data Pass Through'!$A:$D,3,FALSE) -> 0.0004 | G30: =E30*F30 -> 13.5412368 | H30: 0.3286106 | I30: 0.0248709526 | J30: 0.001538394435
A31: Rural Rate Protection Charge | B31: =B8 -> 33031.5655 | C31: =VLOOKUP($A31,'Data Pass Through'!$A:$D,2,FALSE) -> 0.0005 | D31: 16.51578275 | E31: 33853.092 | F31: =VLOOKUP($A31,'Data Pass Through'!$A:$D,3,FALSE) -> 0.0005 | G31: 16.926546 | H31: 0.41076325 | I31: 0.0248709526 | J31: 0.001922993043
A32: Standard Supply Service – Administration Charge (if applicable) | B32: 1 | C32: =VLOOKUP($A32,'Data Pass Through'!$A:$D,2,FALSE) -> 0.25 | D32: =B32*C32 -> 0.25 | E32: 1 | F32: =VLOOKUP($A32,'Data Pass Through'!$A:$D,3,FALSE) -> 0.25 | G32: 0.25 | H32: 0 | I32: 0 | J32: 2.840202962e-05
A33: Sub-Total: Regulatory | D33: =SUM(D29:D32) -> 129.0731055 | G33: =SUM(G29:G32) -> 132.2770588 | H33: 3.20395335 | I33: 0.02482278038 | J33: 0.01502774777
A34: Total Electricty Charge on Two-Tier RPP | D34: =SUM(D28,D33,D14) -> 9611.665138 | G34: =SUM(G28,G33,G14) -> 7789.546769 | H34: -1822.118369 | I34: -0.1895736423 | J34: 0.8849557522
A35: HST | C35: 0.13 | D35: =D34*C35 -> 1249.516468 | F35: =C35 -> 0.13 | G35: =G34*F35 -> 1012.64108 | H35: -236.8753879 | I35: -0.1895736423 | J35: 0.1150442478
A36: Total Electricity Charge on Two-Tier RPP (including HST) | D36: =SUM(D34:D35) -> 10861.18161 | G36: =SUM(G34:G35) -> 8802.187849 | H36: -2058.993757 | I36: -0.1895736423 | J36: 1
A37: Ontario Electricity Rebate (OER) | C37: =IF(($B$4*12)<250000,VLOOKUP(A37,'Data Pass Through'!$A$4:$C$20,2,0),0) -> 0 | D37: =D34*C37 -> 0 | F37: =C37 -> 0 | G37: =G34*F37 -> 0 | H37: 0 | I37: N/A | J37: 0
A38: Total Amount on Two-Tier RPP | D38: =SUM(D36:D37) -> 10861.18161 | G38: =SUM(G36:G37) -> 8802.187849 | H38: -2058.993757 | I38: -0.1895736423 | J38: 1

Sheet BI Template_EnergyWHSI (hidden)
A1: 2023 Bill Impacts (Low Consumption Level) - AUR_WHSI
A3: Rate Class | B3: =VLOOKUP(A1,'Data BI List Acq_Seas'!C:E,2,FALSE) -> WHSI_RES | C3: =VLOOKUP(A1,'Data BI List Acq_Seas'!C:E,3,FALSE) -> AUR-WHSI
A4: Monthly Consumption (kWh) | B4: =IF(COUNTIF(A1,"*Low*")>0,VLOOKUP(B3,'Data Billing Quantities'!$A:$Z,MATCH("Low kWh",'Data Billing Quantities'!4:4,0),FALSE),IF(COUNTIF(A1,"*Typical*")>0,VLOOKUP(B3,'Data Billing Quantities'!$A:$Z,MATCH("Typical kWh",'Data Billing Quantities'!4:4,0),FALSE),IF(COUNTIF(A1,"*Average*")>0,VLOOKUP(B3,'Data Billing Quantities'!$A:$Z,MATCH("Average kWh",'Data Billing Quantities'!4:4,0),FALSE),IF(COUNTIF(A1,"*High*")>0,VLOOKUP(B3,'Data Billing Quantities'!$A:$Z,MATCH("High kWh",'Data Billing Quantities'!4:4,0),FALSE),"error")))) -> 310 | C4: =B4 -> 310
A5: Peak (kW) | B5: =IF(COUNTIF(A1,"*Low*")>0,VLOOKUP(B3,'Data Billing Quantities'!$A:$Z,MATCH("Low kW",'Data Billing Quantities'!4:4,0),FALSE),IF(COUNTIF(A1,"*Typical*")>0,VLOOKUP(B3,'Data Billing Quantities'!$A:$Z,MATCH("Typical kW",'Data Billing Quantities'!4:4,0),FALSE),IF(COUNTIF(A1,"*Average*")>0,VLOOKUP(B3,'Data Billing Quantities'!$A:$Z,MATCH("Average kW",'Data Billing Quantities'!4:4,0),FALSE),IF(COUNTIF(A1,"*High*")>0,VLOOKUP(B3,'Data Billing Quantities'!$A:$Z,MATCH("High kW",'Data Billing Quantities'!4:4,0),FALSE),"error")))) -> 0 | C5: =B5 -> 0
A6: Loss factor | B6: =VLOOKUP(B3,'Data Billing Quantities'!A:D,MATCH(A6,'Data Billing Quantities'!4:4,0),FALSE) -> 1.0431 | C6: =VLOOKUP(C3,'Data Billing Quantities'!A:D,MATCH(A6,'Data Billing Quantities'!4:4,0),FALSE) -> 1.043
A7: Commodity Threshold | B7: =VLOOKUP(B3,'Data Billing Quantities'!A:D,MATCH(A7,'Data Billing Quantities'!4:4,0),FALSE) -> 600 | C7: =B7 -> 600
A8: Monthly Consumption (kWh) - Uplifted | B8: =B4*B6 -> 323.361 | C8: =C4*C6 -> 323.33
A9: Charge determinant | B9: =VLOOKUP(B3,'Data Billing Quantities'!A:D,MATCH(A9,'Data Billing Quantities'!4:4,0),FALSE) -> kWh | C9: =VLOOKUP(C3,'Data Billing Quantities'!A:D,MATCH(A9,'Data Billing Quantities'!4:4,0),FALSE) -> kWh
B11: Volume | C11: Current Rate ($) | D11: Current Charge ($) | E11: Volume | F11: Proposed Rate ($) | G11: Proposed Charge ($) | H11: Change ($) | I11: Change (%) | J11: % of Total Bill on RPP | K11: % of Total Bill
A12: Energy First Tier | B12: =IF(B4>B7,B7,B4) -> 310 | C12: =VLOOKUP($A12,'Data Pass Through'!$A:$D,2,FALSE) -> 0.098 | D12: =B12*C12 -> 30.38 | E12: =B12 -> 310 | F12: =VLOOKUP($A12,'Data Pass Through'!$A:$D,3,FALSE) -> 0.098 | G12: =E12*F12 -> 30.38 | H12: =G12-D12 -> 0 | I12: =IF(ISERROR(H12/ABS(D12)),"N/A",(H12/ABS(D12))) -> 0 | J12: =G12/$G$50 -> 0.4521749291
A13: Energy Second Tier | B13: =IF(B4>B7,(B4)-B7,0) -> 0 | C13: =VLOOKUP($A13,'Data Pass Through'!$A:$D,2,FALSE) -> 0.115 | D13: =B13*C13 -> 0 | E13: =B13 -> 0 | F13: =VLOOKUP($A13,'Data Pass Through'!$A:$D,3,FALSE) -> 0.115 | G13: =E13*F13 -> 0 | H13: 0 | I13: N/A | J13: =G13/$G$50 -> 0
A14: Sub-Total: Energy (RPP Tiered) | D14: =SUM(D12:D13) -> 30.38 | G14: =SUM(G12:G13) -> 30.38 | H14: 0 | I14: 0 | J14: =G14/$G$50 -> 0.4521749291
A15: TOU-Off Peak | B15: =B$4*VLOOKUP($B$3,'Data Billing Quantities'!$A:$O,MATCH('BI Template_EnergyWHSI'!$A15,'Data Billing Quantities'!$4:$4,0),FALSE) -> 198.4 | C15: =VLOOKUP($A15,'Data Pass Through'!$A:$D,2,FALSE) -> 0.082 | D15: =B15*C15 -> 16.2688 | E15: 198.4 | F15: =VLOOKUP($A15,'Data Pass Through'!$A:$D,3,FALSE) -> 0.082 | G15: =E15*F15 -> 16.2688 | H15: 0 | I15: 0 | K15: =G15/$G$55 -> 0.2363433664
A16: TOU-Mid Peak | B16: =B$4*VLOOKUP($B$3,'Data Billing Quantities'!$A:$O,MATCH('BI Template_EnergyWHSI'!$A16,'Data Billing Quantities'!$4:$4,0),FALSE) -> 55.8 | C16: =VLOOKUP($A16,'Data Pass Through'!$A:$D,2,FALSE) -> 0.113 | D16: =B16*C16 -> 6.3054 | E16: 55.8 | F16: =VLOOKUP($A16,'Data Pass Through'!$A:$D,3,FALSE) -> 0.113 | G16: =E16*F16 -> 6.3054 | H16: 0 | I16: 0 | K16: 0.09160106846
A17: TOU-On Peak | B17: =B$4*VLOOKUP($B$3,'Data Billing Quantities'!$A:$O,MATCH('BI Template_EnergyWHSI'!$A17,'Data Billing Quantities'!$4:$4,0),FALSE) -> 55.8 | C17: =VLOOKUP($A17,'Data Pass Through'!$A:$D,2,FALSE) -> 0.17 | D17: =B17*C17 -> 9.486 | E17: 55.8 | F17: =VLOOKUP($A17,'Data Pass Through'!$A:$D,3,FALSE) -> 0.17 | G17: =E17*F17 -> 9.486 | H17: 0 | I17: 0 | K17: 0.1378069172
A18: Sub-Total: Energy (RPP TOU) | D18: =SUM(D15:D17) -> 32.0602 | G18: =SUM(G15:G17) -> 32.0602 | H18: 0 | I18: 0 | J18: =G18/$G$50 -> 0.4771829711 | K18: 0.465751352
A19: Service Charge | B19: 1 | C19: =VLOOKUP($B$3,'Data Current Rates'!$A:$AL,MATCH('BI Template_EnergyWHSI'!$A19,CurrentHeader,0),FALSE) -> 31.42 | D19: =B19*C19 -> 31.42 | E19: 1 | F19: =VLOOKUP($C$3,'Data Proposed Rates'!$A:$BB,MATCH('BI Template_EnergyWHSI'!$A19,ProposedHeader,0),FALSE) -> 31.46 | G19: =E19*F19 -> 31.46 | H19: 0.04 | I19: 0.001273074475 | J19: 0.4682496139 | K19: 0.4570320065
A20: Rate Rider for Recovery of Smart Meter Incremental Revenue Requirement | B20: 1 | C20: =VLOOKUP($B$3,'Data Current Rates'!$A:$AL,MATCH('BI Template_EnergyWHSI'!$A20,CurrentHeader,0),FALSE) -> 0.64 | D20: =B20*C20 -> 0.64 | H20: =G20-D20 -> -0.64 | I20: =IF(ISERROR(H20/ABS(D20)),"N/A",(H20/ABS(D20))) -> -1 | J20: 0 | K20: 0
A21: Distribution Volumetric Charge | B21: =IF($B$9="kWh",$B$4,$B$5) -> 310 | C21: =VLOOKUP($B$3,'Data Current Rates'!$A:$AL,MATCH('BI Template_EnergyWHSI'!$A21,CurrentHeader,0),FALSE) -> 0 | D21: =B21*C21 -> 0 | E21: =IF($C$9="kWh",$C$4,$C$5) -> 310 | F21: =VLOOKUP($C$3,'Data Proposed Rates'!$A:$BB,MATCH('BI Template_EnergyWHSI'!$A21,ProposedHeader,0),FALSE) -> 0 | G21: 0 | H21: 0 | I21: N/A | J21: 0 | K21: 0
A22: Group 1 Volumetric DVA Rider (General) | E22: =IF($C$9="kWh",$C$4,$C$5) -> 310 | F22: =VLOOKUP($C$3,'Data Proposed Rates'!$A:$BB,MATCH('BI Template_EnergyWHSI'!$A22,ProposedHeader,0),FALSE) -> -0.0009 | G22: -0.279 | H22: -0.279 | I22: N/A | J22: -0.0041526269 | K22: -0.004053144622
A23: Group 2 Fixed DVA Rider | B23: 1 | C23: =VLOOKUP($B$3,'Data Current Rates'!$A:$AL,MATCH('BI Template_EnergyWHSI'!$A23,CurrentHeader,0),FALSE) -> 0.62 | D23: =B23*C23 -> 0.62 | H23: =G23-D23 -> -0.62 | I23: =IF(ISERROR(H23/ABS(D23)),"N/A",(H23/ABS(D23))) -> -1 | J23: 0 | K23: 0
A24: Group 2 Volumetric DVA Rider | B24: =IF($B$9="kWh",$B$4,$B$5) -> 310 | C24: =VLOOKUP($B$3,'Data Current Rates'!$A:$AL,MATCH('BI Template_EnergyWHSI'!$A24,CurrentHeader,0),FALSE) -> 0 | D24: 0
A25: Account 1576 Fixed Rate Rider | B25: 1 | C25: =VLOOKUP($B$3,'Data Current Rates'!$A:$AL,MATCH('BI Template_EnergyWHSI'!$A25,CurrentHeader,0),FALSE) -> -8.64 | D25: -8.64 | H25: 8.64 | I25: 1 | J25: =G25/$G$50 -> 0 | K25: =G25/$G$55 -> 0
A26: Account 1576 Volumetric Rate Rider | B26: =IF($B$9="kWh",$B$4,$B$5) -> 310 | C26: =VLOOKUP($B$3,'Data Current Rates'!$A:$AL,MATCH('BI Template_EnergyWHSI'!$A26,CurrentHeader,0),FALSE) -> 0 | D26: 0 | H26: 0 | I26: N/A | J26: 0 | K26: 0
A27: LRAMVA Volumetric Rate Rider | B27: 310 | C27: =VLOOKUP($B$3,'Data Current Rates'!$A:$AL,MATCH('BI Template_EnergyWHSI'!$A27,CurrentHeader,0),FALSE) -> 0.0003 | D27: 0.093 | E27: =IF($C$9="kWh",$C$4,$C$5) -> 310 | F27: =VLOOKUP($C$3,'Data Proposed Rates'!$A:$BB,MATCH('BI Template_EnergyWHSI'!$A27,ProposedHeader,0),FALSE) -> 0.0003 | G27: =E27*F27 -> 0.093 | H27: 0 | I27: 0 | J27: 0.001384208967 | K27: 0.001351048207
A28: Fixed Rider for Account 1592 | E28: 1 | F28: =VLOOKUP($C$3,'Data Proposed Rates'!$A:$BB,MATCH('BI Template_EnergyWHSI'!$A28,ProposedHeader,0),FALSE) -> -0.4 | G28: =E28*F28 -> -0.4 | H28: -0.4 | I28: N/A | J28: -0.005953586954 | K28: -0.005810960032
A29: Volumetric Rider for Account 1592 | E29: =IF($C$9="kWh",$C$4,$C$5) -> 310 | F29: =VLOOKUP($C$3,'Data Proposed Rates'!$A:$BB,MATCH('BI Template_EnergyWHSI'!$A29,ProposedHeader,0),FALSE) -> 0 | G29: 0 | H29: 0 | I29: N/A | J29: 0 | K29: 0
A30: Sub-Total: Distribution (excluding pass through) | D30: =SUM(INDIRECT("D19:D"&ROW()-1)) -> 24.133 | G30: =SUM(INDIRECT("g19:g"&ROW()-1)) -> 30.874 | H30: =G30-D30 -> 6.741 | I30: 0.2793270625 | J30: 0.459527609 | K30: 0.44851895
A31: Smart Metering Entity Charge | B31: =B19 -> 1 | C31: =VLOOKUP($A31,'Data Pass Through'!$A:$D,2,FALSE) -> 0.57 | D31: =B31*C31 -> 0.57 | E31: =E19 -> 1 | F31: =VLOOKUP($A31,'Data Pass Through'!$A:$D,3,FALSE) -> 0.57 | G31: =E31*F31 -> 0.57 | H31: 0 | I31: 0 | J31: 0.008483861409 | K31: 0.008280618045
A32: Line Losses on Cost of Power (based on two-tier RPP prices) | B32: =B8-B4 -> 13.361 | C32: =IF(B4>B7,C13,C12) -> 0.098 | D32: =B32*C32 -> 1.309378 | E32: =C8-C4 -> 13.33 | F32: =IF(C4>C7,F13,F12) -> 0.098 | G32: =E32*F32 -> 1.30634 | H32: -0.003038 | I32: -0.002320185615 | J32: 0.01944352195 | K32: 0.01897772382
A33: Line Losses on Cost of Power (based on TOU prices) | B33: =B8-B4 -> 13.361 | C33: =VLOOKUP($B$3,'Data Billing Quantities'!$A:$O,MATCH('BI Template_EnergyWHSI'!$A15,'Data Billing Quantities'!$4:$4,0),FALSE)*C15+VLOOKUP($B$3,'Data Billing Quantities'!$A:$O,MATCH('BI Template_EnergyWHSI'!$A16,'Data Billing Quantities'!$4:$4,0),FALSE)*C16+VLOOKUP($B$3,'Data Billing Quantities'!$A:$O,MATCH('BI Template_EnergyWHSI'!$A17,'Data Billing Quantities'!$4:$4,0),FALSE)*C17 -> 0.10342 | D33: =B33*C33 -> 1.38179462 | E33: =C8-C4 -> 13.33 | F33: =VLOOKUP($C$3,'Data Billing Quantities'!$A:$O,MATCH('BI Template_EnergyWHSI'!$A15,'Data Billing Quantities'!$4:$4,0),FALSE)*F15+VLOOKUP($C$3,'Data Billing Quantities'!$A:$O,MATCH('BI Template_EnergyWHSI'!$A16,'Data Billing Quantities'!$4:$4,0),FALSE)*F16+VLOOKUP($C$3,'Data Billing Quantities'!$A:$O,MATCH('BI Template_EnergyWHSI'!$A17,'Data Billing Quantities'!$4:$4,0),FALSE)*F17 -> 0.10342 | G33: =E33*F33 -> 1.3785886 | H33: -0.00320602 | I33: -0.002320185615 | J33: 0.02051886776 | K33: 0.02002730814
A34: Sub-Total: Distribution (based on two-tier RPP prices) | D34: =SUM(D30,D31:D32) -> 26.012378 | G34: =SUM(G30,G31:G32) -> 32.75034 | H34: 6.737962 | I34: 0.2590290669 | J34: 0.4874549924 | K34: 0.4757772919
A35: Sub-Total: Distribution (based on TOU prices) | D35: =SUM(D30,D31,D33) -> 26.08479462 | G35: =SUM(G30,G31,G33) -> 32.8225886 | H35: 6.73779398 | I35: 0.2583035089 | J35: 0.4885303382 | K35: 0.4768268762
A36: Retail Transmission Rate – Network Service Rate | B36: =IF($B$9="kWh",$B$8,$B$5) -> 323.361 | C36: =VLOOKUP($B$3,'Data Current Rates'!$A:$AL,MATCH('BI Template_EnergyWHSI'!$A36,CurrentHeader,0),FALSE) -> 0.0077 | D36: =B36*C36 -> 2.4898797 | E36: =IF($C$9="kWh",$C$8,$C$5) -> 323.33 | F36: =VLOOKUP($C$3,'Data Proposed Rates'!$A:$BB,MATCH('BI Template_EnergyWHSI'!$A36,ProposedHeader,0),FALSE) -> 0.0124 | G36: =E36*F36 -> 4.009292 | H36: =G36-D36 -> 1.5194123 | I36: 0.6102352254 | J36: 0.05967417136 | K36: 0.05824458892
A37: Retail Transmission Rate – Line and Transformation Connection Service Rate | B37: =IF($B$9="kWh",$B$8,$B$5) -> 323.361 | C37: =VLOOKUP($B$3,'Data Current Rates'!$A:$AL,MATCH('BI Template_EnergyWHSI'!$A37,CurrentHeader,0),FALSE) -> 0.0064 | D37: =B37*C37 -> 2.0695104 | E37: =IF($C$9="kWh",$C$8,$C$5) -> 323.33 | F37: =VLOOKUP($C$3,'Data Proposed Rates'!$A:$BB,MATCH('BI Template_EnergyWHSI'!$A37,ProposedHeader,0),FALSE) -> 0.0085 | G37: =E37*F37 -> 2.748305 | H37: =G37-D37 -> 0.6787946 | I37: 0.3279976752 | J37: 0.04090568198 | K37: 0.03992572627
A38: Sub-Total: Retail Transmission | D38: =SUM(D36:D37) -> 4.5593901 | G38: =SUM(G36:G37) -> 6.757597 | H38: =G38-D38 -> 2.1982069 | I38: 0.4821274012 | J38: 0.1005798533 | K38: 0.09817031519
A39: Sub-Total: Delivery (based on two-tier RPP prices) | D39: =D34+D38 -> 30.5717681 | G39: =G34+G38 -> 39.507937 | H39: =G39-D39 -> 8.9361689 | I39: 0.2923013439 | J39: 0.5880348457 | K39: 0.5739476071
A40: Sub-Total: Delivery (based on TOU prices) | D40: =D35+D38 -> 30.64418472 | G40: =G35+G38 -> 39.5801856 | H40: =G40-D40 -> 8.93600088 | I40: 0.2916051108 | J40: 0.5891101915 | K40: 0.5749971914
A41: Wholesale Market Service Rate (WMS) - not including CBR | B41: =B8 -> 323.361 | C41: =VLOOKUP($A41,'Data Pass Through'!$A:$D,2,FALSE) -> 0.003 | D41: =B41*C41 -> 0.970083 | E41: =$C$8 -> 323.33 | F41: =VLOOKUP($A41,'Data Pass Through'!$A:$D,3,FALSE) -> 0.003 | G41: =E41*F41 -> 0.96999 | H41: -9.3e-05 | I41: -9.586808551e-05 | J41: 0.01443729952 | K41: 0.0140914328
A42: Capacity Based Recovery (CBR) - Applicable for Class B Customers | B42: =B8 -> 323.361 | C42: =VLOOKUP($A42,'Data Pass Through'!$A:$D,2,FALSE) -> 0.0004 | D42: =B42*C42 -> 0.1293444 | E42: =$C$8 -> 323.33 | F42: =VLOOKUP($A42,'Data Pass Through'!$A:$D,3,FALSE) -> 0.0004 | G42: =E42*F42 -> 0.129332 | H42: -1.24e-05 | I42: -9.586808551e-05 | J42: 0.00192497327 | K42: 0.001878857707
A43: Rural Rate Protection Charge | B43: =B8 -> 323.361 | C43: =VLOOKUP($A43,'Data Pass Through'!$A:$D,2,FALSE) -> 0.0005 | D43: 0.1616805 | E43: 323.33 | F43: =VLOOKUP($A43,'Data Pass Through'!$A:$D,3,FALSE) -> 0.0005 | G43: 0.161665 | H43: -1.55e-05 | I43: -9.586808551e-05 | J43: 0.002406216587 | K43: 0.002348572134
A44: Standard Supply Service – Administration Charge (if applicable) | B44: 1 | C44: =VLOOKUP($A44,'Data Pass Through'!$A:$D,2,FALSE) -> 0.25 | D44: =B44*C44 -> 0.25 | E44: 1 | F44: =VLOOKUP($A44,'Data Pass Through'!$A:$D,3,FALSE) -> 0.25 | G44: 0.25 | H44: 0 | I44: 0 | J44: 0.003720991846 | K44: 0.00363185002
A45: Sub-Total: Regulatory | D45: =SUM(D41:D44) -> 1.5111079 | G45: =SUM(G41:G44) -> 1.510987 | H45: -0.0001209 | I45: -8.000752296e-05 | J45: 0.02248948123 | K45: 0.02195071266
A46: Total Electricty Charge on Two-Tier RPP | D46: =SUM(D14,D30,D31,D32,D38,D45) -> 62.462876 | G46: =SUM(G14,G30,G31,G32,G38,G45) -> 71.398924 | H46: 8.936048 | I46: 0.1430617444 | J46: 1.062699256
A47: HST | C47: 0.13 | D47: =D46*C47 -> 8.12017388 | F47: =C47 -> 0.13 | G47: =G46*F47 -> 9.28186012 | H47: 1.16168624 | I47: 0.1430617444 | J47: 0.1381509033
A48: Total Electricity Charge on Two-Tier RPP (including HST) | D48: =SUM(D46:D47) -> 70.58304988 | G48: =SUM(G46:G47) -> 80.68078412 | H48: 10.09773424 | I48: 0.1430617444 | J48: 1.200850159
A49: Ontario Electricity Rebate (OER) | C49: =IF(($B$4*12)<250000,VLOOKUP(A49,'Data Pass Through'!$A$4:$C$20,2,0),0) -> -0.189 | D49: =D46*C49 -> -11.80548356 | F49: =C49 -> -0.189 | G49: =G46*F49 -> -13.49439664 | H49: -1.688913072 | I49: -0.1430617444 | J49: -0.2008501594
A50: Total Amount on Two-Tier RPP | D50: =SUM(D48:D49) -> 58.77756632 | G50: =SUM(G48:G49) -> 67.18638748 | H50: 8.408821168 | I50: 0.1430617444 | J50: 1
A51: Total Electricty Charge on TOU (before HST) | D51: =SUM(D18,D30,D31,D33,D38,D45) -> 64.21549262 | G51: =SUM(G18,G30,G31,G33,G38,G45) -> 73.1513726 | H51: 8.93587998 | I51: 0.1391545812 | K51: =G51/$G$55 -> 1.062699256
A52: HST | C52: 0.13 | D52: =D51*C52 -> 8.348014041 | F52: =C52 -> 0.13 | G52: =G51*F52 -> 9.509678438 | H52: 1.161664397 | I52: 0.1391545812 | K52: =G52/$G$55 -> 0.1381509033
A53: Total Electricity Charge on TOU (including HST) | D53: =SUM(D51:D52) -> 72.56350666 | G53: =SUM(G51:G52) -> 82.66105104 | H53: 10.09754438 | I53: 0.1391545812 | K53: =G53/$G$55 -> 1.200850159
A54: Ontario Electricity Rebate (OER) | C54: =IF(($B$4*12)<250000,VLOOKUP(A54,'Data Pass Through'!$A$4:$C$20,2,0),0) -> -0.189 | D54: =D51*C54 -> -12.13672811 | F54: =C54 -> -0.189 | G54: =G51*F54 -> -13.82560942 | H54: -1.688881316 | I54: -0.1391545812 | K54: =G54/$G$55 -> -0.2008501594
A55: Total Amount on TOU | D55: =SUM(D53:D54) -> 60.42677856 | G55: =SUM(G53:G54) -> 68.83544162 | H55: 8.408663061 | I55: 0.1391545812 | K55: =G55/$G$55 -> 1

Sheet BI Template_DemandWHSI (hidden)
A1: 2023 Bill Impacts (Low Consumption Level) - AUGd_WHSI
A3: Rate Class | B3: =VLOOKUP(A1,'Data BI List Acq_Seas'!C:E,2,FALSE) -> WHSI_GS 50-999 | C3: =VLOOKUP(A1,'Data BI List Acq_Seas'!C:E,3,FALSE) -> AUGd-WHSI
A4: Monthly Consumption (kWh) | B4: =IF(COUNTIF(A1,"*Low*")>0,VLOOKUP(B3,'Data Billing Quantities'!$A:$Z,MATCH("Low kWh",'Data Billing Quantities'!4:4,0),FALSE),IF(COUNTIF(A1,"*Typical*")>0,VLOOKUP(B3,'Data Billing Quantities'!$A:$Z,MATCH("Typical kWh",'Data Billing Quantities'!4:4,0),FALSE),IF(COUNTIF(A1,"*Average*")>0,VLOOKUP(B3,'Data Billing Quantities'!$A:$Z,MATCH("Average kWh",'Data Billing Quantities'!4:4,0),FALSE),IF(COUNTIF(A1,"*High*")>0,VLOOKUP(B3,'Data Billing Quantities'!$A:$Z,MATCH("High kWh",'Data Billing Quantities'!4:4,0),FALSE),"error")))) -> 9370 | C4: =B4 -> 9370
A5: Peak (kW) | B5: =IF(COUNTIF(A1,"*Low*")>0,VLOOKUP(B3,'Data Billing Quantities'!$A:$Z,MATCH("Low kW",'Data Billing Quantities'!4:4,0),FALSE),IF(COUNTIF(A1,"*Typical*")>0,VLOOKUP(B3,'Data Billing Quantities'!$A:$Z,MATCH("Typical kW",'Data Billing Quantities'!4:4,0),FALSE),IF(COUNTIF(A1,"*Average*")>0,VLOOKUP(B3,'Data Billing Quantities'!$A:$Z,MATCH("Average kW",'Data Billing Quantities'!4:4,0),FALSE),IF(COUNTIF(A1,"*High*")>0,VLOOKUP(B3,'Data Billing Quantities'!$A:$Z,MATCH("High kW",'Data Billing Quantities'!4:4,0),FALSE),"error")))) -> 50 | C5: =B5 -> 50
A6: Loss factor | B6: =VLOOKUP(B3,'Data Billing Quantities'!A:D,MATCH(A6,'Data Billing Quantities'!4:4,0),FALSE) -> 1.0431 | C6: =VLOOKUP(C3,'Data Billing Quantities'!A:D,MATCH(A6,'Data Billing Quantities'!4:4,0),FALSE) -> 1.033
A7: Commodity Threshold | B7: =VLOOKUP(B3,'Data Billing Quantities'!A:D,MATCH(A7,'Data Billing Quantities'!4:4,0),FALSE) -> 0 | C7: =B7 -> 0
A8: Monthly Consumption (kWh) - Uplifted | B8: =B4*B6 -> 9773.847 | C8: =C4*C6 -> 9679.21
A9: Charge determinant | B9: =VLOOKUP(B3,'Data Billing Quantities'!A:D,MATCH(A9,'Data Billing Quantities'!4:4,0),FALSE) -> kW | C9: =VLOOKUP(C3,'Data Billing Quantities'!A:D,MATCH(A9,'Data Billing Quantities'!4:4,0),FALSE) -> kW
B11: Volume | C11: Current Rate ($) | D11: Current Charge ($) | E11: Volume | F11: Proposed Rate ($) | G11: Proposed Charge ($) | H11: Change ($) | I11: Change (%) | J11: % of Total Bill
A12: Weighted Average Hourly Spot Price | B12: =B8 -> 9773.847 | C12: =VLOOKUP($A12,'Data Pass Through'!$A:$D,2,FALSE) -> 0.119 | D12: =B12*C12 -> 1163.087793 | E12: =C8 -> 9679.21 | F12: =VLOOKUP($A12,'Data Pass Through'!$A:$D,3,FALSE) -> 0.119 | G12: =E12*F12 -> 1151.82599 | H12: =G12-D12 -> -11.261803 | I12: =IF(ISERROR(H12/ABS(D12)),"N/A",(H12/ABS(D12))) -> -0.009682676637 | J12: =G12/G$36 -> 0.5737388002
A13: Sub-Total: Energy (WAHSP) | D13: =SUM(D12:D12) -> 1163.087793 | G13: =SUM(G12:G12) -> 1151.82599 | H13: -11.261803 | I13: -0.009682676637 | J13: 0.5737388002
A14: Service Charge | B14: 1 | C14: =VLOOKUP($B$3,'Data Current Rates'!$A:$AL,MATCH('BI Template_DemandWHSI'!$A14,CurrentHeader,0),FALSE) -> 146.47 | D14: =B14*C14 -> 146.47 | E14: 1 | F14: =VLOOKUP($C$3,'Data Proposed Rates'!$A:$BB,MATCH('BI Template_DemandWHSI'!$A14,ProposedHeader,0),FALSE) -> 146.47 | G14: =E14*F14 -> 146.47 | H14: 0 | I14: 0 | J14: 0.0729585222
A15: Distribution Volumetric Charge | B15: =IF($B$9="kWh",$B$4,$B$5) -> 50 | C15: =VLOOKUP($B$3,'Data Current Rates'!$A:$AL,MATCH('BI Template_DemandWHSI'!$A15,CurrentHeader,0),FALSE) -> 2.6975 | D15: =B15*C15 -> 134.875 | E15: =IF($C$9="kWh",$C$4,$C$5) -> 50 | F15: =VLOOKUP($C$3,'Data Proposed Rates'!$A:$BB,MATCH('BI Template_DemandWHSI'!$A15,ProposedHeader,0),FALSE) -> 2.8482 | G15: 142.41 | H15: 7.535 | I15: 0.0558665431 | J15: 0.07093618588
A16: Group 1 Volumetric DVA Rider (General) | E16: =IF($C$9="kWh",$C$4,$C$5) -> 50 | F16: =VLOOKUP($C$3,'Data Proposed Rates'!$A:$BB,MATCH('BI Template_DemandWHSI'!$A16,ProposedHeader,0),FALSE) -> -0.0645 | G16: -3.225 | H16: -3.225 | I16: N/A | J16: -0.001606412467
A17: Group 1 Volumetric Deferral/Variance Account Rider (Sub-Account RSVA Wholesale Market Service Charge & RSVA Power) | E17: 50 | F17: =VLOOKUP($C$3,'Data Proposed Rates'!$A:$BB,MATCH('BI Template_DemandWHSI'!$A17,ProposedHeader,0),FALSE) -> -0.1351 | G17: -6.755 | H17: -6.755 | I17: N/A | J17: -0.003364749215
A18: Group 1 Volumetric Deferral/Variance Account Rider (Sub-Account Global Adjustment) | E18: =C8 -> 9679.21 | F18: =VLOOKUP($C$3,'Data Proposed Rates'!$A:$BB,MATCH('BI Template_DemandWHSI'!$A18,ProposedHeader,0),FALSE) -> -0.0009 | G18: -8.711289 | H18: -8.711289 | I18: N/A | J18: -0.00433920101
A19: Group 2 Volumetric DVA Rider | B19: =IF($B$9="kWh",$B$4,$B$5) -> 50 | C19: =VLOOKUP($B$3,'Data Current Rates'!$A:$AL,MATCH('BI Template_DemandWHSI'!$A19,CurrentHeader,0),FALSE) -> 0.0724 | D19: =B19*C19 -> 3.62 | H19: =G19-D19 -> -3.62 | I19: =IF(ISERROR(H19/ABS(D19)),"N/A",(H19/ABS(D19))) -> -1 | J19: =G19/G$36 -> 0
A20: Account 1576 Volumetric Rate Rider | B20: 50 | C20: =VLOOKUP($B$3,'Data Current Rates'!$A:$AL,MATCH('BI Template_DemandWHSI'!$A20,CurrentHeader,0),FALSE) -> -1.0156 | D20: -50.78 | H20: 50.78 | I20: 1 | J20: 0
A21: LRAMVA Volumetric Rate Rider | B21: 50 | C21: =VLOOKUP($B$3,'Data Current Rates'!$A:$AL,MATCH('BI Template_DemandWHSI'!$A21,CurrentHeader,0),FALSE) -> 0.6839 | D21: 34.195 | E21: =IF($C$9="kWh",$C$4,$C$5) -> 50 | F21: =VLOOKUP($C$3,'Data Proposed Rates'!$A:$BB,MATCH('BI Template_DemandWHSI'!$A21,ProposedHeader,0),FALSE) -> 0.6839 | G21: =E21*F21 -> 34.195 | H21: 0 | I21: 0 | J21: 0.01703295328
A22: Fixed Rider for Account 1592 | E22: 1 | F22: =VLOOKUP($C$3,'Data Proposed Rates'!$A:$BB,MATCH('BI Template_DemandWHSI'!$A22,ProposedHeader,0),FALSE) -> 0 | G22: 0 | H22: 0 | I22: N/A | J22: 0
A23: Volumetric Rider for Account 1592 | E23: 50 | F23: =VLOOKUP($C$3,'Data Proposed Rates'!$A:$BB,MATCH('BI Template_DemandWHSI'!$A23,ProposedHeader,0),FALSE) -> -0.0392 | G23: =E23*F23 -> -1.96 | H23: =G23-D23 -> -1.96 | I23: =IF(ISERROR(H23/ABS(D23)),"N/A",(H23/ABS(D23))) -> N/A | J23: =G23/G$36 -> -0.0009763002902
A24: Sub-Total: Distribution | D24: =SUM(INDIRECT("D14:D"&ROW()-1)) -> 268.38 | G24: =SUM(INDIRECT("g14:g"&ROW()-1)) -> 302.423711 | H24: =G24-D24 -> 34.043711 | I24: 0.126848912 | J24: =G24/G$36 -> 0.1506409984
A25: Retail Transmission Rate – Network Service Rate | B25: =IF($B$9="kWh",$B$4,$B$5) -> 50 | C25: =VLOOKUP($B$3,'Data Current Rates'!$A:$AL,MATCH('BI Template_DemandWHSI'!$A25,CurrentHeader,0),FALSE) -> 2.9915 | D25: =B25*C25 -> 149.575 | E25: =IF($C$9="kWh",$C$4,$C$5) -> 50 | F25: =VLOOKUP($C$3,'Data Proposed Rates'!$A:$BB,MATCH('BI Template_DemandWHSI'!$A25,ProposedHeader,0),FALSE) -> 3.3115 | G25: =E25*F25 -> 165.575 | H25: =G25-D25 -> 16 | I25: 0.1069697476 | J25: 0.08247495947
A26: Retail Transmission Rate – Line and Transformation Connection Service Rate | B26: =IF($B$9="kWh",$B$4,$B$5) -> 50 | C26: =VLOOKUP($B$3,'Data Current Rates'!$A:$AL,MATCH('BI Template_DemandWHSI'!$A26,CurrentHeader,0),FALSE) -> 2.5605 | D26: =B26*C26 -> 128.025 | E26: =IF($C$9="kWh",$C$4,$C$5) -> 50 | F26: =VLOOKUP($C$3,'Data Proposed Rates'!$A:$BB,MATCH('BI Template_DemandWHSI'!$A26,ProposedHeader,0),FALSE) -> 2.3759 | G26: =E26*F26 -> 118.795 | H26: =G26-D26 -> -9.23 | I26: -0.07209529389 | J26: 0.05917326172
A27: Sub-Total: Retail Transmission | D27: =SUM(D25:D26) -> 277.6 | G27: =SUM(G25:G26) -> 284.37 | H27: =G27-D27 -> 6.77 | I27: 0.02438760807 | J27: 0.1416482212
A28: Sub-Total: Delivery (based on two-tier RPP prices) | D28: =SUM(D24,D27) -> 545.98 | G28: =SUM(G24,G27) -> 586.793711 | H28: =G28-D28 -> 40.813711 | I28: 0.07475312466 | J28: 0.2922892196
A29: Wholesale Market Service Rate (WMS) - not including CBR | B29: =B8 -> 9773.847 | C29: =VLOOKUP($A29,'Data Pass Through'!$A:$D,2,FALSE) -> 0.003 | D29: =B29*C29 -> 29.321541 | E29: =$C$8 -> 9679.21 | F29: =VLOOKUP($A29,'Data Pass Through'!$A:$D,3,FALSE) -> 0.003 | G29: =E29*F29 -> 29.03763 | H29: =G29-D29 -> -0.283911 | I29: -0.009682676637 | J29: 0.01446400337
A30: Capacity Based Recovery (CBR) - Applicable for Class B Customers | B30: =B8 -> 9773.847 | C30: =VLOOKUP($A30,'Data Pass Through'!$A:$D,2,FALSE) -> 0.0004 | D30: =B30*C30 -> 3.9095388 | E30: =$C$8 -> 9679.21 | F30: =VLOOKUP($A30,'Data Pass Through'!$A:$D,3,FALSE) -> 0.0004 | G30: =E30*F30 -> 3.871684 | H30: -0.0378548 | I30: -0.009682676637 | J30: 0.001928533782
A31: Rural Rate Protection Charge | B31: =B8 -> 9773.847 | C31: =VLOOKUP($A31,'Data Pass Through'!$A:$D,2,FALSE) -> 0.0005 | D31: 4.8869235 | E31: 9679.21 | F31: =VLOOKUP($A31,'Data Pass Through'!$A:$D,3,FALSE) -> 0.0005 | G31: 4.839605 | H31: -0.0473185 | I31: -0.009682676637 | J31: 0.002410667228
A32: Standard Supply Service – Administration Charge (if applicable) | B32: 1 | C32: =VLOOKUP($A32,'Data Pass Through'!$A:$D,2,FALSE) -> 0.25 | D32: =B32*C32 -> 0.25 | E32: =B32 -> 1 | F32: =VLOOKUP($A32,'Data Pass Through'!$A:$D,3,FALSE) -> 0.25 | G32: 0.25 | H32: 0 | I32: 0 | J32: 0.0001245280982
A33: Sub-Total: Regulatory | D33: =SUM(D29:D32) -> 38.3680033 | G33: =SUM(G29:G32) -> 37.998919 | H33: -0.3690843 | I33: -0.009619585807 | J33: 0.01892773247
A34: Total Electricty Charge on WAHSP | D34: =SUM(D13,D28,D33) -> 1747.435796 | G34: =SUM(G13,G28,G33) -> 1776.61862 | H34: 29.1828237 | I34: 0.01670036963 | J34: 0.8849557522
A35: HST | C35: 0.13 | D35: =D34*C35 -> 227.1666535 | F35: =C35 -> 0.13 | G35: =G34*F35 -> 230.9604206 | H35: 3.793767081 | I35: 0.01670036963 | J35: 0.1150442478
A36: Total Amount on WAHSP | D36: =SUM(D34:D35) -> 1974.60245 | G36: =SUM(G34:G35) -> 2007.579041 | H36: 32.97659078 | I36: 0.01670036963 | J36: 1

Sheet BI Template_unmWHSI (hidden)
A1: 2023 Bill Impacts (Average Consumption Level) - St Lgt_WHSI
A3: Rate Class | B3: =VLOOKUP(A1,'Data BI List Acq_Seas'!C:E,2,FALSE) -> WHSI_St Lgt | C3: =VLOOKUP(A1,'Data BI List Acq_Seas'!C:E,3,FALSE) -> St Lgt-WHSI
A4: Monthly Consumption (kWh) | B4: =IF(COUNTIF(A1,"*Low*")>0,VLOOKUP(B3,'Data Billing Quantities'!$A:$Z,MATCH("Low kWh",'Data Billing Quantities'!4:4,0),FALSE),IF(COUNTIF(A1,"*Typical*")>0,VLOOKUP(B3,'Data Billing Quantities'!$A:$Z,MATCH("Typical kWh",'Data Billing Quantities'!4:4,0),FALSE),IF(COUNTIF(A1,"*Average*")>0,VLOOKUP(B3,'Data Billing Quantities'!$A:$Z,MATCH("Average kWh",'Data Billing Quantities'!4:4,0),FALSE),IF(COUNTIF(A1,"*High*")>0,VLOOKUP(B3,'Data Billing Quantities'!$A:$Z,MATCH("High kWh",'Data Billing Quantities'!4:4,0),FALSE),"error")))) -> 37079 | C4: =B4 -> 37079
A5: Peak (kW) | B5: =IF(COUNTIF(A1,"*Low*")>0,VLOOKUP(B3,'Data Billing Quantities'!$A:$Z,MATCH("Low kW",'Data Billing Quantities'!4:4,0),FALSE),IF(COUNTIF(A1,"*Typical*")>0,VLOOKUP(B3,'Data Billing Quantities'!$A:$Z,MATCH("Typical kW",'Data Billing Quantities'!4:4,0),FALSE),IF(COUNTIF(A1,"*Average*")>0,VLOOKUP(B3,'Data Billing Quantities'!$A:$Z,MATCH("Average kW",'Data Billing Quantities'!4:4,0),FALSE),IF(COUNTIF(A1,"*High*")>0,VLOOKUP(B3,'Data Billing Quantities'!$A:$Z,MATCH("High kW",'Data Billing Quantities'!4:4,0),FALSE),"error")))) -> 104 | C5: =B5 -> 104
A6: Loss factor | B6: =VLOOKUP(B3,'Data Billing Quantities'!A:D,MATCH(A6,'Data Billing Quantities'!4:4,0),FALSE) -> 1.0431 | C6: =VLOOKUP(C3,'Data Billing Quantities'!A:D,MATCH(A6,'Data Billing Quantities'!4:4,0),FALSE) -> 1.092
A7: Commodity Threshold | B7: =VLOOKUP(B3,'Data Billing Quantities'!A:D,MATCH(A7,'Data Billing Quantities'!4:4,0),FALSE) -> 750 | C7: =B7 -> 750
A8: Monthly Consumption (kWh) - Uplifted | B8: =B4*B6 -> 38677.1049 | C8: =C4*C6 -> 40490.268
A9: Charge determinant | B9: =VLOOKUP(B3,'Data Billing Quantities'!A:D,MATCH(A9,'Data Billing Quantities'!4:4,0),FALSE) -> kW | C9: =VLOOKUP(C3,'Data Billing Quantities'!A:D,MATCH(A9,'Data Billing Quantities'!4:4,0),FALSE) -> kWh
B11: Volume | C11: Current Rate ($) | D11: Current Charge ($) | E11: Volume | F11: Proposed Rate ($) | G11: Proposed Charge ($) | H11: Change ($) | I11: Change (%) | J11: % of Total Bill
A12: Energy First Tier | B12: =IF(B4>B7,B7,B4) -> 750 | C12: =VLOOKUP($A12,'Data Pass Through'!$A:$D,2,FALSE) -> 0.098 | D12: =B12*C12 -> 73.5 | E12: =B12 -> 750 | F12: =VLOOKUP($A12,'Data Pass Through'!$A:$D,3,FALSE) -> 0.098 | G12: =E12*F12 -> 73.5 | H12: =G12-D12 -> 0 | I12: =IF(ISERROR(H12/ABS(D12)),"N/A",(H12/ABS(D12))) -> 0 | J12: =G12/$G$37 -> 0.006935899627
A13: Energy Second Tier | B13: =IF(B4>B7,(B4)-B7,0) -> 36329 | C13: =VLOOKUP($A13,'Data Pass Through'!$A:$D,2,FALSE) -> 0.115 | D13: =B13*C13 -> 4177.835 | E13: =B13 -> 36329 | F13: =VLOOKUP($A13,'Data Pass Through'!$A:$D,3,FALSE) -> 0.115 | G13: =E13*F13 -> 4177.835 | H13: 0 | I13: 0 | J13: 0.3942454996
A14: Sub-Total: Energy (RPP Tiered) | D14: =SUM(D12:D13) -> 4251.335 | G14: =SUM(G12:G13) -> 4251.335 | H14: 0 | I14: 0 | J14: 0.4011813992
A15: Service Charge | B15: =IF(VLOOKUP(B$3,'Data Billing Quantities'!A:P,MATCH("Acquired Street Light Service Charge",'Data Billing Quantities'!$4:$4,0),FALSE)>0,VLOOKUP(B$3,'Data Billing Quantities'!A:P,MATCH("Acquired Street Light Service Charge",'Data Billing Quantities'!$4:$4,0),FALSE),1) -> 786 | C15: =VLOOKUP($B$3,'Data Current Rates'!$A:$AL,MATCH('BI Template_unmWHSI'!$A15,CurrentHeader,0),FALSE) -> 3.23 | D15: =B15*C15 -> 2538.78 | E15: 1 | F15: =VLOOKUP($C$3,'Data Proposed Rates'!$A:$BB,MATCH('BI Template_unmWHSI'!$A15,ProposedHeader,0),FALSE) -> 3.15 | G15: =E15*F15 -> 3.15 | H15: -2535.63 | I15: -0.9987592466 | J15: 0.0002972528411
A16: Distribution Volumetric Charge | B16: =IF($B$9="kWh",$B$4,$B$5) -> 104 | C16: =VLOOKUP($B$3,'Data Current Rates'!$A:$AL,MATCH('BI Template_unmWHSI'!$A16,CurrentHeader,0),FALSE) -> 13.0344 | D16: =B16*C16 -> 1355.5776 | E16: =IF($C$9="kWh",$C$4,$C$5) -> 37079 | F16: =VLOOKUP($C$3,'Data Proposed Rates'!$A:$BB,MATCH('BI Template_unmWHSI'!$A16,ProposedHeader,0),FALSE) -> 0.113 | G16: 4189.927 | H16: 2834.3494 | I16: 2.090879489 | J16: 0.395386573
A17: Group 1 Volumetric DVA Rider (General) | E17: =IF($C$9="kWh",$C$4,$C$5) -> 37079 | F17: =VLOOKUP($C$3,'Data Proposed Rates'!$A:$BB,MATCH('BI Template_unmWHSI'!$A17,ProposedHeader,0),FALSE) -> -0.0006 | G17: -22.2474 | H17: -22.2474 | I17: N/A | J17: -0.002099397733
A18: Group 2 Volumetric DVA Rider | B18: =IF($B$9="kWh",$B$4,$B$5) -> 104 | C18: =VLOOKUP($B$3,'Data Current Rates'!$A:$AL,MATCH('BI Template_unmWHSI'!$A18,CurrentHeader,0),FALSE) -> 0.7382 | D18: =B18*C18 -> 76.7728 | H18: =G18-D18 -> -76.7728 | I18: =IF(ISERROR(H18/ABS(D18)),"N/A",(H18/ABS(D18))) -> -1 | J18: 0
A19: Account 1576 Volumetric Rate Rider | B19: 104 | C19: =VLOOKUP($B$3,'Data Current Rates'!$A:$AL,MATCH('BI Template_unmWHSI'!$A19,CurrentHeader,0),FALSE) -> -10.3543 | D19: -1076.8472 | H19: 1076.8472 | I19: 1 | J19: 0
A20: Volumetric Rider for Account 1592 | E20: =IF($C$9="kWh",$C$4,$C$5) -> 37079 | F20: =VLOOKUP($C$3,'Data Proposed Rates'!$A:$BB,MATCH('BI Template_unmWHSI'!$A20,ProposedHeader,0),FALSE) -> -0.0013 | G20: =E20*F20 -> -48.2027 | H20: -48.2027 | I20: N/A | J20: -0.004548695088
A21: Sub-Total: Distribution (excluding pass through) | D21: =SUM(INDIRECT("D15:D"&ROW()-1)) -> 2894.2832 | G21: =SUM(INDIRECT("g15:g"&ROW()-1)) -> 4122.6269 | H21: =G21-D21 -> 1228.3437 | I21: 0.424403424 | J21: 0.389035733
A22: Line Losses on Cost of Power (based on two-tier RPP prices) | B22: =B8-B4 -> 1598.1049 | C22: =IF(B4>B7,C13,C12) -> 0.115 | D22: =B22*C22 -> 183.7820635 | E22: =C8-C4 -> 3411.268 | F22: =IF(C4>C7,F13,F12) -> 0.115 | G22: =E22*F22 -> 392.29582 | H22: 208.5137565 | I22: 1.134570766 | J22: 0.03701938002
A23: Sub-Total: Distribution (based on two-tier RPP prices) | D23: =SUM(D21,D22:D22) -> 3078.065264 | G23: =SUM(G21,G22:G22) -> 4514.92272 | H23: 1436.857456 | I23: 0.4668053902 | J23: 0.426055113
A24: Retail Transmission Rate – Network Service Rate | B24: =IF($B$9="kWh",$B$8,$B$5) -> 104 | C24: =VLOOKUP($B$3,'Data Current Rates'!$A:$AL,MATCH('BI Template_unmWHSI'!$A24,CurrentHeader,0),FALSE) -> 2.2078 | D24: =B24*C24 -> 229.6112 | E24: =IF($C$9="kWh",$C$8,$C$5) -> 40490.268 | F24: =VLOOKUP($C$3,'Data Proposed Rates'!$A:$BB,MATCH('BI Template_unmWHSI'!$A24,ProposedHeader,0),FALSE) -> 0.0064 | G24: =E24*F24 -> 259.1377152 | H24: =G24-D24 -> 29.5265152 | I24: 0.128593532 | J24: 0.02445378479
A25: Retail Transmission Rate – Line and Transformation Connection Service Rate | B25: =IF($B$9="kWh",$B$8,$B$5) -> 104 | C25: =VLOOKUP($B$3,'Data Current Rates'!$A:$AL,MATCH('BI Template_unmWHSI'!$A25,CurrentHeader,0),FALSE) -> 1.8899 | D25: =B25*C25 -> 196.5496 | E25: =IF($C$9="kWh",$C$8,$C$5) -> 40490.268 | F25: =VLOOKUP($C$3,'Data Proposed Rates'!$A:$BB,MATCH('BI Template_unmWHSI'!$A25,ProposedHeader,0),FALSE) -> 0.0048 | G25: =E25*F25 -> 194.3532864 | H25: =G25-D25 -> -2.1963136 | I25: -0.01117434785 | J25: 0.01834033859
A26: Sub-Total: Retail Transmission | D26: =SUM(D24:D25) -> 426.1608 | G26: =SUM(G24:G25) -> 453.4910016 | H26: =G26-D26 -> 27.3302016 | I26: 0.06413119555 | J26: 0.04279412338
A27: Sub-Total: Delivery (based on two-tier RPP prices) | D27: =D23+D26 -> 3504.226064 | G27: =G23+G26 -> 4968.413722 | H27: =G27-D27 -> 1464.187658 | I27: 0.4178348176 | J27: 0.4688492364
A28: Wholesale Market Service Rate (WMS) - not including CBR | B28: =B8 -> 38677.1049 | C28: =VLOOKUP($A28,'Data Pass Through'!$A:$D,2,FALSE) -> 0.003 | D28: =B28*C28 -> 116.0313147 | E28: =$C$8 -> 40490.268 | F28: =VLOOKUP($A28,'Data Pass Through'!$A:$D,3,FALSE) -> 0.003 | G28: =E28*F28 -> 121.470804 | H28: =G28-D28 -> 5.4394893 | I28: 0.04687949382 | J28: 0.01146271162
A29: Capacity Based Recovery (CBR) - Applicable for Class B Customers | B29: =B8 -> 38677.1049 | C29: =VLOOKUP($A29,'Data Pass Through'!$A:$D,2,FALSE) -> 0.0004 | D29: =B29*C29 -> 15.47084196 | E29: =$C$8 -> 40490.268 | F29: =VLOOKUP($A29,'Data Pass Through'!$A:$D,3,FALSE) -> 0.0004 | G29: =E29*F29 -> 16.1961072 | H29: 0.72526524 | I29: 0.04687949382 | J29: 0.001528361549
A30: Rural Rate Protection Charge | B30: =B8 -> 38677.1049 | C30: =VLOOKUP($A30,'Data Pass Through'!$A:$D,2,FALSE) -> 0.0005 | D30: 19.33855245 | E30: 40490.268 | F30: =VLOOKUP($A30,'Data Pass Through'!$A:$D,3,FALSE) -> 0.0005 | G30: 20.245134 | H30: 0.90658155 | I30: 0.04687949382 | J30: 0.001910451937
A31: Standard Supply Service – Administration Charge (if applicable) | B31: 1 | C31: =VLOOKUP($A31,'Data Pass Through'!$A:$D,2,FALSE) -> 0.25 | D31: =B31*C31 -> 0.25 | E31: 1 | F31: =VLOOKUP($A31,'Data Pass Through'!$A:$D,3,FALSE) -> 0.25 | G31: 0.25 | H31: 0 | I31: 0 | J31: 2.359149533e-05
A32: Sub-Total: Regulatory | D32: =SUM(D28:D31) -> 151.0907091 | G32: =SUM(G28:G31) -> 158.1620452 | H32: 7.07133609 | I32: 0.04680192536 | J32: 0.0149251166
A33: Total Electricty Charge on Two-Tier RPP | D33: =SUM(D27,D32,D14) -> 7906.651773 | G33: =SUM(G27,G32,G14) -> 9377.910767 | H33: 1471.258994 | I33: 0.1860786382 | J33: 0.8849557522
A34: HST | C34: 0.13 | D34: =D33*C34 -> 1027.86473 | F34: =C34 -> 0.13 | G34: =G33*F34 -> 1219.1284 | H34: 191.2636692 | I34: 0.1860786382 | J34: 0.1150442478
A35: Total Electricity Charge on Two-Tier RPP (including HST) | D35: =SUM(D33:D34) -> 8934.516503 | G35: =SUM(G33:G34) -> 10597.03917 | H35: 1662.522663 | I35: 0.1860786382 | J35: 1
A36: Ontario Electricity Rebate (OER) | C36: =IF(($B$4*12)<250000,VLOOKUP(A36,'Data Pass Through'!$A$4:$C$20,2,0),0) -> 0 | D36: =D33*C36 -> 0 | F36: =C36 -> 0 | G36: =G33*F36 -> 0 | H36: 0 | I36: N/A | J36: 0
A37: Total Amount on Two-Tier RPP | D37: =SUM(D35:D36) -> 8934.516503 | G37: =SUM(G35:G36) -> 10597.03917 | H37: 1662.522663 | I37: 0.1860786382 | J37: 1

Sheet BI_UR_Low
A1: 2023 Bill Impacts (Low Consumption Level) - UR
A3: Rate Class | B3: =RIGHT(A1,LEN(A1)-FIND("- ",A1,1)-1) -> UR
A4: Monthly Consumption (kWh) | B4: =IF(COUNTIF(A1,"*Low*")>0,VLOOKUP(B3,'Data Billing Quantities'!$A:$Z,MATCH("Low kWh",'Data Billing Quantities'!4:4,0),FALSE),IF(COUNTIF(A1,"*Typical*")>0,VLOOKUP(B3,'Data Billing Quantities'!$A:$Z,MATCH("Typical kWh",'Data Billing Quantities'!4:4,0),FALSE),IF(COUNTIF(A1,"*Average*")>0,VLOOKUP(B3,'Data Billing Quantities'!$A:$Z,MATCH("Average kWh",'Data Billing Quantities'!4:4,0),FALSE),IF(COUNTIF(A1,"*High*")>0,VLOOKUP(B3,'Data Billing Quantities'!$A:$Z,MATCH("High kWh",'Data Billing Quantities'!4:4,0),FALSE),"error")))) -> 340
A5: Peak (kW) | B5: =IF(COUNTIF(A1,"*Low*")>0,VLOOKUP(B3,'Data Billing Quantities'!$A:$Z,MATCH("Low kW",'Data Billing Quantities'!4:4,0),FALSE),IF(COUNTIF(A1,"*Typical*")>0,VLOOKUP(B3,'Data Billing Quantities'!$A:$Z,MATCH("Typical kW",'Data Billing Quantities'!4:4,0),FALSE),IF(COUNTIF(A1,"*Average*")>0,VLOOKUP(B3,'Data Billing Quantities'!$A:$Z,MATCH("Average kW",'Data Billing Quantities'!4:4,0),FALSE),IF(COUNTIF(A1,"*High*")>0,VLOOKUP(B3,'Data Billing Quantities'!$A:$Z,MATCH("High kW",'Data Billing Quantities'!4:4,0),FALSE),"error")))) -> 0
A6: Loss factor | B6: =VLOOKUP(B3,'Data Billing Quantities'!A:D,MATCH(A6,'Data Billing Quantities'!4:4,0),FALSE) -> 1.057
A7: Commodity Threshold | B7: =VLOOKUP(B3,'Data Billing Quantities'!A:D,MATCH(A7,'Data Billing Quantities'!4:4,0),FALSE) -> 600
A8: Monthly Consumption (kWh) - Uplifted | B8: =B4*B6 -> 359.38
A9: Charge determinant | B9: =VLOOKUP(B3,'Data Billing Quantities'!A:D,MATCH(A9,'Data Billing Quantities'!4:4,0),FALSE) -> kWh
B11: Volume | C11: Current Rate ($) | D11: Current Charge ($) | E11: Volume | F11: Proposed Rate ($) | G11: Proposed Charge ($) | H11: Change ($) | I11: Change (%) | J11: % of Total Bill on RPP | K11: % of Total Bill
A12: Energy First Tier | B12: =IF(B4>B7,B7,B4) -> 340 | C12: =VLOOKUP($A12,'Data Pass Through'!$A:$D,2,FALSE) -> 0.098 | D12: =B12*C12 -> 33.32 | E12: =B12 -> 340 | F12: =VLOOKUP($A12,'Data Pass Through'!$A:$D,3,FALSE) -> 0.098 | G12: =E12*F12 -> 33.32 | H12: =G12-D12 -> 0 | I12: =IF(ISERROR(H12/ABS(D12)),"N/A",(H12/ABS(D12))) -> 0 | J12: =G12/$G$47 -> 0.4249866645
A13: Energy Second Tier | B13: =IF(B4>B7,(B4)-B7,0) -> 0 | C13: =VLOOKUP($A13,'Data Pass Through'!$A:$D,2,FALSE) -> 0.115 | D13: =B13*C13 -> 0 | E13: =B13 -> 0 | F13: =VLOOKUP($A13,'Data Pass Through'!$A:$D,3,FALSE) -> 0.115 | G13: =E13*F13 -> 0 | H13: 0 | I13: N/A | J13: =G13/$G$47 -> 0
A14: Sub-Total: Energy (RPP Tiered) | D14: =SUM(D12:D13) -> 33.32 | G14: =SUM(G12:G13) -> 33.32 | H14: 0 | I14: 0 | J14: =G14/$G$47 -> 0.4249866645
